Workbook

Sheet Settings
A1: Fertility parameters | E1: Active | F1: Default
A2: Lambda | E2: 1 | F2: 1
A3: Number of years transition to long-run TFR | E3: 15 | F3: 15
A4: long-run TFR | E4: 1.85 | F4: 1.85
A5: Current TFR | E5: =TFR_Jump/1000 -> 1.8838 | F5: 1.8838
A8: Net overseas migration assumptions
A9: NOM settings:
A10: Either: | B10: (1) Long run NOM level (show as number) | E10: 180000 | F10: 180000
A11: OR | B11: (2) Long run NOM share of Population (show as %) | E11: 0.7 | F11: 0.7
A12: Set right hand cell (NOM_Option) to 1 or 2 | E12: 1 | F12: 1
A14: NOM in 2012-13 (Departmental forecast) | E14: 236700 | F14: 236700
A15: Transition to long-run NOM (years) | E15: 5 | F15: 5
A16: Long-run male share of migrants | E16: 0.5 | F16: 0.5
A19: Mortality
A20: Transition period to stable profile (years) | E20: 40 | F20: 40
A21: Scale factor to increase or decrease the probability of death (lower increases life expectancy) | E21: 1 | F21: 1
A22: Richards curve for long-run Qx growth
A23: Alpha | B23: lower asymptote | E23: 0 | F23: 0
A24: K | B24: upper asymptote | E24: -0.015 | F24: -0.015
A25: Q | B25: Interacts with M | E25: 3 | F25: 3
A26: B | B26: the growth rate | E26: -0.15 | F26: -0.15
A27: M | B27: time of maximum growth when Q=v | E27: 30 | F27: 30
A28: V | B28: determines location of maximum growth | E28: 3 | F28: 3
A30: Some other key inputs (and outputs)
A31: Projection method | E31: Lee Carter | F31: Lee Carter
A32: Male LE at 2012 | E32: =Qx!B214 -> 80.25398388 | F32: 80.25523899
A33: Female LE at 2012 | E33: =Qx!B215 -> 84.55773238 | F33: 84.55773238
A34: Implied male LE at 2060 | E34: =Qx!AX214 -> 89.09604842 | F34: 89.09604842
A35: Implied female LE at 2060 | E35: =Qx!AX215 -> 91.36188505 | F35: 91.36188505
A36: Implied male LE at 2100 | E36: =Qx!CL214 -> 92.73970342 | F36: 92.73970342
A37: Implied female LE at 2100 | E37: =Qx!CL215 -> 95.13485435 | F37: 95.13485435
A40: Note that the total population is rounded, but not NOM, deaths, births etc because therese can involve low numbers. While 0.6 of a person cannot die, be born or migrate, the 0.6 should be taken to be an average, so that every few years 1 person falls into this category. Rounding, however, makes a negligible difference.
A43: If Scale = | B43: 0.6858421766 | C43: then female LE = 95
A44: If Scale = | B44: 1.505633221 | C44: then female = 88

Sheet Main results
A2: Table 1: Demographic effects of different assumptions
A4: Active sheet | B4: 2012 | C4: 2020 | D4: 2030 | E4: 2040 | F4: 2050 | G4: 2060 | H4: 2100
A5: Population | B5: =Pop_estimate!B210/1000000 -> 22.710352 | C5: =Pop_estimate!J210/1000000 -> 25.626874 | D5: =Pop_estimate!T210/1000000 -> 29.047471 | E5: =Pop_estimate!AD210/1000000 -> 32.23921 | F5: =Pop_estimate!AN210/1000000 -> 35.318503 | G5: =Pop_estimate!AX210/1000000 -> 38.319127 | H5: =Pop_estimate!CL210/1000000 -> 49.269413
A6: 0-14 share | B6: =Pop_estimate!B395/Pop_estimate!B$410*100 -> 18.89323424 | C6: =Pop_estimate!J395/Pop_estimate!J$410*100 -> 18.91556887 | D6: =Pop_estimate!T395/Pop_estimate!T$410*100 -> 18.15319137 | E6: =Pop_estimate!AD395/Pop_estimate!AD$410*100 -> 17.0630887 | F6: =Pop_estimate!AN395/Pop_estimate!AN$410*100 -> 16.74580318 | G6: =Pop_estimate!AX395/Pop_estimate!AX$410*100 -> 16.51930118 | H6: =Pop_estimate!CL395/Pop_estimate!CL$410*100 -> 15.38334138
A7: 15-49 share | B7: =SUM(Pop_estimate!B396:B402)/Pop_estimate!B410*100 -> 48.80535537 | C7: =SUM(Pop_estimate!J396:J402)/Pop_estimate!J410*100 -> 46.83961454 | D7: =SUM(Pop_estimate!T396:T402)/Pop_estimate!T410*100 -> 45.32715774 | E7: =SUM(Pop_estimate!AD396:AD402)/Pop_estimate!AD410*100 -> 43.70704803 | F7: =SUM(Pop_estimate!AN396:AN402)/Pop_estimate!AN410*100 -> 42.53878201 | G7: =SUM(Pop_estimate!AX396:AX402)/Pop_estimate!AX410*100 -> 41.74981596 | H7: =SUM(Pop_estimate!CL396:CL402)/Pop_estimate!CL410*100 -> 39.15460288
A8: 50-64 share | B8: =SUM(Pop_estimate!B403:B405)/Pop_estimate!B410*100 -> 18.11707718 | C8: =SUM(Pop_estimate!J403:J405)/Pop_estimate!J410*100 -> 17.87965243 | D8: =SUM(Pop_estimate!T403:T405)/Pop_estimate!T410*100 -> 17.11840938 | E8: =SUM(Pop_estimate!AD403:AD405)/Pop_estimate!AD410*100 -> 17.64788591 | F8: =SUM(Pop_estimate!AN403:AN405)/Pop_estimate!AN410*100 -> 17.51571124 | G8: =SUM(Pop_estimate!AX403:AX405)/Pop_estimate!AX410*100 -> 16.76311937 | H8: =SUM(Pop_estimate!CL403:CL405)/Pop_estimate!CL410*100 -> 16.52629188
A9: 65-74 share | B9: =SUM(Pop_estimate!B283:B292)/Pop_estimate!B319*100 -> 7.840041405 | C9: =SUM(Pop_estimate!J283:J292)/Pop_estimate!J$319*100 -> 9.159287239 | D9: =SUM(Pop_estimate!T283:T292)/Pop_estimate!T$319*100 -> 9.833864711 | E9: =SUM(Pop_estimate!AD283:AD292)/Pop_estimate!AD$319*100 -> 9.815935316 | F9: =SUM(Pop_estimate!AN283:AN292)/Pop_estimate!AN$319*100 -> 10.04960771 | G9: =SUM(Pop_estimate!AX283:AX292)/Pop_estimate!AX$319*100 -> 10.54656334 | H9: =SUM(Pop_estimate!CL283:CL292)/Pop_estimate!CL$319*100 -> 10.23152437
A10: 75-84 share | B10: =SUM(Pop_estimate!B293:B302)/Pop_estimate!B319*100 -> 4.477292998 | C10: =SUM(Pop_estimate!J293:J302)/Pop_estimate!J$319*100 -> 5.125783192 | D10: =SUM(Pop_estimate!T293:T302)/Pop_estimate!T$319*100 -> 6.835486642 | E10: =SUM(Pop_estimate!AD293:AD302)/Pop_estimate!AD$319*100 -> 7.767972602 | F10: =SUM(Pop_estimate!AN293:AN302)/Pop_estimate!AN$319*100 -> 8.082856739 | G10: =SUM(Pop_estimate!AX293:AX302)/Pop_estimate!AX$319*100 -> 8.530507493 | H10: =SUM(Pop_estimate!CL293:CL302)/Pop_estimate!CL$319*100 -> 9.403994726
A11: 85+ share | B11: =Pop_estimate!B325 -> 1.866998803 | C11: =Pop_estimate!J325 -> 2.080093733 | D11: =Pop_estimate!T325 -> 2.731890153 | E11: =Pop_estimate!AD325 -> 3.998069432 | F11: =Pop_estimate!AN325 -> 5.067239118 | G11: =Pop_estimate!AX325 -> 5.890692656 | H11: =Pop_estimate!CL325 -> 9.300244758 | J11: =1/0.059 -> 16.94915254
A12: 65+ share | B12: =B9+B10+B11 -> 14.18433321 | C12: =C9+C10+C11 -> 16.36516416 | D12: 19.40124151 | E12: 21.58197735 | F12: 23.19970357 | G12: 24.96776349 | H12: 28.93576386
A13: Pop. 15-64 rs old to pop. 0-14 and 65+ years | B13: =Pop_estimate!B364 -> 2.023196919 | C13: =Pop_estimate!J364 -> 1.834408228 | D13: =Pop_estimate!T364 -> 1.662801495 | E13: =Pop_estimate!AD364 -> 1.587652454 | F13: =Pop_estimate!AN364 -> 1.503410474 | G13: =Pop_estimate!AX364 -> 1.41038986 | H13: =Pop_estimate!CL364 -> 1.256363242
A14: Pop. 19-69 rs old to pop. 0-18 and 70+ years | B14: =Pop_estimate!B365 -> 1.970479438 | C14: =Pop_estimate!J365 -> 1.850691953 | D14: =Pop_estimate!T365 -> 1.689650629 | E14: =Pop_estimate!AD365 -> 1.61950058 | F14: =Pop_estimate!AN365 -> 1.568408631 | G14: =Pop_estimate!AX365 -> 1.466744984 | H14: =Pop_estimate!CL365 -> 1.30904896
A16: Deaths | B16: =Deaths!B431 -> 148083.0979 | C16: =Deaths!J431 -> 163322.4082 | D16: =Deaths!T431 -> 190799.752 | E16: =Deaths!AD431 -> 234940.2516 | F16: =Deaths!AN431 -> 274105.1051 | G16: =Deaths!AX431 -> 301335.9499 | H16: =Deaths!CL431 -> 429222.0292
A17: Deaths per 1000 people | B17: =B16/(B5*1000) -> 6.520510907 | C17: 6.373091319 | D17: 6.56854953 | E17: 7.287407217 | F17: 7.760949128 | G17: 7.863852167 | H17: 8.711734179
A18: Life expectancy males | B18: =Qx!B214 -> 80.25398388 | C18: =Qx!J214 -> 82.16093623 | D18: =Qx!T214 -> 84.28660983 | E18: =Qx!AD214 -> 86.14803711 | F18: =Qx!AN214 -> 87.77471929 | G18: =Qx!AX214 -> 89.09604842 | H18: =Qx!CL214 -> 92.73970342
A19: Life expectancy females | B19: =Qx!B215 -> 84.55773238 | C19: =Qx!J215 -> 85.91152292 | D19: =Qx!T215 -> 87.45336061 | E19: =Qx!AD215 -> 88.84733572 | F19: =Qx!AN215 -> 90.1156654 | G19: =Qx!AX215 -> 91.36188505 | H19: =Qx!CL215 -> 95.13485435
A20: Assumptions
A21: Long run TFR | B21: =longrun_TFR -> 1.85
A22: Mortality projection method | B22: =Settings!E31 -> Lee Carter
A23: NOM | B23: =LR_NOM -> 180000
A24: 85+ numbers | B24: =Pop_estimate!$B$335 -> 424002 | C24: =Pop_estimate!$J$335 -> 533063 | D24: =Pop_estimate!$T$335 -> 793545 | E24: =Pop_estimate!$AD$335 -> 1288946 | F24: =Pop_estimate!$AN$335 -> 1789673 | G24: =Pop_estimate!AX335 -> 2257262 | H24: =Pop_estimate!CL335 -> 4582176
G25: =G24-B24 -> 1833260
A28: Table 1: Demographic effects of different assumptions

Sheet Pop_estimate
A1: Rounded projected population
A2: Males | B2: Year ending 30 June Estimated Resident Population
B3: 2012 | C3: =B3+1 -> 2013 | D3: =C3+1 -> 2014 | E3: 2015 | F3: 2016 | G3: 2017 | H3: 2018 | I3: 2019 | J3: 2020 | K3: 2021 | L3: 2022 | M3: 2023 | N3: 2024 | O3: 2025 | P3: 2026 | Q3: 2027 | R3: 2028 | S3: 2029 | T3: 2030 | U3: 2031 | V3: 2032 | W3: 2033 | X3: 2034 | Y3: 2035 | Z3: 2036 | AA3: 2037 | AB3: 2038 | AC3: 2039 | AD3: 2040 | AE3: 2041 | AF3: 2042 | AG3: 2043 | AH3: 2044 | AI3: 2045 | AJ3: 2046 | AK3: 2047 | AL3: 2048 | AM3: 2049 | AN3: 2050 | AO3: 2051 | AP3: 2052 | AQ3: 2053 | AR3: 2054 | AS3: 2055 | AT3: 2056 | AU3: 2057 | AV3: 2058 | AW3: 2059 | AX3: =AW3+1 -> 2060 | AY3: 2061 | AZ3: 2062 | BA3: 2063 | BB3: 2064 | BC3: 2065 | BD3: 2066 | BE3: 2067 | BF3: 2068 | BG3: 2069 | BH3: 2070 | BI3: 2071 | BJ3: 2072 | BK3: 2073 | BL3: 2074 | BM3: 2075 | BN3: 2076 | BO3: 2077 | BP3: 2078 | BQ3: 2079 | BR3: 2080 | BS3: 2081 | BT3: 2082 | BU3: 2083 | BV3: 2084 | BW3: 2085 | BX3: 2086 | BY3: 2087 | BZ3: 2088 | CA3: 2089 | CB3: 2090 | CC3: 2091 | CD3: 2092 | CE3: 2093 | CF3: 2094 | CG3: 2095 | CH3: 2096 | CI3: 2097 | CJ3: 2098 | CK3: 2099 | CL3: 2100 | CM3: 2101 | CN3: 2102
A4: 0 | B4: 152641 | C4: =ROUND(Births!C47+Migrants!C214,0) -> 155690 | D4: =ROUND(Births!D47+Migrants!D214,0) -> 158345 | E4: =ROUND(Births!E47+Migrants!E214,0) -> 160847 | F4: =ROUND(Births!F47+Migrants!F214,0) -> 163148 | G4: =ROUND(Births!G47+Migrants!G214,0) -> 165207 | H4: =ROUND(Births!H47+Migrants!H214,0) -> 166979 | I4: =ROUND(Births!I47+Migrants!I214,0) -> 168494 | J4: =ROUND(Births!J47+Migrants!J214,0) -> 169806 | K4: =ROUND(Births!K47+Migrants!K214,0) -> 170909 | L4: =ROUND(Births!L47+Migrants!L214,0) -> 171806 | M4: =ROUND(Births!M47+Migrants!M214,0) -> 172523 | N4: =ROUND(Births!N47+Migrants!N214,0) -> 173106 | O4: =ROUND(Births!O47+Migrants!O214,0) -> 173587 | P4: =ROUND(Births!P47+Migrants!P214,0) -> 173992 | Q4: =ROUND(Births!Q47+Migrants!Q214,0) -> 174336 | R4: =ROUND(Births!R47+Migrants!R214,0) -> 174698 | S4: =ROUND(Births!S47+Migrants!S214,0) -> 175125 | T4: =ROUND(Births!T47+Migrants!T214,0) -> 175609 | U4: =ROUND(Births!U47+Migrants!U214,0) -> 176190 | V4: =ROUND(Births!V47+Migrants!V214,0) -> 176895 | W4: =ROUND(Births!W47+Migrants!W214,0) -> 177755 | X4: =ROUND(Births!X47+Migrants!X214,0) -> 178785 | Y4: =ROUND(Births!Y47+Migrants!Y214,0) -> 179981 | Z4: =ROUND(Births!Z47+Migrants!Z214,0) -> 181337 | AA4: =ROUND(Births!AA47+Migrants!AA214,0) -> 182836 | AB4: =ROUND(Births!AB47+Migrants!AB214,0) -> 184450 | AC4: =ROUND(Births!AC47+Migrants!AC214,0) -> 186156 | AD4: =ROUND(Births!AD47+Migrants!AD214,0) -> 187936 | AE4: =ROUND(Births!AE47+Migrants!AE214,0) -> 189762 | AF4: =ROUND(Births!AF47+Migrants!AF214,0) -> 191601 | AG4: =ROUND(Births!AG47+Migrants!AG214,0) -> 193426 | AH4: =ROUND(Births!AH47+Migrants!AH214,0) -> 195224 | AI4: =ROUND(Births!AI47+Migrants!AI214,0) -> 196969 | AJ4: =ROUND(Births!AJ47+Migrants!AJ214,0) -> 198644 | AK4: =ROUND(Births!AK47+Migrants!AK214,0) -> 200243 | AL4: =ROUND(Births!AL47+Migrants!AL214,0) -> 201765 | AM4: =ROUND(Births!AM47+Migrants!AM214,0) -> 203208 | AN4: =ROUND(Births!AN47+Migrants!AN214,0) -> 204568 | AO4: =ROUND(Births!AO47+Migrants!AO214,0) -> 205844 | AP4: =ROUND(Births!AP47+Migrants!AP214,0) -> 207036 | AQ4: =ROUND(Births!AQ47+Migrants!AQ214,0) -> 208144 | AR4: =ROUND(Births!AR47+Migrants!AR214,0) -> 209165 | AS4: =ROUND(Births!AS47+Migrants!AS214,0) -> 210110 | AT4: =ROUND(Births!AT47+Migrants!AT214,0) -> 210984 | AU4: =ROUND(Births!AU47+Migrants!AU214,0) -> 211801 | AV4: =ROUND(Births!AV47+Migrants!AV214,0) -> 212574 | AW4: =ROUND(Births!AW47+Migrants!AW214,0) -> 213321 | AX4: =ROUND(Births!AX47+Migrants!AX214,0) -> 214058 | AY4: =ROUND(Births!AY47+Migrants!AY214,0) -> 214804 | AZ4: =ROUND(Births!AZ47+Migrants!AZ214,0) -> 215572 | BA4: =ROUND(Births!BA47+Migrants!BA214,0) -> 216379 | BB4: =ROUND(Births!BB47+Migrants!BB214,0) -> 217236 | BC4: =ROUND(Births!BC47+Migrants!BC214,0) -> 218152 | BD4: =ROUND(Births!BD47+Migrants!BD214,0) -> 219133 | BE4: =ROUND(Births!BE47+Migrants!BE214,0) -> 220184 | BF4: =ROUND(Births!BF47+Migrants!BF214,0) -> 221302 | BG4: =ROUND(Births!BG47+Migrants!BG214,0) -> 222488 | BH4: =ROUND(Births!BH47+Migrants!BH214,0) -> 223734 | BI4: =ROUND(Births!BI47+Migrants!BI214,0) -> 225033 | BJ4: =ROUND(Births!BJ47+Migrants!BJ214,0) -> 226376 | BK4: =ROUND(Births!BK47+Migrants!BK214,0) -> 227750 | BL4: =ROUND(Births!BL47+Migrants!BL214,0) -> 229144 | BM4: =ROUND(Births!BM47+Migrants!BM214,0) -> 230547 | BN4: =ROUND(Births!BN47+Migrants!BN214,0) -> 231945 | BO4: =ROUND(Births!BO47+Migrants!BO214,0) -> 233328 | BP4: =ROUND(Births!BP47+Migrants!BP214,0) -> 234685 | BQ4: =ROUND(Births!BQ47+Migrants!BQ214,0) -> 236010 | BR4: =ROUND(Births!BR47+Migrants!BR214,0) -> 237293 | BS4: =ROUND(Births!BS47+Migrants!BS214,0) -> 238531 | BT4: =ROUND(Births!BT47+Migrants!BT214,0) -> 239722 | BU4: =ROUND(Births!BU47+Migrants!BU214,0) -> 240861 | BV4: =ROUND(Births!BV47+Migrants!BV214,0) -> 241950 | BW4: =ROUND(Births!BW47+Migrants!BW214,0) -> 242990 | BX4: =ROUND(Births!BX47+Migrants!BX214,0) -> 243985 | BY4: =ROUND(Births!BY47+Migrants!BY214,0) -> 244939 | BZ4: =ROUND(Births!BZ47+Migrants!BZ214,0) -> 245857 | CA4: =ROUND(Births!CA47+Migrants!CA214,0) -> 246745 | CB4: =ROUND(Births!CB47+Migrants!CB214,0) -> 247609 | CC4: =ROUND(Births!CC47+Migrants!CC214,0) -> 248460 | CD4: =ROUND(Births!CD47+Migrants!CD214,0) -> 249302 | CE4: =ROUND(Births!CE47+Migrants!CE214,0) -> 250142 | CF4: =ROUND(Births!CF47+Migrants!CF214,0) -> 250991 | CG4: =ROUND(Births!CG47+Migrants!CG214,0) -> 251851 | CH4: =ROUND(Births!CH47+Migrants!CH214,0) -> 252732 | CI4: =ROUND(Births!CI47+Migrants!CI214,0) -> 253635 | CJ4: =ROUND(Births!CJ47+Migrants!CJ214,0) -> 254566 | CK4: =ROUND(Births!CK47+Migrants!CK214,0) -> 255526 | CL4: =ROUND(Births!CL47+Migrants!CL214,0) -> 256518 | CM4: =ROUND(Births!CM47+Migrants!CM214,0) -> 257539 | CN4: =ROUND(Births!CN47+Migrants!CN214,0) -> 258589
A5: 1 | B5: 150249 | C5: =ROUND(Survivors!C5+Migrants!C215,0) -> 153601 | D5: =ROUND(Survivors!D5+Migrants!D215,0) -> 156601 | E5: =ROUND(Survivors!E5+Migrants!E215,0) -> 159207 | F5: =ROUND(Survivors!F5+Migrants!F215,0) -> 161660 | G5: =ROUND(Survivors!G5+Migrants!G215,0) -> 163913 | H5: =ROUND(Survivors!H5+Migrants!H215,0) -> 165923 | I5: =ROUND(Survivors!I5+Migrants!I215,0) -> 167698 | J5: =ROUND(Survivors!J5+Migrants!J215,0) -> 169215 | K5: =ROUND(Survivors!K5+Migrants!K215,0) -> 170530 | L5: =ROUND(Survivors!L5+Migrants!L215,0) -> 171636 | M5: =ROUND(Survivors!M5+Migrants!M215,0) -> 172535 | N5: =ROUND(Survivors!N5+Migrants!N215,0) -> 173255 | O5: =ROUND(Survivors!O5+Migrants!O215,0) -> 173841 | P5: =ROUND(Survivors!P5+Migrants!P215,0) -> 174324 | Q5: =ROUND(Survivors!Q5+Migrants!Q215,0) -> 174732 | R5: =ROUND(Survivors!R5+Migrants!R215,0) -> 175078 | S5: =ROUND(Survivors!S5+Migrants!S215,0) -> 175443 | T5: =ROUND(Survivors!T5+Migrants!T215,0) -> 175872 | U5: =ROUND(Survivors!U5+Migrants!U215,0) -> 176358 | V5: =ROUND(Survivors!V5+Migrants!V215,0) -> 176941 | W5: =ROUND(Survivors!W5+Migrants!W215,0) -> 177648 | X5: =ROUND(Survivors!X5+Migrants!X215,0) -> 178510 | Y5: =ROUND(Survivors!Y5+Migrants!Y215,0) -> 179542 | Z5: =ROUND(Survivors!Z5+Migrants!Z215,0) -> 180740 | AA5: =ROUND(Survivors!AA5+Migrants!AA215,0) -> 182097 | AB5: =ROUND(Survivors!AB5+Migrants!AB215,0) -> 183598 | AC5: =ROUND(Survivors!AC5+Migrants!AC215,0) -> 185213 | AD5: =ROUND(Survivors!AD5+Migrants!AD215,0) -> 186920 | AE5: =ROUND(Survivors!AE5+Migrants!AE215,0) -> 188702 | AF5: =ROUND(Survivors!AF5+Migrants!AF215,0) -> 190529 | AG5: =ROUND(Survivors!AG5+Migrants!AG215,0) -> 192369 | AH5: =ROUND(Survivors!AH5+Migrants!AH215,0) -> 194195 | AI5: =ROUND(Survivors!AI5+Migrants!AI215,0) -> 195995 | AJ5: =ROUND(Survivors!AJ5+Migrants!AJ215,0) -> 197741 | AK5: =ROUND(Survivors!AK5+Migrants!AK215,0) -> 199417 | AL5: =ROUND(Survivors!AL5+Migrants!AL215,0) -> 201017 | AM5: =ROUND(Survivors!AM5+Migrants!AM215,0) -> 202540 | AN5: =ROUND(Survivors!AN5+Migrants!AN215,0) -> 203984 | AO5: =ROUND(Survivors!AO5+Migrants!AO215,0) -> 205345 | AP5: =ROUND(Survivors!AP5+Migrants!AP215,0) -> 206622 | AQ5: =ROUND(Survivors!AQ5+Migrants!AQ215,0) -> 207815 | AR5: =ROUND(Survivors!AR5+Migrants!AR215,0) -> 208924 | AS5: =ROUND(Survivors!AS5+Migrants!AS215,0) -> 209945 | AT5: =ROUND(Survivors!AT5+Migrants!AT215,0) -> 210890 | AU5: =ROUND(Survivors!AU5+Migrants!AU215,0) -> 211764 | AV5: =ROUND(Survivors!AV5+Migrants!AV215,0) -> 212582 | AW5: =ROUND(Survivors!AW5+Migrants!AW215,0) -> 213355 | AX5: =ROUND(Survivors!AX5+Migrants!AX215,0) -> 214102 | AY5: =ROUND(Survivors!AY5+Migrants!AY215,0) -> 214840 | AZ5: =ROUND(Survivors!AZ5+Migrants!AZ215,0) -> 215586 | BA5: =ROUND(Survivors!BA5+Migrants!BA215,0) -> 216354 | BB5: =ROUND(Survivors!BB5+Migrants!BB215,0) -> 217162 | BC5: =ROUND(Survivors!BC5+Migrants!BC215,0) -> 218019 | BD5: =ROUND(Survivors!BD5+Migrants!BD215,0) -> 218935 | BE5: =ROUND(Survivors!BE5+Migrants!BE215,0) -> 219916 | BF5: =ROUND(Survivors!BF5+Migrants!BF215,0) -> 220968 | BG5: =ROUND(Survivors!BG5+Migrants!BG215,0) -> 222086 | BH5: =ROUND(Survivors!BH5+Migrants!BH215,0) -> 223272 | BI5: =ROUND(Survivors!BI5+Migrants!BI215,0) -> 224518 | BJ5: =ROUND(Survivors!BJ5+Migrants!BJ215,0) -> 225818 | BK5: =ROUND(Survivors!BK5+Migrants!BK215,0) -> 227161 | BL5: =ROUND(Survivors!BL5+Migrants!BL215,0) -> 228535 | BM5: =ROUND(Survivors!BM5+Migrants!BM215,0) -> 229929 | BN5: =ROUND(Survivors!BN5+Migrants!BN215,0) -> 231332 | BO5: =ROUND(Survivors!BO5+Migrants!BO215,0) -> 232730 | BP5: =ROUND(Survivors!BP5+Migrants!BP215,0) -> 234113 | BQ5: =ROUND(Survivors!BQ5+Migrants!BQ215,0) -> 235471 | BR5: =ROUND(Survivors!BR5+Migrants!BR215,0) -> 236796 | BS5: =ROUND(Survivors!BS5+Migrants!BS215,0) -> 238079 | BT5: =ROUND(Survivors!BT5+Migrants!BT215,0) -> 239317 | BU5: =ROUND(Survivors!BU5+Migrants!BU215,0) -> 240508 | BV5: =ROUND(Survivors!BV5+Migrants!BV215,0) -> 241647 | BW5: =ROUND(Survivors!BW5+Migrants!BW215,0) -> 242736 | BX5: =ROUND(Survivors!BX5+Migrants!BX215,0) -> 243776 | BY5: =ROUND(Survivors!BY5+Migrants!BY215,0) -> 244771 | BZ5: =ROUND(Survivors!BZ5+Migrants!BZ215,0) -> 245725 | CA5: =ROUND(Survivors!CA5+Migrants!CA215,0) -> 246644 | CB5: =ROUND(Survivors!CB5+Migrants!CB215,0) -> 247532 | CC5: =ROUND(Survivors!CC5+Migrants!CC215,0) -> 248396 | CD5: =ROUND(Survivors!CD5+Migrants!CD215,0) -> 249247 | CE5: =ROUND(Survivors!CE5+Migrants!CE215,0) -> 250089 | CF5: =ROUND(Survivors!CF5+Migrants!CF215,0) -> 250929 | CG5: =ROUND(Survivors!CG5+Migrants!CG215,0) -> 251778 | CH5: =ROUND(Survivors!CH5+Migrants!CH215,0) -> 252638 | CI5: =ROUND(Survivors!CI5+Migrants!CI215,0) -> 253519 | CJ5: =ROUND(Survivors!CJ5+Migrants!CJ215,0) -> 254422 | CK5: =ROUND(Survivors!CK5+Migrants!CK215,0) -> 255353 | CL5: =ROUND(Survivors!CL5+Migrants!CL215,0) -> 256313 | CM5: =ROUND(Survivors!CM5+Migrants!CM215,0) -> 257305 | CN5: =ROUND(Survivors!CN5+Migrants!CN215,0) -> 258326
A6: 2 | B6: 153115 | C6: =ROUND(Survivors!C6+Migrants!C216,0) -> 152411 | D6: =ROUND(Survivors!D6+Migrants!D216,0) -> 155658 | E6: =ROUND(Survivors!E6+Migrants!E216,0) -> 158553 | F6: =ROUND(Survivors!F6+Migrants!F216,0) -> 161054 | G6: =ROUND(Survivors!G6+Migrants!G216,0) -> 163403 | H6: =ROUND(Survivors!H6+Migrants!H216,0) -> 165551 | I6: =ROUND(Survivors!I6+Migrants!I216,0) -> 167562 | J6: =ROUND(Survivors!J6+Migrants!J216,0) -> 169337 | K6: =ROUND(Survivors!K6+Migrants!K216,0) -> 170855 | L6: =ROUND(Survivors!L6+Migrants!L216,0) -> 172171 | M6: =ROUND(Survivors!M6+Migrants!M216,0) -> 173278 | N6: =ROUND(Survivors!N6+Migrants!N216,0) -> 174178 | O6: =ROUND(Survivors!O6+Migrants!O216,0) -> 174899 | P6: =ROUND(Survivors!P6+Migrants!P216,0) -> 175486 | Q6: =ROUND(Survivors!Q6+Migrants!Q216,0) -> 175970 | R6: =ROUND(Survivors!R6+Migrants!R216,0) -> 176379 | S6: =ROUND(Survivors!S6+Migrants!S216,0) -> 176726 | T6: =ROUND(Survivors!T6+Migrants!T216,0) -> 177091 | U6: =ROUND(Survivors!U6+Migrants!U216,0) -> 177521 | V6: =ROUND(Survivors!V6+Migrants!V216,0) -> 178008 | W6: =ROUND(Survivors!W6+Migrants!W216,0) -> 178592 | X6: =ROUND(Survivors!X6+Migrants!X216,0) -> 179300 | Y6: =ROUND(Survivors!Y6+Migrants!Y216,0) -> 180162 | Z6: =ROUND(Survivors!Z6+Migrants!Z216,0) -> 181195 | AA6: =ROUND(Survivors!AA6+Migrants!AA216,0) -> 182393 | AB6: =ROUND(Survivors!AB6+Migrants!AB216,0) -> 183751 | AC6: =ROUND(Survivors!AC6+Migrants!AC216,0) -> 185252 | AD6: =ROUND(Survivors!AD6+Migrants!AD216,0) -> 186868 | AE6: =ROUND(Survivors!AE6+Migrants!AE216,0) -> 188575 | AF6: =ROUND(Survivors!AF6+Migrants!AF216,0) -> 190358 | AG6: =ROUND(Survivors!AG6+Migrants!AG216,0) -> 192185 | AH6: =ROUND(Survivors!AH6+Migrants!AH216,0) -> 194026 | AI6: =ROUND(Survivors!AI6+Migrants!AI216,0) -> 195852 | AJ6: =ROUND(Survivors!AJ6+Migrants!AJ216,0) -> 197653 | AK6: =ROUND(Survivors!AK6+Migrants!AK216,0) -> 199399 | AL6: =ROUND(Survivors!AL6+Migrants!AL216,0) -> 201075 | AM6: =ROUND(Survivors!AM6+Migrants!AM216,0) -> 202676 | AN6: =ROUND(Survivors!AN6+Migrants!AN216,0) -> 204199 | AO6: =ROUND(Survivors!AO6+Migrants!AO216,0) -> 205644 | AP6: =ROUND(Survivors!AP6+Migrants!AP216,0) -> 207005 | AQ6: =ROUND(Survivors!AQ6+Migrants!AQ216,0) -> 208283 | AR6: =ROUND(Survivors!AR6+Migrants!AR216,0) -> 209476 | AS6: =ROUND(Survivors!AS6+Migrants!AS216,0) -> 210585 | AT6: =ROUND(Survivors!AT6+Migrants!AT216,0) -> 211606 | AU6: =ROUND(Survivors!AU6+Migrants!AU216,0) -> 212551 | AV6: =ROUND(Survivors!AV6+Migrants!AV216,0) -> 213425 | AW6: =ROUND(Survivors!AW6+Migrants!AW216,0) -> 214243 | AX6: =ROUND(Survivors!AX6+Migrants!AX216,0) -> 215016 | AY6: =ROUND(Survivors!AY6+Migrants!AY216,0) -> 215764 | AZ6: =ROUND(Survivors!AZ6+Migrants!AZ216,0) -> 216502 | BA6: =ROUND(Survivors!BA6+Migrants!BA216,0) -> 217248 | BB6: =ROUND(Survivors!BB6+Migrants!BB216,0) -> 218016 | BC6: =ROUND(Survivors!BC6+Migrants!BC216,0) -> 218824 | BD6: =ROUND(Survivors!BD6+Migrants!BD216,0) -> 219681 | BE6: =ROUND(Survivors!BE6+Migrants!BE216,0) -> 220597 | BF6: =ROUND(Survivors!BF6+Migrants!BF216,0) -> 221578 | BG6: =ROUND(Survivors!BG6+Migrants!BG216,0) -> 222631 | BH6: =ROUND(Survivors!BH6+Migrants!BH216,0) -> 223749 | BI6: =ROUND(Survivors!BI6+Migrants!BI216,0) -> 224935 | BJ6: =ROUND(Survivors!BJ6+Migrants!BJ216,0) -> 226181 | BK6: =ROUND(Survivors!BK6+Migrants!BK216,0) -> 227481 | BL6: =ROUND(Survivors!BL6+Migrants!BL216,0) -> 228824 | BM6: =ROUND(Survivors!BM6+Migrants!BM216,0) -> 230198 | BN6: =ROUND(Survivors!BN6+Migrants!BN216,0) -> 231592 | BO6: =ROUND(Survivors!BO6+Migrants!BO216,0) -> 232995 | BP6: =ROUND(Survivors!BP6+Migrants!BP216,0) -> 234393 | BQ6: =ROUND(Survivors!BQ6+Migrants!BQ216,0) -> 235776 | BR6: =ROUND(Survivors!BR6+Migrants!BR216,0) -> 237134 | BS6: =ROUND(Survivors!BS6+Migrants!BS216,0) -> 238459 | BT6: =ROUND(Survivors!BT6+Migrants!BT216,0) -> 239742 | BU6: =ROUND(Survivors!BU6+Migrants!BU216,0) -> 240980 | BV6: =ROUND(Survivors!BV6+Migrants!BV216,0) -> 242172 | BW6: =ROUND(Survivors!BW6+Migrants!BW216,0) -> 243311 | BX6: =ROUND(Survivors!BX6+Migrants!BX216,0) -> 244400 | BY6: =ROUND(Survivors!BY6+Migrants!BY216,0) -> 245440 | BZ6: =ROUND(Survivors!BZ6+Migrants!BZ216,0) -> 246435 | CA6: =ROUND(Survivors!CA6+Migrants!CA216,0) -> 247389 | CB6: =ROUND(Survivors!CB6+Migrants!CB216,0) -> 248308 | CC6: =ROUND(Survivors!CC6+Migrants!CC216,0) -> 249196 | CD6: =ROUND(Survivors!CD6+Migrants!CD216,0) -> 250060 | CE6: =ROUND(Survivors!CE6+Migrants!CE216,0) -> 250911 | CF6: =ROUND(Survivors!CF6+Migrants!CF216,0) -> 251753 | CG6: =ROUND(Survivors!CG6+Migrants!CG216,0) -> 252593 | CH6: =ROUND(Survivors!CH6+Migrants!CH216,0) -> 253442 | CI6: =ROUND(Survivors!CI6+Migrants!CI216,0) -> 254302 | CJ6: =ROUND(Survivors!CJ6+Migrants!CJ216,0) -> 255183 | CK6: =ROUND(Survivors!CK6+Migrants!CK216,0) -> 256086 | CL6: =ROUND(Survivors!CL6+Migrants!CL216,0) -> 257017 | CM6: =ROUND(Survivors!CM6+Migrants!CM216,0) -> 257977 | CN6: =ROUND(Survivors!CN6+Migrants!CN216,0) -> 258969
A7: 3 | B7: 152105 | C7: =ROUND(Survivors!C7+Migrants!C217,0) -> 155449 | D7: =ROUND(Survivors!D7+Migrants!D217,0) -> 154634 | E7: =ROUND(Survivors!E7+Migrants!E217,0) -> 157768 | F7: =ROUND(Survivors!F7+Migrants!F217,0) -> 160551 | G7: =ROUND(Survivors!G7+Migrants!G217,0) -> 162939 | H7: =ROUND(Survivors!H7+Migrants!H217,0) -> 165176 | I7: =ROUND(Survivors!I7+Migrants!I217,0) -> 167324 | J7: =ROUND(Survivors!J7+Migrants!J217,0) -> 169336 | K7: =ROUND(Survivors!K7+Migrants!K217,0) -> 171112 | L7: =ROUND(Survivors!L7+Migrants!L217,0) -> 172630 | M7: =ROUND(Survivors!M7+Migrants!M217,0) -> 173947 | N7: =ROUND(Survivors!N7+Migrants!N217,0) -> 175054 | O7: =ROUND(Survivors!O7+Migrants!O217,0) -> 175955 | P7: =ROUND(Survivors!P7+Migrants!P217,0) -> 176676 | Q7: =ROUND(Survivors!Q7+Migrants!Q217,0) -> 177264 | R7: =ROUND(Survivors!R7+Migrants!R217,0) -> 177749 | S7: =ROUND(Survivors!S7+Migrants!S217,0) -> 178158 | T7: =ROUND(Survivors!T7+Migrants!T217,0) -> 178506 | U7: =ROUND(Survivors!U7+Migrants!U217,0) -> 178871 | V7: =ROUND(Survivors!V7+Migrants!V217,0) -> 179302 | W7: =ROUND(Survivors!W7+Migrants!W217,0) -> 179789 | X7: =ROUND(Survivors!X7+Migrants!X217,0) -> 180374 | Y7: =ROUND(Survivors!Y7+Migrants!Y217,0) -> 181082 | Z7: =ROUND(Survivors!Z7+Migrants!Z217,0) -> 181944 | AA7: =ROUND(Survivors!AA7+Migrants!AA217,0) -> 182978 | AB7: =ROUND(Survivors!AB7+Migrants!AB217,0) -> 184176 | AC7: =ROUND(Survivors!AC7+Migrants!AC217,0) -> 185534 | AD7: =ROUND(Survivors!AD7+Migrants!AD217,0) -> 187036 | AE7: =ROUND(Survivors!AE7+Migrants!AE217,0) -> 188652 | AF7: =ROUND(Survivors!AF7+Migrants!AF217,0) -> 190359 | AG7: =ROUND(Survivors!AG7+Migrants!AG217,0) -> 192143 | AH7: =ROUND(Survivors!AH7+Migrants!AH217,0) -> 193970 | AI7: =ROUND(Survivors!AI7+Migrants!AI217,0) -> 195811 | AJ7: =ROUND(Survivors!AJ7+Migrants!AJ217,0) -> 197637 | AK7: =ROUND(Survivors!AK7+Migrants!AK217,0) -> 199439 | AL7: =ROUND(Survivors!AL7+Migrants!AL217,0) -> 201185 | AM7: =ROUND(Survivors!AM7+Migrants!AM217,0) -> 202861 | AN7: =ROUND(Survivors!AN7+Migrants!AN217,0) -> 204462 | AO7: =ROUND(Survivors!AO7+Migrants!AO217,0) -> 205985 | AP7: =ROUND(Survivors!AP7+Migrants!AP217,0) -> 207431 | AQ7: =ROUND(Survivors!AQ7+Migrants!AQ217,0) -> 208792 | AR7: =ROUND(Survivors!AR7+Migrants!AR217,0) -> 210070 | AS7: =ROUND(Survivors!AS7+Migrants!AS217,0) -> 211263 | AT7: =ROUND(Survivors!AT7+Migrants!AT217,0) -> 212372 | AU7: =ROUND(Survivors!AU7+Migrants!AU217,0) -> 213393 | AV7: =ROUND(Survivors!AV7+Migrants!AV217,0) -> 214338 | AW7: =ROUND(Survivors!AW7+Migrants!AW217,0) -> 215212 | AX7: =ROUND(Survivors!AX7+Migrants!AX217,0) -> 216030 | AY7: =ROUND(Survivors!AY7+Migrants!AY217,0) -> 216803 | AZ7: =ROUND(Survivors!AZ7+Migrants!AZ217,0) -> 217551 | BA7: =ROUND(Survivors!BA7+Migrants!BA217,0) -> 218289 | BB7: =ROUND(Survivors!BB7+Migrants!BB217,0) -> 219035 | BC7: =ROUND(Survivors!BC7+Migrants!BC217,0) -> 219803 | BD7: =ROUND(Survivors!BD7+Migrants!BD217,0) -> 220612 | BE7: =ROUND(Survivors!BE7+Migrants!BE217,0) -> 221469 | BF7: =ROUND(Survivors!BF7+Migrants!BF217,0) -> 222385 | BG7: =ROUND(Survivors!BG7+Migrants!BG217,0) -> 223366 | BH7: =ROUND(Survivors!BH7+Migrants!BH217,0) -> 224419 | BI7: =ROUND(Survivors!BI7+Migrants!BI217,0) -> 225537 | BJ7: =ROUND(Survivors!BJ7+Migrants!BJ217,0) -> 226723 | BK7: =ROUND(Survivors!BK7+Migrants!BK217,0) -> 227969 | BL7: =ROUND(Survivors!BL7+Migrants!BL217,0) -> 229269 | BM7: =ROUND(Survivors!BM7+Migrants!BM217,0) -> 230612 | BN7: =ROUND(Survivors!BN7+Migrants!BN217,0) -> 231986 | BO7: =ROUND(Survivors!BO7+Migrants!BO217,0) -> 233380 | BP7: =ROUND(Survivors!BP7+Migrants!BP217,0) -> 234783 | BQ7: =ROUND(Survivors!BQ7+Migrants!BQ217,0) -> 236181 | BR7: =ROUND(Survivors!BR7+Migrants!BR217,0) -> 237564 | BS7: =ROUND(Survivors!BS7+Migrants!BS217,0) -> 238922 | BT7: =ROUND(Survivors!BT7+Migrants!BT217,0) -> 240247 | BU7: =ROUND(Survivors!BU7+Migrants!BU217,0) -> 241530 | BV7: =ROUND(Survivors!BV7+Migrants!BV217,0) -> 242768 | BW7: =ROUND(Survivors!BW7+Migrants!BW217,0) -> 243960 | BX7: =ROUND(Survivors!BX7+Migrants!BX217,0) -> 245099 | BY7: =ROUND(Survivors!BY7+Migrants!BY217,0) -> 246188 | BZ7: =ROUND(Survivors!BZ7+Migrants!BZ217,0) -> 247228 | CA7: =ROUND(Survivors!CA7+Migrants!CA217,0) -> 248223 | CB7: =ROUND(Survivors!CB7+Migrants!CB217,0) -> 249177 | CC7: =ROUND(Survivors!CC7+Migrants!CC217,0) -> 250096 | CD7: =ROUND(Survivors!CD7+Migrants!CD217,0) -> 250984 | CE7: =ROUND(Survivors!CE7+Migrants!CE217,0) -> 251848 | CF7: =ROUND(Survivors!CF7+Migrants!CF217,0) -> 252699 | CG7: =ROUND(Survivors!CG7+Migrants!CG217,0) -> 253541 | CH7: =ROUND(Survivors!CH7+Migrants!CH217,0) -> 254381 | CI7: =ROUND(Survivors!CI7+Migrants!CI217,0) -> 255230 | CJ7: =ROUND(Survivors!CJ7+Migrants!CJ217,0) -> 256090 | CK7: =ROUND(Survivors!CK7+Migrants!CK217,0) -> 256971 | CL7: =ROUND(Survivors!CL7+Migrants!CL217,0) -> 257874 | CM7: =ROUND(Survivors!CM7+Migrants!CM217,0) -> 258805 | CN7: =ROUND(Survivors!CN7+Migrants!CN217,0) -> 259765
A8: 4 | B8: 151523 | C8: =ROUND(Survivors!C8+Migrants!C218,0) -> 154386 | D8: =ROUND(Survivors!D8+Migrants!D218,0) -> 157621 | E8: =ROUND(Survivors!E8+Migrants!E218,0) -> 156696 | F8: =ROUND(Survivors!F8+Migrants!F218,0) -> 159720 | G8: =ROUND(Survivors!G8+Migrants!G218,0) -> 162394 | H8: =ROUND(Survivors!H8+Migrants!H218,0) -> 164672 | I8: =ROUND(Survivors!I8+Migrants!I218,0) -> 166909 | J8: =ROUND(Survivors!J8+Migrants!J218,0) -> 169058 | K8: =ROUND(Survivors!K8+Migrants!K218,0) -> 171070 | L8: =ROUND(Survivors!L8+Migrants!L218,0) -> 172847 | M8: =ROUND(Survivors!M8+Migrants!M218,0) -> 174365 | N8: =ROUND(Survivors!N8+Migrants!N218,0) -> 175683 | O8: =ROUND(Survivors!O8+Migrants!O218,0) -> 176790 | P8: =ROUND(Survivors!P8+Migrants!P218,0) -> 177692 | Q8: =ROUND(Survivors!Q8+Migrants!Q218,0) -> 178413 | R8: =ROUND(Survivors!R8+Migrants!R218,0) -> 179002 | S8: =ROUND(Survivors!S8+Migrants!S218,0) -> 179487 | T8: =ROUND(Survivors!T8+Migrants!T218,0) -> 179897 | U8: =ROUND(Survivors!U8+Migrants!U218,0) -> 180245 | V8: =ROUND(Survivors!V8+Migrants!V218,0) -> 180611 | W8: =ROUND(Survivors!W8+Migrants!W218,0) -> 181042 | X8: =ROUND(Survivors!X8+Migrants!X218,0) -> 181529 | Y8: =ROUND(Survivors!Y8+Migrants!Y218,0) -> 182115 | Z8: =ROUND(Survivors!Z8+Migrants!Z218,0) -> 182823 | AA8: =ROUND(Survivors!AA8+Migrants!AA218,0) -> 183686 | AB8: =ROUND(Survivors!AB8+Migrants!AB218,0) -> 184720 | AC8: =ROUND(Survivors!AC8+Migrants!AC218,0) -> 185918 | AD8: =ROUND(Survivors!AD8+Migrants!AD218,0) -> 187276 | AE8: =ROUND(Survivors!AE8+Migrants!AE218,0) -> 188779 | AF8: =ROUND(Survivors!AF8+Migrants!AF218,0) -> 190395 | AG8: =ROUND(Survivors!AG8+Migrants!AG218,0) -> 192102 | AH8: =ROUND(Survivors!AH8+Migrants!AH218,0) -> 193886 | AI8: =ROUND(Survivors!AI8+Migrants!AI218,0) -> 195714 | AJ8: =ROUND(Survivors!AJ8+Migrants!AJ218,0) -> 197555 | AK8: =ROUND(Survivors!AK8+Migrants!AK218,0) -> 199381 | AL8: =ROUND(Survivors!AL8+Migrants!AL218,0) -> 201183 | AM8: =ROUND(Survivors!AM8+Migrants!AM218,0) -> 202929 | AN8: =ROUND(Survivors!AN8+Migrants!AN218,0) -> 204606 | AO8: =ROUND(Survivors!AO8+Migrants!AO218,0) -> 206207 | AP8: =ROUND(Survivors!AP8+Migrants!AP218,0) -> 207730 | AQ8: =ROUND(Survivors!AQ8+Migrants!AQ218,0) -> 209176 | AR8: =ROUND(Survivors!AR8+Migrants!AR218,0) -> 210537 | AS8: =ROUND(Survivors!AS8+Migrants!AS218,0) -> 211815 | AT8: =ROUND(Survivors!AT8+Migrants!AT218,0) -> 213008 | AU8: =ROUND(Survivors!AU8+Migrants!AU218,0) -> 214117 | AV8: =ROUND(Survivors!AV8+Migrants!AV218,0) -> 215138 | AW8: =ROUND(Survivors!AW8+Migrants!AW218,0) -> 216083 | AX8: =ROUND(Survivors!AX8+Migrants!AX218,0) -> 216957 | AY8: =ROUND(Survivors!AY8+Migrants!AY218,0) -> 217775 | AZ8: =ROUND(Survivors!AZ8+Migrants!AZ218,0) -> 218549 | BA8: =ROUND(Survivors!BA8+Migrants!BA218,0) -> 219297 | BB8: =ROUND(Survivors!BB8+Migrants!BB218,0) -> 220035 | BC8: =ROUND(Survivors!BC8+Migrants!BC218,0) -> 220781 | BD8: =ROUND(Survivors!BD8+Migrants!BD218,0) -> 221549 | BE8: =ROUND(Survivors!BE8+Migrants!BE218,0) -> 222358 | BF8: =ROUND(Survivors!BF8+Migrants!BF218,0) -> 223215 | BG8: =ROUND(Survivors!BG8+Migrants!BG218,0) -> 224131 | BH8: =ROUND(Survivors!BH8+Migrants!BH218,0) -> 225112 | BI8: =ROUND(Survivors!BI8+Migrants!BI218,0) -> 226165 | BJ8: =ROUND(Survivors!BJ8+Migrants!BJ218,0) -> 227283 | BK8: =ROUND(Survivors!BK8+Migrants!BK218,0) -> 228469 | BL8: =ROUND(Survivors!BL8+Migrants!BL218,0) -> 229715 | BM8: =ROUND(Survivors!BM8+Migrants!BM218,0) -> 231015 | BN8: =ROUND(Survivors!BN8+Migrants!BN218,0) -> 232358 | BO8: =ROUND(Survivors!BO8+Migrants!BO218,0) -> 233732 | BP8: =ROUND(Survivors!BP8+Migrants!BP218,0) -> 235126 | BQ8: =ROUND(Survivors!BQ8+Migrants!BQ218,0) -> 236529 | BR8: =ROUND(Survivors!BR8+Migrants!BR218,0) -> 237927 | BS8: =ROUND(Survivors!BS8+Migrants!BS218,0) -> 239310 | BT8: =ROUND(Survivors!BT8+Migrants!BT218,0) -> 240668 | BU8: =ROUND(Survivors!BU8+Migrants!BU218,0) -> 241993 | BV8: =ROUND(Survivors!BV8+Migrants!BV218,0) -> 243276 | BW8: =ROUND(Survivors!BW8+Migrants!BW218,0) -> 244514 | BX8: =ROUND(Survivors!BX8+Migrants!BX218,0) -> 245706 | BY8: =ROUND(Survivors!BY8+Migrants!BY218,0) -> 246845 | BZ8: =ROUND(Survivors!BZ8+Migrants!BZ218,0) -> 247934 | CA8: =ROUND(Survivors!CA8+Migrants!CA218,0) -> 248974 | CB8: =ROUND(Survivors!CB8+Migrants!CB218,0) -> 249969 | CC8: =ROUND(Survivors!CC8+Migrants!CC218,0) -> 250923 | CD8: =ROUND(Survivors!CD8+Migrants!CD218,0) -> 251842 | CE8: =ROUND(Survivors!CE8+Migrants!CE218,0) -> 252730 | CF8: =ROUND(Survivors!CF8+Migrants!CF218,0) -> 253594 | CG8: =ROUND(Survivors!CG8+Migrants!CG218,0) -> 254445 | CH8: =ROUND(Survivors!CH8+Migrants!CH218,0) -> 255287 | CI8: =ROUND(Survivors!CI8+Migrants!CI218,0) -> 256127 | CJ8: =ROUND(Survivors!CJ8+Migrants!CJ218,0) -> 256976 | CK8: =ROUND(Survivors!CK8+Migrants!CK218,0) -> 257836 | CL8: =ROUND(Survivors!CL8+Migrants!CL218,0) -> 258717 | CM8: =ROUND(Survivors!CM8+Migrants!CM218,0) -> 259620 | CN8: =ROUND(Survivors!CN8+Migrants!CN218,0) -> 260551
A9: 5 | B9: 149969 | C9: =ROUND(Survivors!C9+Migrants!C219,0) -> 153715 | D9: =ROUND(Survivors!D9+Migrants!D219,0) -> 156473 | E9: =ROUND(Survivors!E9+Migrants!E219,0) -> 159602 | F9: =ROUND(Survivors!F9+Migrants!F219,0) -> 158572 | G9: =ROUND(Survivors!G9+Migrants!G219,0) -> 161491 | H9: =ROUND(Survivors!H9+Migrants!H219,0) -> 164059 | I9: =ROUND(Survivors!I9+Migrants!I219,0) -> 166338 | J9: =ROUND(Survivors!J9+Migrants!J219,0) -> 168575 | K9: =ROUND(Survivors!K9+Migrants!K219,0) -> 170725 | L9: =ROUND(Survivors!L9+Migrants!L219,0) -> 172737 | M9: =ROUND(Survivors!M9+Migrants!M219,0) -> 174514 | N9: =ROUND(Survivors!N9+Migrants!N219,0) -> 176033 | O9: =ROUND(Survivors!O9+Migrants!O219,0) -> 177351 | P9: =ROUND(Survivors!P9+Migrants!P219,0) -> 178459 | Q9: =ROUND(Survivors!Q9+Migrants!Q219,0) -> 179361 | R9: =ROUND(Survivors!R9+Migrants!R219,0) -> 180083 | S9: =ROUND(Survivors!S9+Migrants!S219,0) -> 180672 | T9: =ROUND(Survivors!T9+Migrants!T219,0) -> 181157 | U9: =ROUND(Survivors!U9+Migrants!U219,0) -> 181568 | V9: =ROUND(Survivors!V9+Migrants!V219,0) -> 181916 | W9: =ROUND(Survivors!W9+Migrants!W219,0) -> 182282 | X9: =ROUND(Survivors!X9+Migrants!X219,0) -> 182714 | Y9: =ROUND(Survivors!Y9+Migrants!Y219,0) -> 183201 | Z9: =ROUND(Survivors!Z9+Migrants!Z219,0) -> 183787 | AA9: =ROUND(Survivors!AA9+Migrants!AA219,0) -> 184496 | AB9: =ROUND(Survivors!AB9+Migrants!AB219,0) -> 185359 | AC9: =ROUND(Survivors!AC9+Migrants!AC219,0) -> 186393 | AD9: =ROUND(Survivors!AD9+Migrants!AD219,0) -> 187591 | AE9: =ROUND(Survivors!AE9+Migrants!AE219,0) -> 188950 | AF9: =ROUND(Survivors!AF9+Migrants!AF219,0) -> 190453 | AG9: =ROUND(Survivors!AG9+Migrants!AG219,0) -> 192069 | AH9: =ROUND(Survivors!AH9+Migrants!AH219,0) -> 193776 | AI9: =ROUND(Survivors!AI9+Migrants!AI219,0) -> 195560 | AJ9: =ROUND(Survivors!AJ9+Migrants!AJ219,0) -> 197389 | AK9: =ROUND(Survivors!AK9+Migrants!AK219,0) -> 199230 | AL9: =ROUND(Survivors!AL9+Migrants!AL219,0) -> 201056 | AM9: =ROUND(Survivors!AM9+Migrants!AM219,0) -> 202858 | AN9: =ROUND(Survivors!AN9+Migrants!AN219,0) -> 204604 | AO9: =ROUND(Survivors!AO9+Migrants!AO219,0) -> 206282 | AP9: =ROUND(Survivors!AP9+Migrants!AP219,0) -> 207883 | AQ9: =ROUND(Survivors!AQ9+Migrants!AQ219,0) -> 209406 | AR9: =ROUND(Survivors!AR9+Migrants!AR219,0) -> 210852 | AS9: =ROUND(Survivors!AS9+Migrants!AS219,0) -> 212213 | AT9: =ROUND(Survivors!AT9+Migrants!AT219,0) -> 213491 | AU9: =ROUND(Survivors!AU9+Migrants!AU219,0) -> 214684 | AV9: =ROUND(Survivors!AV9+Migrants!AV219,0) -> 215793 | AW9: =ROUND(Survivors!AW9+Migrants!AW219,0) -> 216814 | AX9: =ROUND(Survivors!AX9+Migrants!AX219,0) -> 217759 | AY9: =ROUND(Survivors!AY9+Migrants!AY219,0) -> 218633 | AZ9: =ROUND(Survivors!AZ9+Migrants!AZ219,0) -> 219451 | BA9: =ROUND(Survivors!BA9+Migrants!BA219,0) -> 220225 | BB9: =ROUND(Survivors!BB9+Migrants!BB219,0) -> 220973 | BC9: =ROUND(Survivors!BC9+Migrants!BC219,0) -> 221711 | BD9: =ROUND(Survivors!BD9+Migrants!BD219,0) -> 222457 | BE9: =ROUND(Survivors!BE9+Migrants!BE219,0) -> 223225 | BF9: =ROUND(Survivors!BF9+Migrants!BF219,0) -> 224034 | BG9: =ROUND(Survivors!BG9+Migrants!BG219,0) -> 224891 | BH9: =ROUND(Survivors!BH9+Migrants!BH219,0) -> 225807 | BI9: =ROUND(Survivors!BI9+Migrants!BI219,0) -> 226788 | BJ9: =ROUND(Survivors!BJ9+Migrants!BJ219,0) -> 227842 | BK9: =ROUND(Survivors!BK9+Migrants!BK219,0) -> 228960 | BL9: =ROUND(Survivors!BL9+Migrants!BL219,0) -> 230146 | BM9: =ROUND(Survivors!BM9+Migrants!BM219,0) -> 231392 | BN9: =ROUND(Survivors!BN9+Migrants!BN219,0) -> 232692 | BO9: =ROUND(Survivors!BO9+Migrants!BO219,0) -> 234035 | BP9: =ROUND(Survivors!BP9+Migrants!BP219,0) -> 235409 | BQ9: =ROUND(Survivors!BQ9+Migrants!BQ219,0) -> 236803 | BR9: =ROUND(Survivors!BR9+Migrants!BR219,0) -> 238206 | BS9: =ROUND(Survivors!BS9+Migrants!BS219,0) -> 239604 | BT9: =ROUND(Survivors!BT9+Migrants!BT219,0) -> 240987 | BU9: =ROUND(Survivors!BU9+Migrants!BU219,0) -> 242345 | BV9: =ROUND(Survivors!BV9+Migrants!BV219,0) -> 243670 | BW9: =ROUND(Survivors!BW9+Migrants!BW219,0) -> 244953 | BX9: =ROUND(Survivors!BX9+Migrants!BX219,0) -> 246191 | BY9: =ROUND(Survivors!BY9+Migrants!BY219,0) -> 247383 | BZ9: =ROUND(Survivors!BZ9+Migrants!BZ219,0) -> 248522 | CA9: =ROUND(Survivors!CA9+Migrants!CA219,0) -> 249611 | CB9: =ROUND(Survivors!CB9+Migrants!CB219,0) -> 250651 | CC9: =ROUND(Survivors!CC9+Migrants!CC219,0) -> 251646 | CD9: =ROUND(Survivors!CD9+Migrants!CD219,0) -> 252600 | CE9: =ROUND(Survivors!CE9+Migrants!CE219,0) -> 253519 | CF9: =ROUND(Survivors!CF9+Migrants!CF219,0) -> 254407 | CG9: =ROUND(Survivors!CG9+Migrants!CG219,0) -> 255271 | CH9: =ROUND(Survivors!CH9+Migrants!CH219,0) -> 256122 | CI9: =ROUND(Survivors!CI9+Migrants!CI219,0) -> 256964 | CJ9: =ROUND(Survivors!CJ9+Migrants!CJ219,0) -> 257804 | CK9: =ROUND(Survivors!CK9+Migrants!CK219,0) -> 258653 | CL9: =ROUND(Survivors!CL9+Migrants!CL219,0) -> 259513 | CM9: =ROUND(Survivors!CM9+Migrants!CM219,0) -> 260394 | CN9: =ROUND(Survivors!CN9+Migrants!CN219,0) -> 261297
A10: 6 | B10: 149874 | C10: =ROUND(Survivors!C10+Migrants!C220,0) -> 152019 | D10: =ROUND(Survivors!D10+Migrants!D220,0) -> 155666 | E10: =ROUND(Survivors!E10+Migrants!E220,0) -> 158326 | F10: =ROUND(Survivors!F10+Migrants!F220,0) -> 161356 | G10: =ROUND(Survivors!G10+Migrants!G220,0) -> 160228 | H10: =ROUND(Survivors!H10+Migrants!H220,0) -> 163048 | I10: =ROUND(Survivors!I10+Migrants!I220,0) -> 165616 | J10: =ROUND(Survivors!J10+Migrants!J220,0) -> 167896 | K10: =ROUND(Survivors!K10+Migrants!K220,0) -> 170133 | L10: =ROUND(Survivors!L10+Migrants!L220,0) -> 172283 | M10: =ROUND(Survivors!M10+Migrants!M220,0) -> 174296 | N10: =ROUND(Survivors!N10+Migrants!N220,0) -> 176073 | O10: =ROUND(Survivors!O10+Migrants!O220,0) -> 177593 | P10: =ROUND(Survivors!P10+Migrants!P220,0) -> 178911 | Q10: =ROUND(Survivors!Q10+Migrants!Q220,0) -> 180019 | R10: =ROUND(Survivors!R10+Migrants!R220,0) -> 180922 | S10: =ROUND(Survivors!S10+Migrants!S220,0) -> 181644 | T10: =ROUND(Survivors!T10+Migrants!T220,0) -> 182233 | U10: =ROUND(Survivors!U10+Migrants!U220,0) -> 182719 | V10: =ROUND(Survivors!V10+Migrants!V220,0) -> 183130 | W10: =ROUND(Survivors!W10+Migrants!W220,0) -> 183478 | X10: =ROUND(Survivors!X10+Migrants!X220,0) -> 183845 | Y10: =ROUND(Survivors!Y10+Migrants!Y220,0) -> 184277 | Z10: =ROUND(Survivors!Z10+Migrants!Z220,0) -> 184764 | AA10: =ROUND(Survivors!AA10+Migrants!AA220,0) -> 185350 | AB10: =ROUND(Survivors!AB10+Migrants!AB220,0) -> 186060 | AC10: =ROUND(Survivors!AC10+Migrants!AC220,0) -> 186923 | AD10: =ROUND(Survivors!AD10+Migrants!AD220,0) -> 187957 | AE10: =ROUND(Survivors!AE10+Migrants!AE220,0) -> 189155 | AF10: =ROUND(Survivors!AF10+Migrants!AF220,0) -> 190515 | AG10: =ROUND(Survivors!AG10+Migrants!AG220,0) -> 192018 | AH10: =ROUND(Survivors!AH10+Migrants!AH220,0) -> 193634 | AI10: =ROUND(Survivors!AI10+Migrants!AI220,0) -> 195341 | AJ10: =ROUND(Survivors!AJ10+Migrants!AJ220,0) -> 197125 | AK10: =ROUND(Survivors!AK10+Migrants!AK220,0) -> 198954 | AL10: =ROUND(Survivors!AL10+Migrants!AL220,0) -> 200796 | AM10: =ROUND(Survivors!AM10+Migrants!AM220,0) -> 202622 | AN10: =ROUND(Survivors!AN10+Migrants!AN220,0) -> 204424 | AO10: =ROUND(Survivors!AO10+Migrants!AO220,0) -> 206170 | AP10: =ROUND(Survivors!AP10+Migrants!AP220,0) -> 207848 | AQ10: =ROUND(Survivors!AQ10+Migrants!AQ220,0) -> 209449 | AR10: =ROUND(Survivors!AR10+Migrants!AR220,0) -> 210972 | AS10: =ROUND(Survivors!AS10+Migrants!AS220,0) -> 212418 | AT10: =ROUND(Survivors!AT10+Migrants!AT220,0) -> 213779 | AU10: =ROUND(Survivors!AU10+Migrants!AU220,0) -> 215058 | AV10: =ROUND(Survivors!AV10+Migrants!AV220,0) -> 216251 | AW10: =ROUND(Survivors!AW10+Migrants!AW220,0) -> 217360 | AX10: =ROUND(Survivors!AX10+Migrants!AX220,0) -> 218381 | AY10: =ROUND(Survivors!AY10+Migrants!AY220,0) -> 219326 | AZ10: =ROUND(Survivors!AZ10+Migrants!AZ220,0) -> 220200 | BA10: =ROUND(Survivors!BA10+Migrants!BA220,0) -> 221018 | BB10: =ROUND(Survivors!BB10+Migrants!BB220,0) -> 221792 | BC10: =ROUND(Survivors!BC10+Migrants!BC220,0) -> 222540 | BD10: =ROUND(Survivors!BD10+Migrants!BD220,0) -> 223278 | BE10: =ROUND(Survivors!BE10+Migrants!BE220,0) -> 224024 | BF10: =ROUND(Survivors!BF10+Migrants!BF220,0) -> 224792 | BG10: =ROUND(Survivors!BG10+Migrants!BG220,0) -> 225601 | BH10: =ROUND(Survivors!BH10+Migrants!BH220,0) -> 226458 | BI10: =ROUND(Survivors!BI10+Migrants!BI220,0) -> 227374 | BJ10: =ROUND(Survivors!BJ10+Migrants!BJ220,0) -> 228355 | BK10: =ROUND(Survivors!BK10+Migrants!BK220,0) -> 229409 | BL10: =ROUND(Survivors!BL10+Migrants!BL220,0) -> 230527 | BM10: =ROUND(Survivors!BM10+Migrants!BM220,0) -> 231713 | BN10: =ROUND(Survivors!BN10+Migrants!BN220,0) -> 232959 | BO10: =ROUND(Survivors!BO10+Migrants!BO220,0) -> 234259 | BP10: =ROUND(Survivors!BP10+Migrants!BP220,0) -> 235602 | BQ10: =ROUND(Survivors!BQ10+Migrants!BQ220,0) -> 236976 | BR10: =ROUND(Survivors!BR10+Migrants!BR220,0) -> 238370 | BS10: =ROUND(Survivors!BS10+Migrants!BS220,0) -> 239773 | BT10: =ROUND(Survivors!BT10+Migrants!BT220,0) -> 241171 | BU10: =ROUND(Survivors!BU10+Migrants!BU220,0) -> 242554 | BV10: =ROUND(Survivors!BV10+Migrants!BV220,0) -> 243912 | BW10: =ROUND(Survivors!BW10+Migrants!BW220,0) -> 245237 | BX10: =ROUND(Survivors!BX10+Migrants!BX220,0) -> 246520 | BY10: =ROUND(Survivors!BY10+Migrants!BY220,0) -> 247758 | BZ10: =ROUND(Survivors!BZ10+Migrants!BZ220,0) -> 248950 | CA10: =ROUND(Survivors!CA10+Migrants!CA220,0) -> 250089 | CB10: =ROUND(Survivors!CB10+Migrants!CB220,0) -> 251178 | CC10: =ROUND(Survivors!CC10+Migrants!CC220,0) -> 252218 | CD10: =ROUND(Survivors!CD10+Migrants!CD220,0) -> 253213 | CE10: =ROUND(Survivors!CE10+Migrants!CE220,0) -> 254167 | CF10: =ROUND(Survivors!CF10+Migrants!CF220,0) -> 255086 | CG10: =ROUND(Survivors!CG10+Migrants!CG220,0) -> 255974 | CH10: =ROUND(Survivors!CH10+Migrants!CH220,0) -> 256838 | CI10: =ROUND(Survivors!CI10+Migrants!CI220,0) -> 257689 | CJ10: =ROUND(Survivors!CJ10+Migrants!CJ220,0) -> 258531 | CK10: =ROUND(Survivors!CK10+Migrants!CK220,0) -> 259371 | CL10: =ROUND(Survivors!CL10+Migrants!CL220,0) -> 260220 | CM10: =ROUND(Survivors!CM10+Migrants!CM220,0) -> 261080 | CN10: =ROUND(Survivors!CN10+Migrants!CN220,0) -> 261961
A11: 7 | B11: 145474 | C11: =ROUND(Survivors!C11+Migrants!C221,0) -> 151686 | D11: =ROUND(Survivors!D11+Migrants!D221,0) -> 153744 | E11: =ROUND(Survivors!E11+Migrants!E221,0) -> 157304 | F11: =ROUND(Survivors!F11+Migrants!F221,0) -> 159877 | G11: =ROUND(Survivors!G11+Migrants!G221,0) -> 162820 | H11: =ROUND(Survivors!H11+Migrants!H221,0) -> 161605 | I11: =ROUND(Survivors!I11+Migrants!I221,0) -> 164425 | J11: =ROUND(Survivors!J11+Migrants!J221,0) -> 166993 | K11: =ROUND(Survivors!K11+Migrants!K221,0) -> 169273 | L11: =ROUND(Survivors!L11+Migrants!L221,0) -> 171511 | M11: =ROUND(Survivors!M11+Migrants!M221,0) -> 173661 | N11: =ROUND(Survivors!N11+Migrants!N221,0) -> 175674 | O11: =ROUND(Survivors!O11+Migrants!O221,0) -> 177452 | P11: =ROUND(Survivors!P11+Migrants!P221,0) -> 178972 | Q11: =ROUND(Survivors!Q11+Migrants!Q221,0) -> 180290 | R11: =ROUND(Survivors!R11+Migrants!R221,0) -> 181399 | S11: =ROUND(Survivors!S11+Migrants!S221,0) -> 182302 | T11: =ROUND(Survivors!T11+Migrants!T221,0) -> 183024 | U11: =ROUND(Survivors!U11+Migrants!U221,0) -> 183614 | V11: =ROUND(Survivors!V11+Migrants!V221,0) -> 184100 | W11: =ROUND(Survivors!W11+Migrants!W221,0) -> 184511 | X11: =ROUND(Survivors!X11+Migrants!X221,0) -> 184859 | Y11: =ROUND(Survivors!Y11+Migrants!Y221,0) -> 185227 | Z11: =ROUND(Survivors!Z11+Migrants!Z221,0) -> 185659 | AA11: =ROUND(Survivors!AA11+Migrants!AA221,0) -> 186146 | AB11: =ROUND(Survivors!AB11+Migrants!AB221,0) -> 186732 | AC11: =ROUND(Survivors!AC11+Migrants!AC221,0) -> 187443 | AD11: =ROUND(Survivors!AD11+Migrants!AD221,0) -> 188306 | AE11: =ROUND(Survivors!AE11+Migrants!AE221,0) -> 189340 | AF11: =ROUND(Survivors!AF11+Migrants!AF221,0) -> 190538 | AG11: =ROUND(Survivors!AG11+Migrants!AG221,0) -> 191898 | AH11: =ROUND(Survivors!AH11+Migrants!AH221,0) -> 193402 | AI11: =ROUND(Survivors!AI11+Migrants!AI221,0) -> 195018 | AJ11: =ROUND(Survivors!AJ11+Migrants!AJ221,0) -> 196725 | AK11: =ROUND(Survivors!AK11+Migrants!AK221,0) -> 198509 | AL11: =ROUND(Survivors!AL11+Migrants!AL221,0) -> 200338 | AM11: =ROUND(Survivors!AM11+Migrants!AM221,0) -> 202180 | AN11: =ROUND(Survivors!AN11+Migrants!AN221,0) -> 204007 | AO11: =ROUND(Survivors!AO11+Migrants!AO221,0) -> 205809 | AP11: =ROUND(Survivors!AP11+Migrants!AP221,0) -> 207555 | AQ11: =ROUND(Survivors!AQ11+Migrants!AQ221,0) -> 209233 | AR11: =ROUND(Survivors!AR11+Migrants!AR221,0) -> 210834 | AS11: =ROUND(Survivors!AS11+Migrants!AS221,0) -> 212357 | AT11: =ROUND(Survivors!AT11+Migrants!AT221,0) -> 213803 | AU11: =ROUND(Survivors!AU11+Migrants!AU221,0) -> 215164 | AV11: =ROUND(Survivors!AV11+Migrants!AV221,0) -> 216443 | AW11: =ROUND(Survivors!AW11+Migrants!AW221,0) -> 217636 | AX11: =ROUND(Survivors!AX11+Migrants!AX221,0) -> 218745 | AY11: =ROUND(Survivors!AY11+Migrants!AY221,0) -> 219766 | AZ11: =ROUND(Survivors!AZ11+Migrants!AZ221,0) -> 220711 | BA11: =ROUND(Survivors!BA11+Migrants!BA221,0) -> 221585 | BB11: =ROUND(Survivors!BB11+Migrants!BB221,0) -> 222403 | BC11: =ROUND(Survivors!BC11+Migrants!BC221,0) -> 223177 | BD11: =ROUND(Survivors!BD11+Migrants!BD221,0) -> 223925 | BE11: =ROUND(Survivors!BE11+Migrants!BE221,0) -> 224663 | BF11: =ROUND(Survivors!BF11+Migrants!BF221,0) -> 225409 | BG11: =ROUND(Survivors!BG11+Migrants!BG221,0) -> 226177 | BH11: =ROUND(Survivors!BH11+Migrants!BH221,0) -> 226987 | BI11: =ROUND(Survivors!BI11+Migrants!BI221,0) -> 227844 | BJ11: =ROUND(Survivors!BJ11+Migrants!BJ221,0) -> 228760 | BK11: =ROUND(Survivors!BK11+Migrants!BK221,0) -> 229741 | BL11: =ROUND(Survivors!BL11+Migrants!BL221,0) -> 230795 | BM11: =ROUND(Survivors!BM11+Migrants!BM221,0) -> 231913 | BN11: =ROUND(Survivors!BN11+Migrants!BN221,0) -> 233099 | BO11: =ROUND(Survivors!BO11+Migrants!BO221,0) -> 234345 | BP11: =ROUND(Survivors!BP11+Migrants!BP221,0) -> 235645 | BQ11: =ROUND(Survivors!BQ11+Migrants!BQ221,0) -> 236988 | BR11: =ROUND(Survivors!BR11+Migrants!BR221,0) -> 238362 | BS11: =ROUND(Survivors!BS11+Migrants!BS221,0) -> 239756 | BT11: =ROUND(Survivors!BT11+Migrants!BT221,0) -> 241159 | BU11: =ROUND(Survivors!BU11+Migrants!BU221,0) -> 242557 | BV11: =ROUND(Survivors!BV11+Migrants!BV221,0) -> 243940 | BW11: =ROUND(Survivors!BW11+Migrants!BW221,0) -> 245298 | BX11: =ROUND(Survivors!BX11+Migrants!BX221,0) -> 246623 | BY11: =ROUND(Survivors!BY11+Migrants!BY221,0) -> 247906 | BZ11: =ROUND(Survivors!BZ11+Migrants!BZ221,0) -> 249144 | CA11: =ROUND(Survivors!CA11+Migrants!CA221,0) -> 250336 | CB11: =ROUND(Survivors!CB11+Migrants!CB221,0) -> 251475 | CC11: =ROUND(Survivors!CC11+Migrants!CC221,0) -> 252564 | CD11: =ROUND(Survivors!CD11+Migrants!CD221,0) -> 253604 | CE11: =ROUND(Survivors!CE11+Migrants!CE221,0) -> 254599 | CF11: =ROUND(Survivors!CF11+Migrants!CF221,0) -> 255553 | CG11: =ROUND(Survivors!CG11+Migrants!CG221,0) -> 256472 | CH11: =ROUND(Survivors!CH11+Migrants!CH221,0) -> 257360 | CI11: =ROUND(Survivors!CI11+Migrants!CI221,0) -> 258224 | CJ11: =ROUND(Survivors!CJ11+Migrants!CJ221,0) -> 259075 | CK11: =ROUND(Survivors!CK11+Migrants!CK221,0) -> 259917 | CL11: =ROUND(Survivors!CL11+Migrants!CL221,0) -> 260757 | CM11: =ROUND(Survivors!CM11+Migrants!CM221,0) -> 261606 | CN11: =ROUND(Survivors!CN11+Migrants!CN221,0) -> 262466
A12: 8 | B12: 142871 | C12: =ROUND(Survivors!C12+Migrants!C222,0) -> 147212 | D12: =ROUND(Survivors!D12+Migrants!D222,0) -> 153340 | E12: =ROUND(Survivors!E12+Migrants!E222,0) -> 155314 | F12: =ROUND(Survivors!F12+Migrants!F222,0) -> 158791 | G12: =ROUND(Survivors!G12+Migrants!G222,0) -> 161280 | H12: =ROUND(Survivors!H12+Migrants!H222,0) -> 164139 | I12: =ROUND(Survivors!I12+Migrants!I222,0) -> 162925 | J12: =ROUND(Survivors!J12+Migrants!J222,0) -> 165745 | K12: =ROUND(Survivors!K12+Migrants!K222,0) -> 168313 | L12: =ROUND(Survivors!L12+Migrants!L222,0) -> 170594 | M12: =ROUND(Survivors!M12+Migrants!M222,0) -> 172832 | N12: =ROUND(Survivors!N12+Migrants!N222,0) -> 174982 | O12: =ROUND(Survivors!O12+Migrants!O222,0) -> 176996 | P12: =ROUND(Survivors!P12+Migrants!P222,0) -> 178774 | Q12: =ROUND(Survivors!Q12+Migrants!Q222,0) -> 180294 | R12: =ROUND(Survivors!R12+Migrants!R222,0) -> 181612 | S12: =ROUND(Survivors!S12+Migrants!S222,0) -> 182722 | T12: =ROUND(Survivors!T12+Migrants!T222,0) -> 183625 | U12: =ROUND(Survivors!U12+Migrants!U222,0) -> 184347 | V12: =ROUND(Survivors!V12+Migrants!V222,0) -> 184938 | W12: =ROUND(Survivors!W12+Migrants!W222,0) -> 185424 | X12: =ROUND(Survivors!X12+Migrants!X222,0) -> 185835 | Y12: =ROUND(Survivors!Y12+Migrants!Y222,0) -> 186184 | Z12: =ROUND(Survivors!Z12+Migrants!Z222,0) -> 186552 | AA12: =ROUND(Survivors!AA12+Migrants!AA222,0) -> 186984 | AB12: =ROUND(Survivors!AB12+Migrants!AB222,0) -> 187471 | AC12: =ROUND(Survivors!AC12+Migrants!AC222,0) -> 188058 | AD12: =ROUND(Survivors!AD12+Migrants!AD222,0) -> 188769 | AE12: =ROUND(Survivors!AE12+Migrants!AE222,0) -> 189632 | AF12: =ROUND(Survivors!AF12+Migrants!AF222,0) -> 190666 | AG12: =ROUND(Survivors!AG12+Migrants!AG222,0) -> 191864 | AH12: =ROUND(Survivors!AH12+Migrants!AH222,0) -> 193224 | AI12: =ROUND(Survivors!AI12+Migrants!AI222,0) -> 194729 | AJ12: =ROUND(Survivors!AJ12+Migrants!AJ222,0) -> 196345 | AK12: =ROUND(Survivors!AK12+Migrants!AK222,0) -> 198052 | AL12: =ROUND(Survivors!AL12+Migrants!AL222,0) -> 199836 | AM12: =ROUND(Survivors!AM12+Migrants!AM222,0) -> 201665 | AN12: =ROUND(Survivors!AN12+Migrants!AN222,0) -> 203507 | AO12: =ROUND(Survivors!AO12+Migrants!AO222,0) -> 205335 | AP12: =ROUND(Survivors!AP12+Migrants!AP222,0) -> 207137 | AQ12: =ROUND(Survivors!AQ12+Migrants!AQ222,0) -> 208883 | AR12: =ROUND(Survivors!AR12+Migrants!AR222,0) -> 210561 | AS12: =ROUND(Survivors!AS12+Migrants!AS222,0) -> 212162 | AT12: =ROUND(Survivors!AT12+Migrants!AT222,0) -> 213685 | AU12: =ROUND(Survivors!AU12+Migrants!AU222,0) -> 215131 | AV12: =ROUND(Survivors!AV12+Migrants!AV222,0) -> 216492 | AW12: =ROUND(Survivors!AW12+Migrants!AW222,0) -> 217771 | AX12: =ROUND(Survivors!AX12+Migrants!AX222,0) -> 218964 | AY12: =ROUND(Survivors!AY12+Migrants!AY222,0) -> 220073 | AZ12: =ROUND(Survivors!AZ12+Migrants!AZ222,0) -> 221094 | BA12: =ROUND(Survivors!BA12+Migrants!BA222,0) -> 222039 | BB12: =ROUND(Survivors!BB12+Migrants!BB222,0) -> 222913 | BC12: =ROUND(Survivors!BC12+Migrants!BC222,0) -> 223731 | BD12: =ROUND(Survivors!BD12+Migrants!BD222,0) -> 224505 | BE12: =ROUND(Survivors!BE12+Migrants!BE222,0) -> 225253 | BF12: =ROUND(Survivors!BF12+Migrants!BF222,0) -> 225991 | BG12: =ROUND(Survivors!BG12+Migrants!BG222,0) -> 226737 | BH12: =ROUND(Survivors!BH12+Migrants!BH222,0) -> 227505 | BI12: =ROUND(Survivors!BI12+Migrants!BI222,0) -> 228315 | BJ12: =ROUND(Survivors!BJ12+Migrants!BJ222,0) -> 229172 | BK12: =ROUND(Survivors!BK12+Migrants!BK222,0) -> 230088 | BL12: =ROUND(Survivors!BL12+Migrants!BL222,0) -> 231069 | BM12: =ROUND(Survivors!BM12+Migrants!BM222,0) -> 232123 | BN12: =ROUND(Survivors!BN12+Migrants!BN222,0) -> 233242 | BO12: =ROUND(Survivors!BO12+Migrants!BO222,0) -> 234428 | BP12: =ROUND(Survivors!BP12+Migrants!BP222,0) -> 235674 | BQ12: =ROUND(Survivors!BQ12+Migrants!BQ222,0) -> 236974 | BR12: =ROUND(Survivors!BR12+Migrants!BR222,0) -> 238317 | BS12: =ROUND(Survivors!BS12+Migrants!BS222,0) -> 239691 | BT12: =ROUND(Survivors!BT12+Migrants!BT222,0) -> 241085 | BU12: =ROUND(Survivors!BU12+Migrants!BU222,0) -> 242488 | BV12: =ROUND(Survivors!BV12+Migrants!BV222,0) -> 243886 | BW12: =ROUND(Survivors!BW12+Migrants!BW222,0) -> 245269 | BX12: =ROUND(Survivors!BX12+Migrants!BX222,0) -> 246627 | BY12: =ROUND(Survivors!BY12+Migrants!BY222,0) -> 247952 | BZ12: =ROUND(Survivors!BZ12+Migrants!BZ222,0) -> 249235 | CA12: =ROUND(Survivors!CA12+Migrants!CA222,0) -> 250473 | CB12: =ROUND(Survivors!CB12+Migrants!CB222,0) -> 251665 | CC12: =ROUND(Survivors!CC12+Migrants!CC222,0) -> 252804 | CD12: =ROUND(Survivors!CD12+Migrants!CD222,0) -> 253893 | CE12: =ROUND(Survivors!CE12+Migrants!CE222,0) -> 254933 | CF12: =ROUND(Survivors!CF12+Migrants!CF222,0) -> 255928 | CG12: =ROUND(Survivors!CG12+Migrants!CG222,0) -> 256882 | CH12: =ROUND(Survivors!CH12+Migrants!CH222,0) -> 257801 | CI12: =ROUND(Survivors!CI12+Migrants!CI222,0) -> 258689 | CJ12: =ROUND(Survivors!CJ12+Migrants!CJ222,0) -> 259553 | CK12: =ROUND(Survivors!CK12+Migrants!CK222,0) -> 260404 | CL12: =ROUND(Survivors!CL12+Migrants!CL222,0) -> 261246 | CM12: =ROUND(Survivors!CM12+Migrants!CM222,0) -> 262086 | CN12: =ROUND(Survivors!CN12+Migrants!CN222,0) -> 262935
A13: 9 | B13: 140842 | C13: =ROUND(Survivors!C13+Migrants!C223,0) -> 144572 | D13: =ROUND(Survivors!D13+Migrants!D223,0) -> 148831 | E13: =ROUND(Survivors!E13+Migrants!E223,0) -> 154877 | F13: =ROUND(Survivors!F13+Migrants!F223,0) -> 156769 | G13: =ROUND(Survivors!G13+Migrants!G223,0) -> 160164 | H13: =ROUND(Survivors!H13+Migrants!H223,0) -> 162571 | I13: =ROUND(Survivors!I13+Migrants!I223,0) -> 165431 | J13: =ROUND(Survivors!J13+Migrants!J223,0) -> 164217 | K13: =ROUND(Survivors!K13+Migrants!K223,0) -> 167037 | L13: =ROUND(Survivors!L13+Migrants!L223,0) -> 169606 | M13: =ROUND(Survivors!M13+Migrants!M223,0) -> 171887 | N13: =ROUND(Survivors!N13+Migrants!N223,0) -> 174125 | O13: =ROUND(Survivors!O13+Migrants!O223,0) -> 176275 | P13: =ROUND(Survivors!P13+Migrants!P223,0) -> 178290 | Q13: =ROUND(Survivors!Q13+Migrants!Q223,0) -> 180068 | R13: =ROUND(Survivors!R13+Migrants!R223,0) -> 181588 | S13: =ROUND(Survivors!S13+Migrants!S223,0) -> 182906 | T13: =ROUND(Survivors!T13+Migrants!T223,0) -> 184017 | U13: =ROUND(Survivors!U13+Migrants!U223,0) -> 184920 | V13: =ROUND(Survivors!V13+Migrants!V223,0) -> 185642 | W13: =ROUND(Survivors!W13+Migrants!W223,0) -> 186233 | X13: =ROUND(Survivors!X13+Migrants!X223,0) -> 186720 | Y13: =ROUND(Survivors!Y13+Migrants!Y223,0) -> 187131 | Z13: =ROUND(Survivors!Z13+Migrants!Z223,0) -> 187480 | AA13: =ROUND(Survivors!AA13+Migrants!AA223,0) -> 187848 | AB13: =ROUND(Survivors!AB13+Migrants!AB223,0) -> 188281 | AC13: =ROUND(Survivors!AC13+Migrants!AC223,0) -> 188768 | AD13: =ROUND(Survivors!AD13+Migrants!AD223,0) -> 189355 | AE13: =ROUND(Survivors!AE13+Migrants!AE223,0) -> 190066 | AF13: =ROUND(Survivors!AF13+Migrants!AF223,0) -> 190929 | AG13: =ROUND(Survivors!AG13+Migrants!AG223,0) -> 191964 | AH13: =ROUND(Survivors!AH13+Migrants!AH223,0) -> 193162 | AI13: =ROUND(Survivors!AI13+Migrants!AI223,0) -> 194522 | AJ13: =ROUND(Survivors!AJ13+Migrants!AJ223,0) -> 196027 | AK13: =ROUND(Survivors!AK13+Migrants!AK223,0) -> 197643 | AL13: =ROUND(Survivors!AL13+Migrants!AL223,0) -> 199350 | AM13: =ROUND(Survivors!AM13+Migrants!AM223,0) -> 201134 | AN13: =ROUND(Survivors!AN13+Migrants!AN223,0) -> 202964 | AO13: =ROUND(Survivors!AO13+Migrants!AO223,0) -> 204806 | AP13: =ROUND(Survivors!AP13+Migrants!AP223,0) -> 206634 | AQ13: =ROUND(Survivors!AQ13+Migrants!AQ223,0) -> 208436 | AR13: =ROUND(Survivors!AR13+Migrants!AR223,0) -> 210182 | AS13: =ROUND(Survivors!AS13+Migrants!AS223,0) -> 211860 | AT13: =ROUND(Survivors!AT13+Migrants!AT223,0) -> 213461 | AU13: =ROUND(Survivors!AU13+Migrants!AU223,0) -> 214984 | AV13: =ROUND(Survivors!AV13+Migrants!AV223,0) -> 216430 | AW13: =ROUND(Survivors!AW13+Migrants!AW223,0) -> 217791 | AX13: =ROUND(Survivors!AX13+Migrants!AX223,0) -> 219070 | AY13: =ROUND(Survivors!AY13+Migrants!AY223,0) -> 220263 | AZ13: =ROUND(Survivors!AZ13+Migrants!AZ223,0) -> 221372 | BA13: =ROUND(Survivors!BA13+Migrants!BA223,0) -> 222393 | BB13: =ROUND(Survivors!BB13+Migrants!BB223,0) -> 223338 | BC13: =ROUND(Survivors!BC13+Migrants!BC223,0) -> 224212 | BD13: =ROUND(Survivors!BD13+Migrants!BD223,0) -> 225030 | BE13: =ROUND(Survivors!BE13+Migrants!BE223,0) -> 225804 | BF13: =ROUND(Survivors!BF13+Migrants!BF223,0) -> 226552 | BG13: =ROUND(Survivors!BG13+Migrants!BG223,0) -> 227290 | BH13: =ROUND(Survivors!BH13+Migrants!BH223,0) -> 228036 | BI13: =ROUND(Survivors!BI13+Migrants!BI223,0) -> 228804 | BJ13: =ROUND(Survivors!BJ13+Migrants!BJ223,0) -> 229615 | BK13: =ROUND(Survivors!BK13+Migrants!BK223,0) -> 230472 | BL13: =ROUND(Survivors!BL13+Migrants!BL223,0) -> 231388 | BM13: =ROUND(Survivors!BM13+Migrants!BM223,0) -> 232369 | BN13: =ROUND(Survivors!BN13+Migrants!BN223,0) -> 233423 | BO13: =ROUND(Survivors!BO13+Migrants!BO223,0) -> 234542 | BP13: =ROUND(Survivors!BP13+Migrants!BP223,0) -> 235728 | BQ13: =ROUND(Survivors!BQ13+Migrants!BQ223,0) -> 236974 | BR13: =ROUND(Survivors!BR13+Migrants!BR223,0) -> 238274 | BS13: =ROUND(Survivors!BS13+Migrants!BS223,0) -> 239617 | BT13: =ROUND(Survivors!BT13+Migrants!BT223,0) -> 240991 | BU13: =ROUND(Survivors!BU13+Migrants!BU223,0) -> 242385 | BV13: =ROUND(Survivors!BV13+Migrants!BV223,0) -> 243788 | BW13: =ROUND(Survivors!BW13+Migrants!BW223,0) -> 245186 | BX13: =ROUND(Survivors!BX13+Migrants!BX223,0) -> 246569 | BY13: =ROUND(Survivors!BY13+Migrants!BY223,0) -> 247927 | BZ13: =ROUND(Survivors!BZ13+Migrants!BZ223,0) -> 249252 | CA13: =ROUND(Survivors!CA13+Migrants!CA223,0) -> 250535 | CB13: =ROUND(Survivors!CB13+Migrants!CB223,0) -> 251773 | CC13: =ROUND(Survivors!CC13+Migrants!CC223,0) -> 252965 | CD13: =ROUND(Survivors!CD13+Migrants!CD223,0) -> 254104 | CE13: =ROUND(Survivors!CE13+Migrants!CE223,0) -> 255193 | CF13: =ROUND(Survivors!CF13+Migrants!CF223,0) -> 256233 | CG13: =ROUND(Survivors!CG13+Migrants!CG223,0) -> 257228 | CH13: =ROUND(Survivors!CH13+Migrants!CH223,0) -> 258182 | CI13: =ROUND(Survivors!CI13+Migrants!CI223,0) -> 259101 | CJ13: =ROUND(Survivors!CJ13+Migrants!CJ223,0) -> 259989 | CK13: =ROUND(Survivors!CK13+Migrants!CK223,0) -> 260853 | CL13: =ROUND(Survivors!CL13+Migrants!CL223,0) -> 261704 | CM13: =ROUND(Survivors!CM13+Migrants!CM223,0) -> 262546 | CN13: =ROUND(Survivors!CN13+Migrants!CN223,0) -> 263386
A14: 10 | B14: 140456 | C14: =ROUND(Survivors!C14+Migrants!C224,0) -> 142487 | D14: =ROUND(Survivors!D14+Migrants!D224,0) -> 146138 | E14: =ROUND(Survivors!E14+Migrants!E224,0) -> 150318 | F14: =ROUND(Survivors!F14+Migrants!F224,0) -> 156285 | G14: =ROUND(Survivors!G14+Migrants!G224,0) -> 158098 | H14: =ROUND(Survivors!H14+Migrants!H224,0) -> 161413 | I14: =ROUND(Survivors!I14+Migrants!I224,0) -> 163821 | J14: =ROUND(Survivors!J14+Migrants!J224,0) -> 166681 | K14: =ROUND(Survivors!K14+Migrants!K224,0) -> 165467 | L14: =ROUND(Survivors!L14+Migrants!L224,0) -> 168288 | M14: =ROUND(Survivors!M14+Migrants!M224,0) -> 170857 | N14: =ROUND(Survivors!N14+Migrants!N224,0) -> 173138 | O14: =ROUND(Survivors!O14+Migrants!O224,0) -> 175376 | P14: =ROUND(Survivors!P14+Migrants!P224,0) -> 177527 | Q14: =ROUND(Survivors!Q14+Migrants!Q224,0) -> 179542 | R14: =ROUND(Survivors!R14+Migrants!R224,0) -> 181320 | S14: =ROUND(Survivors!S14+Migrants!S224,0) -> 182841 | T14: =ROUND(Survivors!T14+Migrants!T224,0) -> 184159 | U14: =ROUND(Survivors!U14+Migrants!U224,0) -> 185270 | V14: =ROUND(Survivors!V14+Migrants!V224,0) -> 186173 | W14: =ROUND(Survivors!W14+Migrants!W224,0) -> 186896 | X14: =ROUND(Survivors!X14+Migrants!X224,0) -> 187487 | Y14: =ROUND(Survivors!Y14+Migrants!Y224,0) -> 187974 | Z14: =ROUND(Survivors!Z14+Migrants!Z224,0) -> 188385 | AA14: =ROUND(Survivors!AA14+Migrants!AA224,0) -> 188735 | AB14: =ROUND(Survivors!AB14+Migrants!AB224,0) -> 189103 | AC14: =ROUND(Survivors!AC14+Migrants!AC224,0) -> 189536 | AD14: =ROUND(Survivors!AD14+Migrants!AD224,0) -> 190023 | AE14: =ROUND(Survivors!AE14+Migrants!AE224,0) -> 190610 | AF14: =ROUND(Survivors!AF14+Migrants!AF224,0) -> 191322 | AG14: =ROUND(Survivors!AG14+Migrants!AG224,0) -> 192185 | AH14: =ROUND(Survivors!AH14+Migrants!AH224,0) -> 193220 | AI14: =ROUND(Survivors!AI14+Migrants!AI224,0) -> 194418 | AJ14: =ROUND(Survivors!AJ14+Migrants!AJ224,0) -> 195778 | AK14: =ROUND(Survivors!AK14+Migrants!AK224,0) -> 197283 | AL14: =ROUND(Survivors!AL14+Migrants!AL224,0) -> 198899 | AM14: =ROUND(Survivors!AM14+Migrants!AM224,0) -> 200607 | AN14: =ROUND(Survivors!AN14+Migrants!AN224,0) -> 202391 | AO14: =ROUND(Survivors!AO14+Migrants!AO224,0) -> 204221 | AP14: =ROUND(Survivors!AP14+Migrants!AP224,0) -> 206063 | AQ14: =ROUND(Survivors!AQ14+Migrants!AQ224,0) -> 207891 | AR14: =ROUND(Survivors!AR14+Migrants!AR224,0) -> 209693 | AS14: =ROUND(Survivors!AS14+Migrants!AS224,0) -> 211439 | AT14: =ROUND(Survivors!AT14+Migrants!AT224,0) -> 213117 | AU14: =ROUND(Survivors!AU14+Migrants!AU224,0) -> 214718 | AV14: =ROUND(Survivors!AV14+Migrants!AV224,0) -> 216241 | AW14: =ROUND(Survivors!AW14+Migrants!AW224,0) -> 217687 | AX14: =ROUND(Survivors!AX14+Migrants!AX224,0) -> 219048 | AY14: =ROUND(Survivors!AY14+Migrants!AY224,0) -> 220327 | AZ14: =ROUND(Survivors!AZ14+Migrants!AZ224,0) -> 221520 | BA14: =ROUND(Survivors!BA14+Migrants!BA224,0) -> 222629 | BB14: =ROUND(Survivors!BB14+Migrants!BB224,0) -> 223650 | BC14: =ROUND(Survivors!BC14+Migrants!BC224,0) -> 224595 | BD14: =ROUND(Survivors!BD14+Migrants!BD224,0) -> 225469 | BE14: =ROUND(Survivors!BE14+Migrants!BE224,0) -> 226287 | BF14: =ROUND(Survivors!BF14+Migrants!BF224,0) -> 227061 | BG14: =ROUND(Survivors!BG14+Migrants!BG224,0) -> 227809 | BH14: =ROUND(Survivors!BH14+Migrants!BH224,0) -> 228548 | BI14: =ROUND(Survivors!BI14+Migrants!BI224,0) -> 229294 | BJ14: =ROUND(Survivors!BJ14+Migrants!BJ224,0) -> 230062 | BK14: =ROUND(Survivors!BK14+Migrants!BK224,0) -> 230873 | BL14: =ROUND(Survivors!BL14+Migrants!BL224,0) -> 231730 | BM14: =ROUND(Survivors!BM14+Migrants!BM224,0) -> 232646 | BN14: =ROUND(Survivors!BN14+Migrants!BN224,0) -> 233627 | BO14: =ROUND(Survivors!BO14+Migrants!BO224,0) -> 234681 | BP14: =ROUND(Survivors!BP14+Migrants!BP224,0) -> 235800 | BQ14: =ROUND(Survivors!BQ14+Migrants!BQ224,0) -> 236986 | BR14: =ROUND(Survivors!BR14+Migrants!BR224,0) -> 238232 | BS14: =ROUND(Survivors!BS14+Migrants!BS224,0) -> 239532 | BT14: =ROUND(Survivors!BT14+Migrants!BT224,0) -> 240875 | BU14: =ROUND(Survivors!BU14+Migrants!BU224,0) -> 242249 | BV14: =ROUND(Survivors!BV14+Migrants!BV224,0) -> 243643 | BW14: =ROUND(Survivors!BW14+Migrants!BW224,0) -> 245046 | BX14: =ROUND(Survivors!BX14+Migrants!BX224,0) -> 246444 | BY14: =ROUND(Survivors!BY14+Migrants!BY224,0) -> 247827 | BZ14: =ROUND(Survivors!BZ14+Migrants!BZ224,0) -> 249185 | CA14: =ROUND(Survivors!CA14+Migrants!CA224,0) -> 250510 | CB14: =ROUND(Survivors!CB14+Migrants!CB224,0) -> 251793 | CC14: =ROUND(Survivors!CC14+Migrants!CC224,0) -> 253031 | CD14: =ROUND(Survivors!CD14+Migrants!CD224,0) -> 254223 | CE14: =ROUND(Survivors!CE14+Migrants!CE224,0) -> 255362 | CF14: =ROUND(Survivors!CF14+Migrants!CF224,0) -> 256451 | CG14: =ROUND(Survivors!CG14+Migrants!CG224,0) -> 257491 | CH14: =ROUND(Survivors!CH14+Migrants!CH224,0) -> 258486 | CI14: =ROUND(Survivors!CI14+Migrants!CI224,0) -> 259440 | CJ14: =ROUND(Survivors!CJ14+Migrants!CJ224,0) -> 260359 | CK14: =ROUND(Survivors!CK14+Migrants!CK224,0) -> 261247 | CL14: =ROUND(Survivors!CL14+Migrants!CL224,0) -> 262111 | CM14: =ROUND(Survivors!CM14+Migrants!CM224,0) -> 262962 | CN14: =ROUND(Survivors!CN14+Migrants!CN224,0) -> 263804
A15: 11 | B15: 142752 | C15: =ROUND(Survivors!C15+Migrants!C225,0) -> 142059 | D15: =ROUND(Survivors!D15+Migrants!D225,0) -> 144013 | E15: =ROUND(Survivors!E15+Migrants!E225,0) -> 147587 | F15: =ROUND(Survivors!F15+Migrants!F225,0) -> 151689 | G15: =ROUND(Survivors!G15+Migrants!G225,0) -> 157579 | H15: =ROUND(Survivors!H15+Migrants!H225,0) -> 159315 | I15: =ROUND(Survivors!I15+Migrants!I225,0) -> 162630 | J15: =ROUND(Survivors!J15+Migrants!J225,0) -> 165039 | K15: =ROUND(Survivors!K15+Migrants!K225,0) -> 167899 | L15: =ROUND(Survivors!L15+Migrants!L225,0) -> 166685 | M15: =ROUND(Survivors!M15+Migrants!M225,0) -> 169506 | N15: =ROUND(Survivors!N15+Migrants!N225,0) -> 172076 | O15: =ROUND(Survivors!O15+Migrants!O225,0) -> 174357 | P15: =ROUND(Survivors!P15+Migrants!P225,0) -> 176595 | Q15: =ROUND(Survivors!Q15+Migrants!Q225,0) -> 178746 | R15: =ROUND(Survivors!R15+Migrants!R225,0) -> 180762 | S15: =ROUND(Survivors!S15+Migrants!S225,0) -> 182540 | T15: =ROUND(Survivors!T15+Migrants!T225,0) -> 184061 | U15: =ROUND(Survivors!U15+Migrants!U225,0) -> 185380 | V15: =ROUND(Survivors!V15+Migrants!V225,0) -> 186491 | W15: =ROUND(Survivors!W15+Migrants!W225,0) -> 187394 | X15: =ROUND(Survivors!X15+Migrants!X225,0) -> 188117 | Y15: =ROUND(Survivors!Y15+Migrants!Y225,0) -> 188709 | Z15: =ROUND(Survivors!Z15+Migrants!Z225,0) -> 189196 | AA15: =ROUND(Survivors!AA15+Migrants!AA225,0) -> 189607 | AB15: =ROUND(Survivors!AB15+Migrants!AB225,0) -> 189957 | AC15: =ROUND(Survivors!AC15+Migrants!AC225,0) -> 190325 | AD15: =ROUND(Survivors!AD15+Migrants!AD225,0) -> 190759 | AE15: =ROUND(Survivors!AE15+Migrants!AE225,0) -> 191246 | AF15: =ROUND(Survivors!AF15+Migrants!AF225,0) -> 191833 | AG15: =ROUND(Survivors!AG15+Migrants!AG225,0) -> 192545 | AH15: =ROUND(Survivors!AH15+Migrants!AH225,0) -> 193408 | AI15: =ROUND(Survivors!AI15+Migrants!AI225,0) -> 194444 | AJ15: =ROUND(Survivors!AJ15+Migrants!AJ225,0) -> 195642 | AK15: =ROUND(Survivors!AK15+Migrants!AK225,0) -> 197002 | AL15: =ROUND(Survivors!AL15+Migrants!AL225,0) -> 198507 | AM15: =ROUND(Survivors!AM15+Migrants!AM225,0) -> 200123 | AN15: =ROUND(Survivors!AN15+Migrants!AN225,0) -> 201831 | AO15: =ROUND(Survivors!AO15+Migrants!AO225,0) -> 203615 | AP15: =ROUND(Survivors!AP15+Migrants!AP225,0) -> 205445 | AQ15: =ROUND(Survivors!AQ15+Migrants!AQ225,0) -> 207288 | AR15: =ROUND(Survivors!AR15+Migrants!AR225,0) -> 209116 | AS15: =ROUND(Survivors!AS15+Migrants!AS225,0) -> 210918 | AT15: =ROUND(Survivors!AT15+Migrants!AT225,0) -> 212664 | AU15: =ROUND(Survivors!AU15+Migrants!AU225,0) -> 214342 | AV15: =ROUND(Survivors!AV15+Migrants!AV225,0) -> 215943 | AW15: =ROUND(Survivors!AW15+Migrants!AW225,0) -> 217466 | AX15: =ROUND(Survivors!AX15+Migrants!AX225,0) -> 218912 | AY15: =ROUND(Survivors!AY15+Migrants!AY225,0) -> 220273 | AZ15: =ROUND(Survivors!AZ15+Migrants!AZ225,0) -> 221552 | BA15: =ROUND(Survivors!BA15+Migrants!BA225,0) -> 222745 | BB15: =ROUND(Survivors!BB15+Migrants!BB225,0) -> 223854 | BC15: =ROUND(Survivors!BC15+Migrants!BC225,0) -> 224875 | BD15: =ROUND(Survivors!BD15+Migrants!BD225,0) -> 225820 | BE15: =ROUND(Survivors!BE15+Migrants!BE225,0) -> 226694 | BF15: =ROUND(Survivors!BF15+Migrants!BF225,0) -> 227512 | BG15: =ROUND(Survivors!BG15+Migrants!BG225,0) -> 228286 | BH15: =ROUND(Survivors!BH15+Migrants!BH225,0) -> 229034 | BI15: =ROUND(Survivors!BI15+Migrants!BI225,0) -> 229773 | BJ15: =ROUND(Survivors!BJ15+Migrants!BJ225,0) -> 230519 | BK15: =ROUND(Survivors!BK15+Migrants!BK225,0) -> 231287 | BL15: =ROUND(Survivors!BL15+Migrants!BL225,0) -> 232098 | BM15: =ROUND(Survivors!BM15+Migrants!BM225,0) -> 232955 | BN15: =ROUND(Survivors!BN15+Migrants!BN225,0) -> 233871 | BO15: =ROUND(Survivors!BO15+Migrants!BO225,0) -> 234852 | BP15: =ROUND(Survivors!BP15+Migrants!BP225,0) -> 235906 | BQ15: =ROUND(Survivors!BQ15+Migrants!BQ225,0) -> 237025 | BR15: =ROUND(Survivors!BR15+Migrants!BR225,0) -> 238211 | BS15: =ROUND(Survivors!BS15+Migrants!BS225,0) -> 239457 | BT15: =ROUND(Survivors!BT15+Migrants!BT225,0) -> 240757 | BU15: =ROUND(Survivors!BU15+Migrants!BU225,0) -> 242100 | BV15: =ROUND(Survivors!BV15+Migrants!BV225,0) -> 243474 | BW15: =ROUND(Survivors!BW15+Migrants!BW225,0) -> 244868 | BX15: =ROUND(Survivors!BX15+Migrants!BX225,0) -> 246271 | BY15: =ROUND(Survivors!BY15+Migrants!BY225,0) -> 247669 | BZ15: =ROUND(Survivors!BZ15+Migrants!BZ225,0) -> 249052 | CA15: =ROUND(Survivors!CA15+Migrants!CA225,0) -> 250410 | CB15: =ROUND(Survivors!CB15+Migrants!CB225,0) -> 251735 | CC15: =ROUND(Survivors!CC15+Migrants!CC225,0) -> 253018 | CD15: =ROUND(Survivors!CD15+Migrants!CD225,0) -> 254256 | CE15: =ROUND(Survivors!CE15+Migrants!CE225,0) -> 255448 | CF15: =ROUND(Survivors!CF15+Migrants!CF225,0) -> 256587 | CG15: =ROUND(Survivors!CG15+Migrants!CG225,0) -> 257676 | CH15: =ROUND(Survivors!CH15+Migrants!CH225,0) -> 258716 | CI15: =ROUND(Survivors!CI15+Migrants!CI225,0) -> 259711 | CJ15: =ROUND(Survivors!CJ15+Migrants!CJ225,0) -> 260665 | CK15: =ROUND(Survivors!CK15+Migrants!CK225,0) -> 261584 | CL15: =ROUND(Survivors!CL15+Migrants!CL225,0) -> 262472 | CM15: =ROUND(Survivors!CM15+Migrants!CM225,0) -> 263336 | CN15: =ROUND(Survivors!CN15+Migrants!CN225,0) -> 264187
A16: 12 | B16: 142727 | C16: =ROUND(Survivors!C16+Migrants!C226,0) -> 144306 | D16: =ROUND(Survivors!D16+Migrants!D226,0) -> 143539 | E16: =ROUND(Survivors!E16+Migrants!E226,0) -> 145418 | F16: =ROUND(Survivors!F16+Migrants!F226,0) -> 148917 | G16: =ROUND(Survivors!G16+Migrants!G226,0) -> 152944 | H16: =ROUND(Survivors!H16+Migrants!H226,0) -> 158759 | I16: =ROUND(Survivors!I16+Migrants!I226,0) -> 160495 | J16: =ROUND(Survivors!J16+Migrants!J226,0) -> 163811 | K16: =ROUND(Survivors!K16+Migrants!K226,0) -> 166220 | L16: =ROUND(Survivors!L16+Migrants!L226,0) -> 169080 | M16: =ROUND(Survivors!M16+Migrants!M226,0) -> 167867 | N16: =ROUND(Survivors!N16+Migrants!N226,0) -> 170688 | O16: =ROUND(Survivors!O16+Migrants!O226,0) -> 173258 | P16: =ROUND(Survivors!P16+Migrants!P226,0) -> 175539 | Q16: =ROUND(Survivors!Q16+Migrants!Q226,0) -> 177778 | R16: =ROUND(Survivors!R16+Migrants!R226,0) -> 179929 | S16: =ROUND(Survivors!S16+Migrants!S226,0) -> 181945 | T16: =ROUND(Survivors!T16+Migrants!T226,0) -> 183723 | U16: =ROUND(Survivors!U16+Migrants!U226,0) -> 185245 | V16: =ROUND(Survivors!V16+Migrants!V226,0) -> 186564 | W16: =ROUND(Survivors!W16+Migrants!W226,0) -> 187675 | X16: =ROUND(Survivors!X16+Migrants!X226,0) -> 188579 | Y16: =ROUND(Survivors!Y16+Migrants!Y226,0) -> 189302 | Z16: =ROUND(Survivors!Z16+Migrants!Z226,0) -> 189894 | AA16: =ROUND(Survivors!AA16+Migrants!AA226,0) -> 190381 | AB16: =ROUND(Survivors!AB16+Migrants!AB226,0) -> 190793 | AC16: =ROUND(Survivors!AC16+Migrants!AC226,0) -> 191143 | AD16: =ROUND(Survivors!AD16+Migrants!AD226,0) -> 191511 | AE16: =ROUND(Survivors!AE16+Migrants!AE226,0) -> 191945 | AF16: =ROUND(Survivors!AF16+Migrants!AF226,0) -> 192432 | AG16: =ROUND(Survivors!AG16+Migrants!AG226,0) -> 193020 | AH16: =ROUND(Survivors!AH16+Migrants!AH226,0) -> 193732 | AI16: =ROUND(Survivors!AI16+Migrants!AI226,0) -> 194595 | AJ16: =ROUND(Survivors!AJ16+Migrants!AJ226,0) -> 195631 | AK16: =ROUND(Survivors!AK16+Migrants!AK226,0) -> 196829 | AL16: =ROUND(Survivors!AL16+Migrants!AL226,0) -> 198190 | AM16: =ROUND(Survivors!AM16+Migrants!AM226,0) -> 199695 | AN16: =ROUND(Survivors!AN16+Migrants!AN226,0) -> 201311 | AO16: =ROUND(Survivors!AO16+Migrants!AO226,0) -> 203019 | AP16: =ROUND(Survivors!AP16+Migrants!AP226,0) -> 204803 | AQ16: =ROUND(Survivors!AQ16+Migrants!AQ226,0) -> 206633 | AR16: =ROUND(Survivors!AR16+Migrants!AR226,0) -> 208476 | AS16: =ROUND(Survivors!AS16+Migrants!AS226,0) -> 210304 | AT16: =ROUND(Survivors!AT16+Migrants!AT226,0) -> 212106 | AU16: =ROUND(Survivors!AU16+Migrants!AU226,0) -> 213852 | AV16: =ROUND(Survivors!AV16+Migrants!AV226,0) -> 215530 | AW16: =ROUND(Survivors!AW16+Migrants!AW226,0) -> 217131 | AX16: =ROUND(Survivors!AX16+Migrants!AX226,0) -> 218654 | AY16: =ROUND(Survivors!AY16+Migrants!AY226,0) -> 220100 | AZ16: =ROUND(Survivors!AZ16+Migrants!AZ226,0) -> 221461 | BA16: =ROUND(Survivors!BA16+Migrants!BA226,0) -> 222740 | BB16: =ROUND(Survivors!BB16+Migrants!BB226,0) -> 223933 | BC16: =ROUND(Survivors!BC16+Migrants!BC226,0) -> 225043 | BD16: =ROUND(Survivors!BD16+Migrants!BD226,0) -> 226064 | BE16: =ROUND(Survivors!BE16+Migrants!BE226,0) -> 227009 | BF16: =ROUND(Survivors!BF16+Migrants!BF226,0) -> 227883 | BG16: =ROUND(Survivors!BG16+Migrants!BG226,0) -> 228701 | BH16: =ROUND(Survivors!BH16+Migrants!BH226,0) -> 229475 | BI16: =ROUND(Survivors!BI16+Migrants!BI226,0) -> 230223 | BJ16: =ROUND(Survivors!BJ16+Migrants!BJ226,0) -> 230962 | BK16: =ROUND(Survivors!BK16+Migrants!BK226,0) -> 231708 | BL16: =ROUND(Survivors!BL16+Migrants!BL226,0) -> 232476 | BM16: =ROUND(Survivors!BM16+Migrants!BM226,0) -> 233287 | BN16: =ROUND(Survivors!BN16+Migrants!BN226,0) -> 234144 | BO16: =ROUND(Survivors!BO16+Migrants!BO226,0) -> 235060 | BP16: =ROUND(Survivors!BP16+Migrants!BP226,0) -> 236041 | BQ16: =ROUND(Survivors!BQ16+Migrants!BQ226,0) -> 237095 | BR16: =ROUND(Survivors!BR16+Migrants!BR226,0) -> 238214 | BS16: =ROUND(Survivors!BS16+Migrants!BS226,0) -> 239400 | BT16: =ROUND(Survivors!BT16+Migrants!BT226,0) -> 240646 | BU16: =ROUND(Survivors!BU16+Migrants!BU226,0) -> 241946 | BV16: =ROUND(Survivors!BV16+Migrants!BV226,0) -> 243289 | BW16: =ROUND(Survivors!BW16+Migrants!BW226,0) -> 244663 | BX16: =ROUND(Survivors!BX16+Migrants!BX226,0) -> 246057 | BY16: =ROUND(Survivors!BY16+Migrants!BY226,0) -> 247460 | BZ16: =ROUND(Survivors!BZ16+Migrants!BZ226,0) -> 248858 | CA16: =ROUND(Survivors!CA16+Migrants!CA226,0) -> 250241 | CB16: =ROUND(Survivors!CB16+Migrants!CB226,0) -> 251599 | CC16: =ROUND(Survivors!CC16+Migrants!CC226,0) -> 252924 | CD16: =ROUND(Survivors!CD16+Migrants!CD226,0) -> 254207 | CE16: =ROUND(Survivors!CE16+Migrants!CE226,0) -> 255445 | CF16: =ROUND(Survivors!CF16+Migrants!CF226,0) -> 256637 | CG16: =ROUND(Survivors!CG16+Migrants!CG226,0) -> 257776 | CH16: =ROUND(Survivors!CH16+Migrants!CH226,0) -> 258865 | CI16: =ROUND(Survivors!CI16+Migrants!CI226,0) -> 259905 | CJ16: =ROUND(Survivors!CJ16+Migrants!CJ226,0) -> 260900 | CK16: =ROUND(Survivors!CK16+Migrants!CK226,0) -> 261854 | CL16: =ROUND(Survivors!CL16+Migrants!CL226,0) -> 262773 | CM16: =ROUND(Survivors!CM16+Migrants!CM226,0) -> 263661 | CN16: =ROUND(Survivors!CN16+Migrants!CN226,0) -> 264525
A17: 13 | B17: 143273 | C17: =ROUND(Survivors!C17+Migrants!C227,0) -> 144295 | D17: =ROUND(Survivors!D17+Migrants!D227,0) -> 145799 | E17: =ROUND(Survivors!E17+Migrants!E227,0) -> 144957 | F17: =ROUND(Survivors!F17+Migrants!F227,0) -> 146760 | G17: =ROUND(Survivors!G17+Migrants!G227,0) -> 150184 | H17: =ROUND(Survivors!H17+Migrants!H227,0) -> 154135 | I17: =ROUND(Survivors!I17+Migrants!I227,0) -> 159950 | J17: =ROUND(Survivors!J17+Migrants!J227,0) -> 161686 | K17: =ROUND(Survivors!K17+Migrants!K227,0) -> 165003 | L17: =ROUND(Survivors!L17+Migrants!L227,0) -> 167412 | M17: =ROUND(Survivors!M17+Migrants!M227,0) -> 170272 | N17: =ROUND(Survivors!N17+Migrants!N227,0) -> 169060 | O17: =ROUND(Survivors!O17+Migrants!O227,0) -> 171881 | P17: =ROUND(Survivors!P17+Migrants!P227,0) -> 174451 | Q17: =ROUND(Survivors!Q17+Migrants!Q227,0) -> 176732 | R17: =ROUND(Survivors!R17+Migrants!R227,0) -> 178971 | S17: =ROUND(Survivors!S17+Migrants!S227,0) -> 181123 | T17: =ROUND(Survivors!T17+Migrants!T227,0) -> 183139 | U17: =ROUND(Survivors!U17+Migrants!U227,0) -> 184917 | V17: =ROUND(Survivors!V17+Migrants!V227,0) -> 186440 | W17: =ROUND(Survivors!W17+Migrants!W227,0) -> 187759 | X17: =ROUND(Survivors!X17+Migrants!X227,0) -> 188870 | Y17: =ROUND(Survivors!Y17+Migrants!Y227,0) -> 189774 | Z17: =ROUND(Survivors!Z17+Migrants!Z227,0) -> 190498 | AA17: =ROUND(Survivors!AA17+Migrants!AA227,0) -> 191090 | AB17: =ROUND(Survivors!AB17+Migrants!AB227,0) -> 191577 | AC17: =ROUND(Survivors!AC17+Migrants!AC227,0) -> 191989 | AD17: =ROUND(Survivors!AD17+Migrants!AD227,0) -> 192340 | AE17: =ROUND(Survivors!AE17+Migrants!AE227,0) -> 192708 | AF17: =ROUND(Survivors!AF17+Migrants!AF227,0) -> 193142 | AG17: =ROUND(Survivors!AG17+Migrants!AG227,0) -> 193629 | AH17: =ROUND(Survivors!AH17+Migrants!AH227,0) -> 194217 | AI17: =ROUND(Survivors!AI17+Migrants!AI227,0) -> 194930 | AJ17: =ROUND(Survivors!AJ17+Migrants!AJ227,0) -> 195793 | AK17: =ROUND(Survivors!AK17+Migrants!AK227,0) -> 196829 | AL17: =ROUND(Survivors!AL17+Migrants!AL227,0) -> 198027 | AM17: =ROUND(Survivors!AM17+Migrants!AM227,0) -> 199388 | AN17: =ROUND(Survivors!AN17+Migrants!AN227,0) -> 200893 | AO17: =ROUND(Survivors!AO17+Migrants!AO227,0) -> 202509 | AP17: =ROUND(Survivors!AP17+Migrants!AP227,0) -> 204218 | AQ17: =ROUND(Survivors!AQ17+Migrants!AQ227,0) -> 206002 | AR17: =ROUND(Survivors!AR17+Migrants!AR227,0) -> 207832 | AS17: =ROUND(Survivors!AS17+Migrants!AS227,0) -> 209675 | AT17: =ROUND(Survivors!AT17+Migrants!AT227,0) -> 211503 | AU17: =ROUND(Survivors!AU17+Migrants!AU227,0) -> 213305 | AV17: =ROUND(Survivors!AV17+Migrants!AV227,0) -> 215051 | AW17: =ROUND(Survivors!AW17+Migrants!AW227,0) -> 216729 | AX17: =ROUND(Survivors!AX17+Migrants!AX227,0) -> 218330 | AY17: =ROUND(Survivors!AY17+Migrants!AY227,0) -> 219853 | AZ17: =ROUND(Survivors!AZ17+Migrants!AZ227,0) -> 221299 | BA17: =ROUND(Survivors!BA17+Migrants!BA227,0) -> 222660 | BB17: =ROUND(Survivors!BB17+Migrants!BB227,0) -> 223939 | BC17: =ROUND(Survivors!BC17+Migrants!BC227,0) -> 225132 | BD17: =ROUND(Survivors!BD17+Migrants!BD227,0) -> 226242 | BE17: =ROUND(Survivors!BE17+Migrants!BE227,0) -> 227263 | BF17: =ROUND(Survivors!BF17+Migrants!BF227,0) -> 228208 | BG17: =ROUND(Survivors!BG17+Migrants!BG227,0) -> 229082 | BH17: =ROUND(Survivors!BH17+Migrants!BH227,0) -> 229900 | BI17: =ROUND(Survivors!BI17+Migrants!BI227,0) -> 230674 | BJ17: =ROUND(Survivors!BJ17+Migrants!BJ227,0) -> 231422 | BK17: =ROUND(Survivors!BK17+Migrants!BK227,0) -> 232161 | BL17: =ROUND(Survivors!BL17+Migrants!BL227,0) -> 232907 | BM17: =ROUND(Survivors!BM17+Migrants!BM227,0) -> 233675 | BN17: =ROUND(Survivors!BN17+Migrants!BN227,0) -> 234486 | BO17: =ROUND(Survivors!BO17+Migrants!BO227,0) -> 235343 | BP17: =ROUND(Survivors!BP17+Migrants!BP227,0) -> 236259 | BQ17: =ROUND(Survivors!BQ17+Migrants!BQ227,0) -> 237240 | BR17: =ROUND(Survivors!BR17+Migrants!BR227,0) -> 238295 | BS17: =ROUND(Survivors!BS17+Migrants!BS227,0) -> 239414 | BT17: =ROUND(Survivors!BT17+Migrants!BT227,0) -> 240600 | BU17: =ROUND(Survivors!BU17+Migrants!BU227,0) -> 241846 | BV17: =ROUND(Survivors!BV17+Migrants!BV227,0) -> 243146 | BW17: =ROUND(Survivors!BW17+Migrants!BW227,0) -> 244489 | BX17: =ROUND(Survivors!BX17+Migrants!BX227,0) -> 245863 | BY17: =ROUND(Survivors!BY17+Migrants!BY227,0) -> 247257 | BZ17: =ROUND(Survivors!BZ17+Migrants!BZ227,0) -> 248660 | CA17: =ROUND(Survivors!CA17+Migrants!CA227,0) -> 250058 | CB17: =ROUND(Survivors!CB17+Migrants!CB227,0) -> 251441 | CC17: =ROUND(Survivors!CC17+Migrants!CC227,0) -> 252799 | CD17: =ROUND(Survivors!CD17+Migrants!CD227,0) -> 254124 | CE17: =ROUND(Survivors!CE17+Migrants!CE227,0) -> 255407 | CF17: =ROUND(Survivors!CF17+Migrants!CF227,0) -> 256645 | CG17: =ROUND(Survivors!CG17+Migrants!CG227,0) -> 257837 | CH17: =ROUND(Survivors!CH17+Migrants!CH227,0) -> 258976 | CI17: =ROUND(Survivors!CI17+Migrants!CI227,0) -> 260065 | CJ17: =ROUND(Survivors!CJ17+Migrants!CJ227,0) -> 261105 | CK17: =ROUND(Survivors!CK17+Migrants!CK227,0) -> 262100 | CL17: =ROUND(Survivors!CL17+Migrants!CL227,0) -> 263054 | CM17: =ROUND(Survivors!CM17+Migrants!CM227,0) -> 263973 | CN17: =ROUND(Survivors!CN17+Migrants!CN227,0) -> 264861
A18: 14 | B18: 143781 | C18: =ROUND(Survivors!C18+Migrants!C228,0) -> 144900 | D18: =ROUND(Survivors!D18+Migrants!D228,0) -> 145844 | E18: =ROUND(Survivors!E18+Migrants!E228,0) -> 147269 | F18: =ROUND(Survivors!F18+Migrants!F228,0) -> 146349 | G18: =ROUND(Survivors!G18+Migrants!G228,0) -> 148074 | H18: =ROUND(Survivors!H18+Migrants!H228,0) -> 151419 | I18: =ROUND(Survivors!I18+Migrants!I228,0) -> 155370 | J18: =ROUND(Survivors!J18+Migrants!J228,0) -> 161185 | K18: =ROUND(Survivors!K18+Migrants!K228,0) -> 162922 | L18: =ROUND(Survivors!L18+Migrants!L228,0) -> 166239 | M18: =ROUND(Survivors!M18+Migrants!M228,0) -> 168648 | N18: =ROUND(Survivors!N18+Migrants!N228,0) -> 171508 | O18: =ROUND(Survivors!O18+Migrants!O228,0) -> 170297 | P18: =ROUND(Survivors!P18+Migrants!P228,0) -> 173118 | Q18: =ROUND(Survivors!Q18+Migrants!Q228,0) -> 175689 | R18: =ROUND(Survivors!R18+Migrants!R228,0) -> 177970 | S18: =ROUND(Survivors!S18+Migrants!S228,0) -> 180209 | T18: =ROUND(Survivors!T18+Migrants!T228,0) -> 182362 | U18: =ROUND(Survivors!U18+Migrants!U228,0) -> 184378 | V18: =ROUND(Survivors!V18+Migrants!V228,0) -> 186156 | W18: =ROUND(Survivors!W18+Migrants!W228,0) -> 187680 | X18: =ROUND(Survivors!X18+Migrants!X228,0) -> 188999 | Y18: =ROUND(Survivors!Y18+Migrants!Y228,0) -> 190110 | Z18: =ROUND(Survivors!Z18+Migrants!Z228,0) -> 191015 | AA18: =ROUND(Survivors!AA18+Migrants!AA228,0) -> 191739 | AB18: =ROUND(Survivors!AB18+Migrants!AB228,0) -> 192331 | AC18: =ROUND(Survivors!AC18+Migrants!AC228,0) -> 192819 | AD18: =ROUND(Survivors!AD18+Migrants!AD228,0) -> 193231 | AE18: =ROUND(Survivors!AE18+Migrants!AE228,0) -> 193582 | AF18: =ROUND(Survivors!AF18+Migrants!AF228,0) -> 193951 | AG18: =ROUND(Survivors!AG18+Migrants!AG228,0) -> 194385 | AH18: =ROUND(Survivors!AH18+Migrants!AH228,0) -> 194872 | AI18: =ROUND(Survivors!AI18+Migrants!AI228,0) -> 195460 | AJ18: =ROUND(Survivors!AJ18+Migrants!AJ228,0) -> 196174 | AK18: =ROUND(Survivors!AK18+Migrants!AK228,0) -> 197037 | AL18: =ROUND(Survivors!AL18+Migrants!AL228,0) -> 198073 | AM18: =ROUND(Survivors!AM18+Migrants!AM228,0) -> 199271 | AN18: =ROUND(Survivors!AN18+Migrants!AN228,0) -> 200633 | AO18: =ROUND(Survivors!AO18+Migrants!AO228,0) -> 202138 | AP18: =ROUND(Survivors!AP18+Migrants!AP228,0) -> 203754 | AQ18: =ROUND(Survivors!AQ18+Migrants!AQ228,0) -> 205463 | AR18: =ROUND(Survivors!AR18+Migrants!AR228,0) -> 207247 | AS18: =ROUND(Survivors!AS18+Migrants!AS228,0) -> 209077 | AT18: =ROUND(Survivors!AT18+Migrants!AT228,0) -> 210920 | AU18: =ROUND(Survivors!AU18+Migrants!AU228,0) -> 212748 | AV18: =ROUND(Survivors!AV18+Migrants!AV228,0) -> 214550 | AW18: =ROUND(Survivors!AW18+Migrants!AW228,0) -> 216296 | AX18: =ROUND(Survivors!AX18+Migrants!AX228,0) -> 217974 | AY18: =ROUND(Survivors!AY18+Migrants!AY228,0) -> 219575 | AZ18: =ROUND(Survivors!AZ18+Migrants!AZ228,0) -> 221098 | BA18: =ROUND(Survivors!BA18+Migrants!BA228,0) -> 222545 | BB18: =ROUND(Survivors!BB18+Migrants!BB228,0) -> 223906 | BC18: =ROUND(Survivors!BC18+Migrants!BC228,0) -> 225185 | BD18: =ROUND(Survivors!BD18+Migrants!BD228,0) -> 226378 | BE18: =ROUND(Survivors!BE18+Migrants!BE228,0) -> 227488 | BF18: =ROUND(Survivors!BF18+Migrants!BF228,0) -> 228509 | BG18: =ROUND(Survivors!BG18+Migrants!BG228,0) -> 229454 | BH18: =ROUND(Survivors!BH18+Migrants!BH228,0) -> 230328 | BI18: =ROUND(Survivors!BI18+Migrants!BI228,0) -> 231146 | BJ18: =ROUND(Survivors!BJ18+Migrants!BJ228,0) -> 231920 | BK18: =ROUND(Survivors!BK18+Migrants!BK228,0) -> 232668 | BL18: =ROUND(Survivors!BL18+Migrants!BL228,0) -> 233407 | BM18: =ROUND(Survivors!BM18+Migrants!BM228,0) -> 234153 | BN18: =ROUND(Survivors!BN18+Migrants!BN228,0) -> 234921 | BO18: =ROUND(Survivors!BO18+Migrants!BO228,0) -> 235732 | BP18: =ROUND(Survivors!BP18+Migrants!BP228,0) -> 236589 | BQ18: =ROUND(Survivors!BQ18+Migrants!BQ228,0) -> 237505 | BR18: =ROUND(Survivors!BR18+Migrants!BR228,0) -> 238486 | BS18: =ROUND(Survivors!BS18+Migrants!BS228,0) -> 239541 | BT18: =ROUND(Survivors!BT18+Migrants!BT228,0) -> 240660 | BU18: =ROUND(Survivors!BU18+Migrants!BU228,0) -> 241846 | BV18: =ROUND(Survivors!BV18+Migrants!BV228,0) -> 243092 | BW18: =ROUND(Survivors!BW18+Migrants!BW228,0) -> 244392 | BX18: =ROUND(Survivors!BX18+Migrants!BX228,0) -> 245736 | BY18: =ROUND(Survivors!BY18+Migrants!BY228,0) -> 247110 | BZ18: =ROUND(Survivors!BZ18+Migrants!BZ228,0) -> 248504 | CA18: =ROUND(Survivors!CA18+Migrants!CA228,0) -> 249907 | CB18: =ROUND(Survivors!CB18+Migrants!CB228,0) -> 251305 | CC18: =ROUND(Survivors!CC18+Migrants!CC228,0) -> 252688 | CD18: =ROUND(Survivors!CD18+Migrants!CD228,0) -> 254046 | CE18: =ROUND(Survivors!CE18+Migrants!CE228,0) -> 255371 | CF18: =ROUND(Survivors!CF18+Migrants!CF228,0) -> 256654 | CG18: =ROUND(Survivors!CG18+Migrants!CG228,0) -> 257892 | CH18: =ROUND(Survivors!CH18+Migrants!CH228,0) -> 259084 | CI18: =ROUND(Survivors!CI18+Migrants!CI228,0) -> 260223 | CJ18: =ROUND(Survivors!CJ18+Migrants!CJ228,0) -> 261312 | CK18: =ROUND(Survivors!CK18+Migrants!CK228,0) -> 262352 | CL18: =ROUND(Survivors!CL18+Migrants!CL228,0) -> 263347 | CM18: =ROUND(Survivors!CM18+Migrants!CM228,0) -> 264301 | CN18: =ROUND(Survivors!CN18+Migrants!CN228,0) -> 265220
A19: 15 | B19: 145483 | C19: =ROUND(Survivors!C19+Migrants!C229,0) -> 145652 | D19: =ROUND(Survivors!D19+Migrants!D229,0) -> 146681 | E19: =ROUND(Survivors!E19+Migrants!E229,0) -> 147535 | F19: =ROUND(Survivors!F19+Migrants!F229,0) -> 148869 | G19: =ROUND(Survivors!G19+Migrants!G229,0) -> 147859 | H19: =ROUND(Survivors!H19+Migrants!H229,0) -> 149494 | I19: =ROUND(Survivors!I19+Migrants!I229,0) -> 152839 | J19: =ROUND(Survivors!J19+Migrants!J229,0) -> 156790 | K19: =ROUND(Survivors!K19+Migrants!K229,0) -> 162605 | L19: =ROUND(Survivors!L19+Migrants!L229,0) -> 164342 | M19: =ROUND(Survivors!M19+Migrants!M229,0) -> 167660 | N19: =ROUND(Survivors!N19+Migrants!N229,0) -> 170069 | O19: =ROUND(Survivors!O19+Migrants!O229,0) -> 172930 | P19: =ROUND(Survivors!P19+Migrants!P229,0) -> 171719 | Q19: =ROUND(Survivors!Q19+Migrants!Q229,0) -> 174541 | R19: =ROUND(Survivors!R19+Migrants!R229,0) -> 177112 | S19: =ROUND(Survivors!S19+Migrants!S229,0) -> 179394 | T19: =ROUND(Survivors!T19+Migrants!T229,0) -> 181633 | U19: =ROUND(Survivors!U19+Migrants!U229,0) -> 183786 | V19: =ROUND(Survivors!V19+Migrants!V229,0) -> 185803 | W19: =ROUND(Survivors!W19+Migrants!W229,0) -> 187581 | X19: =ROUND(Survivors!X19+Migrants!X229,0) -> 189106 | Y19: =ROUND(Survivors!Y19+Migrants!Y229,0) -> 190425 | Z19: =ROUND(Survivors!Z19+Migrants!Z229,0) -> 191537 | AA19: =ROUND(Survivors!AA19+Migrants!AA229,0) -> 192442 | AB19: =ROUND(Survivors!AB19+Migrants!AB229,0) -> 193167 | AC19: =ROUND(Survivors!AC19+Migrants!AC229,0) -> 193759 | AD19: =ROUND(Survivors!AD19+Migrants!AD229,0) -> 194248 | AE19: =ROUND(Survivors!AE19+Migrants!AE229,0) -> 194660 | AF19: =ROUND(Survivors!AF19+Migrants!AF229,0) -> 195012 | AG19: =ROUND(Survivors!AG19+Migrants!AG229,0) -> 195381 | AH19: =ROUND(Survivors!AH19+Migrants!AH229,0) -> 195815 | AI19: =ROUND(Survivors!AI19+Migrants!AI229,0) -> 196303 | AJ19: =ROUND(Survivors!AJ19+Migrants!AJ229,0) -> 196891 | AK19: =ROUND(Survivors!AK19+Migrants!AK229,0) -> 197606 | AL19: =ROUND(Survivors!AL19+Migrants!AL229,0) -> 198469 | AM19: =ROUND(Survivors!AM19+Migrants!AM229,0) -> 199505 | AN19: =ROUND(Survivors!AN19+Migrants!AN229,0) -> 200704 | AO19: =ROUND(Survivors!AO19+Migrants!AO229,0) -> 202066 | AP19: =ROUND(Survivors!AP19+Migrants!AP229,0) -> 203571 | AQ19: =ROUND(Survivors!AQ19+Migrants!AQ229,0) -> 205188 | AR19: =ROUND(Survivors!AR19+Migrants!AR229,0) -> 206897 | AS19: =ROUND(Survivors!AS19+Migrants!AS229,0) -> 208681 | AT19: =ROUND(Survivors!AT19+Migrants!AT229,0) -> 210511 | AU19: =ROUND(Survivors!AU19+Migrants!AU229,0) -> 212354 | AV19: =ROUND(Survivors!AV19+Migrants!AV229,0) -> 214182 | AW19: =ROUND(Survivors!AW19+Migrants!AW229,0) -> 215984 | AX19: =ROUND(Survivors!AX19+Migrants!AX229,0) -> 217730 | AY19: =ROUND(Survivors!AY19+Migrants!AY229,0) -> 219408 | AZ19: =ROUND(Survivors!AZ19+Migrants!AZ229,0) -> 221009 | BA19: =ROUND(Survivors!BA19+Migrants!BA229,0) -> 222532 | BB19: =ROUND(Survivors!BB19+Migrants!BB229,0) -> 223979 | BC19: =ROUND(Survivors!BC19+Migrants!BC229,0) -> 225340 | BD19: =ROUND(Survivors!BD19+Migrants!BD229,0) -> 226619 | BE19: =ROUND(Survivors!BE19+Migrants!BE229,0) -> 227813 | BF19: =ROUND(Survivors!BF19+Migrants!BF229,0) -> 228923 | BG19: =ROUND(Survivors!BG19+Migrants!BG229,0) -> 229944 | BH19: =ROUND(Survivors!BH19+Migrants!BH229,0) -> 230889 | BI19: =ROUND(Survivors!BI19+Migrants!BI229,0) -> 231763 | BJ19: =ROUND(Survivors!BJ19+Migrants!BJ229,0) -> 232581 | BK19: =ROUND(Survivors!BK19+Migrants!BK229,0) -> 233355 | BL19: =ROUND(Survivors!BL19+Migrants!BL229,0) -> 234103 | BM19: =ROUND(Survivors!BM19+Migrants!BM229,0) -> 234842 | BN19: =ROUND(Survivors!BN19+Migrants!BN229,0) -> 235588 | BO19: =ROUND(Survivors!BO19+Migrants!BO229,0) -> 236356 | BP19: =ROUND(Survivors!BP19+Migrants!BP229,0) -> 237168 | BQ19: =ROUND(Survivors!BQ19+Migrants!BQ229,0) -> 238025 | BR19: =ROUND(Survivors!BR19+Migrants!BR229,0) -> 238941 | BS19: =ROUND(Survivors!BS19+Migrants!BS229,0) -> 239922 | BT19: =ROUND(Survivors!BT19+Migrants!BT229,0) -> 240977 | BU19: =ROUND(Survivors!BU19+Migrants!BU229,0) -> 242096 | BV19: =ROUND(Survivors!BV19+Migrants!BV229,0) -> 243282 | BW19: =ROUND(Survivors!BW19+Migrants!BW229,0) -> 244528 | BX19: =ROUND(Survivors!BX19+Migrants!BX229,0) -> 245828 | BY19: =ROUND(Survivors!BY19+Migrants!BY229,0) -> 247172 | BZ19: =ROUND(Survivors!BZ19+Migrants!BZ229,0) -> 248546 | CA19: =ROUND(Survivors!CA19+Migrants!CA229,0) -> 249940 | CB19: =ROUND(Survivors!CB19+Migrants!CB229,0) -> 251343 | CC19: =ROUND(Survivors!CC19+Migrants!CC229,0) -> 252741 | CD19: =ROUND(Survivors!CD19+Migrants!CD229,0) -> 254124 | CE19: =ROUND(Survivors!CE19+Migrants!CE229,0) -> 255482 | CF19: =ROUND(Survivors!CF19+Migrants!CF229,0) -> 256807 | CG19: =ROUND(Survivors!CG19+Migrants!CG229,0) -> 258090 | CH19: =ROUND(Survivors!CH19+Migrants!CH229,0) -> 259328 | CI19: =ROUND(Survivors!CI19+Migrants!CI229,0) -> 260520 | CJ19: =ROUND(Survivors!CJ19+Migrants!CJ229,0) -> 261659 | CK19: =ROUND(Survivors!CK19+Migrants!CK229,0) -> 262748 | CL19: =ROUND(Survivors!CL19+Migrants!CL229,0) -> 263788 | CM19: =ROUND(Survivors!CM19+Migrants!CM229,0) -> 264783 | CN19: =ROUND(Survivors!CN19+Migrants!CN229,0) -> 265737
A20: 16 | B20: 147039 | C20: =ROUND(Survivors!C20+Migrants!C230,0) -> 147873 | D20: =ROUND(Survivors!D20+Migrants!D230,0) -> 147927 | E20: =ROUND(Survivors!E20+Migrants!E230,0) -> 148840 | F20: =ROUND(Survivors!F20+Migrants!F230,0) -> 149579 | G20: =ROUND(Survivors!G20+Migrants!G230,0) -> 150797 | H20: =ROUND(Survivors!H20+Migrants!H230,0) -> 149672 | I20: =ROUND(Survivors!I20+Migrants!I230,0) -> 151308 | J20: =ROUND(Survivors!J20+Migrants!J230,0) -> 154653 | K20: =ROUND(Survivors!K20+Migrants!K230,0) -> 158604 | L20: =ROUND(Survivors!L20+Migrants!L230,0) -> 164419 | M20: =ROUND(Survivors!M20+Migrants!M230,0) -> 166157 | N20: =ROUND(Survivors!N20+Migrants!N230,0) -> 169475 | O20: =ROUND(Survivors!O20+Migrants!O230,0) -> 171885 | P20: =ROUND(Survivors!P20+Migrants!P230,0) -> 174747 | Q20: =ROUND(Survivors!Q20+Migrants!Q230,0) -> 173537 | R20: =ROUND(Survivors!R20+Migrants!R230,0) -> 176359 | S20: =ROUND(Survivors!S20+Migrants!S230,0) -> 178931 | T20: =ROUND(Survivors!T20+Migrants!T230,0) -> 181213 | U20: =ROUND(Survivors!U20+Migrants!U230,0) -> 183453 | V20: =ROUND(Survivors!V20+Migrants!V230,0) -> 185607 | W20: =ROUND(Survivors!W20+Migrants!W230,0) -> 187624 | X20: =ROUND(Survivors!X20+Migrants!X230,0) -> 189403 | Y20: =ROUND(Survivors!Y20+Migrants!Y230,0) -> 190928 | Z20: =ROUND(Survivors!Z20+Migrants!Z230,0) -> 192248 | AA20: =ROUND(Survivors!AA20+Migrants!AA230,0) -> 193361 | AB20: =ROUND(Survivors!AB20+Migrants!AB230,0) -> 194266 | AC20: =ROUND(Survivors!AC20+Migrants!AC230,0) -> 194992 | AD20: =ROUND(Survivors!AD20+Migrants!AD230,0) -> 195585 | AE20: =ROUND(Survivors!AE20+Migrants!AE230,0) -> 196074 | AF20: =ROUND(Survivors!AF20+Migrants!AF230,0) -> 196487 | AG20: =ROUND(Survivors!AG20+Migrants!AG230,0) -> 196840 | AH20: =ROUND(Survivors!AH20+Migrants!AH230,0) -> 197209 | AI20: =ROUND(Survivors!AI20+Migrants!AI230,0) -> 197644 | AJ20: =ROUND(Survivors!AJ20+Migrants!AJ230,0) -> 198133 | AK20: =ROUND(Survivors!AK20+Migrants!AK230,0) -> 198721 | AL20: =ROUND(Survivors!AL20+Migrants!AL230,0) -> 199437 | AM20: =ROUND(Survivors!AM20+Migrants!AM230,0) -> 200300 | AN20: =ROUND(Survivors!AN20+Migrants!AN230,0) -> 201337 | AO20: =ROUND(Survivors!AO20+Migrants!AO230,0) -> 202536 | AP20: =ROUND(Survivors!AP20+Migrants!AP230,0) -> 203899 | AQ20: =ROUND(Survivors!AQ20+Migrants!AQ230,0) -> 205404 | AR20: =ROUND(Survivors!AR20+Migrants!AR230,0) -> 207021 | AS20: =ROUND(Survivors!AS20+Migrants!AS230,0) -> 208730 | AT20: =ROUND(Survivors!AT20+Migrants!AT230,0) -> 210514 | AU20: =ROUND(Survivors!AU20+Migrants!AU230,0) -> 212344 | AV20: =ROUND(Survivors!AV20+Migrants!AV230,0) -> 214187 | AW20: =ROUND(Survivors!AW20+Migrants!AW230,0) -> 216016 | AX20: =ROUND(Survivors!AX20+Migrants!AX230,0) -> 217818 | AY20: =ROUND(Survivors!AY20+Migrants!AY230,0) -> 219564 | AZ20: =ROUND(Survivors!AZ20+Migrants!AZ230,0) -> 221242 | BA20: =ROUND(Survivors!BA20+Migrants!BA230,0) -> 222843 | BB20: =ROUND(Survivors!BB20+Migrants!BB230,0) -> 224366 | BC20: =ROUND(Survivors!BC20+Migrants!BC230,0) -> 225813 | BD20: =ROUND(Survivors!BD20+Migrants!BD230,0) -> 227174 | BE20: =ROUND(Survivors!BE20+Migrants!BE230,0) -> 228453 | BF20: =ROUND(Survivors!BF20+Migrants!BF230,0) -> 229648 | BG20: =ROUND(Survivors!BG20+Migrants!BG230,0) -> 230758 | BH20: =ROUND(Survivors!BH20+Migrants!BH230,0) -> 231779 | BI20: =ROUND(Survivors!BI20+Migrants!BI230,0) -> 232724 | BJ20: =ROUND(Survivors!BJ20+Migrants!BJ230,0) -> 233598 | BK20: =ROUND(Survivors!BK20+Migrants!BK230,0) -> 234416 | BL20: =ROUND(Survivors!BL20+Migrants!BL230,0) -> 235190 | BM20: =ROUND(Survivors!BM20+Migrants!BM230,0) -> 235938 | BN20: =ROUND(Survivors!BN20+Migrants!BN230,0) -> 236678 | BO20: =ROUND(Survivors!BO20+Migrants!BO230,0) -> 237424 | BP20: =ROUND(Survivors!BP20+Migrants!BP230,0) -> 238192 | BQ20: =ROUND(Survivors!BQ20+Migrants!BQ230,0) -> 239004 | BR20: =ROUND(Survivors!BR20+Migrants!BR230,0) -> 239861 | BS20: =ROUND(Survivors!BS20+Migrants!BS230,0) -> 240777 | BT20: =ROUND(Survivors!BT20+Migrants!BT230,0) -> 241758 | BU20: =ROUND(Survivors!BU20+Migrants!BU230,0) -> 242813 | BV20: =ROUND(Survivors!BV20+Migrants!BV230,0) -> 243932 | BW20: =ROUND(Survivors!BW20+Migrants!BW230,0) -> 245118 | BX20: =ROUND(Survivors!BX20+Migrants!BX230,0) -> 246364 | BY20: =ROUND(Survivors!BY20+Migrants!BY230,0) -> 247664 | BZ20: =ROUND(Survivors!BZ20+Migrants!BZ230,0) -> 249008 | CA20: =ROUND(Survivors!CA20+Migrants!CA230,0) -> 250382 | CB20: =ROUND(Survivors!CB20+Migrants!CB230,0) -> 251776 | CC20: =ROUND(Survivors!CC20+Migrants!CC230,0) -> 253179 | CD20: =ROUND(Survivors!CD20+Migrants!CD230,0) -> 254577 | CE20: =ROUND(Survivors!CE20+Migrants!CE230,0) -> 255960 | CF20: =ROUND(Survivors!CF20+Migrants!CF230,0) -> 257318 | CG20: =ROUND(Survivors!CG20+Migrants!CG230,0) -> 258643 | CH20: =ROUND(Survivors!CH20+Migrants!CH230,0) -> 259926 | CI20: =ROUND(Survivors!CI20+Migrants!CI230,0) -> 261164 | CJ20: =ROUND(Survivors!CJ20+Migrants!CJ230,0) -> 262356 | CK20: =ROUND(Survivors!CK20+Migrants!CK230,0) -> 263495 | CL20: =ROUND(Survivors!CL20+Migrants!CL230,0) -> 264584 | CM20: =ROUND(Survivors!CM20+Migrants!CM230,0) -> 265625 | CN20: =ROUND(Survivors!CN20+Migrants!CN230,0) -> 266620
A21: 17 | B21: 151017 | C21: =ROUND(Survivors!C21+Migrants!C231,0) -> 150133 | D21: =ROUND(Survivors!D21+Migrants!D231,0) -> 150817 | E21: =ROUND(Survivors!E21+Migrants!E231,0) -> 150722 | F21: =ROUND(Survivors!F21+Migrants!F231,0) -> 151486 | G21: =ROUND(Survivors!G21+Migrants!G231,0) -> 152075 | H21: =ROUND(Survivors!H21+Migrants!H231,0) -> 153144 | I21: =ROUND(Survivors!I21+Migrants!I231,0) -> 152021 | J21: =ROUND(Survivors!J21+Migrants!J231,0) -> 153658 | K21: =ROUND(Survivors!K21+Migrants!K231,0) -> 157004 | L21: =ROUND(Survivors!L21+Migrants!L231,0) -> 160955 | M21: =ROUND(Survivors!M21+Migrants!M231,0) -> 166770 | N21: =ROUND(Survivors!N21+Migrants!N231,0) -> 168509 | O21: =ROUND(Survivors!O21+Migrants!O231,0) -> 171828 | P21: =ROUND(Survivors!P21+Migrants!P231,0) -> 174239 | Q21: =ROUND(Survivors!Q21+Migrants!Q231,0) -> 177101 | R21: =ROUND(Survivors!R21+Migrants!R231,0) -> 175893 | S21: =ROUND(Survivors!S21+Migrants!S231,0) -> 178716 | T21: =ROUND(Survivors!T21+Migrants!T231,0) -> 181289 | U21: =ROUND(Survivors!U21+Migrants!U231,0) -> 183572 | V21: =ROUND(Survivors!V21+Migrants!V231,0) -> 185812 | W21: =ROUND(Survivors!W21+Migrants!W231,0) -> 187967 | X21: =ROUND(Survivors!X21+Migrants!X231,0) -> 189985 | Y21: =ROUND(Survivors!Y21+Migrants!Y231,0) -> 191765 | Z21: =ROUND(Survivors!Z21+Migrants!Z231,0) -> 193291 | AA21: =ROUND(Survivors!AA21+Migrants!AA231,0) -> 194612 | AB21: =ROUND(Survivors!AB21+Migrants!AB231,0) -> 195726 | AC21: =ROUND(Survivors!AC21+Migrants!AC231,0) -> 196632 | AD21: =ROUND(Survivors!AD21+Migrants!AD231,0) -> 197359 | AE21: =ROUND(Survivors!AE21+Migrants!AE231,0) -> 197953 | AF21: =ROUND(Survivors!AF21+Migrants!AF231,0) -> 198443 | AG21: =ROUND(Survivors!AG21+Migrants!AG231,0) -> 198857 | AH21: =ROUND(Survivors!AH21+Migrants!AH231,0) -> 199210 | AI21: =ROUND(Survivors!AI21+Migrants!AI231,0) -> 199580 | AJ21: =ROUND(Survivors!AJ21+Migrants!AJ231,0) -> 200016 | AK21: =ROUND(Survivors!AK21+Migrants!AK231,0) -> 200506 | AL21: =ROUND(Survivors!AL21+Migrants!AL231,0) -> 201095 | AM21: =ROUND(Survivors!AM21+Migrants!AM231,0) -> 201811 | AN21: =ROUND(Survivors!AN21+Migrants!AN231,0) -> 202675 | AO21: =ROUND(Survivors!AO21+Migrants!AO231,0) -> 203713 | AP21: =ROUND(Survivors!AP21+Migrants!AP231,0) -> 204912 | AQ21: =ROUND(Survivors!AQ21+Migrants!AQ231,0) -> 206276 | AR21: =ROUND(Survivors!AR21+Migrants!AR231,0) -> 207781 | AS21: =ROUND(Survivors!AS21+Migrants!AS231,0) -> 209398 | AT21: =ROUND(Survivors!AT21+Migrants!AT231,0) -> 211107 | AU21: =ROUND(Survivors!AU21+Migrants!AU231,0) -> 212891 | AV21: =ROUND(Survivors!AV21+Migrants!AV231,0) -> 214722 | AW21: =ROUND(Survivors!AW21+Migrants!AW231,0) -> 216565 | AX21: =ROUND(Survivors!AX21+Migrants!AX231,0) -> 218394 | AY21: =ROUND(Survivors!AY21+Migrants!AY231,0) -> 220196 | AZ21: =ROUND(Survivors!AZ21+Migrants!AZ231,0) -> 221942 | BA21: =ROUND(Survivors!BA21+Migrants!BA231,0) -> 223620 | BB21: =ROUND(Survivors!BB21+Migrants!BB231,0) -> 225221 | BC21: =ROUND(Survivors!BC21+Migrants!BC231,0) -> 226744 | BD21: =ROUND(Survivors!BD21+Migrants!BD231,0) -> 228192 | BE21: =ROUND(Survivors!BE21+Migrants!BE231,0) -> 229553 | BF21: =ROUND(Survivors!BF21+Migrants!BF231,0) -> 230832 | BG21: =ROUND(Survivors!BG21+Migrants!BG231,0) -> 232027 | BH21: =ROUND(Survivors!BH21+Migrants!BH231,0) -> 233137 | BI21: =ROUND(Survivors!BI21+Migrants!BI231,0) -> 234158 | BJ21: =ROUND(Survivors!BJ21+Migrants!BJ231,0) -> 235104 | BK21: =ROUND(Survivors!BK21+Migrants!BK231,0) -> 235978 | BL21: =ROUND(Survivors!BL21+Migrants!BL231,0) -> 236796 | BM21: =ROUND(Survivors!BM21+Migrants!BM231,0) -> 237570 | BN21: =ROUND(Survivors!BN21+Migrants!BN231,0) -> 238318 | BO21: =ROUND(Survivors!BO21+Migrants!BO231,0) -> 239058 | BP21: =ROUND(Survivors!BP21+Migrants!BP231,0) -> 239804 | BQ21: =ROUND(Survivors!BQ21+Migrants!BQ231,0) -> 240573 | BR21: =ROUND(Survivors!BR21+Migrants!BR231,0) -> 241385 | BS21: =ROUND(Survivors!BS21+Migrants!BS231,0) -> 242242 | BT21: =ROUND(Survivors!BT21+Migrants!BT231,0) -> 243158 | BU21: =ROUND(Survivors!BU21+Migrants!BU231,0) -> 244139 | BV21: =ROUND(Survivors!BV21+Migrants!BV231,0) -> 245194 | BW21: =ROUND(Survivors!BW21+Migrants!BW231,0) -> 246313 | BX21: =ROUND(Survivors!BX21+Migrants!BX231,0) -> 247499 | BY21: =ROUND(Survivors!BY21+Migrants!BY231,0) -> 248745 | BZ21: =ROUND(Survivors!BZ21+Migrants!BZ231,0) -> 250045 | CA21: =ROUND(Survivors!CA21+Migrants!CA231,0) -> 251389 | CB21: =ROUND(Survivors!CB21+Migrants!CB231,0) -> 252763 | CC21: =ROUND(Survivors!CC21+Migrants!CC231,0) -> 254157 | CD21: =ROUND(Survivors!CD21+Migrants!CD231,0) -> 255560 | CE21: =ROUND(Survivors!CE21+Migrants!CE231,0) -> 256958 | CF21: =ROUND(Survivors!CF21+Migrants!CF231,0) -> 258341 | CG21: =ROUND(Survivors!CG21+Migrants!CG231,0) -> 259699 | CH21: =ROUND(Survivors!CH21+Migrants!CH231,0) -> 261024 | CI21: =ROUND(Survivors!CI21+Migrants!CI231,0) -> 262307 | CJ21: =ROUND(Survivors!CJ21+Migrants!CJ231,0) -> 263545 | CK21: =ROUND(Survivors!CK21+Migrants!CK231,0) -> 264737 | CL21: =ROUND(Survivors!CL21+Migrants!CL231,0) -> 265876 | CM21: =ROUND(Survivors!CM21+Migrants!CM231,0) -> 266965 | CN21: =ROUND(Survivors!CN21+Migrants!CN231,0) -> 268006
A22: 18 | B22: 151627 | C22: =ROUND(Survivors!C22+Migrants!C232,0) -> 155051 | D22: =ROUND(Survivors!D22+Migrants!D232,0) -> 153973 | E22: =ROUND(Survivors!E22+Migrants!E232,0) -> 154463 | F22: =ROUND(Survivors!F22+Migrants!F232,0) -> 154173 | G22: =ROUND(Survivors!G22+Migrants!G232,0) -> 154743 | H22: =ROUND(Survivors!H22+Migrants!H232,0) -> 155137 | I22: =ROUND(Survivors!I22+Migrants!I232,0) -> 156208 | J22: =ROUND(Survivors!J22+Migrants!J232,0) -> 155087 | K22: =ROUND(Survivors!K22+Migrants!K232,0) -> 156726 | L22: =ROUND(Survivors!L22+Migrants!L232,0) -> 160072 | M22: =ROUND(Survivors!M22+Migrants!M232,0) -> 164024 | N22: =ROUND(Survivors!N22+Migrants!N232,0) -> 169839 | O22: =ROUND(Survivors!O22+Migrants!O232,0) -> 171579 | P22: =ROUND(Survivors!P22+Migrants!P232,0) -> 174899 | Q22: =ROUND(Survivors!Q22+Migrants!Q232,0) -> 177311 | R22: =ROUND(Survivors!R22+Migrants!R232,0) -> 180174 | S22: =ROUND(Survivors!S22+Migrants!S232,0) -> 178968 | T22: =ROUND(Survivors!T22+Migrants!T232,0) -> 181792 | U22: =ROUND(Survivors!U22+Migrants!U232,0) -> 184366 | V22: =ROUND(Survivors!V22+Migrants!V232,0) -> 186650 | W22: =ROUND(Survivors!W22+Migrants!W232,0) -> 188892 | X22: =ROUND(Survivors!X22+Migrants!X232,0) -> 191048 | Y22: =ROUND(Survivors!Y22+Migrants!Y232,0) -> 193067 | Z22: =ROUND(Survivors!Z22+Migrants!Z232,0) -> 194848 | AA22: =ROUND(Survivors!AA22+Migrants!AA232,0) -> 196375 | AB22: =ROUND(Survivors!AB22+Migrants!AB232,0) -> 197697 | AC22: =ROUND(Survivors!AC22+Migrants!AC232,0) -> 198812 | AD22: =ROUND(Survivors!AD22+Migrants!AD232,0) -> 199719 | AE22: =ROUND(Survivors!AE22+Migrants!AE232,0) -> 200447 | AF22: =ROUND(Survivors!AF22+Migrants!AF232,0) -> 201042 | AG22: =ROUND(Survivors!AG22+Migrants!AG232,0) -> 201533 | AH22: =ROUND(Survivors!AH22+Migrants!AH232,0) -> 201949 | AI22: =ROUND(Survivors!AI22+Migrants!AI232,0) -> 202303 | AJ22: =ROUND(Survivors!AJ22+Migrants!AJ232,0) -> 202674 | AK22: =ROUND(Survivors!AK22+Migrants!AK232,0) -> 203111 | AL22: =ROUND(Survivors!AL22+Migrants!AL232,0) -> 203601 | AM22: =ROUND(Survivors!AM22+Migrants!AM232,0) -> 204191 | AN22: =ROUND(Survivors!AN22+Migrants!AN232,0) -> 204908 | AO22: =ROUND(Survivors!AO22+Migrants!AO232,0) -> 205773 | AP22: =ROUND(Survivors!AP22+Migrants!AP232,0) -> 206812 | AQ22: =ROUND(Survivors!AQ22+Migrants!AQ232,0) -> 208011 | AR22: =ROUND(Survivors!AR22+Migrants!AR232,0) -> 209376 | AS22: =ROUND(Survivors!AS22+Migrants!AS232,0) -> 210881 | AT22: =ROUND(Survivors!AT22+Migrants!AT232,0) -> 212498 | AU22: =ROUND(Survivors!AU22+Migrants!AU232,0) -> 214207 | AV22: =ROUND(Survivors!AV22+Migrants!AV232,0) -> 215991 | AW22: =ROUND(Survivors!AW22+Migrants!AW232,0) -> 217822 | AX22: =ROUND(Survivors!AX22+Migrants!AX232,0) -> 219665 | AY22: =ROUND(Survivors!AY22+Migrants!AY232,0) -> 221495 | AZ22: =ROUND(Survivors!AZ22+Migrants!AZ232,0) -> 223297 | BA22: =ROUND(Survivors!BA22+Migrants!BA232,0) -> 225043 | BB22: =ROUND(Survivors!BB22+Migrants!BB232,0) -> 226721 | BC22: =ROUND(Survivors!BC22+Migrants!BC232,0) -> 228322 | BD22: =ROUND(Survivors!BD22+Migrants!BD232,0) -> 229845 | BE22: =ROUND(Survivors!BE22+Migrants!BE232,0) -> 231293 | BF22: =ROUND(Survivors!BF22+Migrants!BF232,0) -> 232655 | BG22: =ROUND(Survivors!BG22+Migrants!BG232,0) -> 233934 | BH22: =ROUND(Survivors!BH22+Migrants!BH232,0) -> 235129 | BI22: =ROUND(Survivors!BI22+Migrants!BI232,0) -> 236239 | BJ22: =ROUND(Survivors!BJ22+Migrants!BJ232,0) -> 237260 | BK22: =ROUND(Survivors!BK22+Migrants!BK232,0) -> 238206 | BL22: =ROUND(Survivors!BL22+Migrants!BL232,0) -> 239081 | BM22: =ROUND(Survivors!BM22+Migrants!BM232,0) -> 239899 | BN22: =ROUND(Survivors!BN22+Migrants!BN232,0) -> 240673 | BO22: =ROUND(Survivors!BO22+Migrants!BO232,0) -> 241421 | BP22: =ROUND(Survivors!BP22+Migrants!BP232,0) -> 242161 | BQ22: =ROUND(Survivors!BQ22+Migrants!BQ232,0) -> 242907 | BR22: =ROUND(Survivors!BR22+Migrants!BR232,0) -> 243677 | BS22: =ROUND(Survivors!BS22+Migrants!BS232,0) -> 244489 | BT22: =ROUND(Survivors!BT22+Migrants!BT232,0) -> 245346 | BU22: =ROUND(Survivors!BU22+Migrants!BU232,0) -> 246262 | BV22: =ROUND(Survivors!BV22+Migrants!BV232,0) -> 247243 | BW22: =ROUND(Survivors!BW22+Migrants!BW232,0) -> 248298 | BX22: =ROUND(Survivors!BX22+Migrants!BX232,0) -> 249417 | BY22: =ROUND(Survivors!BY22+Migrants!BY232,0) -> 250603 | BZ22: =ROUND(Survivors!BZ22+Migrants!BZ232,0) -> 251849 | CA22: =ROUND(Survivors!CA22+Migrants!CA232,0) -> 253149 | CB22: =ROUND(Survivors!CB22+Migrants!CB232,0) -> 254493 | CC22: =ROUND(Survivors!CC22+Migrants!CC232,0) -> 255867 | CD22: =ROUND(Survivors!CD22+Migrants!CD232,0) -> 257261 | CE22: =ROUND(Survivors!CE22+Migrants!CE232,0) -> 258664 | CF22: =ROUND(Survivors!CF22+Migrants!CF232,0) -> 260062 | CG22: =ROUND(Survivors!CG22+Migrants!CG232,0) -> 261445 | CH22: =ROUND(Survivors!CH22+Migrants!CH232,0) -> 262803 | CI22: =ROUND(Survivors!CI22+Migrants!CI232,0) -> 264128 | CJ22: =ROUND(Survivors!CJ22+Migrants!CJ232,0) -> 265411 | CK22: =ROUND(Survivors!CK22+Migrants!CK232,0) -> 266649 | CL22: =ROUND(Survivors!CL22+Migrants!CL232,0) -> 267841 | CM22: =ROUND(Survivors!CM22+Migrants!CM232,0) -> 268980 | CN22: =ROUND(Survivors!CN22+Migrants!CN232,0) -> 270069
A23: 19 | B23: 154133 | C23: =ROUND(Survivors!C23+Migrants!C233,0) -> 156483 | D23: =ROUND(Survivors!D23+Migrants!D233,0) -> 159671 | E23: =ROUND(Survivors!E23+Migrants!E233,0) -> 158360 | F23: =ROUND(Survivors!F23+Migrants!F233,0) -> 158616 | G23: =ROUND(Survivors!G23+Migrants!G233,0) -> 158093 | H23: =ROUND(Survivors!H23+Migrants!H233,0) -> 158428 | I23: =ROUND(Survivors!I23+Migrants!I233,0) -> 158825 | J23: =ROUND(Survivors!J23+Migrants!J233,0) -> 159898 | K23: =ROUND(Survivors!K23+Migrants!K233,0) -> 158779 | L23: =ROUND(Survivors!L23+Migrants!L233,0) -> 160420 | M23: =ROUND(Survivors!M23+Migrants!M233,0) -> 163767 | N23: =ROUND(Survivors!N23+Migrants!N233,0) -> 167720 | O23: =ROUND(Survivors!O23+Migrants!O233,0) -> 173535 | P23: =ROUND(Survivors!P23+Migrants!P233,0) -> 175276 | Q23: =ROUND(Survivors!Q23+Migrants!Q233,0) -> 178597 | R23: =ROUND(Survivors!R23+Migrants!R233,0) -> 181011 | S23: =ROUND(Survivors!S23+Migrants!S233,0) -> 183875 | T23: =ROUND(Survivors!T23+Migrants!T233,0) -> 182671 | U23: =ROUND(Survivors!U23+Migrants!U233,0) -> 185496 | V23: =ROUND(Survivors!V23+Migrants!V233,0) -> 188071 | W23: =ROUND(Survivors!W23+Migrants!W233,0) -> 190357 | X23: =ROUND(Survivors!X23+Migrants!X233,0) -> 192600 | Y23: =ROUND(Survivors!Y23+Migrants!Y233,0) -> 194757 | Z23: =ROUND(Survivors!Z23+Migrants!Z233,0) -> 196777 | AA23: =ROUND(Survivors!AA23+Migrants!AA233,0) -> 198560 | AB23: =ROUND(Survivors!AB23+Migrants!AB233,0) -> 200088 | AC23: =ROUND(Survivors!AC23+Migrants!AC233,0) -> 201411 | AD23: =ROUND(Survivors!AD23+Migrants!AD233,0) -> 202527 | AE23: =ROUND(Survivors!AE23+Migrants!AE233,0) -> 203436 | AF23: =ROUND(Survivors!AF23+Migrants!AF233,0) -> 204165 | AG23: =ROUND(Survivors!AG23+Migrants!AG233,0) -> 204761 | AH23: =ROUND(Survivors!AH23+Migrants!AH233,0) -> 205253 | AI23: =ROUND(Survivors!AI23+Migrants!AI233,0) -> 205671 | AJ23: =ROUND(Survivors!AJ23+Migrants!AJ233,0) -> 206026 | AK23: =ROUND(Survivors!AK23+Migrants!AK233,0) -> 206398 | AL23: =ROUND(Survivors!AL23+Migrants!AL233,0) -> 206836 | AM23: =ROUND(Survivors!AM23+Migrants!AM233,0) -> 207327 | AN23: =ROUND(Survivors!AN23+Migrants!AN233,0) -> 207918 | AO23: =ROUND(Survivors!AO23+Migrants!AO233,0) -> 208636 | AP23: =ROUND(Survivors!AP23+Migrants!AP233,0) -> 209502 | AQ23: =ROUND(Survivors!AQ23+Migrants!AQ233,0) -> 210542 | AR23: =ROUND(Survivors!AR23+Migrants!AR233,0) -> 211741 | AS23: =ROUND(Survivors!AS23+Migrants!AS233,0) -> 213106 | AT23: =ROUND(Survivors!AT23+Migrants!AT233,0) -> 214611 | AU23: =ROUND(Survivors!AU23+Migrants!AU233,0) -> 216229 | AV23: =ROUND(Survivors!AV23+Migrants!AV233,0) -> 217938 | AW23: =ROUND(Survivors!AW23+Migrants!AW233,0) -> 219722 | AX23: =ROUND(Survivors!AX23+Migrants!AX233,0) -> 221553 | AY23: =ROUND(Survivors!AY23+Migrants!AY233,0) -> 223396 | AZ23: =ROUND(Survivors!AZ23+Migrants!AZ233,0) -> 225226 | BA23: =ROUND(Survivors!BA23+Migrants!BA233,0) -> 227029 | BB23: =ROUND(Survivors!BB23+Migrants!BB233,0) -> 228775 | BC23: =ROUND(Survivors!BC23+Migrants!BC233,0) -> 230453 | BD23: =ROUND(Survivors!BD23+Migrants!BD233,0) -> 232054 | BE23: =ROUND(Survivors!BE23+Migrants!BE233,0) -> 233577 | BF23: =ROUND(Survivors!BF23+Migrants!BF233,0) -> 235025 | BG23: =ROUND(Survivors!BG23+Migrants!BG233,0) -> 236388 | BH23: =ROUND(Survivors!BH23+Migrants!BH233,0) -> 237667 | BI23: =ROUND(Survivors!BI23+Migrants!BI233,0) -> 238862 | BJ23: =ROUND(Survivors!BJ23+Migrants!BJ233,0) -> 239972 | BK23: =ROUND(Survivors!BK23+Migrants!BK233,0) -> 240993 | BL23: =ROUND(Survivors!BL23+Migrants!BL233,0) -> 241940 | BM23: =ROUND(Survivors!BM23+Migrants!BM233,0) -> 242815 | BN23: =ROUND(Survivors!BN23+Migrants!BN233,0) -> 243633 | BO23: =ROUND(Survivors!BO23+Migrants!BO233,0) -> 244407 | BP23: =ROUND(Survivors!BP23+Migrants!BP233,0) -> 245155 | BQ23: =ROUND(Survivors!BQ23+Migrants!BQ233,0) -> 245895 | BR23: =ROUND(Survivors!BR23+Migrants!BR233,0) -> 246642 | BS23: =ROUND(Survivors!BS23+Migrants!BS233,0) -> 247412 | BT23: =ROUND(Survivors!BT23+Migrants!BT233,0) -> 248224 | BU23: =ROUND(Survivors!BU23+Migrants!BU233,0) -> 249081 | BV23: =ROUND(Survivors!BV23+Migrants!BV233,0) -> 249997 | BW23: =ROUND(Survivors!BW23+Migrants!BW233,0) -> 250978 | BX23: =ROUND(Survivors!BX23+Migrants!BX233,0) -> 252033 | BY23: =ROUND(Survivors!BY23+Migrants!BY233,0) -> 253152 | BZ23: =ROUND(Survivors!BZ23+Migrants!BZ233,0) -> 254338 | CA23: =ROUND(Survivors!CA23+Migrants!CA233,0) -> 255585 | CB23: =ROUND(Survivors!CB23+Migrants!CB233,0) -> 256885 | CC23: =ROUND(Survivors!CC23+Migrants!CC233,0) -> 258229 | CD23: =ROUND(Survivors!CD23+Migrants!CD233,0) -> 259603 | CE23: =ROUND(Survivors!CE23+Migrants!CE233,0) -> 260997 | CF23: =ROUND(Survivors!CF23+Migrants!CF233,0) -> 262400 | CG23: =ROUND(Survivors!CG23+Migrants!CG233,0) -> 263798 | CH23: =ROUND(Survivors!CH23+Migrants!CH233,0) -> 265181 | CI23: =ROUND(Survivors!CI23+Migrants!CI233,0) -> 266539 | CJ23: =ROUND(Survivors!CJ23+Migrants!CJ233,0) -> 267864 | CK23: =ROUND(Survivors!CK23+Migrants!CK233,0) -> 269147 | CL23: =ROUND(Survivors!CL23+Migrants!CL233,0) -> 270385 | CM23: =ROUND(Survivors!CM23+Migrants!CM233,0) -> 271577 | CN23: =ROUND(Survivors!CN23+Migrants!CN233,0) -> 272716
A24: 20 | B24: 156900 | C24: =ROUND(Survivors!C24+Migrants!C234,0) -> 159110 | D24: =ROUND(Survivors!D24+Migrants!D234,0) -> 161219 | E24: =ROUND(Survivors!E24+Migrants!E234,0) -> 164166 | F24: =ROUND(Survivors!F24+Migrants!F234,0) -> 162616 | G24: =ROUND(Survivors!G24+Migrants!G234,0) -> 162632 | H24: =ROUND(Survivors!H24+Migrants!H234,0) -> 161869 | I24: =ROUND(Survivors!I24+Migrants!I234,0) -> 162207 | J24: =ROUND(Survivors!J24+Migrants!J234,0) -> 162606 | K24: =ROUND(Survivors!K24+Migrants!K234,0) -> 163681 | L24: =ROUND(Survivors!L24+Migrants!L234,0) -> 162565 | M24: =ROUND(Survivors!M24+Migrants!M234,0) -> 164208 | N24: =ROUND(Survivors!N24+Migrants!N234,0) -> 167556 | O24: =ROUND(Survivors!O24+Migrants!O234,0) -> 171509 | P24: =ROUND(Survivors!P24+Migrants!P234,0) -> 177324 | Q24: =ROUND(Survivors!Q24+Migrants!Q234,0) -> 179067 | R24: =ROUND(Survivors!R24+Migrants!R234,0) -> 182389 | S24: =ROUND(Survivors!S24+Migrants!S234,0) -> 184804 | T24: =ROUND(Survivors!T24+Migrants!T234,0) -> 187670 | U24: =ROUND(Survivors!U24+Migrants!U234,0) -> 186468 | V24: =ROUND(Survivors!V24+Migrants!V234,0) -> 189294 | W24: =ROUND(Survivors!W24+Migrants!W234,0) -> 191870 | X24: =ROUND(Survivors!X24+Migrants!X234,0) -> 194158 | Y24: =ROUND(Survivors!Y24+Migrants!Y234,0) -> 196402 | Z24: =ROUND(Survivors!Z24+Migrants!Z234,0) -> 198560 | AA24: =ROUND(Survivors!AA24+Migrants!AA234,0) -> 200581 | AB24: =ROUND(Survivors!AB24+Migrants!AB234,0) -> 202366 | AC24: =ROUND(Survivors!AC24+Migrants!AC234,0) -> 203895 | AD24: =ROUND(Survivors!AD24+Migrants!AD234,0) -> 205219 | AE24: =ROUND(Survivors!AE24+Migrants!AE234,0) -> 206336 | AF24: =ROUND(Survivors!AF24+Migrants!AF234,0) -> 207247 | AG24: =ROUND(Survivors!AG24+Migrants!AG234,0) -> 207977 | AH24: =ROUND(Survivors!AH24+Migrants!AH234,0) -> 208574 | AI24: =ROUND(Survivors!AI24+Migrants!AI234,0) -> 209068 | AJ24: =ROUND(Survivors!AJ24+Migrants!AJ234,0) -> 209487 | AK24: =ROUND(Survivors!AK24+Migrants!AK234,0) -> 209843 | AL24: =ROUND(Survivors!AL24+Migrants!AL234,0) -> 210216 | AM24: =ROUND(Survivors!AM24+Migrants!AM234,0) -> 210656 | AN24: =ROUND(Survivors!AN24+Migrants!AN234,0) -> 211148 | AO24: =ROUND(Survivors!AO24+Migrants!AO234,0) -> 211740 | AP24: =ROUND(Survivors!AP24+Migrants!AP234,0) -> 212459 | AQ24: =ROUND(Survivors!AQ24+Migrants!AQ234,0) -> 213326 | AR24: =ROUND(Survivors!AR24+Migrants!AR234,0) -> 214366 | AS24: =ROUND(Survivors!AS24+Migrants!AS234,0) -> 215565 | AT24: =ROUND(Survivors!AT24+Migrants!AT234,0) -> 216930 | AU24: =ROUND(Survivors!AU24+Migrants!AU234,0) -> 218436 | AV24: =ROUND(Survivors!AV24+Migrants!AV234,0) -> 220054 | AW24: =ROUND(Survivors!AW24+Migrants!AW234,0) -> 221763 | AX24: =ROUND(Survivors!AX24+Migrants!AX234,0) -> 223547 | AY24: =ROUND(Survivors!AY24+Migrants!AY234,0) -> 225378 | AZ24: =ROUND(Survivors!AZ24+Migrants!AZ234,0) -> 227221 | BA24: =ROUND(Survivors!BA24+Migrants!BA234,0) -> 229052 | BB24: =ROUND(Survivors!BB24+Migrants!BB234,0) -> 230855 | BC24: =ROUND(Survivors!BC24+Migrants!BC234,0) -> 232601 | BD24: =ROUND(Survivors!BD24+Migrants!BD234,0) -> 234279 | BE24: =ROUND(Survivors!BE24+Migrants!BE234,0) -> 235880 | BF24: =ROUND(Survivors!BF24+Migrants!BF234,0) -> 237404 | BG24: =ROUND(Survivors!BG24+Migrants!BG234,0) -> 238852 | BH24: =ROUND(Survivors!BH24+Migrants!BH234,0) -> 240215 | BI24: =ROUND(Survivors!BI24+Migrants!BI234,0) -> 241494 | BJ24: =ROUND(Survivors!BJ24+Migrants!BJ234,0) -> 242689 | BK24: =ROUND(Survivors!BK24+Migrants!BK234,0) -> 243800 | BL24: =ROUND(Survivors!BL24+Migrants!BL234,0) -> 244821 | BM24: =ROUND(Survivors!BM24+Migrants!BM234,0) -> 245768 | BN24: =ROUND(Survivors!BN24+Migrants!BN234,0) -> 246643 | BO24: =ROUND(Survivors!BO24+Migrants!BO234,0) -> 247461 | BP24: =ROUND(Survivors!BP24+Migrants!BP234,0) -> 248236 | BQ24: =ROUND(Survivors!BQ24+Migrants!BQ234,0) -> 248984 | BR24: =ROUND(Survivors!BR24+Migrants!BR234,0) -> 249724 | BS24: =ROUND(Survivors!BS24+Migrants!BS234,0) -> 250471 | BT24: =ROUND(Survivors!BT24+Migrants!BT234,0) -> 251241 | BU24: =ROUND(Survivors!BU24+Migrants!BU234,0) -> 252053 | BV24: =ROUND(Survivors!BV24+Migrants!BV234,0) -> 252911 | BW24: =ROUND(Survivors!BW24+Migrants!BW234,0) -> 253827 | BX24: =ROUND(Survivors!BX24+Migrants!BX234,0) -> 254808 | BY24: =ROUND(Survivors!BY24+Migrants!BY234,0) -> 255863 | BZ24: =ROUND(Survivors!BZ24+Migrants!BZ234,0) -> 256982 | CA24: =ROUND(Survivors!CA24+Migrants!CA234,0) -> 258168 | CB24: =ROUND(Survivors!CB24+Migrants!CB234,0) -> 259415 | CC24: =ROUND(Survivors!CC24+Migrants!CC234,0) -> 260715 | CD24: =ROUND(Survivors!CD24+Migrants!CD234,0) -> 262059 | CE24: =ROUND(Survivors!CE24+Migrants!CE234,0) -> 263433 | CF24: =ROUND(Survivors!CF24+Migrants!CF234,0) -> 264827 | CG24: =ROUND(Survivors!CG24+Migrants!CG234,0) -> 266230 | CH24: =ROUND(Survivors!CH24+Migrants!CH234,0) -> 267628 | CI24: =ROUND(Survivors!CI24+Migrants!CI234,0) -> 269011 | CJ24: =ROUND(Survivors!CJ24+Migrants!CJ234,0) -> 270369 | CK24: =ROUND(Survivors!CK24+Migrants!CK234,0) -> 271694 | CL24: =ROUND(Survivors!CL24+Migrants!CL234,0) -> 272977 | CM24: =ROUND(Survivors!CM24+Migrants!CM234,0) -> 274215 | CN24: =ROUND(Survivors!CN24+Migrants!CN234,0) -> 275407
A25: 21 | B25: 162513 | C25: =ROUND(Survivors!C25+Migrants!C235,0) -> 161455 | D25: =ROUND(Survivors!D25+Migrants!D235,0) -> 163444 | E25: =ROUND(Survivors!E25+Migrants!E235,0) -> 165332 | F25: =ROUND(Survivors!F25+Migrants!F235,0) -> 168058 | G25: =ROUND(Survivors!G25+Migrants!G235,0) -> 166289 | H25: =ROUND(Survivors!H25+Migrants!H235,0) -> 166085 | I25: =ROUND(Survivors!I25+Migrants!I235,0) -> 165325 | J25: =ROUND(Survivors!J25+Migrants!J235,0) -> 165666 | K25: =ROUND(Survivors!K25+Migrants!K235,0) -> 166067 | L25: =ROUND(Survivors!L25+Migrants!L235,0) -> 167144 | M25: =ROUND(Survivors!M25+Migrants!M235,0) -> 166031 | N25: =ROUND(Survivors!N25+Migrants!N235,0) -> 167676 | O25: =ROUND(Survivors!O25+Migrants!O235,0) -> 171025 | P25: =ROUND(Survivors!P25+Migrants!P235,0) -> 174978 | Q25: =ROUND(Survivors!Q25+Migrants!Q235,0) -> 180793 | R25: =ROUND(Survivors!R25+Migrants!R235,0) -> 182538 | S25: =ROUND(Survivors!S25+Migrants!S235,0) -> 185861 | T25: =ROUND(Survivors!T25+Migrants!T235,0) -> 188277 | U25: =ROUND(Survivors!U25+Migrants!U235,0) -> 191144 | V25: =ROUND(Survivors!V25+Migrants!V235,0) -> 189945 | W25: =ROUND(Survivors!W25+Migrants!W235,0) -> 192772 | X25: =ROUND(Survivors!X25+Migrants!X235,0) -> 195349 | Y25: =ROUND(Survivors!Y25+Migrants!Y235,0) -> 197638 | Z25: =ROUND(Survivors!Z25+Migrants!Z235,0) -> 199883 | AA25: =ROUND(Survivors!AA25+Migrants!AA235,0) -> 202043 | AB25: =ROUND(Survivors!AB25+Migrants!AB235,0) -> 204065 | AC25: =ROUND(Survivors!AC25+Migrants!AC235,0) -> 205851 | AD25: =ROUND(Survivors!AD25+Migrants!AD235,0) -> 207381 | AE25: =ROUND(Survivors!AE25+Migrants!AE235,0) -> 208707 | AF25: =ROUND(Survivors!AF25+Migrants!AF235,0) -> 209825 | AG25: =ROUND(Survivors!AG25+Migrants!AG235,0) -> 210737 | AH25: =ROUND(Survivors!AH25+Migrants!AH235,0) -> 211469 | AI25: =ROUND(Survivors!AI25+Migrants!AI235,0) -> 212067 | AJ25: =ROUND(Survivors!AJ25+Migrants!AJ235,0) -> 212562 | AK25: =ROUND(Survivors!AK25+Migrants!AK235,0) -> 212983 | AL25: =ROUND(Survivors!AL25+Migrants!AL235,0) -> 213340 | AM25: =ROUND(Survivors!AM25+Migrants!AM235,0) -> 213714 | AN25: =ROUND(Survivors!AN25+Migrants!AN235,0) -> 214155 | AO25: =ROUND(Survivors!AO25+Migrants!AO235,0) -> 214648 | AP25: =ROUND(Survivors!AP25+Migrants!AP235,0) -> 215241 | AQ25: =ROUND(Survivors!AQ25+Migrants!AQ235,0) -> 215961 | AR25: =ROUND(Survivors!AR25+Migrants!AR235,0) -> 216829 | AS25: =ROUND(Survivors!AS25+Migrants!AS235,0) -> 217869 | AT25: =ROUND(Survivors!AT25+Migrants!AT235,0) -> 219068 | AU25: =ROUND(Survivors!AU25+Migrants!AU235,0) -> 220434 | AV25: =ROUND(Survivors!AV25+Migrants!AV235,0) -> 221940 | AW25: =ROUND(Survivors!AW25+Migrants!AW235,0) -> 223558 | AX25: =ROUND(Survivors!AX25+Migrants!AX235,0) -> 225267 | AY25: =ROUND(Survivors!AY25+Migrants!AY235,0) -> 227051 | AZ25: =ROUND(Survivors!AZ25+Migrants!AZ235,0) -> 228883 | BA25: =ROUND(Survivors!BA25+Migrants!BA235,0) -> 230726 | BB25: =ROUND(Survivors!BB25+Migrants!BB235,0) -> 232557 | BC25: =ROUND(Survivors!BC25+Migrants!BC235,0) -> 234360 | BD25: =ROUND(Survivors!BD25+Migrants!BD235,0) -> 236106 | BE25: =ROUND(Survivors!BE25+Migrants!BE235,0) -> 237785 | BF25: =ROUND(Survivors!BF25+Migrants!BF235,0) -> 239386 | BG25: =ROUND(Survivors!BG25+Migrants!BG235,0) -> 240910 | BH25: =ROUND(Survivors!BH25+Migrants!BH235,0) -> 242358 | BI25: =ROUND(Survivors!BI25+Migrants!BI235,0) -> 243721 | BJ25: =ROUND(Survivors!BJ25+Migrants!BJ235,0) -> 245001 | BK25: =ROUND(Survivors!BK25+Migrants!BK235,0) -> 246196 | BL25: =ROUND(Survivors!BL25+Migrants!BL235,0) -> 247307 | BM25: =ROUND(Survivors!BM25+Migrants!BM235,0) -> 248328 | BN25: =ROUND(Survivors!BN25+Migrants!BN235,0) -> 249275 | BO25: =ROUND(Survivors!BO25+Migrants!BO235,0) -> 250151 | BP25: =ROUND(Survivors!BP25+Migrants!BP235,0) -> 250969 | BQ25: =ROUND(Survivors!BQ25+Migrants!BQ235,0) -> 251744 | BR25: =ROUND(Survivors!BR25+Migrants!BR235,0) -> 252492 | BS25: =ROUND(Survivors!BS25+Migrants!BS235,0) -> 253232 | BT25: =ROUND(Survivors!BT25+Migrants!BT235,0) -> 253980 | BU25: =ROUND(Survivors!BU25+Migrants!BU235,0) -> 254750 | BV25: =ROUND(Survivors!BV25+Migrants!BV235,0) -> 255562 | BW25: =ROUND(Survivors!BW25+Migrants!BW235,0) -> 256420 | BX25: =ROUND(Survivors!BX25+Migrants!BX235,0) -> 257336 | BY25: =ROUND(Survivors!BY25+Migrants!BY235,0) -> 258317 | BZ25: =ROUND(Survivors!BZ25+Migrants!BZ235,0) -> 259372 | CA25: =ROUND(Survivors!CA25+Migrants!CA235,0) -> 260492 | CB25: =ROUND(Survivors!CB25+Migrants!CB235,0) -> 261678 | CC25: =ROUND(Survivors!CC25+Migrants!CC235,0) -> 262925 | CD25: =ROUND(Survivors!CD25+Migrants!CD235,0) -> 264225 | CE25: =ROUND(Survivors!CE25+Migrants!CE235,0) -> 265569 | CF25: =ROUND(Survivors!CF25+Migrants!CF235,0) -> 266943 | CG25: =ROUND(Survivors!CG25+Migrants!CG235,0) -> 268337 | CH25: =ROUND(Survivors!CH25+Migrants!CH235,0) -> 269740 | CI25: =ROUND(Survivors!CI25+Migrants!CI235,0) -> 271138 | CJ25: =ROUND(Survivors!CJ25+Migrants!CJ235,0) -> 272521 | CK25: =ROUND(Survivors!CK25+Migrants!CK235,0) -> 273879 | CL25: =ROUND(Survivors!CL25+Migrants!CL235,0) -> 275204 | CM25: =ROUND(Survivors!CM25+Migrants!CM235,0) -> 276487 | CN25: =ROUND(Survivors!CN25+Migrants!CN235,0) -> 277725
A26: 22 | B26: 169415 | C26: =ROUND(Survivors!C26+Migrants!C236,0) -> 166910 | D26: =ROUND(Survivors!D26+Migrants!D236,0) -> 165641 | E26: =ROUND(Survivors!E26+Migrants!E236,0) -> 167416 | F26: =ROUND(Survivors!F26+Migrants!F236,0) -> 169091 | G26: =ROUND(Survivors!G26+Migrants!G236,0) -> 171603 | H26: =ROUND(Survivors!H26+Migrants!H236,0) -> 169622 | I26: =ROUND(Survivors!I26+Migrants!I236,0) -> 169421 | J26: =ROUND(Survivors!J26+Migrants!J236,0) -> 168664 | K26: =ROUND(Survivors!K26+Migrants!K236,0) -> 169007 | L26: =ROUND(Survivors!L26+Migrants!L236,0) -> 169411 | M26: =ROUND(Survivors!M26+Migrants!M236,0) -> 170490 | N26: =ROUND(Survivors!N26+Migrants!N236,0) -> 169379 | O26: =ROUND(Survivors!O26+Migrants!O236,0) -> 171026 | P26: =ROUND(Survivors!P26+Migrants!P236,0) -> 174376 | Q26: =ROUND(Survivors!Q26+Migrants!Q236,0) -> 178329 | R26: =ROUND(Survivors!R26+Migrants!R236,0) -> 184144 | S26: =ROUND(Survivors!S26+Migrants!S236,0) -> 185891 | T26: =ROUND(Survivors!T26+Migrants!T236,0) -> 189215 | U26: =ROUND(Survivors!U26+Migrants!U236,0) -> 191632 | V26: =ROUND(Survivors!V26+Migrants!V236,0) -> 194500 | W26: =ROUND(Survivors!W26+Migrants!W236,0) -> 193303 | X26: =ROUND(Survivors!X26+Migrants!X236,0) -> 196131 | Y26: =ROUND(Survivors!Y26+Migrants!Y236,0) -> 198709 | Z26: =ROUND(Survivors!Z26+Migrants!Z236,0) -> 200999 | AA26: =ROUND(Survivors!AA26+Migrants!AA236,0) -> 203246 | AB26: =ROUND(Survivors!AB26+Migrants!AB236,0) -> 205407 | AC26: =ROUND(Survivors!AC26+Migrants!AC236,0) -> 207430 | AD26: =ROUND(Survivors!AD26+Migrants!AD236,0) -> 209217 | AE26: =ROUND(Survivors!AE26+Migrants!AE236,0) -> 210748 | AF26: =ROUND(Survivors!AF26+Migrants!AF236,0) -> 212076 | AG26: =ROUND(Survivors!AG26+Migrants!AG236,0) -> 213195 | AH26: =ROUND(Survivors!AH26+Migrants!AH236,0) -> 214108 | AI26: =ROUND(Survivors!AI26+Migrants!AI236,0) -> 214841 | AJ26: =ROUND(Survivors!AJ26+Migrants!AJ236,0) -> 215441 | AK26: =ROUND(Survivors!AK26+Migrants!AK236,0) -> 215937 | AL26: =ROUND(Survivors!AL26+Migrants!AL236,0) -> 216359 | AM26: =ROUND(Survivors!AM26+Migrants!AM236,0) -> 216718 | AN26: =ROUND(Survivors!AN26+Migrants!AN236,0) -> 217093 | AO26: =ROUND(Survivors!AO26+Migrants!AO236,0) -> 217535 | AP26: =ROUND(Survivors!AP26+Migrants!AP236,0) -> 218029 | AQ26: =ROUND(Survivors!AQ26+Migrants!AQ236,0) -> 218623 | AR26: =ROUND(Survivors!AR26+Migrants!AR236,0) -> 219343 | AS26: =ROUND(Survivors!AS26+Migrants!AS236,0) -> 220212 | AT26: =ROUND(Survivors!AT26+Migrants!AT236,0) -> 221252 | AU26: =ROUND(Survivors!AU26+Migrants!AU236,0) -> 222451 | AV26: =ROUND(Survivors!AV26+Migrants!AV236,0) -> 223818 | AW26: =ROUND(Survivors!AW26+Migrants!AW236,0) -> 225324 | AX26: =ROUND(Survivors!AX26+Migrants!AX236,0) -> 226942 | AY26: =ROUND(Survivors!AY26+Migrants!AY236,0) -> 228651 | AZ26: =ROUND(Survivors!AZ26+Migrants!AZ236,0) -> 230436 | BA26: =ROUND(Survivors!BA26+Migrants!BA236,0) -> 232268 | BB26: =ROUND(Survivors!BB26+Migrants!BB236,0) -> 234111 | BC26: =ROUND(Survivors!BC26+Migrants!BC236,0) -> 235942 | BD26: =ROUND(Survivors!BD26+Migrants!BD236,0) -> 237746 | BE26: =ROUND(Survivors!BE26+Migrants!BE236,0) -> 239492 | BF26: =ROUND(Survivors!BF26+Migrants!BF236,0) -> 241171 | BG26: =ROUND(Survivors!BG26+Migrants!BG236,0) -> 242772 | BH26: =ROUND(Survivors!BH26+Migrants!BH236,0) -> 244296 | BI26: =ROUND(Survivors!BI26+Migrants!BI236,0) -> 245745 | BJ26: =ROUND(Survivors!BJ26+Migrants!BJ236,0) -> 247108 | BK26: =ROUND(Survivors!BK26+Migrants!BK236,0) -> 248388 | BL26: =ROUND(Survivors!BL26+Migrants!BL236,0) -> 249583 | BM26: =ROUND(Survivors!BM26+Migrants!BM236,0) -> 250695 | BN26: =ROUND(Survivors!BN26+Migrants!BN236,0) -> 251716 | BO26: =ROUND(Survivors!BO26+Migrants!BO236,0) -> 252663 | BP26: =ROUND(Survivors!BP26+Migrants!BP236,0) -> 253539 | BQ26: =ROUND(Survivors!BQ26+Migrants!BQ236,0) -> 254357 | BR26: =ROUND(Survivors!BR26+Migrants!BR236,0) -> 255133 | BS26: =ROUND(Survivors!BS26+Migrants!BS236,0) -> 255881 | BT26: =ROUND(Survivors!BT26+Migrants!BT236,0) -> 256621 | BU26: =ROUND(Survivors!BU26+Migrants!BU236,0) -> 257369 | BV26: =ROUND(Survivors!BV26+Migrants!BV236,0) -> 258139 | BW26: =ROUND(Survivors!BW26+Migrants!BW236,0) -> 258952 | BX26: =ROUND(Survivors!BX26+Migrants!BX236,0) -> 259810 | BY26: =ROUND(Survivors!BY26+Migrants!BY236,0) -> 260726 | BZ26: =ROUND(Survivors!BZ26+Migrants!BZ236,0) -> 261707 | CA26: =ROUND(Survivors!CA26+Migrants!CA236,0) -> 262762 | CB26: =ROUND(Survivors!CB26+Migrants!CB236,0) -> 263882 | CC26: =ROUND(Survivors!CC26+Migrants!CC236,0) -> 265068 | CD26: =ROUND(Survivors!CD26+Migrants!CD236,0) -> 266315 | CE26: =ROUND(Survivors!CE26+Migrants!CE236,0) -> 267615 | CF26: =ROUND(Survivors!CF26+Migrants!CF236,0) -> 268959 | CG26: =ROUND(Survivors!CG26+Migrants!CG236,0) -> 270333 | CH26: =ROUND(Survivors!CH26+Migrants!CH236,0) -> 271727 | CI26: =ROUND(Survivors!CI26+Migrants!CI236,0) -> 273130 | CJ26: =ROUND(Survivors!CJ26+Migrants!CJ236,0) -> 274528 | CK26: =ROUND(Survivors!CK26+Migrants!CK236,0) -> 275911 | CL26: =ROUND(Survivors!CL26+Migrants!CL236,0) -> 277269 | CM26: =ROUND(Survivors!CM26+Migrants!CM236,0) -> 278594 | CN26: =ROUND(Survivors!CN26+Migrants!CN236,0) -> 279877
A27: 23 | B27: 169495 | C27: =ROUND(Survivors!C27+Migrants!C237,0) -> 173747 | D27: =ROUND(Survivors!D27+Migrants!D237,0) -> 171034 | E27: =ROUND(Survivors!E27+Migrants!E237,0) -> 169556 | F27: =ROUND(Survivors!F27+Migrants!F237,0) -> 171121 | G27: =ROUND(Survivors!G27+Migrants!G237,0) -> 172586 | H27: =ROUND(Survivors!H27+Migrants!H237,0) -> 174887 | I27: =ROUND(Survivors!I27+Migrants!I237,0) -> 172909 | J27: =ROUND(Survivors!J27+Migrants!J237,0) -> 172711 | K27: =ROUND(Survivors!K27+Migrants!K237,0) -> 171957 | L27: =ROUND(Survivors!L27+Migrants!L237,0) -> 172302 | M27: =ROUND(Survivors!M27+Migrants!M237,0) -> 172708 | N27: =ROUND(Survivors!N27+Migrants!N237,0) -> 173789 | O27: =ROUND(Survivors!O27+Migrants!O237,0) -> 172680 | P27: =ROUND(Survivors!P27+Migrants!P237,0) -> 174329 | Q27: =ROUND(Survivors!Q27+Migrants!Q237,0) -> 177680 | R27: =ROUND(Survivors!R27+Migrants!R237,0) -> 181633 | S27: =ROUND(Survivors!S27+Migrants!S237,0) -> 187448 | T27: =ROUND(Survivors!T27+Migrants!T237,0) -> 189197 | U27: =ROUND(Survivors!U27+Migrants!U237,0) -> 192521 | V27: =ROUND(Survivors!V27+Migrants!V237,0) -> 194940 | W27: =ROUND(Survivors!W27+Migrants!W237,0) -> 197809 | X27: =ROUND(Survivors!X27+Migrants!X237,0) -> 196614 | Y27: =ROUND(Survivors!Y27+Migrants!Y237,0) -> 199443 | Z27: =ROUND(Survivors!Z27+Migrants!Z237,0) -> 202022 | AA27: =ROUND(Survivors!AA27+Migrants!AA237,0) -> 204313 | AB27: =ROUND(Survivors!AB27+Migrants!AB237,0) -> 206561 | AC27: =ROUND(Survivors!AC27+Migrants!AC237,0) -> 208723 | AD27: =ROUND(Survivors!AD27+Migrants!AD237,0) -> 210747 | AE27: =ROUND(Survivors!AE27+Migrants!AE237,0) -> 212536 | AF27: =ROUND(Survivors!AF27+Migrants!AF237,0) -> 214068 | AG27: =ROUND(Survivors!AG27+Migrants!AG237,0) -> 215397 | AH27: =ROUND(Survivors!AH27+Migrants!AH237,0) -> 216517 | AI27: =ROUND(Survivors!AI27+Migrants!AI237,0) -> 217432 | AJ27: =ROUND(Survivors!AJ27+Migrants!AJ237,0) -> 218166 | AK27: =ROUND(Survivors!AK27+Migrants!AK237,0) -> 218767 | AL27: =ROUND(Survivors!AL27+Migrants!AL237,0) -> 219264 | AM27: =ROUND(Survivors!AM27+Migrants!AM237,0) -> 219688 | AN27: =ROUND(Survivors!AN27+Migrants!AN237,0) -> 220048 | AO27: =ROUND(Survivors!AO27+Migrants!AO237,0) -> 220424 | AP27: =ROUND(Survivors!AP27+Migrants!AP237,0) -> 220867 | AQ27: =ROUND(Survivors!AQ27+Migrants!AQ237,0) -> 221362 | AR27: =ROUND(Survivors!AR27+Migrants!AR237,0) -> 221957 | AS27: =ROUND(Survivors!AS27+Migrants!AS237,0) -> 222677 | AT27: =ROUND(Survivors!AT27+Migrants!AT237,0) -> 223547 | AU27: =ROUND(Survivors!AU27+Migrants!AU237,0) -> 224587 | AV27: =ROUND(Survivors!AV27+Migrants!AV237,0) -> 225786 | AW27: =ROUND(Survivors!AW27+Migrants!AW237,0) -> 227154 | AX27: =ROUND(Survivors!AX27+Migrants!AX237,0) -> 228660 | AY27: =ROUND(Survivors!AY27+Migrants!AY237,0) -> 230278 | AZ27: =ROUND(Survivors!AZ27+Migrants!AZ237,0) -> 231987 | BA27: =ROUND(Survivors!BA27+Migrants!BA237,0) -> 233773 | BB27: =ROUND(Survivors!BB27+Migrants!BB237,0) -> 235605 | BC27: =ROUND(Survivors!BC27+Migrants!BC237,0) -> 237448 | BD27: =ROUND(Survivors!BD27+Migrants!BD237,0) -> 239279 | BE27: =ROUND(Survivors!BE27+Migrants!BE237,0) -> 241083 | BF27: =ROUND(Survivors!BF27+Migrants!BF237,0) -> 242830 | BG27: =ROUND(Survivors!BG27+Migrants!BG237,0) -> 244509 | BH27: =ROUND(Survivors!BH27+Migrants!BH237,0) -> 246110 | BI27: =ROUND(Survivors!BI27+Migrants!BI237,0) -> 247634 | BJ27: =ROUND(Survivors!BJ27+Migrants!BJ237,0) -> 249084 | BK27: =ROUND(Survivors!BK27+Migrants!BK237,0) -> 250447 | BL27: =ROUND(Survivors!BL27+Migrants!BL237,0) -> 251727 | BM27: =ROUND(Survivors!BM27+Migrants!BM237,0) -> 252922 | BN27: =ROUND(Survivors!BN27+Migrants!BN237,0) -> 254035 | BO27: =ROUND(Survivors!BO27+Migrants!BO237,0) -> 255056 | BP27: =ROUND(Survivors!BP27+Migrants!BP237,0) -> 256003 | BQ27: =ROUND(Survivors!BQ27+Migrants!BQ237,0) -> 256879 | BR27: =ROUND(Survivors!BR27+Migrants!BR237,0) -> 257697 | BS27: =ROUND(Survivors!BS27+Migrants!BS237,0) -> 258474 | BT27: =ROUND(Survivors!BT27+Migrants!BT237,0) -> 259222 | BU27: =ROUND(Survivors!BU27+Migrants!BU237,0) -> 259962 | BV27: =ROUND(Survivors!BV27+Migrants!BV237,0) -> 260710 | BW27: =ROUND(Survivors!BW27+Migrants!BW237,0) -> 261480 | BX27: =ROUND(Survivors!BX27+Migrants!BX237,0) -> 262294 | BY27: =ROUND(Survivors!BY27+Migrants!BY237,0) -> 263152 | BZ27: =ROUND(Survivors!BZ27+Migrants!BZ237,0) -> 264068 | CA27: =ROUND(Survivors!CA27+Migrants!CA237,0) -> 265049 | CB27: =ROUND(Survivors!CB27+Migrants!CB237,0) -> 266104 | CC27: =ROUND(Survivors!CC27+Migrants!CC237,0) -> 267224 | CD27: =ROUND(Survivors!CD27+Migrants!CD237,0) -> 268410 | CE27: =ROUND(Survivors!CE27+Migrants!CE237,0) -> 269657 | CF27: =ROUND(Survivors!CF27+Migrants!CF237,0) -> 270957 | CG27: =ROUND(Survivors!CG27+Migrants!CG237,0) -> 272301 | CH27: =ROUND(Survivors!CH27+Migrants!CH237,0) -> 273675 | CI27: =ROUND(Survivors!CI27+Migrants!CI237,0) -> 275069 | CJ27: =ROUND(Survivors!CJ27+Migrants!CJ237,0) -> 276472 | CK27: =ROUND(Survivors!CK27+Migrants!CK237,0) -> 277870 | CL27: =ROUND(Survivors!CL27+Migrants!CL237,0) -> 279253 | CM27: =ROUND(Survivors!CM27+Migrants!CM237,0) -> 280611 | CN27: =ROUND(Survivors!CN27+Migrants!CN237,0) -> 281936
A28: 24 | B28: 169852 | C28: =ROUND(Survivors!C28+Migrants!C238,0) -> 172808 | D28: =ROUND(Survivors!D28+Migrants!D238,0) -> 176897 | E28: =ROUND(Survivors!E28+Migrants!E238,0) -> 174024 | F28: =ROUND(Survivors!F28+Migrants!F238,0) -> 172386 | G28: =ROUND(Survivors!G28+Migrants!G238,0) -> 173789 | H28: =ROUND(Survivors!H28+Migrants!H238,0) -> 175093 | I28: =ROUND(Survivors!I28+Migrants!I238,0) -> 177395 | J28: =ROUND(Survivors!J28+Migrants!J238,0) -> 175420 | K28: =ROUND(Survivors!K28+Migrants!K238,0) -> 175225 | L28: =ROUND(Survivors!L28+Migrants!L238,0) -> 174474 | M28: =ROUND(Survivors!M28+Migrants!M238,0) -> 174821 | N28: =ROUND(Survivors!N28+Migrants!N238,0) -> 175229 | O28: =ROUND(Survivors!O28+Migrants!O238,0) -> 176312 | P28: =ROUND(Survivors!P28+Migrants!P238,0) -> 175205 | Q28: =ROUND(Survivors!Q28+Migrants!Q238,0) -> 176856 | R28: =ROUND(Survivors!R28+Migrants!R238,0) -> 180207 | S28: =ROUND(Survivors!S28+Migrants!S238,0) -> 184161 | T28: =ROUND(Survivors!T28+Migrants!T238,0) -> 189975 | U28: =ROUND(Survivors!U28+Migrants!U238,0) -> 191726 | V28: =ROUND(Survivors!V28+Migrants!V238,0) -> 195051 | W28: =ROUND(Survivors!W28+Migrants!W238,0) -> 197471 | X28: =ROUND(Survivors!X28+Migrants!X238,0) -> 200341 | Y28: =ROUND(Survivors!Y28+Migrants!Y238,0) -> 199148 | Z28: =ROUND(Survivors!Z28+Migrants!Z238,0) -> 201978 | AA28: =ROUND(Survivors!AA28+Migrants!AA238,0) -> 204558 | AB28: =ROUND(Survivors!AB28+Migrants!AB238,0) -> 206850 | AC28: =ROUND(Survivors!AC28+Migrants!AC238,0) -> 209099 | AD28: =ROUND(Survivors!AD28+Migrants!AD238,0) -> 211262 | AE28: =ROUND(Survivors!AE28+Migrants!AE238,0) -> 213287 | AF28: =ROUND(Survivors!AF28+Migrants!AF238,0) -> 215077 | AG28: =ROUND(Survivors!AG28+Migrants!AG238,0) -> 216610 | AH28: =ROUND(Survivors!AH28+Migrants!AH238,0) -> 217941 | AI28: =ROUND(Survivors!AI28+Migrants!AI238,0) -> 219062 | AJ28: =ROUND(Survivors!AJ28+Migrants!AJ238,0) -> 219978 | AK28: =ROUND(Survivors!AK28+Migrants!AK238,0) -> 220713 | AL28: =ROUND(Survivors!AL28+Migrants!AL238,0) -> 221316 | AM28: =ROUND(Survivors!AM28+Migrants!AM238,0) -> 221814 | AN28: =ROUND(Survivors!AN28+Migrants!AN238,0) -> 222239 | AO28: =ROUND(Survivors!AO28+Migrants!AO238,0) -> 222601 | AP28: =ROUND(Survivors!AP28+Migrants!AP238,0) -> 222978 | AQ28: =ROUND(Survivors!AQ28+Migrants!AQ238,0) -> 223422 | AR28: =ROUND(Survivors!AR28+Migrants!AR238,0) -> 223918 | AS28: =ROUND(Survivors!AS28+Migrants!AS238,0) -> 224513 | AT28: =ROUND(Survivors!AT28+Migrants!AT238,0) -> 225234 | AU28: =ROUND(Survivors!AU28+Migrants!AU238,0) -> 226104 | AV28: =ROUND(Survivors!AV28+Migrants!AV238,0) -> 227144 | AW28: =ROUND(Survivors!AW28+Migrants!AW238,0) -> 228344 | AX28: =ROUND(Survivors!AX28+Migrants!AX238,0) -> 229712 | AY28: =ROUND(Survivors!AY28+Migrants!AY238,0) -> 231218 | AZ28: =ROUND(Survivors!AZ28+Migrants!AZ238,0) -> 232837 | BA28: =ROUND(Survivors!BA28+Migrants!BA238,0) -> 234546 | BB28: =ROUND(Survivors!BB28+Migrants!BB238,0) -> 236332 | BC28: =ROUND(Survivors!BC28+Migrants!BC238,0) -> 238165 | BD28: =ROUND(Survivors!BD28+Migrants!BD238,0) -> 240008 | BE28: =ROUND(Survivors!BE28+Migrants!BE238,0) -> 241839 | BF28: =ROUND(Survivors!BF28+Migrants!BF238,0) -> 243643 | BG28: =ROUND(Survivors!BG28+Migrants!BG238,0) -> 245391 | BH28: =ROUND(Survivors!BH28+Migrants!BH238,0) -> 247070 | BI28: =ROUND(Survivors!BI28+Migrants!BI238,0) -> 248671 | BJ28: =ROUND(Survivors!BJ28+Migrants!BJ238,0) -> 250195 | BK28: =ROUND(Survivors!BK28+Migrants!BK238,0) -> 251646 | BL28: =ROUND(Survivors!BL28+Migrants!BL238,0) -> 253009 | BM28: =ROUND(Survivors!BM28+Migrants!BM238,0) -> 254289 | BN28: =ROUND(Survivors!BN28+Migrants!BN238,0) -> 255484 | BO28: =ROUND(Survivors!BO28+Migrants!BO238,0) -> 256598 | BP28: =ROUND(Survivors!BP28+Migrants!BP238,0) -> 257619 | BQ28: =ROUND(Survivors!BQ28+Migrants!BQ238,0) -> 258566 | BR28: =ROUND(Survivors!BR28+Migrants!BR238,0) -> 259442 | BS28: =ROUND(Survivors!BS28+Migrants!BS238,0) -> 260261 | BT28: =ROUND(Survivors!BT28+Migrants!BT238,0) -> 261038 | BU28: =ROUND(Survivors!BU28+Migrants!BU238,0) -> 261786 | BV28: =ROUND(Survivors!BV28+Migrants!BV238,0) -> 262526 | BW28: =ROUND(Survivors!BW28+Migrants!BW238,0) -> 263275 | BX28: =ROUND(Survivors!BX28+Migrants!BX238,0) -> 264045 | BY28: =ROUND(Survivors!BY28+Migrants!BY238,0) -> 264859 | BZ28: =ROUND(Survivors!BZ28+Migrants!BZ238,0) -> 265717 | CA28: =ROUND(Survivors!CA28+Migrants!CA238,0) -> 266633 | CB28: =ROUND(Survivors!CB28+Migrants!CB238,0) -> 267614 | CC28: =ROUND(Survivors!CC28+Migrants!CC238,0) -> 268669 | CD28: =ROUND(Survivors!CD28+Migrants!CD238,0) -> 269789 | CE28: =ROUND(Survivors!CE28+Migrants!CE238,0) -> 270975 | CF28: =ROUND(Survivors!CF28+Migrants!CF238,0) -> 272223 | CG28: =ROUND(Survivors!CG28+Migrants!CG238,0) -> 273523 | CH28: =ROUND(Survivors!CH28+Migrants!CH238,0) -> 274867 | CI28: =ROUND(Survivors!CI28+Migrants!CI238,0) -> 276241 | CJ28: =ROUND(Survivors!CJ28+Migrants!CJ238,0) -> 277635 | CK28: =ROUND(Survivors!CK28+Migrants!CK238,0) -> 279038 | CL28: =ROUND(Survivors!CL28+Migrants!CL238,0) -> 280436 | CM28: =ROUND(Survivors!CM28+Migrants!CM238,0) -> 281819 | CN28: =ROUND(Survivors!CN28+Migrants!CN238,0) -> 283176
A29: 25 | B29: 170197 | C29: =ROUND(Survivors!C29+Migrants!C239,0) -> 171811 | D29: =ROUND(Survivors!D29+Migrants!D239,0) -> 174669 | E29: =ROUND(Survivors!E29+Migrants!E239,0) -> 178659 | F29: =ROUND(Survivors!F29+Migrants!F239,0) -> 175692 | G29: =ROUND(Survivors!G29+Migrants!G239,0) -> 173958 | H29: =ROUND(Survivors!H29+Migrants!H239,0) -> 175264 | I29: =ROUND(Survivors!I29+Migrants!I239,0) -> 176570 | J29: =ROUND(Survivors!J29+Migrants!J239,0) -> 178873 | K29: =ROUND(Survivors!K29+Migrants!K239,0) -> 176901 | L29: =ROUND(Survivors!L29+Migrants!L239,0) -> 176709 | M29: =ROUND(Survivors!M29+Migrants!M239,0) -> 175960 | N29: =ROUND(Survivors!N29+Migrants!N239,0) -> 176309 | O29: =ROUND(Survivors!O29+Migrants!O239,0) -> 176719 | P29: =ROUND(Survivors!P29+Migrants!P239,0) -> 177804 | Q29: =ROUND(Survivors!Q29+Migrants!Q239,0) -> 176699 | R29: =ROUND(Survivors!R29+Migrants!R239,0) -> 178351 | S29: =ROUND(Survivors!S29+Migrants!S239,0) -> 181703 | T29: =ROUND(Survivors!T29+Migrants!T239,0) -> 185657 | U29: =ROUND(Survivors!U29+Migrants!U239,0) -> 191471 | V29: =ROUND(Survivors!V29+Migrants!V239,0) -> 193223 | W29: =ROUND(Survivors!W29+Migrants!W239,0) -> 196549 | X29: =ROUND(Survivors!X29+Migrants!X239,0) -> 198970 | Y29: =ROUND(Survivors!Y29+Migrants!Y239,0) -> 201841 | Z29: =ROUND(Survivors!Z29+Migrants!Z239,0) -> 200650 | AA29: =ROUND(Survivors!AA29+Migrants!AA239,0) -> 203481 | AB29: =ROUND(Survivors!AB29+Migrants!AB239,0) -> 206062 | AC29: =ROUND(Survivors!AC29+Migrants!AC239,0) -> 208355 | AD29: =ROUND(Survivors!AD29+Migrants!AD239,0) -> 210605 | AE29: =ROUND(Survivors!AE29+Migrants!AE239,0) -> 212769 | AF29: =ROUND(Survivors!AF29+Migrants!AF239,0) -> 214795 | AG29: =ROUND(Survivors!AG29+Migrants!AG239,0) -> 216586 | AH29: =ROUND(Survivors!AH29+Migrants!AH239,0) -> 218120 | AI29: =ROUND(Survivors!AI29+Migrants!AI239,0) -> 219452 | AJ29: =ROUND(Survivors!AJ29+Migrants!AJ239,0) -> 220574 | AK29: =ROUND(Survivors!AK29+Migrants!AK239,0) -> 221492 | AL29: =ROUND(Survivors!AL29+Migrants!AL239,0) -> 222228 | AM29: =ROUND(Survivors!AM29+Migrants!AM239,0) -> 222832 | AN29: =ROUND(Survivors!AN29+Migrants!AN239,0) -> 223331 | AO29: =ROUND(Survivors!AO29+Migrants!AO239,0) -> 223758 | AP29: =ROUND(Survivors!AP29+Migrants!AP239,0) -> 224121 | AQ29: =ROUND(Survivors!AQ29+Migrants!AQ239,0) -> 224499 | AR29: =ROUND(Survivors!AR29+Migrants!AR239,0) -> 224944 | AS29: =ROUND(Survivors!AS29+Migrants!AS239,0) -> 225440 | AT29: =ROUND(Survivors!AT29+Migrants!AT239,0) -> 226036 | AU29: =ROUND(Survivors!AU29+Migrants!AU239,0) -> 226758 | AV29: =ROUND(Survivors!AV29+Migrants!AV239,0) -> 227628 | AW29: =ROUND(Survivors!AW29+Migrants!AW239,0) -> 228668 | AX29: =ROUND(Survivors!AX29+Migrants!AX239,0) -> 229869 | AY29: =ROUND(Survivors!AY29+Migrants!AY239,0) -> 231237 | AZ29: =ROUND(Survivors!AZ29+Migrants!AZ239,0) -> 232744 | BA29: =ROUND(Survivors!BA29+Migrants!BA239,0) -> 234363 | BB29: =ROUND(Survivors!BB29+Migrants!BB239,0) -> 236072 | BC29: =ROUND(Survivors!BC29+Migrants!BC239,0) -> 237859 | BD29: =ROUND(Survivors!BD29+Migrants!BD239,0) -> 239692 | BE29: =ROUND(Survivors!BE29+Migrants!BE239,0) -> 241535 | BF29: =ROUND(Survivors!BF29+Migrants!BF239,0) -> 243366 | BG29: =ROUND(Survivors!BG29+Migrants!BG239,0) -> 245171 | BH29: =ROUND(Survivors!BH29+Migrants!BH239,0) -> 246919 | BI29: =ROUND(Survivors!BI29+Migrants!BI239,0) -> 248598 | BJ29: =ROUND(Survivors!BJ29+Migrants!BJ239,0) -> 250199 | BK29: =ROUND(Survivors!BK29+Migrants!BK239,0) -> 251724 | BL29: =ROUND(Survivors!BL29+Migrants!BL239,0) -> 253175 | BM29: =ROUND(Survivors!BM29+Migrants!BM239,0) -> 254538 | BN29: =ROUND(Survivors!BN29+Migrants!BN239,0) -> 255819 | BO29: =ROUND(Survivors!BO29+Migrants!BO239,0) -> 257014 | BP29: =ROUND(Survivors!BP29+Migrants!BP239,0) -> 258128 | BQ29: =ROUND(Survivors!BQ29+Migrants!BQ239,0) -> 259149 | BR29: =ROUND(Survivors!BR29+Migrants!BR239,0) -> 260097 | BS29: =ROUND(Survivors!BS29+Migrants!BS239,0) -> 260973 | BT29: =ROUND(Survivors!BT29+Migrants!BT239,0) -> 261792 | BU29: =ROUND(Survivors!BU29+Migrants!BU239,0) -> 262569 | BV29: =ROUND(Survivors!BV29+Migrants!BV239,0) -> 263318 | BW29: =ROUND(Survivors!BW29+Migrants!BW239,0) -> 264058 | BX29: =ROUND(Survivors!BX29+Migrants!BX239,0) -> 264807 | BY29: =ROUND(Survivors!BY29+Migrants!BY239,0) -> 265577 | BZ29: =ROUND(Survivors!BZ29+Migrants!BZ239,0) -> 266392 | CA29: =ROUND(Survivors!CA29+Migrants!CA239,0) -> 267250 | CB29: =ROUND(Survivors!CB29+Migrants!CB239,0) -> 268166 | CC29: =ROUND(Survivors!CC29+Migrants!CC239,0) -> 269147 | CD29: =ROUND(Survivors!CD29+Migrants!CD239,0) -> 270202 | CE29: =ROUND(Survivors!CE29+Migrants!CE239,0) -> 271322 | CF29: =ROUND(Survivors!CF29+Migrants!CF239,0) -> 272508 | CG29: =ROUND(Survivors!CG29+Migrants!CG239,0) -> 273756 | CH29: =ROUND(Survivors!CH29+Migrants!CH239,0) -> 275056 | CI29: =ROUND(Survivors!CI29+Migrants!CI239,0) -> 276400 | CJ29: =ROUND(Survivors!CJ29+Migrants!CJ239,0) -> 277774 | CK29: =ROUND(Survivors!CK29+Migrants!CK239,0) -> 279168 | CL29: =ROUND(Survivors!CL29+Migrants!CL239,0) -> 280571 | CM29: =ROUND(Survivors!CM29+Migrants!CM239,0) -> 281969 | CN29: =ROUND(Survivors!CN29+Migrants!CN239,0) -> 283352
A30: 26 | B30: 171861 | C30: =ROUND(Survivors!C30+Migrants!C240,0) -> 171737 | D30: =ROUND(Survivors!D30+Migrants!D240,0) -> 173273 | E30: =ROUND(Survivors!E30+Migrants!E240,0) -> 176053 | F30: =ROUND(Survivors!F30+Migrants!F240,0) -> 179964 | G30: =ROUND(Survivors!G30+Migrants!G240,0) -> 176922 | H30: =ROUND(Survivors!H30+Migrants!H240,0) -> 175112 | I30: =ROUND(Survivors!I30+Migrants!I240,0) -> 176420 | J30: =ROUND(Survivors!J30+Migrants!J240,0) -> 177728 | K30: =ROUND(Survivors!K30+Migrants!K240,0) -> 180032 | L30: =ROUND(Survivors!L30+Migrants!L240,0) -> 178063 | M30: =ROUND(Survivors!M30+Migrants!M240,0) -> 177873 | N30: =ROUND(Survivors!N30+Migrants!N240,0) -> 177127 | O30: =ROUND(Survivors!O30+Migrants!O240,0) -> 177478 | P30: =ROUND(Survivors!P30+Migrants!P240,0) -> 177889 | Q30: =ROUND(Survivors!Q30+Migrants!Q240,0) -> 178976 | R30: =ROUND(Survivors!R30+Migrants!R240,0) -> 177873 | S30: =ROUND(Survivors!S30+Migrants!S240,0) -> 179526 | T30: =ROUND(Survivors!T30+Migrants!T240,0) -> 182879 | U30: =ROUND(Survivors!U30+Migrants!U240,0) -> 186833 | V30: =ROUND(Survivors!V30+Migrants!V240,0) -> 192646 | W30: =ROUND(Survivors!W30+Migrants!W240,0) -> 194399 | X30: =ROUND(Survivors!X30+Migrants!X240,0) -> 197726 | Y30: =ROUND(Survivors!Y30+Migrants!Y240,0) -> 200148 | Z30: =ROUND(Survivors!Z30+Migrants!Z240,0) -> 203020 | AA30: =ROUND(Survivors!AA30+Migrants!AA240,0) -> 201831 | AB30: =ROUND(Survivors!AB30+Migrants!AB240,0) -> 204662 | AC30: =ROUND(Survivors!AC30+Migrants!AC240,0) -> 207244 | AD30: =ROUND(Survivors!AD30+Migrants!AD240,0) -> 209538 | AE30: =ROUND(Survivors!AE30+Migrants!AE240,0) -> 211789 | AF30: =ROUND(Survivors!AF30+Migrants!AF240,0) -> 213954 | AG30: =ROUND(Survivors!AG30+Migrants!AG240,0) -> 215981 | AH30: =ROUND(Survivors!AH30+Migrants!AH240,0) -> 217773 | AI30: =ROUND(Survivors!AI30+Migrants!AI240,0) -> 219308 | AJ30: =ROUND(Survivors!AJ30+Migrants!AJ240,0) -> 220641 | AK30: =ROUND(Survivors!AK30+Migrants!AK240,0) -> 221764 | AL30: =ROUND(Survivors!AL30+Migrants!AL240,0) -> 222684 | AM30: =ROUND(Survivors!AM30+Migrants!AM240,0) -> 223421 | AN30: =ROUND(Survivors!AN30+Migrants!AN240,0) -> 224026 | AO30: =ROUND(Survivors!AO30+Migrants!AO240,0) -> 224527 | AP30: =ROUND(Survivors!AP30+Migrants!AP240,0) -> 224955 | AQ30: =ROUND(Survivors!AQ30+Migrants!AQ240,0) -> 225319 | AR30: =ROUND(Survivors!AR30+Migrants!AR240,0) -> 225698 | AS30: =ROUND(Survivors!AS30+Migrants!AS240,0) -> 226144 | AT30: =ROUND(Survivors!AT30+Migrants!AT240,0) -> 226640 | AU30: =ROUND(Survivors!AU30+Migrants!AU240,0) -> 227237 | AV30: =ROUND(Survivors!AV30+Migrants!AV240,0) -> 227959 | AW30: =ROUND(Survivors!AW30+Migrants!AW240,0) -> 228830 | AX30: =ROUND(Survivors!AX30+Migrants!AX240,0) -> 229871 | AY30: =ROUND(Survivors!AY30+Migrants!AY240,0) -> 231072 | AZ30: =ROUND(Survivors!AZ30+Migrants!AZ240,0) -> 232440 | BA30: =ROUND(Survivors!BA30+Migrants!BA240,0) -> 233948 | BB30: =ROUND(Survivors!BB30+Migrants!BB240,0) -> 235567 | BC30: =ROUND(Survivors!BC30+Migrants!BC240,0) -> 237277 | BD30: =ROUND(Survivors!BD30+Migrants!BD240,0) -> 239064 | BE30: =ROUND(Survivors!BE30+Migrants!BE240,0) -> 240897 | BF30: =ROUND(Survivors!BF30+Migrants!BF240,0) -> 242741 | BG30: =ROUND(Survivors!BG30+Migrants!BG240,0) -> 244572 | BH30: =ROUND(Survivors!BH30+Migrants!BH240,0) -> 246377 | BI30: =ROUND(Survivors!BI30+Migrants!BI240,0) -> 248125 | BJ30: =ROUND(Survivors!BJ30+Migrants!BJ240,0) -> 249805 | BK30: =ROUND(Survivors!BK30+Migrants!BK240,0) -> 251406 | BL30: =ROUND(Survivors!BL30+Migrants!BL240,0) -> 252931 | BM30: =ROUND(Survivors!BM30+Migrants!BM240,0) -> 254383 | BN30: =ROUND(Survivors!BN30+Migrants!BN240,0) -> 255746 | BO30: =ROUND(Survivors!BO30+Migrants!BO240,0) -> 257027 | BP30: =ROUND(Survivors!BP30+Migrants!BP240,0) -> 258223 | BQ30: =ROUND(Survivors!BQ30+Migrants!BQ240,0) -> 259337 | BR30: =ROUND(Survivors!BR30+Migrants!BR240,0) -> 260358 | BS30: =ROUND(Survivors!BS30+Migrants!BS240,0) -> 261306 | BT30: =ROUND(Survivors!BT30+Migrants!BT240,0) -> 262183 | BU30: =ROUND(Survivors!BU30+Migrants!BU240,0) -> 263002 | BV30: =ROUND(Survivors!BV30+Migrants!BV240,0) -> 263779 | BW30: =ROUND(Survivors!BW30+Migrants!BW240,0) -> 264529 | BX30: =ROUND(Survivors!BX30+Migrants!BX240,0) -> 265269 | BY30: =ROUND(Survivors!BY30+Migrants!BY240,0) -> 266018 | BZ30: =ROUND(Survivors!BZ30+Migrants!BZ240,0) -> 266788 | CA30: =ROUND(Survivors!CA30+Migrants!CA240,0) -> 267603 | CB30: =ROUND(Survivors!CB30+Migrants!CB240,0) -> 268462 | CC30: =ROUND(Survivors!CC30+Migrants!CC240,0) -> 269378 | CD30: =ROUND(Survivors!CD30+Migrants!CD240,0) -> 270359 | CE30: =ROUND(Survivors!CE30+Migrants!CE240,0) -> 271414 | CF30: =ROUND(Survivors!CF30+Migrants!CF240,0) -> 272534 | CG30: =ROUND(Survivors!CG30+Migrants!CG240,0) -> 273720 | CH30: =ROUND(Survivors!CH30+Migrants!CH240,0) -> 274968 | CI30: =ROUND(Survivors!CI30+Migrants!CI240,0) -> 276268 | CJ30: =ROUND(Survivors!CJ30+Migrants!CJ240,0) -> 277612 | CK30: =ROUND(Survivors!CK30+Migrants!CK240,0) -> 278986 | CL30: =ROUND(Survivors!CL30+Migrants!CL240,0) -> 280380 | CM30: =ROUND(Survivors!CM30+Migrants!CM240,0) -> 281783 | CN30: =ROUND(Survivors!CN30+Migrants!CN240,0) -> 283181
A31: 27 | B31: 172182 | C31: =ROUND(Survivors!C31+Migrants!C241,0) -> 173689 | D31: =ROUND(Survivors!D31+Migrants!D241,0) -> 173475 | E31: =ROUND(Survivors!E31+Migrants!E241,0) -> 174919 | F31: =ROUND(Survivors!F31+Migrants!F241,0) -> 177606 | G31: =ROUND(Survivors!G31+Migrants!G241,0) -> 181424 | H31: =ROUND(Survivors!H31+Migrants!H241,0) -> 178293 | I31: =ROUND(Survivors!I31+Migrants!I241,0) -> 176486 | J31: =ROUND(Survivors!J31+Migrants!J241,0) -> 177795 | K31: =ROUND(Survivors!K31+Migrants!K241,0) -> 179105 | L31: =ROUND(Survivors!L31+Migrants!L241,0) -> 181410 | M31: =ROUND(Survivors!M31+Migrants!M241,0) -> 179444 | N31: =ROUND(Survivors!N31+Migrants!N241,0) -> 179256 | O31: =ROUND(Survivors!O31+Migrants!O241,0) -> 178513 | P31: =ROUND(Survivors!P31+Migrants!P241,0) -> 178865 | Q31: =ROUND(Survivors!Q31+Migrants!Q241,0) -> 179278 | R31: =ROUND(Survivors!R31+Migrants!R241,0) -> 180366 | S31: =ROUND(Survivors!S31+Migrants!S241,0) -> 179266 | T31: =ROUND(Survivors!T31+Migrants!T241,0) -> 180920 | U31: =ROUND(Survivors!U31+Migrants!U241,0) -> 184273 | V31: =ROUND(Survivors!V31+Migrants!V241,0) -> 188227 | W31: =ROUND(Survivors!W31+Migrants!W241,0) -> 194039 | X31: =ROUND(Survivors!X31+Migrants!X241,0) -> 195793 | Y31: =ROUND(Survivors!Y31+Migrants!Y241,0) -> 199121 | Z31: =ROUND(Survivors!Z31+Migrants!Z241,0) -> 201543 | AA31: =ROUND(Survivors!AA31+Migrants!AA241,0) -> 204416 | AB31: =ROUND(Survivors!AB31+Migrants!AB241,0) -> 203229 | AC31: =ROUND(Survivors!AC31+Migrants!AC241,0) -> 206061 | AD31: =ROUND(Survivors!AD31+Migrants!AD241,0) -> 208643 | AE31: =ROUND(Survivors!AE31+Migrants!AE241,0) -> 210938 | AF31: =ROUND(Survivors!AF31+Migrants!AF241,0) -> 213190 | AG31: =ROUND(Survivors!AG31+Migrants!AG241,0) -> 215356 | AH31: =ROUND(Survivors!AH31+Migrants!AH241,0) -> 217384 | AI31: =ROUND(Survivors!AI31+Migrants!AI241,0) -> 219177 | AJ31: =ROUND(Survivors!AJ31+Migrants!AJ241,0) -> 220713 | AK31: =ROUND(Survivors!AK31+Migrants!AK241,0) -> 222047 | AL31: =ROUND(Survivors!AL31+Migrants!AL241,0) -> 223171 | AM31: =ROUND(Survivors!AM31+Migrants!AM241,0) -> 224092 | AN31: =ROUND(Survivors!AN31+Migrants!AN241,0) -> 224831 | AO31: =ROUND(Survivors!AO31+Migrants!AO241,0) -> 225437 | AP31: =ROUND(Survivors!AP31+Migrants!AP241,0) -> 225939 | AQ31: =ROUND(Survivors!AQ31+Migrants!AQ241,0) -> 226369 | AR31: =ROUND(Survivors!AR31+Migrants!AR241,0) -> 226734 | AS31: =ROUND(Survivors!AS31+Migrants!AS241,0) -> 227113 | AT31: =ROUND(Survivors!AT31+Migrants!AT241,0) -> 227560 | AU31: =ROUND(Survivors!AU31+Migrants!AU241,0) -> 228057 | AV31: =ROUND(Survivors!AV31+Migrants!AV241,0) -> 228655 | AW31: =ROUND(Survivors!AW31+Migrants!AW241,0) -> 229378 | AX31: =ROUND(Survivors!AX31+Migrants!AX241,0) -> 230249 | AY31: =ROUND(Survivors!AY31+Migrants!AY241,0) -> 231291 | AZ31: =ROUND(Survivors!AZ31+Migrants!AZ241,0) -> 232492 | BA31: =ROUND(Survivors!BA31+Migrants!BA241,0) -> 233861 | BB31: =ROUND(Survivors!BB31+Migrants!BB241,0) -> 235369 | BC31: =ROUND(Survivors!BC31+Migrants!BC241,0) -> 236989 | BD31: =ROUND(Survivors!BD31+Migrants!BD241,0) -> 238699 | BE31: =ROUND(Survivors!BE31+Migrants!BE241,0) -> 240487 | BF31: =ROUND(Survivors!BF31+Migrants!BF241,0) -> 242320 | BG31: =ROUND(Survivors!BG31+Migrants!BG241,0) -> 244164 | BH31: =ROUND(Survivors!BH31+Migrants!BH241,0) -> 245996 | BI31: =ROUND(Survivors!BI31+Migrants!BI241,0) -> 247801 | BJ31: =ROUND(Survivors!BJ31+Migrants!BJ241,0) -> 249549 | BK31: =ROUND(Survivors!BK31+Migrants!BK241,0) -> 251230 | BL31: =ROUND(Survivors!BL31+Migrants!BL241,0) -> 252831 | BM31: =ROUND(Survivors!BM31+Migrants!BM241,0) -> 254356 | BN31: =ROUND(Survivors!BN31+Migrants!BN241,0) -> 255809 | BO31: =ROUND(Survivors!BO31+Migrants!BO241,0) -> 257172 | BP31: =ROUND(Survivors!BP31+Migrants!BP241,0) -> 258453 | BQ31: =ROUND(Survivors!BQ31+Migrants!BQ241,0) -> 259650 | BR31: =ROUND(Survivors!BR31+Migrants!BR241,0) -> 260764 | BS31: =ROUND(Survivors!BS31+Migrants!BS241,0) -> 261785 | BT31: =ROUND(Survivors!BT31+Migrants!BT241,0) -> 262734 | BU31: =ROUND(Survivors!BU31+Migrants!BU241,0) -> 263611 | BV31: =ROUND(Survivors!BV31+Migrants!BV241,0) -> 264430 | BW31: =ROUND(Survivors!BW31+Migrants!BW241,0) -> 265208 | BX31: =ROUND(Survivors!BX31+Migrants!BX241,0) -> 265958 | BY31: =ROUND(Survivors!BY31+Migrants!BY241,0) -> 266698 | BZ31: =ROUND(Survivors!BZ31+Migrants!BZ241,0) -> 267447 | CA31: =ROUND(Survivors!CA31+Migrants!CA241,0) -> 268218 | CB31: =ROUND(Survivors!CB31+Migrants!CB241,0) -> 269033 | CC31: =ROUND(Survivors!CC31+Migrants!CC241,0) -> 269892 | CD31: =ROUND(Survivors!CD31+Migrants!CD241,0) -> 270808 | CE31: =ROUND(Survivors!CE31+Migrants!CE241,0) -> 271789 | CF31: =ROUND(Survivors!CF31+Migrants!CF241,0) -> 272844 | CG31: =ROUND(Survivors!CG31+Migrants!CG241,0) -> 273964 | CH31: =ROUND(Survivors!CH31+Migrants!CH241,0) -> 275151 | CI31: =ROUND(Survivors!CI31+Migrants!CI241,0) -> 276399 | CJ31: =ROUND(Survivors!CJ31+Migrants!CJ241,0) -> 277699 | CK31: =ROUND(Survivors!CK31+Migrants!CK241,0) -> 279043 | CL31: =ROUND(Survivors!CL31+Migrants!CL241,0) -> 280417 | CM31: =ROUND(Survivors!CM31+Migrants!CM241,0) -> 281810 | CN31: =ROUND(Survivors!CN31+Migrants!CN241,0) -> 283213
A32: 28 | B32: 170913 | C32: =ROUND(Survivors!C32+Migrants!C242,0) -> 174356 | D32: =ROUND(Survivors!D32+Migrants!D242,0) -> 175754 | E32: =ROUND(Survivors!E32+Migrants!E242,0) -> 175433 | F32: =ROUND(Survivors!F32+Migrants!F242,0) -> 176768 | G32: =ROUND(Survivors!G32+Migrants!G242,0) -> 179345 | H32: =ROUND(Survivors!H32+Migrants!H242,0) -> 183052 | I32: =ROUND(Survivors!I32+Migrants!I242,0) -> 179926 | J32: =ROUND(Survivors!J32+Migrants!J242,0) -> 178122 | K32: =ROUND(Survivors!K32+Migrants!K242,0) -> 179432 | L32: =ROUND(Survivors!L32+Migrants!L242,0) -> 180744 | M32: =ROUND(Survivors!M32+Migrants!M242,0) -> 183049 | N32: =ROUND(Survivors!N32+Migrants!N242,0) -> 181087 | O32: =ROUND(Survivors!O32+Migrants!O242,0) -> 180901 | P32: =ROUND(Survivors!P32+Migrants!P242,0) -> 180160 | Q32: =ROUND(Survivors!Q32+Migrants!Q242,0) -> 180514 | R32: =ROUND(Survivors!R32+Migrants!R242,0) -> 180928 | S32: =ROUND(Survivors!S32+Migrants!S242,0) -> 182018 | T32: =ROUND(Survivors!T32+Migrants!T242,0) -> 180920 | U32: =ROUND(Survivors!U32+Migrants!U242,0) -> 182575 | V32: =ROUND(Survivors!V32+Migrants!V242,0) -> 185928 | W32: =ROUND(Survivors!W32+Migrants!W242,0) -> 189882 | X32: =ROUND(Survivors!X32+Migrants!X242,0) -> 195693 | Y32: =ROUND(Survivors!Y32+Migrants!Y242,0) -> 197448 | Z32: =ROUND(Survivors!Z32+Migrants!Z242,0) -> 200776 | AA32: =ROUND(Survivors!AA32+Migrants!AA242,0) -> 203199 | AB32: =ROUND(Survivors!AB32+Migrants!AB242,0) -> 206072 | AC32: =ROUND(Survivors!AC32+Migrants!AC242,0) -> 204887 | AD32: =ROUND(Survivors!AD32+Migrants!AD242,0) -> 207720 | AE32: =ROUND(Survivors!AE32+Migrants!AE242,0) -> 210302 | AF32: =ROUND(Survivors!AF32+Migrants!AF242,0) -> 212598 | AG32: =ROUND(Survivors!AG32+Migrants!AG242,0) -> 214851 | AH32: =ROUND(Survivors!AH32+Migrants!AH242,0) -> 217018 | AI32: =ROUND(Survivors!AI32+Migrants!AI242,0) -> 219046 | AJ32: =ROUND(Survivors!AJ32+Migrants!AJ242,0) -> 220840 | AK32: =ROUND(Survivors!AK32+Migrants!AK242,0) -> 222377 | AL32: =ROUND(Survivors!AL32+Migrants!AL242,0) -> 223712 | AM32: =ROUND(Survivors!AM32+Migrants!AM242,0) -> 224838 | AN32: =ROUND(Survivors!AN32+Migrants!AN242,0) -> 225760 | AO32: =ROUND(Survivors!AO32+Migrants!AO242,0) -> 226500 | AP32: =ROUND(Survivors!AP32+Migrants!AP242,0) -> 227107 | AQ32: =ROUND(Survivors!AQ32+Migrants!AQ242,0) -> 227611 | AR32: =ROUND(Survivors!AR32+Migrants!AR242,0) -> 228042 | AS32: =ROUND(Survivors!AS32+Migrants!AS242,0) -> 228408 | AT32: =ROUND(Survivors!AT32+Migrants!AT242,0) -> 228788 | AU32: =ROUND(Survivors!AU32+Migrants!AU242,0) -> 229236 | AV32: =ROUND(Survivors!AV32+Migrants!AV242,0) -> 229734 | AW32: =ROUND(Survivors!AW32+Migrants!AW242,0) -> 230332 | AX32: =ROUND(Survivors!AX32+Migrants!AX242,0) -> 231056 | AY32: =ROUND(Survivors!AY32+Migrants!AY242,0) -> 231928 | AZ32: =ROUND(Survivors!AZ32+Migrants!AZ242,0) -> 232971 | BA32: =ROUND(Survivors!BA32+Migrants!BA242,0) -> 234172 | BB32: =ROUND(Survivors!BB32+Migrants!BB242,0) -> 235542 | BC32: =ROUND(Survivors!BC32+Migrants!BC242,0) -> 237050 | BD32: =ROUND(Survivors!BD32+Migrants!BD242,0) -> 238671 | BE32: =ROUND(Survivors!BE32+Migrants!BE242,0) -> 240381 | BF32: =ROUND(Survivors!BF32+Migrants!BF242,0) -> 242170 | BG32: =ROUND(Survivors!BG32+Migrants!BG242,0) -> 244003 | BH32: =ROUND(Survivors!BH32+Migrants!BH242,0) -> 245848 | BI32: =ROUND(Survivors!BI32+Migrants!BI242,0) -> 247680 | BJ32: =ROUND(Survivors!BJ32+Migrants!BJ242,0) -> 249485 | BK32: =ROUND(Survivors!BK32+Migrants!BK242,0) -> 251234 | BL32: =ROUND(Survivors!BL32+Migrants!BL242,0) -> 252915 | BM32: =ROUND(Survivors!BM32+Migrants!BM242,0) -> 254516 | BN32: =ROUND(Survivors!BN32+Migrants!BN242,0) -> 256042 | BO32: =ROUND(Survivors!BO32+Migrants!BO242,0) -> 257495 | BP32: =ROUND(Survivors!BP32+Migrants!BP242,0) -> 258859 | BQ32: =ROUND(Survivors!BQ32+Migrants!BQ242,0) -> 260140 | BR32: =ROUND(Survivors!BR32+Migrants!BR242,0) -> 261337 | BS32: =ROUND(Survivors!BS32+Migrants!BS242,0) -> 262452 | BT32: =ROUND(Survivors!BT32+Migrants!BT242,0) -> 263473 | BU32: =ROUND(Survivors!BU32+Migrants!BU242,0) -> 264422 | BV32: =ROUND(Survivors!BV32+Migrants!BV242,0) -> 265300 | BW32: =ROUND(Survivors!BW32+Migrants!BW242,0) -> 266119 | BX32: =ROUND(Survivors!BX32+Migrants!BX242,0) -> 266897 | BY32: =ROUND(Survivors!BY32+Migrants!BY242,0) -> 267648 | BZ32: =ROUND(Survivors!BZ32+Migrants!BZ242,0) -> 268388 | CA32: =ROUND(Survivors!CA32+Migrants!CA242,0) -> 269137 | CB32: =ROUND(Survivors!CB32+Migrants!CB242,0) -> 269909 | CC32: =ROUND(Survivors!CC32+Migrants!CC242,0) -> 270724 | CD32: =ROUND(Survivors!CD32+Migrants!CD242,0) -> 271583 | CE32: =ROUND(Survivors!CE32+Migrants!CE242,0) -> 272499 | CF32: =ROUND(Survivors!CF32+Migrants!CF242,0) -> 273480 | CG32: =ROUND(Survivors!CG32+Migrants!CG242,0) -> 274535 | CH32: =ROUND(Survivors!CH32+Migrants!CH242,0) -> 275655 | CI32: =ROUND(Survivors!CI32+Migrants!CI242,0) -> 276843 | CJ32: =ROUND(Survivors!CJ32+Migrants!CJ242,0) -> 278091 | CK32: =ROUND(Survivors!CK32+Migrants!CK242,0) -> 279391 | CL32: =ROUND(Survivors!CL32+Migrants!CL242,0) -> 280735 | CM32: =ROUND(Survivors!CM32+Migrants!CM242,0) -> 282108 | CN32: =ROUND(Survivors!CN32+Migrants!CN242,0) -> 283501
A33: 29 | B33: 171791 | C33: =ROUND(Survivors!C33+Migrants!C243,0) -> 173613 | D33: =ROUND(Survivors!D33+Migrants!D243,0) -> 176920 | E33: =ROUND(Survivors!E33+Migrants!E243,0) -> 178183 | F33: =ROUND(Survivors!F33+Migrants!F243,0) -> 177729 | G33: =ROUND(Survivors!G33+Migrants!G243,0) -> 178930 | H33: =ROUND(Survivors!H33+Migrants!H243,0) -> 181371 | I33: =ROUND(Survivors!I33+Migrants!I243,0) -> 185078 | J33: =ROUND(Survivors!J33+Migrants!J243,0) -> 181956 | K33: =ROUND(Survivors!K33+Migrants!K243,0) -> 180155 | L33: =ROUND(Survivors!L33+Migrants!L243,0) -> 181466 | M33: =ROUND(Survivors!M33+Migrants!M243,0) -> 182779 | N33: =ROUND(Survivors!N33+Migrants!N243,0) -> 185085 | O33: =ROUND(Survivors!O33+Migrants!O243,0) -> 183126 | P33: =ROUND(Survivors!P33+Migrants!P243,0) -> 182942 | Q33: =ROUND(Survivors!Q33+Migrants!Q243,0) -> 182203 | R33: =ROUND(Survivors!R33+Migrants!R243,0) -> 182559 | S33: =ROUND(Survivors!S33+Migrants!S243,0) -> 182974 | T33: =ROUND(Survivors!T33+Migrants!T243,0) -> 184065 | U33: =ROUND(Survivors!U33+Migrants!U243,0) -> 182970 | V33: =ROUND(Survivors!V33+Migrants!V243,0) -> 184625 | W33: =ROUND(Survivors!W33+Migrants!W243,0) -> 187978 | X33: =ROUND(Survivors!X33+Migrants!X243,0) -> 191932 | Y33: =ROUND(Survivors!Y33+Migrants!Y243,0) -> 197741 | Z33: =ROUND(Survivors!Z33+Migrants!Z243,0) -> 199497 | AA33: =ROUND(Survivors!AA33+Migrants!AA243,0) -> 202825 | AB33: =ROUND(Survivors!AB33+Migrants!AB243,0) -> 205248 | AC33: =ROUND(Survivors!AC33+Migrants!AC243,0) -> 208122 | AD33: =ROUND(Survivors!AD33+Migrants!AD243,0) -> 206939 | AE33: =ROUND(Survivors!AE33+Migrants!AE243,0) -> 209772 | AF33: =ROUND(Survivors!AF33+Migrants!AF243,0) -> 212355 | AG33: =ROUND(Survivors!AG33+Migrants!AG243,0) -> 214651 | AH33: =ROUND(Survivors!AH33+Migrants!AH243,0) -> 216905 | AI33: =ROUND(Survivors!AI33+Migrants!AI243,0) -> 219072 | AJ33: =ROUND(Survivors!AJ33+Migrants!AJ243,0) -> 221101 | AK33: =ROUND(Survivors!AK33+Migrants!AK243,0) -> 222896 | AL33: =ROUND(Survivors!AL33+Migrants!AL243,0) -> 224434 | AM33: =ROUND(Survivors!AM33+Migrants!AM243,0) -> 225770 | AN33: =ROUND(Survivors!AN33+Migrants!AN243,0) -> 226897 | AO33: =ROUND(Survivors!AO33+Migrants!AO243,0) -> 227820 | AP33: =ROUND(Survivors!AP33+Migrants!AP243,0) -> 228561 | AQ33: =ROUND(Survivors!AQ33+Migrants!AQ243,0) -> 229169 | AR33: =ROUND(Survivors!AR33+Migrants!AR243,0) -> 229675 | AS33: =ROUND(Survivors!AS33+Migrants!AS243,0) -> 230107 | AT33: =ROUND(Survivors!AT33+Migrants!AT243,0) -> 230474 | AU33: =ROUND(Survivors!AU33+Migrants!AU243,0) -> 230855 | AV33: =ROUND(Survivors!AV33+Migrants!AV243,0) -> 231304 | AW33: =ROUND(Survivors!AW33+Migrants!AW243,0) -> 231803 | AX33: =ROUND(Survivors!AX33+Migrants!AX243,0) -> 232402 | AY33: =ROUND(Survivors!AY33+Migrants!AY243,0) -> 233127 | AZ33: =ROUND(Survivors!AZ33+Migrants!AZ243,0) -> 234000 | BA33: =ROUND(Survivors!BA33+Migrants!BA243,0) -> 235044 | BB33: =ROUND(Survivors!BB33+Migrants!BB243,0) -> 236246 | BC33: =ROUND(Survivors!BC33+Migrants!BC243,0) -> 237616 | BD33: =ROUND(Survivors!BD33+Migrants!BD243,0) -> 239125 | BE33: =ROUND(Survivors!BE33+Migrants!BE243,0) -> 240746 | BF33: =ROUND(Survivors!BF33+Migrants!BF243,0) -> 242457 | BG33: =ROUND(Survivors!BG33+Migrants!BG243,0) -> 244246 | BH33: =ROUND(Survivors!BH33+Migrants!BH243,0) -> 246080 | BI33: =ROUND(Survivors!BI33+Migrants!BI243,0) -> 247925 | BJ33: =ROUND(Survivors!BJ33+Migrants!BJ243,0) -> 249758 | BK33: =ROUND(Survivors!BK33+Migrants!BK243,0) -> 251563 | BL33: =ROUND(Survivors!BL33+Migrants!BL243,0) -> 253312 | BM33: =ROUND(Survivors!BM33+Migrants!BM243,0) -> 254994 | BN33: =ROUND(Survivors!BN33+Migrants!BN243,0) -> 256595 | BO33: =ROUND(Survivors!BO33+Migrants!BO243,0) -> 258122 | BP33: =ROUND(Survivors!BP33+Migrants!BP243,0) -> 259575 | BQ33: =ROUND(Survivors!BQ33+Migrants!BQ243,0) -> 260939 | BR33: =ROUND(Survivors!BR33+Migrants!BR243,0) -> 262221 | BS33: =ROUND(Survivors!BS33+Migrants!BS243,0) -> 263418 | BT33: =ROUND(Survivors!BT33+Migrants!BT243,0) -> 264534 | BU33: =ROUND(Survivors!BU33+Migrants!BU243,0) -> 265555 | BV33: =ROUND(Survivors!BV33+Migrants!BV243,0) -> 266505 | BW33: =ROUND(Survivors!BW33+Migrants!BW243,0) -> 267383 | BX33: =ROUND(Survivors!BX33+Migrants!BX243,0) -> 268202 | BY33: =ROUND(Survivors!BY33+Migrants!BY243,0) -> 268981 | BZ33: =ROUND(Survivors!BZ33+Migrants!BZ243,0) -> 269732 | CA33: =ROUND(Survivors!CA33+Migrants!CA243,0) -> 270472 | CB33: =ROUND(Survivors!CB33+Migrants!CB243,0) -> 271222 | CC33: =ROUND(Survivors!CC33+Migrants!CC243,0) -> 271994 | CD33: =ROUND(Survivors!CD33+Migrants!CD243,0) -> 272809 | CE33: =ROUND(Survivors!CE33+Migrants!CE243,0) -> 273668 | CF33: =ROUND(Survivors!CF33+Migrants!CF243,0) -> 274584 | CG33: =ROUND(Survivors!CG33+Migrants!CG243,0) -> 275566 | CH33: =ROUND(Survivors!CH33+Migrants!CH243,0) -> 276621 | CI33: =ROUND(Survivors!CI33+Migrants!CI243,0) -> 277741 | CJ33: =ROUND(Survivors!CJ33+Migrants!CJ243,0) -> 278929 | CK33: =ROUND(Survivors!CK33+Migrants!CK243,0) -> 280177 | CL33: =ROUND(Survivors!CL33+Migrants!CL243,0) -> 281477 | CM33: =ROUND(Survivors!CM33+Migrants!CM243,0) -> 282821 | CN33: =ROUND(Survivors!CN33+Migrants!CN243,0) -> 284194
A34: 30 | B34: 167753 | C34: =ROUND(Survivors!C34+Migrants!C244,0) -> 174908 | D34: =ROUND(Survivors!D34+Migrants!D244,0) -> 176575 | E34: =ROUND(Survivors!E34+Migrants!E244,0) -> 179725 | F34: =ROUND(Survivors!F34+Migrants!F244,0) -> 180833 | G34: =ROUND(Survivors!G34+Migrants!G244,0) -> 180225 | H34: =ROUND(Survivors!H34+Migrants!H244,0) -> 181271 | I34: =ROUND(Survivors!I34+Migrants!I244,0) -> 183712 | J34: =ROUND(Survivors!J34+Migrants!J244,0) -> 187419 | K34: =ROUND(Survivors!K34+Migrants!K244,0) -> 184301 | L34: =ROUND(Survivors!L34+Migrants!L244,0) -> 182503 | M34: =ROUND(Survivors!M34+Migrants!M244,0) -> 183815 | N34: =ROUND(Survivors!N34+Migrants!N244,0) -> 185129 | O34: =ROUND(Survivors!O34+Migrants!O244,0) -> 187435 | P34: =ROUND(Survivors!P34+Migrants!P244,0) -> 185479 | Q34: =ROUND(Survivors!Q34+Migrants!Q244,0) -> 185297 | R34: =ROUND(Survivors!R34+Migrants!R244,0) -> 184560 | S34: =ROUND(Survivors!S34+Migrants!S244,0) -> 184917 | T34: =ROUND(Survivors!T34+Migrants!T244,0) -> 185334 | U34: =ROUND(Survivors!U34+Migrants!U244,0) -> 186426 | V34: =ROUND(Survivors!V34+Migrants!V244,0) -> 185333 | W34: =ROUND(Survivors!W34+Migrants!W244,0) -> 186989 | X34: =ROUND(Survivors!X34+Migrants!X244,0) -> 190341 | Y34: =ROUND(Survivors!Y34+Migrants!Y244,0) -> 194294 | Z34: =ROUND(Survivors!Z34+Migrants!Z244,0) -> 200102 | AA34: =ROUND(Survivors!AA34+Migrants!AA244,0) -> 201858 | AB34: =ROUND(Survivors!AB34+Migrants!AB244,0) -> 205186 | AC34: =ROUND(Survivors!AC34+Migrants!AC244,0) -> 207609 | AD34: =ROUND(Survivors!AD34+Migrants!AD244,0) -> 210483 | AE34: =ROUND(Survivors!AE34+Migrants!AE244,0) -> 209302 | AF34: =ROUND(Survivors!AF34+Migrants!AF244,0) -> 212136 | AG34: =ROUND(Survivors!AG34+Migrants!AG244,0) -> 214719 | AH34: =ROUND(Survivors!AH34+Migrants!AH244,0) -> 217015 | AI34: =ROUND(Survivors!AI34+Migrants!AI244,0) -> 219270 | AJ34: =ROUND(Survivors!AJ34+Migrants!AJ244,0) -> 221437 | AK34: =ROUND(Survivors!AK34+Migrants!AK244,0) -> 223467 | AL34: =ROUND(Survivors!AL34+Migrants!AL244,0) -> 225262 | AM34: =ROUND(Survivors!AM34+Migrants!AM244,0) -> 226801 | AN34: =ROUND(Survivors!AN34+Migrants!AN244,0) -> 228138 | AO34: =ROUND(Survivors!AO34+Migrants!AO244,0) -> 229266 | AP34: =ROUND(Survivors!AP34+Migrants!AP244,0) -> 230190 | AQ34: =ROUND(Survivors!AQ34+Migrants!AQ244,0) -> 230932 | AR34: =ROUND(Survivors!AR34+Migrants!AR244,0) -> 231541 | AS34: =ROUND(Survivors!AS34+Migrants!AS244,0) -> 232049 | AT34: =ROUND(Survivors!AT34+Migrants!AT244,0) -> 232482 | AU34: =ROUND(Survivors!AU34+Migrants!AU244,0) -> 232850 | AV34: =ROUND(Survivors!AV34+Migrants!AV244,0) -> 233233 | AW34: =ROUND(Survivors!AW34+Migrants!AW244,0) -> 233683 | AX34: =ROUND(Survivors!AX34+Migrants!AX244,0) -> 234183 | AY34: =ROUND(Survivors!AY34+Migrants!AY244,0) -> 234783 | AZ34: =ROUND(Survivors!AZ34+Migrants!AZ244,0) -> 235509 | BA34: =ROUND(Survivors!BA34+Migrants!BA244,0) -> 236383 | BB34: =ROUND(Survivors!BB34+Migrants!BB244,0) -> 237428 | BC34: =ROUND(Survivors!BC34+Migrants!BC244,0) -> 238631 | BD34: =ROUND(Survivors!BD34+Migrants!BD244,0) -> 240002 | BE34: =ROUND(Survivors!BE34+Migrants!BE244,0) -> 241512 | BF34: =ROUND(Survivors!BF34+Migrants!BF244,0) -> 243133 | BG34: =ROUND(Survivors!BG34+Migrants!BG244,0) -> 244845 | BH34: =ROUND(Survivors!BH34+Migrants!BH244,0) -> 246634 | BI34: =ROUND(Survivors!BI34+Migrants!BI244,0) -> 248469 | BJ34: =ROUND(Survivors!BJ34+Migrants!BJ244,0) -> 250314 | BK34: =ROUND(Survivors!BK34+Migrants!BK244,0) -> 252148 | BL34: =ROUND(Survivors!BL34+Migrants!BL244,0) -> 253953 | BM34: =ROUND(Survivors!BM34+Migrants!BM244,0) -> 255703 | BN34: =ROUND(Survivors!BN34+Migrants!BN244,0) -> 257385 | BO34: =ROUND(Survivors!BO34+Migrants!BO244,0) -> 258987 | BP34: =ROUND(Survivors!BP34+Migrants!BP244,0) -> 260514 | BQ34: =ROUND(Survivors!BQ34+Migrants!BQ244,0) -> 261967 | BR34: =ROUND(Survivors!BR34+Migrants!BR244,0) -> 263332 | BS34: =ROUND(Survivors!BS34+Migrants!BS244,0) -> 264614 | BT34: =ROUND(Survivors!BT34+Migrants!BT244,0) -> 265812 | BU34: =ROUND(Survivors!BU34+Migrants!BU244,0) -> 266928 | BV34: =ROUND(Survivors!BV34+Migrants!BV244,0) -> 267950 | BW34: =ROUND(Survivors!BW34+Migrants!BW244,0) -> 268900 | BX34: =ROUND(Survivors!BX34+Migrants!BX244,0) -> 269779 | BY34: =ROUND(Survivors!BY34+Migrants!BY244,0) -> 270598 | BZ34: =ROUND(Survivors!BZ34+Migrants!BZ244,0) -> 271377 | CA34: =ROUND(Survivors!CA34+Migrants!CA244,0) -> 272129 | CB34: =ROUND(Survivors!CB34+Migrants!CB244,0) -> 272869 | CC34: =ROUND(Survivors!CC34+Migrants!CC244,0) -> 273619 | CD34: =ROUND(Survivors!CD34+Migrants!CD244,0) -> 274392 | CE34: =ROUND(Survivors!CE34+Migrants!CE244,0) -> 275207 | CF34: =ROUND(Survivors!CF34+Migrants!CF244,0) -> 276066 | CG34: =ROUND(Survivors!CG34+Migrants!CG244,0) -> 276982 | CH34: =ROUND(Survivors!CH34+Migrants!CH244,0) -> 277964 | CI34: =ROUND(Survivors!CI34+Migrants!CI244,0) -> 279020 | CJ34: =ROUND(Survivors!CJ34+Migrants!CJ244,0) -> 280140 | CK34: =ROUND(Survivors!CK34+Migrants!CK244,0) -> 281328 | CL34: =ROUND(Survivors!CL34+Migrants!CL244,0) -> 282576 | CM34: =ROUND(Survivors!CM34+Migrants!CM244,0) -> 283876 | CN34: =ROUND(Survivors!CN34+Migrants!CN244,0) -> 285220
A35: 31 | B35: 164738 | C35: =ROUND(Survivors!C35+Migrants!C245,0) -> 170766 | D35: =ROUND(Survivors!D35+Migrants!D245,0) -> 177766 | E35: =ROUND(Survivors!E35+Migrants!E245,0) -> 179282 | F35: =ROUND(Survivors!F35+Migrants!F245,0) -> 182280 | G35: =ROUND(Survivors!G35+Migrants!G245,0) -> 183237 | H35: =ROUND(Survivors!H35+Migrants!H245,0) -> 182481 | I35: =ROUND(Survivors!I35+Migrants!I245,0) -> 183527 | J35: =ROUND(Survivors!J35+Migrants!J245,0) -> 185968 | K35: =ROUND(Survivors!K35+Migrants!K245,0) -> 189674 | L35: =ROUND(Survivors!L35+Migrants!L245,0) -> 186560 | M35: =ROUND(Survivors!M35+Migrants!M245,0) -> 184765 | N35: =ROUND(Survivors!N35+Migrants!N245,0) -> 186078 | O35: =ROUND(Survivors!O35+Migrants!O245,0) -> 187393 | P35: =ROUND(Survivors!P35+Migrants!P245,0) -> 189699 | Q35: =ROUND(Survivors!Q35+Migrants!Q245,0) -> 187746 | R35: =ROUND(Survivors!R35+Migrants!R245,0) -> 187566 | S35: =ROUND(Survivors!S35+Migrants!S245,0) -> 186831 | T35: =ROUND(Survivors!T35+Migrants!T245,0) -> 187189 | U35: =ROUND(Survivors!U35+Migrants!U245,0) -> 187608 | V35: =ROUND(Survivors!V35+Migrants!V245,0) -> 188700 | W35: =ROUND(Survivors!W35+Migrants!W245,0) -> 187610 | X35: =ROUND(Survivors!X35+Migrants!X245,0) -> 189266 | Y35: =ROUND(Survivors!Y35+Migrants!Y245,0) -> 192617 | Z35: =ROUND(Survivors!Z35+Migrants!Z245,0) -> 196569 | AA35: =ROUND(Survivors!AA35+Migrants!AA245,0) -> 202375 | AB35: =ROUND(Survivors!AB35+Migrants!AB245,0) -> 204132 | AC35: =ROUND(Survivors!AC35+Migrants!AC245,0) -> 207459 | AD35: =ROUND(Survivors!AD35+Migrants!AD245,0) -> 209882 | AE35: =ROUND(Survivors!AE35+Migrants!AE245,0) -> 212756 | AF35: =ROUND(Survivors!AF35+Migrants!AF245,0) -> 211577 | AG35: =ROUND(Survivors!AG35+Migrants!AG245,0) -> 214411 | AH35: =ROUND(Survivors!AH35+Migrants!AH245,0) -> 216994 | AI35: =ROUND(Survivors!AI35+Migrants!AI245,0) -> 219290 | AJ35: =ROUND(Survivors!AJ35+Migrants!AJ245,0) -> 221546 | AK35: =ROUND(Survivors!AK35+Migrants!AK245,0) -> 223713 | AL35: =ROUND(Survivors!AL35+Migrants!AL245,0) -> 225743 | AM35: =ROUND(Survivors!AM35+Migrants!AM245,0) -> 227539 | AN35: =ROUND(Survivors!AN35+Migrants!AN245,0) -> 229079 | AO35: =ROUND(Survivors!AO35+Migrants!AO245,0) -> 230416 | AP35: =ROUND(Survivors!AP35+Migrants!AP245,0) -> 231545 | AQ35: =ROUND(Survivors!AQ35+Migrants!AQ245,0) -> 232470 | AR35: =ROUND(Survivors!AR35+Migrants!AR245,0) -> 233214 | AS35: =ROUND(Survivors!AS35+Migrants!AS245,0) -> 233824 | AT35: =ROUND(Survivors!AT35+Migrants!AT245,0) -> 234334 | AU35: =ROUND(Survivors!AU35+Migrants!AU245,0) -> 234768 | AV35: =ROUND(Survivors!AV35+Migrants!AV245,0) -> 235138 | AW35: =ROUND(Survivors!AW35+Migrants!AW245,0) -> 235522 | AX35: =ROUND(Survivors!AX35+Migrants!AX245,0) -> 235973 | AY35: =ROUND(Survivors!AY35+Migrants!AY245,0) -> 236475 | AZ35: =ROUND(Survivors!AZ35+Migrants!AZ245,0) -> 237076 | BA35: =ROUND(Survivors!BA35+Migrants!BA245,0) -> 237803 | BB35: =ROUND(Survivors!BB35+Migrants!BB245,0) -> 238678 | BC35: =ROUND(Survivors!BC35+Migrants!BC245,0) -> 239724 | BD35: =ROUND(Survivors!BD35+Migrants!BD245,0) -> 240928 | BE35: =ROUND(Survivors!BE35+Migrants!BE245,0) -> 242300 | BF35: =ROUND(Survivors!BF35+Migrants!BF245,0) -> 243811 | BG35: =ROUND(Survivors!BG35+Migrants!BG245,0) -> 245433 | BH35: =ROUND(Survivors!BH35+Migrants!BH245,0) -> 247145 | BI35: =ROUND(Survivors!BI35+Migrants!BI245,0) -> 248935 | BJ35: =ROUND(Survivors!BJ35+Migrants!BJ245,0) -> 250770 | BK35: =ROUND(Survivors!BK35+Migrants!BK245,0) -> 252616 | BL35: =ROUND(Survivors!BL35+Migrants!BL245,0) -> 254451 | BM35: =ROUND(Survivors!BM35+Migrants!BM245,0) -> 256256 | BN35: =ROUND(Survivors!BN35+Migrants!BN245,0) -> 258006 | BO35: =ROUND(Survivors!BO35+Migrants!BO245,0) -> 259689 | BP35: =ROUND(Survivors!BP35+Migrants!BP245,0) -> 261291 | BQ35: =ROUND(Survivors!BQ35+Migrants!BQ245,0) -> 262819 | BR35: =ROUND(Survivors!BR35+Migrants!BR245,0) -> 264272 | BS35: =ROUND(Survivors!BS35+Migrants!BS245,0) -> 265638 | BT35: =ROUND(Survivors!BT35+Migrants!BT245,0) -> 266920 | BU35: =ROUND(Survivors!BU35+Migrants!BU245,0) -> 268119 | BV35: =ROUND(Survivors!BV35+Migrants!BV245,0) -> 269235 | BW35: =ROUND(Survivors!BW35+Migrants!BW245,0) -> 270258 | BX35: =ROUND(Survivors!BX35+Migrants!BX245,0) -> 271208 | BY35: =ROUND(Survivors!BY35+Migrants!BY245,0) -> 272088 | BZ35: =ROUND(Survivors!BZ35+Migrants!BZ245,0) -> 272907 | CA35: =ROUND(Survivors!CA35+Migrants!CA245,0) -> 273687 | CB35: =ROUND(Survivors!CB35+Migrants!CB245,0) -> 274439 | CC35: =ROUND(Survivors!CC35+Migrants!CC245,0) -> 275179 | CD35: =ROUND(Survivors!CD35+Migrants!CD245,0) -> 275930 | CE35: =ROUND(Survivors!CE35+Migrants!CE245,0) -> 276703 | CF35: =ROUND(Survivors!CF35+Migrants!CF245,0) -> 277518 | CG35: =ROUND(Survivors!CG35+Migrants!CG245,0) -> 278377 | CH35: =ROUND(Survivors!CH35+Migrants!CH245,0) -> 279294 | CI35: =ROUND(Survivors!CI35+Migrants!CI245,0) -> 280276 | CJ35: =ROUND(Survivors!CJ35+Migrants!CJ245,0) -> 281332 | CK35: =ROUND(Survivors!CK35+Migrants!CK245,0) -> 282452 | CL35: =ROUND(Survivors!CL35+Migrants!CL245,0) -> 283640 | CM35: =ROUND(Survivors!CM35+Migrants!CM245,0) -> 284888 | CN35: =ROUND(Survivors!CN35+Migrants!CN245,0) -> 286188
A36: 32 | B36: 158199 | C36: =ROUND(Survivors!C36+Migrants!C246,0) -> 167420 | D36: =ROUND(Survivors!D36+Migrants!D246,0) -> 173308 | E36: =ROUND(Survivors!E36+Migrants!E246,0) -> 180168 | F36: =ROUND(Survivors!F36+Migrants!F246,0) -> 181549 | G36: =ROUND(Survivors!G36+Migrants!G246,0) -> 184411 | H36: =ROUND(Survivors!H36+Migrants!H246,0) -> 185233 | I36: =ROUND(Survivors!I36+Migrants!I246,0) -> 184479 | J36: =ROUND(Survivors!J36+Migrants!J246,0) -> 185526 | K36: =ROUND(Survivors!K36+Migrants!K246,0) -> 187966 | L36: =ROUND(Survivors!L36+Migrants!L246,0) -> 191671 | M36: =ROUND(Survivors!M36+Migrants!M246,0) -> 188561 | N36: =ROUND(Survivors!N36+Migrants!N246,0) -> 186769 | O36: =ROUND(Survivors!O36+Migrants!O246,0) -> 188083 | P36: =ROUND(Survivors!P36+Migrants!P246,0) -> 189398 | Q36: =ROUND(Survivors!Q36+Migrants!Q246,0) -> 191704 | R36: =ROUND(Survivors!R36+Migrants!R246,0) -> 189754 | S36: =ROUND(Survivors!S36+Migrants!S246,0) -> 189576 | T36: =ROUND(Survivors!T36+Migrants!T246,0) -> 188843 | U36: =ROUND(Survivors!U36+Migrants!U246,0) -> 189202 | V36: =ROUND(Survivors!V36+Migrants!V246,0) -> 189622 | W36: =ROUND(Survivors!W36+Migrants!W246,0) -> 190715 | X36: =ROUND(Survivors!X36+Migrants!X246,0) -> 189627 | Y36: =ROUND(Survivors!Y36+Migrants!Y246,0) -> 191283 | Z36: =ROUND(Survivors!Z36+Migrants!Z246,0) -> 194633 | AA36: =ROUND(Survivors!AA36+Migrants!AA246,0) -> 198584 | AB36: =ROUND(Survivors!AB36+Migrants!AB246,0) -> 204388 | AC36: =ROUND(Survivors!AC36+Migrants!AC246,0) -> 206145 | AD36: =ROUND(Survivors!AD36+Migrants!AD246,0) -> 209471 | AE36: =ROUND(Survivors!AE36+Migrants!AE246,0) -> 211894 | AF36: =ROUND(Survivors!AF36+Migrants!AF246,0) -> 214768 | AG36: =ROUND(Survivors!AG36+Migrants!AG246,0) -> 213591 | AH36: =ROUND(Survivors!AH36+Migrants!AH246,0) -> 216424 | AI36: =ROUND(Survivors!AI36+Migrants!AI246,0) -> 219007 | AJ36: =ROUND(Survivors!AJ36+Migrants!AJ246,0) -> 221303 | AK36: =ROUND(Survivors!AK36+Migrants!AK246,0) -> 223559 | AL36: =ROUND(Survivors!AL36+Migrants!AL246,0) -> 225726 | AM36: =ROUND(Survivors!AM36+Migrants!AM246,0) -> 227757 | AN36: =ROUND(Survivors!AN36+Migrants!AN246,0) -> 229553 | AO36: =ROUND(Survivors!AO36+Migrants!AO246,0) -> 231094 | AP36: =ROUND(Survivors!AP36+Migrants!AP246,0) -> 232431 | AQ36: =ROUND(Survivors!AQ36+Migrants!AQ246,0) -> 233561 | AR36: =ROUND(Survivors!AR36+Migrants!AR246,0) -> 234487 | AS36: =ROUND(Survivors!AS36+Migrants!AS246,0) -> 235233 | AT36: =ROUND(Survivors!AT36+Migrants!AT246,0) -> 235845 | AU36: =ROUND(Survivors!AU36+Migrants!AU246,0) -> 236356 | AV36: =ROUND(Survivors!AV36+Migrants!AV246,0) -> 236792 | AW36: =ROUND(Survivors!AW36+Migrants!AW246,0) -> 237164 | AX36: =ROUND(Survivors!AX36+Migrants!AX246,0) -> 237549 | AY36: =ROUND(Survivors!AY36+Migrants!AY246,0) -> 238002 | AZ36: =ROUND(Survivors!AZ36+Migrants!AZ246,0) -> 238505 | BA36: =ROUND(Survivors!BA36+Migrants!BA246,0) -> 239108 | BB36: =ROUND(Survivors!BB36+Migrants!BB246,0) -> 239836 | BC36: =ROUND(Survivors!BC36+Migrants!BC246,0) -> 240712 | BD36: =ROUND(Survivors!BD36+Migrants!BD246,0) -> 241759 | BE36: =ROUND(Survivors!BE36+Migrants!BE246,0) -> 242965 | BF36: =ROUND(Survivors!BF36+Migrants!BF246,0) -> 244337 | BG36: =ROUND(Survivors!BG36+Migrants!BG246,0) -> 245849 | BH36: =ROUND(Survivors!BH36+Migrants!BH246,0) -> 247472 | BI36: =ROUND(Survivors!BI36+Migrants!BI246,0) -> 249185 | BJ36: =ROUND(Survivors!BJ36+Migrants!BJ246,0) -> 250975 | BK36: =ROUND(Survivors!BK36+Migrants!BK246,0) -> 252811 | BL36: =ROUND(Survivors!BL36+Migrants!BL246,0) -> 254658 | BM36: =ROUND(Survivors!BM36+Migrants!BM246,0) -> 256493 | BN36: =ROUND(Survivors!BN36+Migrants!BN246,0) -> 258299 | BO36: =ROUND(Survivors!BO36+Migrants!BO246,0) -> 260049 | BP36: =ROUND(Survivors!BP36+Migrants!BP246,0) -> 261733 | BQ36: =ROUND(Survivors!BQ36+Migrants!BQ246,0) -> 263335 | BR36: =ROUND(Survivors!BR36+Migrants!BR246,0) -> 264864 | BS36: =ROUND(Survivors!BS36+Migrants!BS246,0) -> 266317 | BT36: =ROUND(Survivors!BT36+Migrants!BT246,0) -> 267684 | BU36: =ROUND(Survivors!BU36+Migrants!BU246,0) -> 268966 | BV36: =ROUND(Survivors!BV36+Migrants!BV246,0) -> 270166 | BW36: =ROUND(Survivors!BW36+Migrants!BW246,0) -> 271282 | BX36: =ROUND(Survivors!BX36+Migrants!BX246,0) -> 272306 | BY36: =ROUND(Survivors!BY36+Migrants!BY246,0) -> 273256 | BZ36: =ROUND(Survivors!BZ36+Migrants!BZ246,0) -> 274137 | CA36: =ROUND(Survivors!CA36+Migrants!CA246,0) -> 274956 | CB36: =ROUND(Survivors!CB36+Migrants!CB246,0) -> 275736 | CC36: =ROUND(Survivors!CC36+Migrants!CC246,0) -> 276489 | CD36: =ROUND(Survivors!CD36+Migrants!CD246,0) -> 277229 | CE36: =ROUND(Survivors!CE36+Migrants!CE246,0) -> 277981 | CF36: =ROUND(Survivors!CF36+Migrants!CF246,0) -> 278754 | CG36: =ROUND(Survivors!CG36+Migrants!CG246,0) -> 279569 | CH36: =ROUND(Survivors!CH36+Migrants!CH246,0) -> 280428 | CI36: =ROUND(Survivors!CI36+Migrants!CI246,0) -> 281346 | CJ36: =ROUND(Survivors!CJ36+Migrants!CJ246,0) -> 282328 | CK36: =ROUND(Survivors!CK36+Migrants!CK246,0) -> 283384 | CL36: =ROUND(Survivors!CL36+Migrants!CL246,0) -> 284504 | CM36: =ROUND(Survivors!CM36+Migrants!CM246,0) -> 285692 | CN36: =ROUND(Survivors!CN36+Migrants!CN246,0) -> 286940
A37: 33 | B37: 154978 | C37: =ROUND(Survivors!C37+Migrants!C247,0) -> 160631 | D37: =ROUND(Survivors!D37+Migrants!D247,0) -> 169721 | E37: =ROUND(Survivors!E37+Migrants!E247,0) -> 175481 | F37: =ROUND(Survivors!F37+Migrants!F247,0) -> 182213 | G37: =ROUND(Survivors!G37+Migrants!G247,0) -> 183471 | H37: =ROUND(Survivors!H37+Migrants!H247,0) -> 186208 | I37: =ROUND(Survivors!I37+Migrants!I247,0) -> 187031 | J37: =ROUND(Survivors!J37+Migrants!J247,0) -> 186279 | K37: =ROUND(Survivors!K37+Migrants!K247,0) -> 187327 | L37: =ROUND(Survivors!L37+Migrants!L247,0) -> 189766 | M37: =ROUND(Survivors!M37+Migrants!M247,0) -> 193470 | N37: =ROUND(Survivors!N37+Migrants!N247,0) -> 190364 | O37: =ROUND(Survivors!O37+Migrants!O247,0) -> 188575 | P37: =ROUND(Survivors!P37+Migrants!P247,0) -> 189889 | Q37: =ROUND(Survivors!Q37+Migrants!Q247,0) -> 191205 | R37: =ROUND(Survivors!R37+Migrants!R247,0) -> 193510 | S37: =ROUND(Survivors!S37+Migrants!S247,0) -> 191563 | T37: =ROUND(Survivors!T37+Migrants!T247,0) -> 191387 | U37: =ROUND(Survivors!U37+Migrants!U247,0) -> 190656 | V37: =ROUND(Survivors!V37+Migrants!V247,0) -> 191016 | W37: =ROUND(Survivors!W37+Migrants!W247,0) -> 191437 | X37: =ROUND(Survivors!X37+Migrants!X247,0) -> 192531 | Y37: =ROUND(Survivors!Y37+Migrants!Y247,0) -> 191445 | Z37: =ROUND(Survivors!Z37+Migrants!Z247,0) -> 193101 | AA37: =ROUND(Survivors!AA37+Migrants!AA247,0) -> 196450 | AB37: =ROUND(Survivors!AB37+Migrants!AB247,0) -> 200399 | AC37: =ROUND(Survivors!AC37+Migrants!AC247,0) -> 206200 | AD37: =ROUND(Survivors!AD37+Migrants!AD247,0) -> 207958 | AE37: =ROUND(Survivors!AE37+Migrants!AE247,0) -> 211283 | AF37: =ROUND(Survivors!AF37+Migrants!AF247,0) -> 213705 | AG37: =ROUND(Survivors!AG37+Migrants!AG247,0) -> 216579 | AH37: =ROUND(Survivors!AH37+Migrants!AH247,0) -> 215404 | AI37: =ROUND(Survivors!AI37+Migrants!AI247,0) -> 218236 | AJ37: =ROUND(Survivors!AJ37+Migrants!AJ247,0) -> 220819 | AK37: =ROUND(Survivors!AK37+Migrants!AK247,0) -> 223115 | AL37: =ROUND(Survivors!AL37+Migrants!AL247,0) -> 225371 | AM37: =ROUND(Survivors!AM37+Migrants!AM247,0) -> 227538 | AN37: =ROUND(Survivors!AN37+Migrants!AN247,0) -> 229569 | AO37: =ROUND(Survivors!AO37+Migrants!AO247,0) -> 231365 | AP37: =ROUND(Survivors!AP37+Migrants!AP247,0) -> 232907 | AQ37: =ROUND(Survivors!AQ37+Migrants!AQ247,0) -> 234244 | AR37: =ROUND(Survivors!AR37+Migrants!AR247,0) -> 235376 | AS37: =ROUND(Survivors!AS37+Migrants!AS247,0) -> 236303 | AT37: =ROUND(Survivors!AT37+Migrants!AT247,0) -> 237051 | AU37: =ROUND(Survivors!AU37+Migrants!AU247,0) -> 237665 | AV37: =ROUND(Survivors!AV37+Migrants!AV247,0) -> 238178 | AW37: =ROUND(Survivors!AW37+Migrants!AW247,0) -> 238615 | AX37: =ROUND(Survivors!AX37+Migrants!AX247,0) -> 238989 | AY37: =ROUND(Survivors!AY37+Migrants!AY247,0) -> 239376 | AZ37: =ROUND(Survivors!AZ37+Migrants!AZ247,0) -> 239831 | BA37: =ROUND(Survivors!BA37+Migrants!BA247,0) -> 240335 | BB37: =ROUND(Survivors!BB37+Migrants!BB247,0) -> 240940 | BC37: =ROUND(Survivors!BC37+Migrants!BC247,0) -> 241669 | BD37: =ROUND(Survivors!BD37+Migrants!BD247,0) -> 242547 | BE37: =ROUND(Survivors!BE37+Migrants!BE247,0) -> 243595 | BF37: =ROUND(Survivors!BF37+Migrants!BF247,0) -> 244802 | BG37: =ROUND(Survivors!BG37+Migrants!BG247,0) -> 246175 | BH37: =ROUND(Survivors!BH37+Migrants!BH247,0) -> 247688 | BI37: =ROUND(Survivors!BI37+Migrants!BI247,0) -> 249312 | BJ37: =ROUND(Survivors!BJ37+Migrants!BJ247,0) -> 251025 | BK37: =ROUND(Survivors!BK37+Migrants!BK247,0) -> 252816 | BL37: =ROUND(Survivors!BL37+Migrants!BL247,0) -> 254653 | BM37: =ROUND(Survivors!BM37+Migrants!BM247,0) -> 256500 | BN37: =ROUND(Survivors!BN37+Migrants!BN247,0) -> 258336 | BO37: =ROUND(Survivors!BO37+Migrants!BO247,0) -> 260142 | BP37: =ROUND(Survivors!BP37+Migrants!BP247,0) -> 261893 | BQ37: =ROUND(Survivors!BQ37+Migrants!BQ247,0) -> 263577 | BR37: =ROUND(Survivors!BR37+Migrants!BR247,0) -> 265180 | BS37: =ROUND(Survivors!BS37+Migrants!BS247,0) -> 266709 | BT37: =ROUND(Survivors!BT37+Migrants!BT247,0) -> 268163 | BU37: =ROUND(Survivors!BU37+Migrants!BU247,0) -> 269530 | BV37: =ROUND(Survivors!BV37+Migrants!BV247,0) -> 270813 | BW37: =ROUND(Survivors!BW37+Migrants!BW247,0) -> 272013 | BX37: =ROUND(Survivors!BX37+Migrants!BX247,0) -> 273130 | BY37: =ROUND(Survivors!BY37+Migrants!BY247,0) -> 274154 | BZ37: =ROUND(Survivors!BZ37+Migrants!BZ247,0) -> 275105 | CA37: =ROUND(Survivors!CA37+Migrants!CA247,0) -> 275986 | CB37: =ROUND(Survivors!CB37+Migrants!CB247,0) -> 276806 | CC37: =ROUND(Survivors!CC37+Migrants!CC247,0) -> 277586 | CD37: =ROUND(Survivors!CD37+Migrants!CD247,0) -> 278340 | CE37: =ROUND(Survivors!CE37+Migrants!CE247,0) -> 279080 | CF37: =ROUND(Survivors!CF37+Migrants!CF247,0) -> 279832 | CG37: =ROUND(Survivors!CG37+Migrants!CG247,0) -> 280606 | CH37: =ROUND(Survivors!CH37+Migrants!CH247,0) -> 281421 | CI37: =ROUND(Survivors!CI37+Migrants!CI247,0) -> 282280 | CJ37: =ROUND(Survivors!CJ37+Migrants!CJ247,0) -> 283198 | CK37: =ROUND(Survivors!CK37+Migrants!CK247,0) -> 284181 | CL37: =ROUND(Survivors!CL37+Migrants!CL247,0) -> 285237 | CM37: =ROUND(Survivors!CM37+Migrants!CM247,0) -> 286357 | CN37: =ROUND(Survivors!CN37+Migrants!CN247,0) -> 287545
A38: 34 | B38: 151598 | C38: =ROUND(Survivors!C38+Migrants!C248,0) -> 157244 | D38: =ROUND(Survivors!D38+Migrants!D248,0) -> 162777 | E38: =ROUND(Survivors!E38+Migrants!E248,0) -> 171744 | F38: =ROUND(Survivors!F38+Migrants!F248,0) -> 177384 | G38: =ROUND(Survivors!G38+Migrants!G248,0) -> 183995 | H38: =ROUND(Survivors!H38+Migrants!H248,0) -> 185137 | I38: =ROUND(Survivors!I38+Migrants!I248,0) -> 187873 | J38: =ROUND(Survivors!J38+Migrants!J248,0) -> 188697 | K38: =ROUND(Survivors!K38+Migrants!K248,0) -> 187947 | L38: =ROUND(Survivors!L38+Migrants!L248,0) -> 188996 | M38: =ROUND(Survivors!M38+Migrants!M248,0) -> 191434 | N38: =ROUND(Survivors!N38+Migrants!N248,0) -> 195136 | O38: =ROUND(Survivors!O38+Migrants!O248,0) -> 192034 | P38: =ROUND(Survivors!P38+Migrants!P248,0) -> 190249 | Q38: =ROUND(Survivors!Q38+Migrants!Q248,0) -> 191563 | R38: =ROUND(Survivors!R38+Migrants!R248,0) -> 192879 | S38: =ROUND(Survivors!S38+Migrants!S248,0) -> 195184 | T38: =ROUND(Survivors!T38+Migrants!T248,0) -> 193240 | U38: =ROUND(Survivors!U38+Migrants!U248,0) -> 193065 | V38: =ROUND(Survivors!V38+Migrants!V248,0) -> 192336 | W38: =ROUND(Survivors!W38+Migrants!W248,0) -> 192698 | X38: =ROUND(Survivors!X38+Migrants!X248,0) -> 193120 | Y38: =ROUND(Survivors!Y38+Migrants!Y248,0) -> 194214 | Z38: =ROUND(Survivors!Z38+Migrants!Z248,0) -> 193130 | AA38: =ROUND(Survivors!AA38+Migrants!AA248,0) -> 194786 | AB38: =ROUND(Survivors!AB38+Migrants!AB248,0) -> 198134 | AC38: =ROUND(Survivors!AC38+Migrants!AC248,0) -> 202081 | AD38: =ROUND(Survivors!AD38+Migrants!AD248,0) -> 207879 | AE38: =ROUND(Survivors!AE38+Migrants!AE248,0) -> 209637 | AF38: =ROUND(Survivors!AF38+Migrants!AF248,0) -> 212961 | AG38: =ROUND(Survivors!AG38+Migrants!AG248,0) -> 215383 | AH38: =ROUND(Survivors!AH38+Migrants!AH248,0) -> 218256 | AI38: =ROUND(Survivors!AI38+Migrants!AI248,0) -> 217083 | AJ38: =ROUND(Survivors!AJ38+Migrants!AJ248,0) -> 219915 | AK38: =ROUND(Survivors!AK38+Migrants!AK248,0) -> 222497 | AL38: =ROUND(Survivors!AL38+Migrants!AL248,0) -> 224793 | AM38: =ROUND(Survivors!AM38+Migrants!AM248,0) -> 227049 | AN38: =ROUND(Survivors!AN38+Migrants!AN248,0) -> 229216 | AO38: =ROUND(Survivors!AO38+Migrants!AO248,0) -> 231247 | AP38: =ROUND(Survivors!AP38+Migrants!AP248,0) -> 233043 | AQ38: =ROUND(Survivors!AQ38+Migrants!AQ248,0) -> 234585 | AR38: =ROUND(Survivors!AR38+Migrants!AR248,0) -> 235924 | AS38: =ROUND(Survivors!AS38+Migrants!AS248,0) -> 237057 | AT38: =ROUND(Survivors!AT38+Migrants!AT248,0) -> 237986 | AU38: =ROUND(Survivors!AU38+Migrants!AU248,0) -> 238736 | AV38: =ROUND(Survivors!AV38+Migrants!AV248,0) -> 239352 | AW38: =ROUND(Survivors!AW38+Migrants!AW248,0) -> 239867 | AX38: =ROUND(Survivors!AX38+Migrants!AX248,0) -> 240305 | AY38: =ROUND(Survivors!AY38+Migrants!AY248,0) -> 240681 | AZ38: =ROUND(Survivors!AZ38+Migrants!AZ248,0) -> 241070 | BA38: =ROUND(Survivors!BA38+Migrants!BA248,0) -> 241527 | BB38: =ROUND(Survivors!BB38+Migrants!BB248,0) -> 242033 | BC38: =ROUND(Survivors!BC38+Migrants!BC248,0) -> 242640 | BD38: =ROUND(Survivors!BD38+Migrants!BD248,0) -> 243370 | BE38: =ROUND(Survivors!BE38+Migrants!BE248,0) -> 244249 | BF38: =ROUND(Survivors!BF38+Migrants!BF248,0) -> 245299 | BG38: =ROUND(Survivors!BG38+Migrants!BG248,0) -> 246507 | BH38: =ROUND(Survivors!BH38+Migrants!BH248,0) -> 247881 | BI38: =ROUND(Survivors!BI38+Migrants!BI248,0) -> 249395 | BJ38: =ROUND(Survivors!BJ38+Migrants!BJ248,0) -> 251020 | BK38: =ROUND(Survivors!BK38+Migrants!BK248,0) -> 252734 | BL38: =ROUND(Survivors!BL38+Migrants!BL248,0) -> 254525 | BM38: =ROUND(Survivors!BM38+Migrants!BM248,0) -> 256363 | BN38: =ROUND(Survivors!BN38+Migrants!BN248,0) -> 258211 | BO38: =ROUND(Survivors!BO38+Migrants!BO248,0) -> 260047 | BP38: =ROUND(Survivors!BP38+Migrants!BP248,0) -> 261854 | BQ38: =ROUND(Survivors!BQ38+Migrants!BQ248,0) -> 263605 | BR38: =ROUND(Survivors!BR38+Migrants!BR248,0) -> 265290 | BS38: =ROUND(Survivors!BS38+Migrants!BS248,0) -> 266893 | BT38: =ROUND(Survivors!BT38+Migrants!BT248,0) -> 268423 | BU38: =ROUND(Survivors!BU38+Migrants!BU248,0) -> 269877 | BV38: =ROUND(Survivors!BV38+Migrants!BV248,0) -> 271245 | BW38: =ROUND(Survivors!BW38+Migrants!BW248,0) -> 272528 | BX38: =ROUND(Survivors!BX38+Migrants!BX248,0) -> 273729 | BY38: =ROUND(Survivors!BY38+Migrants!BY248,0) -> 274846 | BZ38: =ROUND(Survivors!BZ38+Migrants!BZ248,0) -> 275871 | CA38: =ROUND(Survivors!CA38+Migrants!CA248,0) -> 276822 | CB38: =ROUND(Survivors!CB38+Migrants!CB248,0) -> 277704 | CC38: =ROUND(Survivors!CC38+Migrants!CC248,0) -> 278524 | CD38: =ROUND(Survivors!CD38+Migrants!CD248,0) -> 279305 | CE38: =ROUND(Survivors!CE38+Migrants!CE248,0) -> 280059 | CF38: =ROUND(Survivors!CF38+Migrants!CF248,0) -> 280799 | CG38: =ROUND(Survivors!CG38+Migrants!CG248,0) -> 281552 | CH38: =ROUND(Survivors!CH38+Migrants!CH248,0) -> 282326 | CI38: =ROUND(Survivors!CI38+Migrants!CI248,0) -> 283141 | CJ38: =ROUND(Survivors!CJ38+Migrants!CJ248,0) -> 284001 | CK38: =ROUND(Survivors!CK38+Migrants!CK248,0) -> 284919 | CL38: =ROUND(Survivors!CL38+Migrants!CL248,0) -> 285902 | CM38: =ROUND(Survivors!CM38+Migrants!CM248,0) -> 286958 | CN38: =ROUND(Survivors!CN38+Migrants!CN248,0) -> 288078
A39: 35 | B39: 151016 | C39: =ROUND(Survivors!C39+Migrants!C249,0) -> 153866 | D39: =ROUND(Survivors!D39+Migrants!D249,0) -> 159391 | E39: =ROUND(Survivors!E39+Migrants!E249,0) -> 164804 | F39: =ROUND(Survivors!F39+Migrants!F249,0) -> 173647 | G39: =ROUND(Survivors!G39+Migrants!G249,0) -> 179166 | H39: =ROUND(Survivors!H39+Migrants!H249,0) -> 185656 | I39: =ROUND(Survivors!I39+Migrants!I249,0) -> 186798 | J39: =ROUND(Survivors!J39+Migrants!J249,0) -> 189533 | K39: =ROUND(Survivors!K39+Migrants!K249,0) -> 190358 | L39: =ROUND(Survivors!L39+Migrants!L249,0) -> 189610 | M39: =ROUND(Survivors!M39+Migrants!M249,0) -> 190660 | N39: =ROUND(Survivors!N39+Migrants!N249,0) -> 193097 | O39: =ROUND(Survivors!O39+Migrants!O249,0) -> 196797 | P39: =ROUND(Survivors!P39+Migrants!P249,0) -> 193700 | Q39: =ROUND(Survivors!Q39+Migrants!Q249,0) -> 191918 | R39: =ROUND(Survivors!R39+Migrants!R249,0) -> 193232 | S39: =ROUND(Survivors!S39+Migrants!S249,0) -> 194548 | T39: =ROUND(Survivors!T39+Migrants!T249,0) -> 196853 | U39: =ROUND(Survivors!U39+Migrants!U249,0) -> 194912 | V39: =ROUND(Survivors!V39+Migrants!V249,0) -> 194739 | W39: =ROUND(Survivors!W39+Migrants!W249,0) -> 194012 | X39: =ROUND(Survivors!X39+Migrants!X249,0) -> 194375 | Y39: =ROUND(Survivors!Y39+Migrants!Y249,0) -> 194798 | Z39: =ROUND(Survivors!Z39+Migrants!Z249,0) -> 195892 | AA39: =ROUND(Survivors!AA39+Migrants!AA249,0) -> 194811 | AB39: =ROUND(Survivors!AB39+Migrants!AB249,0) -> 196467 | AC39: =ROUND(Survivors!AC39+Migrants!AC249,0) -> 199813 | AD39: =ROUND(Survivors!AD39+Migrants!AD249,0) -> 203759 | AE39: =ROUND(Survivors!AE39+Migrants!AE249,0) -> 209553 | AF39: =ROUND(Survivors!AF39+Migrants!AF249,0) -> 211311 | AG39: =ROUND(Survivors!AG39+Migrants!AG249,0) -> 214634 | AH39: =ROUND(Survivors!AH39+Migrants!AH249,0) -> 217056 | AI39: =ROUND(Survivors!AI39+Migrants!AI249,0) -> 219928 | AJ39: =ROUND(Survivors!AJ39+Migrants!AJ249,0) -> 218757 | AK39: =ROUND(Survivors!AK39+Migrants!AK249,0) -> 221588 | AL39: =ROUND(Survivors!AL39+Migrants!AL249,0) -> 224170 | AM39: =ROUND(Survivors!AM39+Migrants!AM249,0) -> 226466 | AN39: =ROUND(Survivors!AN39+Migrants!AN249,0) -> 228721 | AO39: =ROUND(Survivors!AO39+Migrants!AO249,0) -> 230888 | AP39: =ROUND(Survivors!AP39+Migrants!AP249,0) -> 232919 | AQ39: =ROUND(Survivors!AQ39+Migrants!AQ249,0) -> 234715 | AR39: =ROUND(Survivors!AR39+Migrants!AR249,0) -> 236259 | AS39: =ROUND(Survivors!AS39+Migrants!AS249,0) -> 237599 | AT39: =ROUND(Survivors!AT39+Migrants!AT249,0) -> 238734 | AU39: =ROUND(Survivors!AU39+Migrants!AU249,0) -> 239665 | AV39: =ROUND(Survivors!AV39+Migrants!AV249,0) -> 240417 | AW39: =ROUND(Survivors!AW39+Migrants!AW249,0) -> 241035 | AX39: =ROUND(Survivors!AX39+Migrants!AX249,0) -> 241552 | AY39: =ROUND(Survivors!AY39+Migrants!AY249,0) -> 241992 | AZ39: =ROUND(Survivors!AZ39+Migrants!AZ249,0) -> 242370 | BA39: =ROUND(Survivors!BA39+Migrants!BA249,0) -> 242761 | BB39: =ROUND(Survivors!BB39+Migrants!BB249,0) -> 243220 | BC39: =ROUND(Survivors!BC39+Migrants!BC249,0) -> 243727 | BD39: =ROUND(Survivors!BD39+Migrants!BD249,0) -> 244336 | BE39: =ROUND(Survivors!BE39+Migrants!BE249,0) -> 245068 | BF39: =ROUND(Survivors!BF39+Migrants!BF249,0) -> 245948 | BG39: =ROUND(Survivors!BG39+Migrants!BG249,0) -> 247000 | BH39: =ROUND(Survivors!BH39+Migrants!BH249,0) -> 248209 | BI39: =ROUND(Survivors!BI39+Migrants!BI249,0) -> 249584 | BJ39: =ROUND(Survivors!BJ39+Migrants!BJ249,0) -> 251099 | BK39: =ROUND(Survivors!BK39+Migrants!BK249,0) -> 252725 | BL39: =ROUND(Survivors!BL39+Migrants!BL249,0) -> 254440 | BM39: =ROUND(Survivors!BM39+Migrants!BM249,0) -> 256231 | BN39: =ROUND(Survivors!BN39+Migrants!BN249,0) -> 258070 | BO39: =ROUND(Survivors!BO39+Migrants!BO249,0) -> 259918 | BP39: =ROUND(Survivors!BP39+Migrants!BP249,0) -> 261755 | BQ39: =ROUND(Survivors!BQ39+Migrants!BQ249,0) -> 263563 | BR39: =ROUND(Survivors!BR39+Migrants!BR249,0) -> 265314 | BS39: =ROUND(Survivors!BS39+Migrants!BS249,0) -> 267000 | BT39: =ROUND(Survivors!BT39+Migrants!BT249,0) -> 268603 | BU39: =ROUND(Survivors!BU39+Migrants!BU249,0) -> 270134 | BV39: =ROUND(Survivors!BV39+Migrants!BV249,0) -> 271588 | BW39: =ROUND(Survivors!BW39+Migrants!BW249,0) -> 272957 | BX39: =ROUND(Survivors!BX39+Migrants!BX249,0) -> 274240 | BY39: =ROUND(Survivors!BY39+Migrants!BY249,0) -> 275442 | BZ39: =ROUND(Survivors!BZ39+Migrants!BZ249,0) -> 276559 | CA39: =ROUND(Survivors!CA39+Migrants!CA249,0) -> 277585 | CB39: =ROUND(Survivors!CB39+Migrants!CB249,0) -> 278536 | CC39: =ROUND(Survivors!CC39+Migrants!CC249,0) -> 279419 | CD39: =ROUND(Survivors!CD39+Migrants!CD249,0) -> 280239 | CE39: =ROUND(Survivors!CE39+Migrants!CE249,0) -> 281020 | CF39: =ROUND(Survivors!CF39+Migrants!CF249,0) -> 281775 | CG39: =ROUND(Survivors!CG39+Migrants!CG249,0) -> 282515 | CH39: =ROUND(Survivors!CH39+Migrants!CH249,0) -> 283269 | CI39: =ROUND(Survivors!CI39+Migrants!CI249,0) -> 284043 | CJ39: =ROUND(Survivors!CJ39+Migrants!CJ249,0) -> 284858 | CK39: =ROUND(Survivors!CK39+Migrants!CK249,0) -> 285718 | CL39: =ROUND(Survivors!CL39+Migrants!CL249,0) -> 286637 | CM39: =ROUND(Survivors!CM39+Migrants!CM249,0) -> 287620 | CN39: =ROUND(Survivors!CN39+Migrants!CN249,0) -> 288676
A40: 36 | B40: 151425 | C40: =ROUND(Survivors!C40+Migrants!C250,0) -> 153239 | D40: =ROUND(Survivors!D40+Migrants!D250,0) -> 155973 | E40: =ROUND(Survivors!E40+Migrants!E250,0) -> 161380 | F40: =ROUND(Survivors!F40+Migrants!F250,0) -> 166674 | G40: =ROUND(Survivors!G40+Migrants!G250,0) -> 175395 | H40: =ROUND(Survivors!H40+Migrants!H250,0) -> 180796 | I40: =ROUND(Survivors!I40+Migrants!I250,0) -> 187281 | J40: =ROUND(Survivors!J40+Migrants!J250,0) -> 188423 | K40: =ROUND(Survivors!K40+Migrants!K250,0) -> 191157 | L40: =ROUND(Survivors!L40+Migrants!L250,0) -> 191983 | M40: =ROUND(Survivors!M40+Migrants!M250,0) -> 191238 | N40: =ROUND(Survivors!N40+Migrants!N250,0) -> 192288 | O40: =ROUND(Survivors!O40+Migrants!O250,0) -> 194725 | P40: =ROUND(Survivors!P40+Migrants!P250,0) -> 198423 | Q40: =ROUND(Survivors!Q40+Migrants!Q250,0) -> 195330 | R40: =ROUND(Survivors!R40+Migrants!R250,0) -> 193552 | S40: =ROUND(Survivors!S40+Migrants!S250,0) -> 194866 | T40: =ROUND(Survivors!T40+Migrants!T250,0) -> 196183 | U40: =ROUND(Survivors!U40+Migrants!U250,0) -> 198487 | V40: =ROUND(Survivors!V40+Migrants!V250,0) -> 196550 | W40: =ROUND(Survivors!W40+Migrants!W250,0) -> 196378 | X40: =ROUND(Survivors!X40+Migrants!X250,0) -> 195654 | Y40: =ROUND(Survivors!Y40+Migrants!Y250,0) -> 196018 | Z40: =ROUND(Survivors!Z40+Migrants!Z250,0) -> 196442 | AA40: =ROUND(Survivors!AA40+Migrants!AA250,0) -> 197537 | AB40: =ROUND(Survivors!AB40+Migrants!AB250,0) -> 196458 | AC40: =ROUND(Survivors!AC40+Migrants!AC250,0) -> 198114 | AD40: =ROUND(Survivors!AD40+Migrants!AD250,0) -> 201459 | AE40: =ROUND(Survivors!AE40+Migrants!AE250,0) -> 205403 | AF40: =ROUND(Survivors!AF40+Migrants!AF250,0) -> 211194 | AG40: =ROUND(Survivors!AG40+Migrants!AG250,0) -> 212952 | AH40: =ROUND(Survivors!AH40+Migrants!AH250,0) -> 216274 | AI40: =ROUND(Survivors!AI40+Migrants!AI250,0) -> 218696 | AJ40: =ROUND(Survivors!AJ40+Migrants!AJ250,0) -> 221567 | AK40: =ROUND(Survivors!AK40+Migrants!AK250,0) -> 220398 | AL40: =ROUND(Survivors!AL40+Migrants!AL250,0) -> 223229 | AM40: =ROUND(Survivors!AM40+Migrants!AM250,0) -> 225810 | AN40: =ROUND(Survivors!AN40+Migrants!AN250,0) -> 228106 | AO40: =ROUND(Survivors!AO40+Migrants!AO250,0) -> 230361 | AP40: =ROUND(Survivors!AP40+Migrants!AP250,0) -> 232528 | AQ40: =ROUND(Survivors!AQ40+Migrants!AQ250,0) -> 234559 | AR40: =ROUND(Survivors!AR40+Migrants!AR250,0) -> 236356 | AS40: =ROUND(Survivors!AS40+Migrants!AS250,0) -> 237902 | AT40: =ROUND(Survivors!AT40+Migrants!AT250,0) -> 239243 | AU40: =ROUND(Survivors!AU40+Migrants!AU250,0) -> 240380 | AV40: =ROUND(Survivors!AV40+Migrants!AV250,0) -> 241313 | AW40: =ROUND(Survivors!AW40+Migrants!AW250,0) -> 242067 | AX40: =ROUND(Survivors!AX40+Migrants!AX250,0) -> 242687 | AY40: =ROUND(Survivors!AY40+Migrants!AY250,0) -> 243206 | AZ40: =ROUND(Survivors!AZ40+Migrants!AZ250,0) -> 243648 | BA40: =ROUND(Survivors!BA40+Migrants!BA250,0) -> 244028 | BB40: =ROUND(Survivors!BB40+Migrants!BB250,0) -> 244421 | BC40: =ROUND(Survivors!BC40+Migrants!BC250,0) -> 244882 | BD40: =ROUND(Survivors!BD40+Migrants!BD250,0) -> 245391 | BE40: =ROUND(Survivors!BE40+Migrants!BE250,0) -> 246001 | BF40: =ROUND(Survivors!BF40+Migrants!BF250,0) -> 246735 | BG40: =ROUND(Survivors!BG40+Migrants!BG250,0) -> 247616 | BH40: =ROUND(Survivors!BH40+Migrants!BH250,0) -> 248670 | BI40: =ROUND(Survivors!BI40+Migrants!BI250,0) -> 249880 | BJ40: =ROUND(Survivors!BJ40+Migrants!BJ250,0) -> 251256 | BK40: =ROUND(Survivors!BK40+Migrants!BK250,0) -> 252772 | BL40: =ROUND(Survivors!BL40+Migrants!BL250,0) -> 254399 | BM40: =ROUND(Survivors!BM40+Migrants!BM250,0) -> 256115 | BN40: =ROUND(Survivors!BN40+Migrants!BN250,0) -> 257906 | BO40: =ROUND(Survivors!BO40+Migrants!BO250,0) -> 259746 | BP40: =ROUND(Survivors!BP40+Migrants!BP250,0) -> 261594 | BQ40: =ROUND(Survivors!BQ40+Migrants!BQ250,0) -> 263432 | BR40: =ROUND(Survivors!BR40+Migrants!BR250,0) -> 265240 | BS40: =ROUND(Survivors!BS40+Migrants!BS250,0) -> 266992 | BT40: =ROUND(Survivors!BT40+Migrants!BT250,0) -> 268678 | BU40: =ROUND(Survivors!BU40+Migrants!BU250,0) -> 270282 | BV40: =ROUND(Survivors!BV40+Migrants!BV250,0) -> 271813 | BW40: =ROUND(Survivors!BW40+Migrants!BW250,0) -> 273268 | BX40: =ROUND(Survivors!BX40+Migrants!BX250,0) -> 274637 | BY40: =ROUND(Survivors!BY40+Migrants!BY250,0) -> 275921 | BZ40: =ROUND(Survivors!BZ40+Migrants!BZ250,0) -> 277123 | CA40: =ROUND(Survivors!CA40+Migrants!CA250,0) -> 278241 | CB40: =ROUND(Survivors!CB40+Migrants!CB250,0) -> 279267 | CC40: =ROUND(Survivors!CC40+Migrants!CC250,0) -> 280219 | CD40: =ROUND(Survivors!CD40+Migrants!CD250,0) -> 281102 | CE40: =ROUND(Survivors!CE40+Migrants!CE250,0) -> 281922 | CF40: =ROUND(Survivors!CF40+Migrants!CF250,0) -> 282704 | CG40: =ROUND(Survivors!CG40+Migrants!CG250,0) -> 283459 | CH40: =ROUND(Survivors!CH40+Migrants!CH250,0) -> 284200 | CI40: =ROUND(Survivors!CI40+Migrants!CI250,0) -> 284954 | CJ40: =ROUND(Survivors!CJ40+Migrants!CJ250,0) -> 285728 | CK40: =ROUND(Survivors!CK40+Migrants!CK250,0) -> 286543 | CL40: =ROUND(Survivors!CL40+Migrants!CL250,0) -> 287404 | CM40: =ROUND(Survivors!CM40+Migrants!CM250,0) -> 288323 | CN40: =ROUND(Survivors!CN40+Migrants!CN250,0) -> 289306
A41: 37 | B41: 153808 | C41: =ROUND(Survivors!C41+Migrants!C251,0) -> 153400 | D41: =ROUND(Survivors!D41+Migrants!D251,0) -> 155110 | E41: =ROUND(Survivors!E41+Migrants!E251,0) -> 157740 | F41: =ROUND(Survivors!F41+Migrants!F251,0) -> 163040 | G41: =ROUND(Survivors!G41+Migrants!G251,0) -> 168227 | H41: =ROUND(Survivors!H41+Migrants!H251,0) -> 176837 | I41: =ROUND(Survivors!I41+Migrants!I251,0) -> 182234 | J41: =ROUND(Survivors!J41+Migrants!J251,0) -> 188714 | K41: =ROUND(Survivors!K41+Migrants!K251,0) -> 189857 | L41: =ROUND(Survivors!L41+Migrants!L251,0) -> 192590 | M41: =ROUND(Survivors!M41+Migrants!M251,0) -> 193417 | N41: =ROUND(Survivors!N41+Migrants!N251,0) -> 192675 | O41: =ROUND(Survivors!O41+Migrants!O251,0) -> 193726 | P41: =ROUND(Survivors!P41+Migrants!P251,0) -> 196162 | Q41: =ROUND(Survivors!Q41+Migrants!Q251,0) -> 199859 | R41: =ROUND(Survivors!R41+Migrants!R251,0) -> 196771 | S41: =ROUND(Survivors!S41+Migrants!S251,0) -> 194996 | T41: =ROUND(Survivors!T41+Migrants!T251,0) -> 196311 | U41: =ROUND(Survivors!U41+Migrants!U251,0) -> 197628 | V41: =ROUND(Survivors!V41+Migrants!V251,0) -> 199932 | W41: =ROUND(Survivors!W41+Migrants!W251,0) -> 197999 | X41: =ROUND(Survivors!X41+Migrants!X251,0) -> 197829 | Y41: =ROUND(Survivors!Y41+Migrants!Y251,0) -> 197107 | Z41: =ROUND(Survivors!Z41+Migrants!Z251,0) -> 197473 | AA41: =ROUND(Survivors!AA41+Migrants!AA251,0) -> 197898 | AB41: =ROUND(Survivors!AB41+Migrants!AB251,0) -> 198994 | AC41: =ROUND(Survivors!AC41+Migrants!AC251,0) -> 197917 | AD41: =ROUND(Survivors!AD41+Migrants!AD251,0) -> 199574 | AE41: =ROUND(Survivors!AE41+Migrants!AE251,0) -> 202917 | AF41: =ROUND(Survivors!AF41+Migrants!AF251,0) -> 206860 | AG41: =ROUND(Survivors!AG41+Migrants!AG251,0) -> 212648 | AH41: =ROUND(Survivors!AH41+Migrants!AH251,0) -> 214406 | AI41: =ROUND(Survivors!AI41+Migrants!AI251,0) -> 217727 | AJ41: =ROUND(Survivors!AJ41+Migrants!AJ251,0) -> 220149 | AK41: =ROUND(Survivors!AK41+Migrants!AK251,0) -> 223019 | AL41: =ROUND(Survivors!AL41+Migrants!AL251,0) -> 221853 | AM41: =ROUND(Survivors!AM41+Migrants!AM251,0) -> 224683 | AN41: =ROUND(Survivors!AN41+Migrants!AN251,0) -> 227264 | AO41: =ROUND(Survivors!AO41+Migrants!AO251,0) -> 229560 | AP41: =ROUND(Survivors!AP41+Migrants!AP251,0) -> 231815 | AQ41: =ROUND(Survivors!AQ41+Migrants!AQ251,0) -> 233982 | AR41: =ROUND(Survivors!AR41+Migrants!AR251,0) -> 236014 | AS41: =ROUND(Survivors!AS41+Migrants!AS251,0) -> 237812 | AT41: =ROUND(Survivors!AT41+Migrants!AT251,0) -> 239360 | AU41: =ROUND(Survivors!AU41+Migrants!AU251,0) -> 240702 | AV41: =ROUND(Survivors!AV41+Migrants!AV251,0) -> 241841 | AW41: =ROUND(Survivors!AW41+Migrants!AW251,0) -> 242776 | AX41: =ROUND(Survivors!AX41+Migrants!AX251,0) -> 243532 | AY41: =ROUND(Survivors!AY41+Migrants!AY251,0) -> 244154 | AZ41: =ROUND(Survivors!AZ41+Migrants!AZ251,0) -> 244675 | BA41: =ROUND(Survivors!BA41+Migrants!BA251,0) -> 245119 | BB41: =ROUND(Survivors!BB41+Migrants!BB251,0) -> 245501 | BC41: =ROUND(Survivors!BC41+Migrants!BC251,0) -> 245896 | BD41: =ROUND(Survivors!BD41+Migrants!BD251,0) -> 246359 | BE41: =ROUND(Survivors!BE41+Migrants!BE251,0) -> 246870 | BF41: =ROUND(Survivors!BF41+Migrants!BF251,0) -> 247482 | BG41: =ROUND(Survivors!BG41+Migrants!BG251,0) -> 248217 | BH41: =ROUND(Survivors!BH41+Migrants!BH251,0) -> 249100 | BI41: =ROUND(Survivors!BI41+Migrants!BI251,0) -> 250155 | BJ41: =ROUND(Survivors!BJ41+Migrants!BJ251,0) -> 251366 | BK41: =ROUND(Survivors!BK41+Migrants!BK251,0) -> 252743 | BL41: =ROUND(Survivors!BL41+Migrants!BL251,0) -> 254260 | BM41: =ROUND(Survivors!BM41+Migrants!BM251,0) -> 255888 | BN41: =ROUND(Survivors!BN41+Migrants!BN251,0) -> 257605 | BO41: =ROUND(Survivors!BO41+Migrants!BO251,0) -> 259396 | BP41: =ROUND(Survivors!BP41+Migrants!BP251,0) -> 261237 | BQ41: =ROUND(Survivors!BQ41+Migrants!BQ251,0) -> 263086 | BR41: =ROUND(Survivors!BR41+Migrants!BR251,0) -> 264924 | BS41: =ROUND(Survivors!BS41+Migrants!BS251,0) -> 266733 | BT41: =ROUND(Survivors!BT41+Migrants!BT251,0) -> 268485 | BU41: =ROUND(Survivors!BU41+Migrants!BU251,0) -> 270171 | BV41: =ROUND(Survivors!BV41+Migrants!BV251,0) -> 271776 | BW41: =ROUND(Survivors!BW41+Migrants!BW251,0) -> 273307 | BX41: =ROUND(Survivors!BX41+Migrants!BX251,0) -> 274763 | BY41: =ROUND(Survivors!BY41+Migrants!BY251,0) -> 276132 | BZ41: =ROUND(Survivors!BZ41+Migrants!BZ251,0) -> 277417 | CA41: =ROUND(Survivors!CA41+Migrants!CA251,0) -> 278619 | CB41: =ROUND(Survivors!CB41+Migrants!CB251,0) -> 279737 | CC41: =ROUND(Survivors!CC41+Migrants!CC251,0) -> 280764 | CD41: =ROUND(Survivors!CD41+Migrants!CD251,0) -> 281716 | CE41: =ROUND(Survivors!CE41+Migrants!CE251,0) -> 282600 | CF41: =ROUND(Survivors!CF41+Migrants!CF251,0) -> 283420 | CG41: =ROUND(Survivors!CG41+Migrants!CG251,0) -> 284202 | CH41: =ROUND(Survivors!CH41+Migrants!CH251,0) -> 284958 | CI41: =ROUND(Survivors!CI41+Migrants!CI251,0) -> 285699 | CJ41: =ROUND(Survivors!CJ41+Migrants!CJ251,0) -> 286453 | CK41: =ROUND(Survivors!CK41+Migrants!CK251,0) -> 287228 | CL41: =ROUND(Survivors!CL41+Migrants!CL251,0) -> 288043 | CM41: =ROUND(Survivors!CM41+Migrants!CM251,0) -> 288904 | CN41: =ROUND(Survivors!CN41+Migrants!CN251,0) -> 289823
A42: 38 | B42: 156850 | C42: =ROUND(Survivors!C42+Migrants!C252,0) -> 155604 | D42: =ROUND(Survivors!D42+Migrants!D252,0) -> 155103 | E42: =ROUND(Survivors!E42+Migrants!E252,0) -> 156718 | F42: =ROUND(Survivors!F42+Migrants!F252,0) -> 159252 | G42: =ROUND(Survivors!G42+Migrants!G252,0) -> 164453 | H42: =ROUND(Survivors!H42+Migrants!H252,0) -> 169541 | I42: =ROUND(Survivors!I42+Migrants!I252,0) -> 178143 | J42: =ROUND(Survivors!J42+Migrants!J252,0) -> 183536 | K42: =ROUND(Survivors!K42+Migrants!K252,0) -> 190011 | L42: =ROUND(Survivors!L42+Migrants!L252,0) -> 191155 | M42: =ROUND(Survivors!M42+Migrants!M252,0) -> 193887 | N42: =ROUND(Survivors!N42+Migrants!N252,0) -> 194715 | O42: =ROUND(Survivors!O42+Migrants!O252,0) -> 193976 | P42: =ROUND(Survivors!P42+Migrants!P252,0) -> 195028 | Q42: =ROUND(Survivors!Q42+Migrants!Q252,0) -> 197464 | R42: =ROUND(Survivors!R42+Migrants!R252,0) -> 201159 | S42: =ROUND(Survivors!S42+Migrants!S252,0) -> 198076 | T42: =ROUND(Survivors!T42+Migrants!T252,0) -> 196305 | U42: =ROUND(Survivors!U42+Migrants!U252,0) -> 197621 | V42: =ROUND(Survivors!V42+Migrants!V252,0) -> 198938 | W42: =ROUND(Survivors!W42+Migrants!W252,0) -> 201242 | X42: =ROUND(Survivors!X42+Migrants!X252,0) -> 199313 | Y42: =ROUND(Survivors!Y42+Migrants!Y252,0) -> 199145 | Z42: =ROUND(Survivors!Z42+Migrants!Z252,0) -> 198426 | AA42: =ROUND(Survivors!AA42+Migrants!AA252,0) -> 198793 | AB42: =ROUND(Survivors!AB42+Migrants!AB252,0) -> 199220 | AC42: =ROUND(Survivors!AC42+Migrants!AC252,0) -> 200317 | AD42: =ROUND(Survivors!AD42+Migrants!AD252,0) -> 199242 | AE42: =ROUND(Survivors!AE42+Migrants!AE252,0) -> 200900 | AF42: =ROUND(Survivors!AF42+Migrants!AF252,0) -> 204242 | AG42: =ROUND(Survivors!AG42+Migrants!AG252,0) -> 208183 | AH42: =ROUND(Survivors!AH42+Migrants!AH252,0) -> 213968 | AI42: =ROUND(Survivors!AI42+Migrants!AI252,0) -> 215726 | AJ42: =ROUND(Survivors!AJ42+Migrants!AJ252,0) -> 219046 | AK42: =ROUND(Survivors!AK42+Migrants!AK252,0) -> 221468 | AL42: =ROUND(Survivors!AL42+Migrants!AL252,0) -> 224338 | AM42: =ROUND(Survivors!AM42+Migrants!AM252,0) -> 223174 | AN42: =ROUND(Survivors!AN42+Migrants!AN252,0) -> 226004 | AO42: =ROUND(Survivors!AO42+Migrants!AO252,0) -> 228585 | AP42: =ROUND(Survivors!AP42+Migrants!AP252,0) -> 230881 | AQ42: =ROUND(Survivors!AQ42+Migrants!AQ252,0) -> 233136 | AR42: =ROUND(Survivors!AR42+Migrants!AR252,0) -> 235304 | AS42: =ROUND(Survivors!AS42+Migrants!AS252,0) -> 237337 | AT42: =ROUND(Survivors!AT42+Migrants!AT252,0) -> 239136 | AU42: =ROUND(Survivors!AU42+Migrants!AU252,0) -> 240686 | AV42: =ROUND(Survivors!AV42+Migrants!AV252,0) -> 242029 | AW42: =ROUND(Survivors!AW42+Migrants!AW252,0) -> 243170 | AX42: =ROUND(Survivors!AX42+Migrants!AX252,0) -> 244107 | AY42: =ROUND(Survivors!AY42+Migrants!AY252,0) -> 244865 | AZ42: =ROUND(Survivors!AZ42+Migrants!AZ252,0) -> 245489 | BA42: =ROUND(Survivors!BA42+Migrants!BA252,0) -> 246012 | BB42: =ROUND(Survivors!BB42+Migrants!BB252,0) -> 246458 | BC42: =ROUND(Survivors!BC42+Migrants!BC252,0) -> 246842 | BD42: =ROUND(Survivors!BD42+Migrants!BD252,0) -> 247239 | BE42: =ROUND(Survivors!BE42+Migrants!BE252,0) -> 247704 | BF42: =ROUND(Survivors!BF42+Migrants!BF252,0) -> 248217 | BG42: =ROUND(Survivors!BG42+Migrants!BG252,0) -> 248831 | BH42: =ROUND(Survivors!BH42+Migrants!BH252,0) -> 249568 | BI42: =ROUND(Survivors!BI42+Migrants!BI252,0) -> 250452 | BJ42: =ROUND(Survivors!BJ42+Migrants!BJ252,0) -> 251509 | BK42: =ROUND(Survivors!BK42+Migrants!BK252,0) -> 252721 | BL42: =ROUND(Survivors!BL42+Migrants!BL252,0) -> 254099 | BM42: =ROUND(Survivors!BM42+Migrants!BM252,0) -> 255617 | BN42: =ROUND(Survivors!BN42+Migrants!BN252,0) -> 257246 | BO42: =ROUND(Survivors!BO42+Migrants!BO252,0) -> 258963 | BP42: =ROUND(Survivors!BP42+Migrants!BP252,0) -> 260755 | BQ42: =ROUND(Survivors!BQ42+Migrants!BQ252,0) -> 262596 | BR42: =ROUND(Survivors!BR42+Migrants!BR252,0) -> 264446 | BS42: =ROUND(Survivors!BS42+Migrants!BS252,0) -> 266284 | BT42: =ROUND(Survivors!BT42+Migrants!BT252,0) -> 268094 | BU42: =ROUND(Survivors!BU42+Migrants!BU252,0) -> 269846 | BV42: =ROUND(Survivors!BV42+Migrants!BV252,0) -> 271533 | BW42: =ROUND(Survivors!BW42+Migrants!BW252,0) -> 273138 | BX42: =ROUND(Survivors!BX42+Migrants!BX252,0) -> 274670 | BY42: =ROUND(Survivors!BY42+Migrants!BY252,0) -> 276126 | BZ42: =ROUND(Survivors!BZ42+Migrants!BZ252,0) -> 277495 | CA42: =ROUND(Survivors!CA42+Migrants!CA252,0) -> 278781 | CB42: =ROUND(Survivors!CB42+Migrants!CB252,0) -> 279983 | CC42: =ROUND(Survivors!CC42+Migrants!CC252,0) -> 281101 | CD42: =ROUND(Survivors!CD42+Migrants!CD252,0) -> 282129 | CE42: =ROUND(Survivors!CE42+Migrants!CE252,0) -> 283081 | CF42: =ROUND(Survivors!CF42+Migrants!CF252,0) -> 283966 | CG42: =ROUND(Survivors!CG42+Migrants!CG252,0) -> 284786 | CH42: =ROUND(Survivors!CH42+Migrants!CH252,0) -> 285568 | CI42: =ROUND(Survivors!CI42+Migrants!CI252,0) -> 286325 | CJ42: =ROUND(Survivors!CJ42+Migrants!CJ252,0) -> 287066 | CK42: =ROUND(Survivors!CK42+Migrants!CK252,0) -> 287820 | CL42: =ROUND(Survivors!CL42+Migrants!CL252,0) -> 288596 | CM42: =ROUND(Survivors!CM42+Migrants!CM252,0) -> 289411 | CN42: =ROUND(Survivors!CN42+Migrants!CN252,0) -> 290272
A43: 39 | B43: 160788 | C43: =ROUND(Survivors!C43+Migrants!C253,0) -> 158602 | D43: =ROUND(Survivors!D43+Migrants!D253,0) -> 157266 | E43: =ROUND(Survivors!E43+Migrants!E253,0) -> 156675 | F43: =ROUND(Survivors!F43+Migrants!F253,0) -> 158197 | G43: =ROUND(Survivors!G43+Migrants!G253,0) -> 160636 | H43: =ROUND(Survivors!H43+Migrants!H253,0) -> 165740 | I43: =ROUND(Survivors!I43+Migrants!I253,0) -> 170824 | J43: =ROUND(Survivors!J43+Migrants!J253,0) -> 179418 | K43: =ROUND(Survivors!K43+Migrants!K253,0) -> 184808 | L43: =ROUND(Survivors!L43+Migrants!L253,0) -> 191278 | M43: =ROUND(Survivors!M43+Migrants!M253,0) -> 192423 | N43: =ROUND(Survivors!N43+Migrants!N253,0) -> 195154 | O43: =ROUND(Survivors!O43+Migrants!O253,0) -> 195984 | P43: =ROUND(Survivors!P43+Migrants!P253,0) -> 195248 | Q43: =ROUND(Survivors!Q43+Migrants!Q253,0) -> 196301 | R43: =ROUND(Survivors!R43+Migrants!R253,0) -> 198737 | S43: =ROUND(Survivors!S43+Migrants!S253,0) -> 202431 | T43: =ROUND(Survivors!T43+Migrants!T253,0) -> 199353 | U43: =ROUND(Survivors!U43+Migrants!U253,0) -> 197587 | V43: =ROUND(Survivors!V43+Migrants!V253,0) -> 198904 | W43: =ROUND(Survivors!W43+Migrants!W253,0) -> 200222 | X43: =ROUND(Survivors!X43+Migrants!X253,0) -> 202526 | Y43: =ROUND(Survivors!Y43+Migrants!Y253,0) -> 200601 | Z43: =ROUND(Survivors!Z43+Migrants!Z253,0) -> 200435 | AA43: =ROUND(Survivors!AA43+Migrants!AA253,0) -> 199719 | AB43: =ROUND(Survivors!AB43+Migrants!AB253,0) -> 200088 | AC43: =ROUND(Survivors!AC43+Migrants!AC253,0) -> 200517 | AD43: =ROUND(Survivors!AD43+Migrants!AD253,0) -> 201615 | AE43: =ROUND(Survivors!AE43+Migrants!AE253,0) -> 200543 | AF43: =ROUND(Survivors!AF43+Migrants!AF253,0) -> 202201 | AG43: =ROUND(Survivors!AG43+Migrants!AG253,0) -> 205543 | AH43: =ROUND(Survivors!AH43+Migrants!AH253,0) -> 209482 | AI43: =ROUND(Survivors!AI43+Migrants!AI253,0) -> 215264 | AJ43: =ROUND(Survivors!AJ43+Migrants!AJ253,0) -> 217023 | AK43: =ROUND(Survivors!AK43+Migrants!AK253,0) -> 220342 | AL43: =ROUND(Survivors!AL43+Migrants!AL253,0) -> 222764 | AM43: =ROUND(Survivors!AM43+Migrants!AM253,0) -> 225634 | AN43: =ROUND(Survivors!AN43+Migrants!AN253,0) -> 224473 | AO43: =ROUND(Survivors!AO43+Migrants!AO253,0) -> 227303 | AP43: =ROUND(Survivors!AP43+Migrants!AP253,0) -> 229884 | AQ43: =ROUND(Survivors!AQ43+Migrants!AQ253,0) -> 232180 | AR43: =ROUND(Survivors!AR43+Migrants!AR253,0) -> 234436 | AS43: =ROUND(Survivors!AS43+Migrants!AS253,0) -> 236605 | AT43: =ROUND(Survivors!AT43+Migrants!AT253,0) -> 238639 | AU43: =ROUND(Survivors!AU43+Migrants!AU253,0) -> 240440 | AV43: =ROUND(Survivors!AV43+Migrants!AV253,0) -> 241991 | AW43: =ROUND(Survivors!AW43+Migrants!AW253,0) -> 243336 | AX43: =ROUND(Survivors!AX43+Migrants!AX253,0) -> 244478 | AY43: =ROUND(Survivors!AY43+Migrants!AY253,0) -> 245417 | AZ43: =ROUND(Survivors!AZ43+Migrants!AZ253,0) -> 246177 | BA43: =ROUND(Survivors!BA43+Migrants!BA253,0) -> 246803 | BB43: =ROUND(Survivors!BB43+Migrants!BB253,0) -> 247328 | BC43: =ROUND(Survivors!BC43+Migrants!BC253,0) -> 247776 | BD43: =ROUND(Survivors!BD43+Migrants!BD253,0) -> 248162 | BE43: =ROUND(Survivors!BE43+Migrants!BE253,0) -> 248561 | BF43: =ROUND(Survivors!BF43+Migrants!BF253,0) -> 249028 | BG43: =ROUND(Survivors!BG43+Migrants!BG253,0) -> 249543 | BH43: =ROUND(Survivors!BH43+Migrants!BH253,0) -> 250159 | BI43: =ROUND(Survivors!BI43+Migrants!BI253,0) -> 250897 | BJ43: =ROUND(Survivors!BJ43+Migrants!BJ253,0) -> 251783 | BK43: =ROUND(Survivors!BK43+Migrants!BK253,0) -> 252841 | BL43: =ROUND(Survivors!BL43+Migrants!BL253,0) -> 254054 | BM43: =ROUND(Survivors!BM43+Migrants!BM253,0) -> 255433 | BN43: =ROUND(Survivors!BN43+Migrants!BN253,0) -> 256952 | BO43: =ROUND(Survivors!BO43+Migrants!BO253,0) -> 258582 | BP43: =ROUND(Survivors!BP43+Migrants!BP253,0) -> 260300 | BQ43: =ROUND(Survivors!BQ43+Migrants!BQ253,0) -> 262092 | BR43: =ROUND(Survivors!BR43+Migrants!BR253,0) -> 263934 | BS43: =ROUND(Survivors!BS43+Migrants!BS253,0) -> 265784 | BT43: =ROUND(Survivors!BT43+Migrants!BT253,0) -> 267623 | BU43: =ROUND(Survivors!BU43+Migrants!BU253,0) -> 269433 | BV43: =ROUND(Survivors!BV43+Migrants!BV253,0) -> 271185 | BW43: =ROUND(Survivors!BW43+Migrants!BW253,0) -> 272873 | BX43: =ROUND(Survivors!BX43+Migrants!BX253,0) -> 274478 | BY43: =ROUND(Survivors!BY43+Migrants!BY253,0) -> 276010 | BZ43: =ROUND(Survivors!BZ43+Migrants!BZ253,0) -> 277467 | CA43: =ROUND(Survivors!CA43+Migrants!CA253,0) -> 278836 | CB43: =ROUND(Survivors!CB43+Migrants!CB253,0) -> 280122 | CC43: =ROUND(Survivors!CC43+Migrants!CC253,0) -> 281325 | CD43: =ROUND(Survivors!CD43+Migrants!CD253,0) -> 282443 | CE43: =ROUND(Survivors!CE43+Migrants!CE253,0) -> 283471 | CF43: =ROUND(Survivors!CF43+Migrants!CF253,0) -> 284424 | CG43: =ROUND(Survivors!CG43+Migrants!CG253,0) -> 285309 | CH43: =ROUND(Survivors!CH43+Migrants!CH253,0) -> 286130 | CI43: =ROUND(Survivors!CI43+Migrants!CI253,0) -> 286912 | CJ43: =ROUND(Survivors!CJ43+Migrants!CJ253,0) -> 287669 | CK43: =ROUND(Survivors!CK43+Migrants!CK253,0) -> 288410 | CL43: =ROUND(Survivors!CL43+Migrants!CL253,0) -> 289165 | CM43: =ROUND(Survivors!CM43+Migrants!CM253,0) -> 289941 | CN43: =ROUND(Survivors!CN43+Migrants!CN253,0) -> 290756
A44: 40 | B44: 167479 | C44: =ROUND(Survivors!C44+Migrants!C254,0) -> 162412 | D44: =ROUND(Survivors!D44+Migrants!D254,0) -> 160144 | E44: =ROUND(Survivors!E44+Migrants!E254,0) -> 158724 | F44: =ROUND(Survivors!F44+Migrants!F254,0) -> 158048 | G44: =ROUND(Survivors!G44+Migrants!G254,0) -> 159483 | H44: =ROUND(Survivors!H44+Migrants!H254,0) -> 161833 | I44: =ROUND(Survivors!I44+Migrants!I254,0) -> 166933 | J44: =ROUND(Survivors!J44+Migrants!J254,0) -> 172013 | K44: =ROUND(Survivors!K44+Migrants!K254,0) -> 180600 | L44: =ROUND(Survivors!L44+Migrants!L254,0) -> 185986 | M44: =ROUND(Survivors!M44+Migrants!M254,0) -> 192451 | N44: =ROUND(Survivors!N44+Migrants!N254,0) -> 193597 | O44: =ROUND(Survivors!O44+Migrants!O254,0) -> 196328 | P44: =ROUND(Survivors!P44+Migrants!P254,0) -> 197160 | Q44: =ROUND(Survivors!Q44+Migrants!Q254,0) -> 196427 | R44: =ROUND(Survivors!R44+Migrants!R254,0) -> 197482 | S44: =ROUND(Survivors!S44+Migrants!S254,0) -> 199918 | T44: =ROUND(Survivors!T44+Migrants!T254,0) -> 203611 | U44: =ROUND(Survivors!U44+Migrants!U254,0) -> 200539 | V44: =ROUND(Survivors!V44+Migrants!V254,0) -> 198777 | W44: =ROUND(Survivors!W44+Migrants!W254,0) -> 200095 | X44: =ROUND(Survivors!X44+Migrants!X254,0) -> 201415 | Y44: =ROUND(Survivors!Y44+Migrants!Y254,0) -> 203719 | Z44: =ROUND(Survivors!Z44+Migrants!Z254,0) -> 201798 | AA44: =ROUND(Survivors!AA44+Migrants!AA254,0) -> 201635 | AB44: =ROUND(Survivors!AB44+Migrants!AB254,0) -> 200922 | AC44: =ROUND(Survivors!AC44+Migrants!AC254,0) -> 201293 | AD44: =ROUND(Survivors!AD44+Migrants!AD254,0) -> 201724 | AE44: =ROUND(Survivors!AE44+Migrants!AE254,0) -> 202823 | AF44: =ROUND(Survivors!AF44+Migrants!AF254,0) -> 201755 | AG44: =ROUND(Survivors!AG44+Migrants!AG254,0) -> 203414 | AH44: =ROUND(Survivors!AH44+Migrants!AH254,0) -> 206755 | AI44: =ROUND(Survivors!AI44+Migrants!AI254,0) -> 210693 | AJ44: =ROUND(Survivors!AJ44+Migrants!AJ254,0) -> 216472 | AK44: =ROUND(Survivors!AK44+Migrants!AK254,0) -> 218232 | AL44: =ROUND(Survivors!AL44+Migrants!AL254,0) -> 221550 | AM44: =ROUND(Survivors!AM44+Migrants!AM254,0) -> 223972 | AN44: =ROUND(Survivors!AN44+Migrants!AN254,0) -> 226842 | AO44: =ROUND(Survivors!AO44+Migrants!AO254,0) -> 225685 | AP44: =ROUND(Survivors!AP44+Migrants!AP254,0) -> 228515 | AQ44: =ROUND(Survivors!AQ44+Migrants!AQ254,0) -> 231096 | AR44: =ROUND(Survivors!AR44+Migrants!AR254,0) -> 233393 | AS44: =ROUND(Survivors!AS44+Migrants!AS254,0) -> 235650 | AT44: =ROUND(Survivors!AT44+Migrants!AT254,0) -> 237820 | AU44: =ROUND(Survivors!AU44+Migrants!AU254,0) -> 239855 | AV44: =ROUND(Survivors!AV44+Migrants!AV254,0) -> 241657 | AW44: =ROUND(Survivors!AW44+Migrants!AW254,0) -> 243210 | AX44: =ROUND(Survivors!AX44+Migrants!AX254,0) -> 244556 | AY44: =ROUND(Survivors!AY44+Migrants!AY254,0) -> 245700 | AZ44: =ROUND(Survivors!AZ44+Migrants!AZ254,0) -> 246641 | BA44: =ROUND(Survivors!BA44+Migrants!BA254,0) -> 247403 | BB44: =ROUND(Survivors!BB44+Migrants!BB254,0) -> 248031 | BC44: =ROUND(Survivors!BC44+Migrants!BC254,0) -> 248558 | BD44: =ROUND(Survivors!BD44+Migrants!BD254,0) -> 249008 | BE44: =ROUND(Survivors!BE44+Migrants!BE254,0) -> 249396 | BF44: =ROUND(Survivors!BF44+Migrants!BF254,0) -> 249797 | BG44: =ROUND(Survivors!BG44+Migrants!BG254,0) -> 250266 | BH44: =ROUND(Survivors!BH44+Migrants!BH254,0) -> 250783 | BI44: =ROUND(Survivors!BI44+Migrants!BI254,0) -> 251400 | BJ44: =ROUND(Survivors!BJ44+Migrants!BJ254,0) -> 252140 | BK44: =ROUND(Survivors!BK44+Migrants!BK254,0) -> 253027 | BL44: =ROUND(Survivors!BL44+Migrants!BL254,0) -> 254087 | BM44: =ROUND(Survivors!BM44+Migrants!BM254,0) -> 255301 | BN44: =ROUND(Survivors!BN44+Migrants!BN254,0) -> 256681 | BO44: =ROUND(Survivors!BO44+Migrants!BO254,0) -> 258200 | BP44: =ROUND(Survivors!BP44+Migrants!BP254,0) -> 259831 | BQ44: =ROUND(Survivors!BQ44+Migrants!BQ254,0) -> 261550 | BR44: =ROUND(Survivors!BR44+Migrants!BR254,0) -> 263342 | BS44: =ROUND(Survivors!BS44+Migrants!BS254,0) -> 265185 | BT44: =ROUND(Survivors!BT44+Migrants!BT254,0) -> 267035 | BU44: =ROUND(Survivors!BU44+Migrants!BU254,0) -> 268875 | BV44: =ROUND(Survivors!BV44+Migrants!BV254,0) -> 270685 | BW44: =ROUND(Survivors!BW44+Migrants!BW254,0) -> 272437 | BX44: =ROUND(Survivors!BX44+Migrants!BX254,0) -> 274126 | BY44: =ROUND(Survivors!BY44+Migrants!BY254,0) -> 275731 | BZ44: =ROUND(Survivors!BZ44+Migrants!BZ254,0) -> 277263 | CA44: =ROUND(Survivors!CA44+Migrants!CA254,0) -> 278721 | CB44: =ROUND(Survivors!CB44+Migrants!CB254,0) -> 280090 | CC44: =ROUND(Survivors!CC44+Migrants!CC254,0) -> 281376 | CD44: =ROUND(Survivors!CD44+Migrants!CD254,0) -> 282580 | CE44: =ROUND(Survivors!CE44+Migrants!CE254,0) -> 283698 | CF44: =ROUND(Survivors!CF44+Migrants!CF254,0) -> 284726 | CG44: =ROUND(Survivors!CG44+Migrants!CG254,0) -> 285679 | CH44: =ROUND(Survivors!CH44+Migrants!CH254,0) -> 286565 | CI44: =ROUND(Survivors!CI44+Migrants!CI254,0) -> 287386 | CJ44: =ROUND(Survivors!CJ44+Migrants!CJ254,0) -> 288168 | CK44: =ROUND(Survivors!CK44+Migrants!CK254,0) -> 288926 | CL44: =ROUND(Survivors!CL44+Migrants!CL254,0) -> 289667 | CM44: =ROUND(Survivors!CM44+Migrants!CM254,0) -> 290422 | CN44: =ROUND(Survivors!CN44+Migrants!CN254,0) -> 291198
A45: 41 | B45: 169785 | C45: =ROUND(Survivors!C45+Migrants!C255,0) -> 168793 | D45: =ROUND(Survivors!D45+Migrants!D255,0) -> 163662 | E45: =ROUND(Survivors!E45+Migrants!E255,0) -> 161326 | F45: =ROUND(Survivors!F45+Migrants!F255,0) -> 159836 | G45: =ROUND(Survivors!G45+Migrants!G255,0) -> 159090 | H45: =ROUND(Survivors!H45+Migrants!H255,0) -> 160452 | I45: =ROUND(Survivors!I45+Migrants!I255,0) -> 162801 | J45: =ROUND(Survivors!J45+Migrants!J255,0) -> 167898 | K45: =ROUND(Survivors!K45+Migrants!K255,0) -> 172974 | L45: =ROUND(Survivors!L45+Migrants!L255,0) -> 181553 | M45: =ROUND(Survivors!M45+Migrants!M255,0) -> 186936 | N45: =ROUND(Survivors!N45+Migrants!N255,0) -> 193396 | O45: =ROUND(Survivors!O45+Migrants!O255,0) -> 194544 | P45: =ROUND(Survivors!P45+Migrants!P255,0) -> 197275 | Q45: =ROUND(Survivors!Q45+Migrants!Q255,0) -> 198109 | R45: =ROUND(Survivors!R45+Migrants!R255,0) -> 197380 | S45: =ROUND(Survivors!S45+Migrants!S255,0) -> 198436 | T45: =ROUND(Survivors!T45+Migrants!T255,0) -> 200873 | U45: =ROUND(Survivors!U45+Migrants!U255,0) -> 204565 | V45: =ROUND(Survivors!V45+Migrants!V255,0) -> 201499 | W45: =ROUND(Survivors!W45+Migrants!W255,0) -> 199742 | X45: =ROUND(Survivors!X45+Migrants!X255,0) -> 201061 | Y45: =ROUND(Survivors!Y45+Migrants!Y255,0) -> 202383 | Z45: =ROUND(Survivors!Z45+Migrants!Z255,0) -> 204687 | AA45: =ROUND(Survivors!AA45+Migrants!AA255,0) -> 202771 | AB45: =ROUND(Survivors!AB45+Migrants!AB255,0) -> 202611 | AC45: =ROUND(Survivors!AC45+Migrants!AC255,0) -> 201901 | AD45: =ROUND(Survivors!AD45+Migrants!AD255,0) -> 202275 | AE45: =ROUND(Survivors!AE45+Migrants!AE255,0) -> 202708 | AF45: =ROUND(Survivors!AF45+Migrants!AF255,0) -> 203808 | AG45: =ROUND(Survivors!AG45+Migrants!AG255,0) -> 202744 | AH45: =ROUND(Survivors!AH45+Migrants!AH255,0) -> 204404 | AI45: =ROUND(Survivors!AI45+Migrants!AI255,0) -> 207745 | AJ45: =ROUND(Survivors!AJ45+Migrants!AJ255,0) -> 211682 | AK45: =ROUND(Survivors!AK45+Migrants!AK255,0) -> 217458 | AL45: =ROUND(Survivors!AL45+Migrants!AL255,0) -> 219219 | AM45: =ROUND(Survivors!AM45+Migrants!AM255,0) -> 222537 | AN45: =ROUND(Survivors!AN45+Migrants!AN255,0) -> 224959 | AO45: =ROUND(Survivors!AO45+Migrants!AO255,0) -> 227829 | AP45: =ROUND(Survivors!AP45+Migrants!AP255,0) -> 226676 | AQ45: =ROUND(Survivors!AQ45+Migrants!AQ255,0) -> 229506 | AR45: =ROUND(Survivors!AR45+Migrants!AR255,0) -> 232088 | AS45: =ROUND(Survivors!AS45+Migrants!AS255,0) -> 234386 | AT45: =ROUND(Survivors!AT45+Migrants!AT255,0) -> 236644 | AU45: =ROUND(Survivors!AU45+Migrants!AU255,0) -> 238815 | AV45: =ROUND(Survivors!AV45+Migrants!AV255,0) -> 240851 | AW45: =ROUND(Survivors!AW45+Migrants!AW255,0) -> 242654 | AX45: =ROUND(Survivors!AX45+Migrants!AX255,0) -> 244209 | AY45: =ROUND(Survivors!AY45+Migrants!AY255,0) -> 245556 | AZ45: =ROUND(Survivors!AZ45+Migrants!AZ255,0) -> 246702 | BA45: =ROUND(Survivors!BA45+Migrants!BA255,0) -> 247645 | BB45: =ROUND(Survivors!BB45+Migrants!BB255,0) -> 248409 | BC45: =ROUND(Survivors!BC45+Migrants!BC255,0) -> 249039 | BD45: =ROUND(Survivors!BD45+Migrants!BD255,0) -> 249568 | BE45: =ROUND(Survivors!BE45+Migrants!BE255,0) -> 250020 | BF45: =ROUND(Survivors!BF45+Migrants!BF255,0) -> 250410 | BG45: =ROUND(Survivors!BG45+Migrants!BG255,0) -> 250813 | BH45: =ROUND(Survivors!BH45+Migrants!BH255,0) -> 251284 | BI45: =ROUND(Survivors!BI45+Migrants!BI255,0) -> 251802 | BJ45: =ROUND(Survivors!BJ45+Migrants!BJ255,0) -> 252421 | BK45: =ROUND(Survivors!BK45+Migrants!BK255,0) -> 253163 | BL45: =ROUND(Survivors!BL45+Migrants!BL255,0) -> 254051 | BM45: =ROUND(Survivors!BM45+Migrants!BM255,0) -> 255112 | BN45: =ROUND(Survivors!BN45+Migrants!BN255,0) -> 256327 | BO45: =ROUND(Survivors!BO45+Migrants!BO255,0) -> 257708 | BP45: =ROUND(Survivors!BP45+Migrants!BP255,0) -> 259228 | BQ45: =ROUND(Survivors!BQ45+Migrants!BQ255,0) -> 260860 | BR45: =ROUND(Survivors!BR45+Migrants!BR255,0) -> 262579 | BS45: =ROUND(Survivors!BS45+Migrants!BS255,0) -> 264372 | BT45: =ROUND(Survivors!BT45+Migrants!BT255,0) -> 266215 | BU45: =ROUND(Survivors!BU45+Migrants!BU255,0) -> 268066 | BV45: =ROUND(Survivors!BV45+Migrants!BV255,0) -> 269906 | BW45: =ROUND(Survivors!BW45+Migrants!BW255,0) -> 271716 | BX45: =ROUND(Survivors!BX45+Migrants!BX255,0) -> 273469 | BY45: =ROUND(Survivors!BY45+Migrants!BY255,0) -> 275158 | BZ45: =ROUND(Survivors!BZ45+Migrants!BZ255,0) -> 276763 | CA45: =ROUND(Survivors!CA45+Migrants!CA255,0) -> 278295 | CB45: =ROUND(Survivors!CB45+Migrants!CB255,0) -> 279754 | CC45: =ROUND(Survivors!CC45+Migrants!CC255,0) -> 281123 | CD45: =ROUND(Survivors!CD45+Migrants!CD255,0) -> 282409 | CE45: =ROUND(Survivors!CE45+Migrants!CE255,0) -> 283614 | CF45: =ROUND(Survivors!CF45+Migrants!CF255,0) -> 284732 | CG45: =ROUND(Survivors!CG45+Migrants!CG255,0) -> 285760 | CH45: =ROUND(Survivors!CH45+Migrants!CH255,0) -> 286713 | CI45: =ROUND(Survivors!CI45+Migrants!CI255,0) -> 287600 | CJ45: =ROUND(Survivors!CJ45+Migrants!CJ255,0) -> 288421 | CK45: =ROUND(Survivors!CK45+Migrants!CK255,0) -> 289203 | CL45: =ROUND(Survivors!CL45+Migrants!CL255,0) -> 289962 | CM45: =ROUND(Survivors!CM45+Migrants!CM255,0) -> 290703 | CN45: =ROUND(Survivors!CN45+Migrants!CN255,0) -> 291458
A46: 42 | B46: 161494 | C46: =ROUND(Survivors!C46+Migrants!C256,0) -> 170983 | D46: =ROUND(Survivors!D46+Migrants!D256,0) -> 169926 | E46: =ROUND(Survivors!E46+Migrants!E256,0) -> 164737 | F46: =ROUND(Survivors!F46+Migrants!F256,0) -> 162338 | G46: =ROUND(Survivors!G46+Migrants!G256,0) -> 160784 | H46: =ROUND(Survivors!H46+Migrants!H256,0) -> 159973 | I46: =ROUND(Survivors!I46+Migrants!I256,0) -> 161336 | J46: =ROUND(Survivors!J46+Migrants!J256,0) -> 163685 | K46: =ROUND(Survivors!K46+Migrants!K256,0) -> 168779 | L46: =ROUND(Survivors!L46+Migrants!L256,0) -> 173851 | M46: =ROUND(Survivors!M46+Migrants!M256,0) -> 182423 | N46: =ROUND(Survivors!N46+Migrants!N256,0) -> 187802 | O46: =ROUND(Survivors!O46+Migrants!O256,0) -> 194258 | P46: =ROUND(Survivors!P46+Migrants!P256,0) -> 195408 | Q46: =ROUND(Survivors!Q46+Migrants!Q256,0) -> 198139 | R46: =ROUND(Survivors!R46+Migrants!R256,0) -> 198975 | S46: =ROUND(Survivors!S46+Migrants!S256,0) -> 198251 | T46: =ROUND(Survivors!T46+Migrants!T256,0) -> 199309 | U46: =ROUND(Survivors!U46+Migrants!U256,0) -> 201746 | V46: =ROUND(Survivors!V46+Migrants!V256,0) -> 205437 | W46: =ROUND(Survivors!W46+Migrants!W256,0) -> 202378 | X46: =ROUND(Survivors!X46+Migrants!X256,0) -> 200626 | Y46: =ROUND(Survivors!Y46+Migrants!Y256,0) -> 201947 | Z46: =ROUND(Survivors!Z46+Migrants!Z256,0) -> 203271 | AA46: =ROUND(Survivors!AA46+Migrants!AA256,0) -> 205576 | AB46: =ROUND(Survivors!AB46+Migrants!AB256,0) -> 203665 | AC46: =ROUND(Survivors!AC46+Migrants!AC256,0) -> 203508 | AD46: =ROUND(Survivors!AD46+Migrants!AD256,0) -> 202802 | AE46: =ROUND(Survivors!AE46+Migrants!AE256,0) -> 203178 | AF46: =ROUND(Survivors!AF46+Migrants!AF256,0) -> 203614 | AG46: =ROUND(Survivors!AG46+Migrants!AG256,0) -> 204716 | AH46: =ROUND(Survivors!AH46+Migrants!AH256,0) -> 203655 | AI46: =ROUND(Survivors!AI46+Migrants!AI256,0) -> 205317 | AJ46: =ROUND(Survivors!AJ46+Migrants!AJ256,0) -> 208657 | AK46: =ROUND(Survivors!AK46+Migrants!AK256,0) -> 212594 | AL46: =ROUND(Survivors!AL46+Migrants!AL256,0) -> 218367 | AM46: =ROUND(Survivors!AM46+Migrants!AM256,0) -> 220129 | AN46: =ROUND(Survivors!AN46+Migrants!AN256,0) -> 223447 | AO46: =ROUND(Survivors!AO46+Migrants!AO256,0) -> 225870 | AP46: =ROUND(Survivors!AP46+Migrants!AP256,0) -> 228740 | AQ46: =ROUND(Survivors!AQ46+Migrants!AQ256,0) -> 227591 | AR46: =ROUND(Survivors!AR46+Migrants!AR256,0) -> 230422 | AS46: =ROUND(Survivors!AS46+Migrants!AS256,0) -> 233004 | AT46: =ROUND(Survivors!AT46+Migrants!AT256,0) -> 235303 | AU46: =ROUND(Survivors!AU46+Migrants!AU256,0) -> 237562 | AV46: =ROUND(Survivors!AV46+Migrants!AV256,0) -> 239734 | AW46: =ROUND(Survivors!AW46+Migrants!AW256,0) -> 241771 | AX46: =ROUND(Survivors!AX46+Migrants!AX256,0) -> 243576 | AY46: =ROUND(Survivors!AY46+Migrants!AY256,0) -> 245132 | AZ46: =ROUND(Survivors!AZ46+Migrants!AZ256,0) -> 246481 | BA46: =ROUND(Survivors!BA46+Migrants!BA256,0) -> 247628 | BB46: =ROUND(Survivors!BB46+Migrants!BB256,0) -> 248573 | BC46: =ROUND(Survivors!BC46+Migrants!BC256,0) -> 249339 | BD46: =ROUND(Survivors!BD46+Migrants!BD256,0) -> 249971 | BE46: =ROUND(Survivors!BE46+Migrants!BE256,0) -> 250502 | BF46: =ROUND(Survivors!BF46+Migrants!BF256,0) -> 250956 | BG46: =ROUND(Survivors!BG46+Migrants!BG256,0) -> 251348 | BH46: =ROUND(Survivors!BH46+Migrants!BH256,0) -> 251753 | BI46: =ROUND(Survivors!BI46+Migrants!BI256,0) -> 252226 | BJ46: =ROUND(Survivors!BJ46+Migrants!BJ256,0) -> 252746 | BK46: =ROUND(Survivors!BK46+Migrants!BK256,0) -> 253366 | BL46: =ROUND(Survivors!BL46+Migrants!BL256,0) -> 254110 | BM46: =ROUND(Survivors!BM46+Migrants!BM256,0) -> 254999 | BN46: =ROUND(Survivors!BN46+Migrants!BN256,0) -> 256061 | BO46: =ROUND(Survivors!BO46+Migrants!BO256,0) -> 257277 | BP46: =ROUND(Survivors!BP46+Migrants!BP256,0) -> 258659 | BQ46: =ROUND(Survivors!BQ46+Migrants!BQ256,0) -> 260180 | BR46: =ROUND(Survivors!BR46+Migrants!BR256,0) -> 261813 | BS46: =ROUND(Survivors!BS46+Migrants!BS256,0) -> 263532 | BT46: =ROUND(Survivors!BT46+Migrants!BT256,0) -> 265326 | BU46: =ROUND(Survivors!BU46+Migrants!BU256,0) -> 267169 | BV46: =ROUND(Survivors!BV46+Migrants!BV256,0) -> 269020 | BW46: =ROUND(Survivors!BW46+Migrants!BW256,0) -> 270861 | BX46: =ROUND(Survivors!BX46+Migrants!BX256,0) -> 272671 | BY46: =ROUND(Survivors!BY46+Migrants!BY256,0) -> 274424 | BZ46: =ROUND(Survivors!BZ46+Migrants!BZ256,0) -> 276113 | CA46: =ROUND(Survivors!CA46+Migrants!CA256,0) -> 277719 | CB46: =ROUND(Survivors!CB46+Migrants!CB256,0) -> 279251 | CC46: =ROUND(Survivors!CC46+Migrants!CC256,0) -> 280710 | CD46: =ROUND(Survivors!CD46+Migrants!CD256,0) -> 282079 | CE46: =ROUND(Survivors!CE46+Migrants!CE256,0) -> 283366 | CF46: =ROUND(Survivors!CF46+Migrants!CF256,0) -> 284571 | CG46: =ROUND(Survivors!CG46+Migrants!CG256,0) -> 285689 | CH46: =ROUND(Survivors!CH46+Migrants!CH256,0) -> 286717 | CI46: =ROUND(Survivors!CI46+Migrants!CI256,0) -> 287671 | CJ46: =ROUND(Survivors!CJ46+Migrants!CJ256,0) -> 288558 | CK46: =ROUND(Survivors!CK46+Migrants!CK256,0) -> 289379 | CL46: =ROUND(Survivors!CL46+Migrants!CL256,0) -> 290161 | CM46: =ROUND(Survivors!CM46+Migrants!CM256,0) -> 290921 | CN46: =ROUND(Survivors!CN46+Migrants!CN256,0) -> 291662
A47: 43 | B47: 158940 | C47: =ROUND(Survivors!C47+Migrants!C257,0) -> 162665 | D47: =ROUND(Survivors!D47+Migrants!D257,0) -> 172075 | E47: =ROUND(Survivors!E47+Migrants!E257,0) -> 170955 | F47: =ROUND(Survivors!F47+Migrants!F257,0) -> 165710 | G47: =ROUND(Survivors!G47+Migrants!G257,0) -> 163250 | H47: =ROUND(Survivors!H47+Migrants!H257,0) -> 161633 | I47: =ROUND(Survivors!I47+Migrants!I257,0) -> 160827 | J47: =ROUND(Survivors!J47+Migrants!J257,0) -> 162192 | K47: =ROUND(Survivors!K47+Migrants!K257,0) -> 164541 | L47: =ROUND(Survivors!L47+Migrants!L257,0) -> 169632 | M47: =ROUND(Survivors!M47+Migrants!M257,0) -> 174700 | N47: =ROUND(Survivors!N47+Migrants!N257,0) -> 183265 | O47: =ROUND(Survivors!O47+Migrants!O257,0) -> 188640 | P47: =ROUND(Survivors!P47+Migrants!P257,0) -> 195092 | Q47: =ROUND(Survivors!Q47+Migrants!Q257,0) -> 196244 | R47: =ROUND(Survivors!R47+Migrants!R257,0) -> 198976 | S47: =ROUND(Survivors!S47+Migrants!S257,0) -> 199814 | T47: =ROUND(Survivors!T47+Migrants!T257,0) -> 199095 | U47: =ROUND(Survivors!U47+Migrants!U257,0) -> 200156 | V47: =ROUND(Survivors!V47+Migrants!V257,0) -> 202593 | W47: =ROUND(Survivors!W47+Migrants!W257,0) -> 206284 | X47: =ROUND(Survivors!X47+Migrants!X257,0) -> 203232 | Y47: =ROUND(Survivors!Y47+Migrants!Y257,0) -> 201486 | Z47: =ROUND(Survivors!Z47+Migrants!Z257,0) -> 202809 | AA47: =ROUND(Survivors!AA47+Migrants!AA257,0) -> 204135 | AB47: =ROUND(Survivors!AB47+Migrants!AB257,0) -> 206441 | AC47: =ROUND(Survivors!AC47+Migrants!AC257,0) -> 204535 | AD47: =ROUND(Survivors!AD47+Migrants!AD257,0) -> 204382 | AE47: =ROUND(Survivors!AE47+Migrants!AE257,0) -> 203680 | AF47: =ROUND(Survivors!AF47+Migrants!AF257,0) -> 204059 | AG47: =ROUND(Survivors!AG47+Migrants!AG257,0) -> 204497 | AH47: =ROUND(Survivors!AH47+Migrants!AH257,0) -> 205601 | AI47: =ROUND(Survivors!AI47+Migrants!AI257,0) -> 204545 | AJ47: =ROUND(Survivors!AJ47+Migrants!AJ257,0) -> 206208 | AK47: =ROUND(Survivors!AK47+Migrants!AK257,0) -> 209548 | AL47: =ROUND(Survivors!AL47+Migrants!AL257,0) -> 213484 | AM47: =ROUND(Survivors!AM47+Migrants!AM257,0) -> 219255 | AN47: =ROUND(Survivors!AN47+Migrants!AN257,0) -> 221019 | AO47: =ROUND(Survivors!AO47+Migrants!AO257,0) -> 224337 | AP47: =ROUND(Survivors!AP47+Migrants!AP257,0) -> 226761 | AQ47: =ROUND(Survivors!AQ47+Migrants!AQ257,0) -> 229631 | AR47: =ROUND(Survivors!AR47+Migrants!AR257,0) -> 228486 | AS47: =ROUND(Survivors!AS47+Migrants!AS257,0) -> 231318 | AT47: =ROUND(Survivors!AT47+Migrants!AT257,0) -> 233900 | AU47: =ROUND(Survivors!AU47+Migrants!AU257,0) -> 236200 | AV47: =ROUND(Survivors!AV47+Migrants!AV257,0) -> 238460 | AW47: =ROUND(Survivors!AW47+Migrants!AW257,0) -> 240633 | AX47: =ROUND(Survivors!AX47+Migrants!AX257,0) -> 242672 | AY47: =ROUND(Survivors!AY47+Migrants!AY257,0) -> 244478 | AZ47: =ROUND(Survivors!AZ47+Migrants!AZ257,0) -> 246035 | BA47: =ROUND(Survivors!BA47+Migrants!BA257,0) -> 247386 | BB47: =ROUND(Survivors!BB47+Migrants!BB257,0) -> 248535 | BC47: =ROUND(Survivors!BC47+Migrants!BC257,0) -> 249482 | BD47: =ROUND(Survivors!BD47+Migrants!BD257,0) -> 250249 | BE47: =ROUND(Survivors!BE47+Migrants!BE257,0) -> 250883 | BF47: =ROUND(Survivors!BF47+Migrants!BF257,0) -> 251417 | BG47: =ROUND(Survivors!BG47+Migrants!BG257,0) -> 251873 | BH47: =ROUND(Survivors!BH47+Migrants!BH257,0) -> 252267 | BI47: =ROUND(Survivors!BI47+Migrants!BI257,0) -> 252673 | BJ47: =ROUND(Survivors!BJ47+Migrants!BJ257,0) -> 253148 | BK47: =ROUND(Survivors!BK47+Migrants!BK257,0) -> 253670 | BL47: =ROUND(Survivors!BL47+Migrants!BL257,0) -> 254292 | BM47: =ROUND(Survivors!BM47+Migrants!BM257,0) -> 255037 | BN47: =ROUND(Survivors!BN47+Migrants!BN257,0) -> 255927 | BO47: =ROUND(Survivors!BO47+Migrants!BO257,0) -> 256991 | BP47: =ROUND(Survivors!BP47+Migrants!BP257,0) -> 258208 | BQ47: =ROUND(Survivors!BQ47+Migrants!BQ257,0) -> 259591 | BR47: =ROUND(Survivors!BR47+Migrants!BR257,0) -> 261112 | BS47: =ROUND(Survivors!BS47+Migrants!BS257,0) -> 262746 | BT47: =ROUND(Survivors!BT47+Migrants!BT257,0) -> 264465 | BU47: =ROUND(Survivors!BU47+Migrants!BU257,0) -> 266260 | BV47: =ROUND(Survivors!BV47+Migrants!BV257,0) -> 268103 | BW47: =ROUND(Survivors!BW47+Migrants!BW257,0) -> 269954 | BX47: =ROUND(Survivors!BX47+Migrants!BX257,0) -> 271796 | BY47: =ROUND(Survivors!BY47+Migrants!BY257,0) -> 273606 | BZ47: =ROUND(Survivors!BZ47+Migrants!BZ257,0) -> 275359 | CA47: =ROUND(Survivors!CA47+Migrants!CA257,0) -> 277048 | CB47: =ROUND(Survivors!CB47+Migrants!CB257,0) -> 278654 | CC47: =ROUND(Survivors!CC47+Migrants!CC257,0) -> 280187 | CD47: =ROUND(Survivors!CD47+Migrants!CD257,0) -> 281646 | CE47: =ROUND(Survivors!CE47+Migrants!CE257,0) -> 283015 | CF47: =ROUND(Survivors!CF47+Migrants!CF257,0) -> 284302 | CG47: =ROUND(Survivors!CG47+Migrants!CG257,0) -> 285507 | CH47: =ROUND(Survivors!CH47+Migrants!CH257,0) -> 286626 | CI47: =ROUND(Survivors!CI47+Migrants!CI257,0) -> 287654 | CJ47: =ROUND(Survivors!CJ47+Migrants!CJ257,0) -> 288608 | CK47: =ROUND(Survivors!CK47+Migrants!CK257,0) -> 289495 | CL47: =ROUND(Survivors!CL47+Migrants!CL257,0) -> 290317 | CM47: =ROUND(Survivors!CM47+Migrants!CM257,0) -> 291099 | CN47: =ROUND(Survivors!CN47+Migrants!CN257,0) -> 291859
A48: 44 | B48: 153233 | C48: =ROUND(Survivors!C48+Migrants!C258,0) -> 159932 | D48: =ROUND(Survivors!D48+Migrants!D258,0) -> 163594 | E48: =ROUND(Survivors!E48+Migrants!E258,0) -> 172933 | F48: =ROUND(Survivors!F48+Migrants!F258,0) -> 171759 | G48: =ROUND(Survivors!G48+Migrants!G258,0) -> 166467 | H48: =ROUND(Survivors!H48+Migrants!H258,0) -> 163954 | I48: =ROUND(Survivors!I48+Migrants!I258,0) -> 162344 | J48: =ROUND(Survivors!J48+Migrants!J258,0) -> 161544 | K48: =ROUND(Survivors!K48+Migrants!K258,0) -> 162911 | L48: =ROUND(Survivors!L48+Migrants!L258,0) -> 165260 | M48: =ROUND(Survivors!M48+Migrants!M258,0) -> 170348 | N48: =ROUND(Survivors!N48+Migrants!N258,0) -> 175413 | O48: =ROUND(Survivors!O48+Migrants!O258,0) -> 183970 | P48: =ROUND(Survivors!P48+Migrants!P258,0) -> 189342 | Q48: =ROUND(Survivors!Q48+Migrants!Q258,0) -> 195790 | R48: =ROUND(Survivors!R48+Migrants!R258,0) -> 196944 | S48: =ROUND(Survivors!S48+Migrants!S258,0) -> 199677 | T48: =ROUND(Survivors!T48+Migrants!T258,0) -> 200518 | U48: =ROUND(Survivors!U48+Migrants!U258,0) -> 199805 | V48: =ROUND(Survivors!V48+Migrants!V258,0) -> 200868 | W48: =ROUND(Survivors!W48+Migrants!W258,0) -> 203307 | X48: =ROUND(Survivors!X48+Migrants!X258,0) -> 206997 | Y48: =ROUND(Survivors!Y48+Migrants!Y258,0) -> 203953 | Z48: =ROUND(Survivors!Z48+Migrants!Z258,0) -> 202213 | AA48: =ROUND(Survivors!AA48+Migrants!AA258,0) -> 203538 | AB48: =ROUND(Survivors!AB48+Migrants!AB258,0) -> 204867 | AC48: =ROUND(Survivors!AC48+Migrants!AC258,0) -> 207174 | AD48: =ROUND(Survivors!AD48+Migrants!AD258,0) -> 205274 | AE48: =ROUND(Survivors!AE48+Migrants!AE258,0) -> 205125 | AF48: =ROUND(Survivors!AF48+Migrants!AF258,0) -> 204427 | AG48: =ROUND(Survivors!AG48+Migrants!AG258,0) -> 204809 | AH48: =ROUND(Survivors!AH48+Migrants!AH258,0) -> 205250 | AI48: =ROUND(Survivors!AI48+Migrants!AI258,0) -> 206357 | AJ48: =ROUND(Survivors!AJ48+Migrants!AJ258,0) -> 205305 | AK48: =ROUND(Survivors!AK48+Migrants!AK258,0) -> 206970 | AL48: =ROUND(Survivors!AL48+Migrants!AL258,0) -> 210310 | AM48: =ROUND(Survivors!AM48+Migrants!AM258,0) -> 214246 | AN48: =ROUND(Survivors!AN48+Migrants!AN258,0) -> 220015 | AO48: =ROUND(Survivors!AO48+Migrants!AO258,0) -> 221780 | AP48: =ROUND(Survivors!AP48+Migrants!AP258,0) -> 225099 | AQ48: =ROUND(Survivors!AQ48+Migrants!AQ258,0) -> 227524 | AR48: =ROUND(Survivors!AR48+Migrants!AR258,0) -> 230394 | AS48: =ROUND(Survivors!AS48+Migrants!AS258,0) -> 229253 | AT48: =ROUND(Survivors!AT48+Migrants!AT258,0) -> 232086 | AU48: =ROUND(Survivors!AU48+Migrants!AU258,0) -> 234668 | AV48: =ROUND(Survivors!AV48+Migrants!AV258,0) -> 236969 | AW48: =ROUND(Survivors!AW48+Migrants!AW258,0) -> 239230 | AX48: =ROUND(Survivors!AX48+Migrants!AX258,0) -> 241404 | AY48: =ROUND(Survivors!AY48+Migrants!AY258,0) -> 243445 | AZ48: =ROUND(Survivors!AZ48+Migrants!AZ258,0) -> 245252 | BA48: =ROUND(Survivors!BA48+Migrants!BA258,0) -> 246810 | BB48: =ROUND(Survivors!BB48+Migrants!BB258,0) -> 248163 | BC48: =ROUND(Survivors!BC48+Migrants!BC258,0) -> 249314 | BD48: =ROUND(Survivors!BD48+Migrants!BD258,0) -> 250263 | BE48: =ROUND(Survivors!BE48+Migrants!BE258,0) -> 251031 | BF48: =ROUND(Survivors!BF48+Migrants!BF258,0) -> 251667 | BG48: =ROUND(Survivors!BG48+Migrants!BG258,0) -> 252203 | BH48: =ROUND(Survivors!BH48+Migrants!BH258,0) -> 252661 | BI48: =ROUND(Survivors!BI48+Migrants!BI258,0) -> 253057 | BJ48: =ROUND(Survivors!BJ48+Migrants!BJ258,0) -> 253465 | BK48: =ROUND(Survivors!BK48+Migrants!BK258,0) -> 253942 | BL48: =ROUND(Survivors!BL48+Migrants!BL258,0) -> 254466 | BM48: =ROUND(Survivors!BM48+Migrants!BM258,0) -> 255089 | BN48: =ROUND(Survivors!BN48+Migrants!BN258,0) -> 255836 | BO48: =ROUND(Survivors!BO48+Migrants!BO258,0) -> 256727 | BP48: =ROUND(Survivors!BP48+Migrants!BP258,0) -> 257792 | BQ48: =ROUND(Survivors!BQ48+Migrants!BQ258,0) -> 259010 | BR48: =ROUND(Survivors!BR48+Migrants!BR258,0) -> 260394 | BS48: =ROUND(Survivors!BS48+Migrants!BS258,0) -> 261916 | BT48: =ROUND(Survivors!BT48+Migrants!BT258,0) -> 263550 | BU48: =ROUND(Survivors!BU48+Migrants!BU258,0) -> 265270 | BV48: =ROUND(Survivors!BV48+Migrants!BV258,0) -> 267065 | BW48: =ROUND(Survivors!BW48+Migrants!BW258,0) -> 268908 | BX48: =ROUND(Survivors!BX48+Migrants!BX258,0) -> 270760 | BY48: =ROUND(Survivors!BY48+Migrants!BY258,0) -> 272602 | BZ48: =ROUND(Survivors!BZ48+Migrants!BZ258,0) -> 274412 | CA48: =ROUND(Survivors!CA48+Migrants!CA258,0) -> 276165 | CB48: =ROUND(Survivors!CB48+Migrants!CB258,0) -> 277854 | CC48: =ROUND(Survivors!CC48+Migrants!CC258,0) -> 279460 | CD48: =ROUND(Survivors!CD48+Migrants!CD258,0) -> 280994 | CE48: =ROUND(Survivors!CE48+Migrants!CE258,0) -> 282453 | CF48: =ROUND(Survivors!CF48+Migrants!CF258,0) -> 283822 | CG48: =ROUND(Survivors!CG48+Migrants!CG258,0) -> 285109 | CH48: =ROUND(Survivors!CH48+Migrants!CH258,0) -> 286314 | CI48: =ROUND(Survivors!CI48+Migrants!CI258,0) -> 287433 | CJ48: =ROUND(Survivors!CJ48+Migrants!CJ258,0) -> 288462 | CK48: =ROUND(Survivors!CK48+Migrants!CK258,0) -> 289416 | CL48: =ROUND(Survivors!CL48+Migrants!CL258,0) -> 290303 | CM48: =ROUND(Survivors!CM48+Migrants!CM258,0) -> 291125 | CN48: =ROUND(Survivors!CN48+Migrants!CN258,0) -> 291907
A49: 45 | B49: 149376 | C49: =ROUND(Survivors!C49+Migrants!C259,0) -> 154113 | D49: =ROUND(Survivors!D49+Migrants!D259,0) -> 160750 | E49: =ROUND(Survivors!E49+Migrants!E259,0) -> 164355 | F49: =ROUND(Survivors!F49+Migrants!F259,0) -> 173627 | G49: =ROUND(Survivors!G49+Migrants!G259,0) -> 172405 | H49: =ROUND(Survivors!H49+Migrants!H259,0) -> 167071 | I49: =ROUND(Survivors!I49+Migrants!I259,0) -> 164567 | J49: =ROUND(Survivors!J49+Migrants!J259,0) -> 162965 | K49: =ROUND(Survivors!K49+Migrants!K259,0) -> 162171 | L49: =ROUND(Survivors!L49+Migrants!L259,0) -> 163540 | M49: =ROUND(Survivors!M49+Migrants!M259,0) -> 165890 | N49: =ROUND(Survivors!N49+Migrants!N259,0) -> 170975 | O49: =ROUND(Survivors!O49+Migrants!O259,0) -> 176037 | P49: =ROUND(Survivors!P49+Migrants!P259,0) -> 184586 | Q49: =ROUND(Survivors!Q49+Migrants!Q259,0) -> 189955 | R49: =ROUND(Survivors!R49+Migrants!R259,0) -> 196399 | S49: =ROUND(Survivors!S49+Migrants!S259,0) -> 197556 | T49: =ROUND(Survivors!T49+Migrants!T259,0) -> 200290 | U49: =ROUND(Survivors!U49+Migrants!U259,0) -> 201135 | V49: =ROUND(Survivors!V49+Migrants!V259,0) -> 200428 | W49: =ROUND(Survivors!W49+Migrants!W259,0) -> 201494 | X49: =ROUND(Survivors!X49+Migrants!X259,0) -> 203935 | Y49: =ROUND(Survivors!Y49+Migrants!Y259,0) -> 207625 | Z49: =ROUND(Survivors!Z49+Migrants!Z259,0) -> 204589 | AA49: =ROUND(Survivors!AA49+Migrants!AA259,0) -> 202855 | AB49: =ROUND(Survivors!AB49+Migrants!AB259,0) -> 204183 | AC49: =ROUND(Survivors!AC49+Migrants!AC259,0) -> 205515 | AD49: =ROUND(Survivors!AD49+Migrants!AD259,0) -> 207823 | AE49: =ROUND(Survivors!AE49+Migrants!AE259,0) -> 205930 | AF49: =ROUND(Survivors!AF49+Migrants!AF259,0) -> 205785 | AG49: =ROUND(Survivors!AG49+Migrants!AG259,0) -> 205092 | AH49: =ROUND(Survivors!AH49+Migrants!AH259,0) -> 205477 | AI49: =ROUND(Survivors!AI49+Migrants!AI259,0) -> 205922 | AJ49: =ROUND(Survivors!AJ49+Migrants!AJ259,0) -> 207031 | AK49: =ROUND(Survivors!AK49+Migrants!AK259,0) -> 205984 | AL49: =ROUND(Survivors!AL49+Migrants!AL259,0) -> 207651 | AM49: =ROUND(Survivors!AM49+Migrants!AM259,0) -> 210992 | AN49: =ROUND(Survivors!AN49+Migrants!AN259,0) -> 214927 | AO49: =ROUND(Survivors!AO49+Migrants!AO259,0) -> 220695 | AP49: =ROUND(Survivors!AP49+Migrants!AP259,0) -> 222462 | AQ49: =ROUND(Survivors!AQ49+Migrants!AQ259,0) -> 225781 | AR49: =ROUND(Survivors!AR49+Migrants!AR259,0) -> 228207 | AS49: =ROUND(Survivors!AS49+Migrants!AS259,0) -> 231078 | AT49: =ROUND(Survivors!AT49+Migrants!AT259,0) -> 229941 | AU49: =ROUND(Survivors!AU49+Migrants!AU259,0) -> 232774 | AV49: =ROUND(Survivors!AV49+Migrants!AV259,0) -> 235357 | AW49: =ROUND(Survivors!AW49+Migrants!AW259,0) -> 237659 | AX49: =ROUND(Survivors!AX49+Migrants!AX259,0) -> 239921 | AY49: =ROUND(Survivors!AY49+Migrants!AY259,0) -> 242096 | AZ49: =ROUND(Survivors!AZ49+Migrants!AZ259,0) -> 244138 | BA49: =ROUND(Survivors!BA49+Migrants!BA259,0) -> 245946 | BB49: =ROUND(Survivors!BB49+Migrants!BB259,0) -> 247506 | BC49: =ROUND(Survivors!BC49+Migrants!BC259,0) -> 248860 | BD49: =ROUND(Survivors!BD49+Migrants!BD259,0) -> 250013 | BE49: =ROUND(Survivors!BE49+Migrants!BE259,0) -> 250964 | BF49: =ROUND(Survivors!BF49+Migrants!BF259,0) -> 251734 | BG49: =ROUND(Survivors!BG49+Migrants!BG259,0) -> 252372 | BH49: =ROUND(Survivors!BH49+Migrants!BH259,0) -> 252910 | BI49: =ROUND(Survivors!BI49+Migrants!BI259,0) -> 253370 | BJ49: =ROUND(Survivors!BJ49+Migrants!BJ259,0) -> 253768 | BK49: =ROUND(Survivors!BK49+Migrants!BK259,0) -> 254178 | BL49: =ROUND(Survivors!BL49+Migrants!BL259,0) -> 254656 | BM49: =ROUND(Survivors!BM49+Migrants!BM259,0) -> 255182 | BN49: =ROUND(Survivors!BN49+Migrants!BN259,0) -> 255807 | BO49: =ROUND(Survivors!BO49+Migrants!BO259,0) -> 256555 | BP49: =ROUND(Survivors!BP49+Migrants!BP259,0) -> 257447 | BQ49: =ROUND(Survivors!BQ49+Migrants!BQ259,0) -> 258514 | BR49: =ROUND(Survivors!BR49+Migrants!BR259,0) -> 259732 | BS49: =ROUND(Survivors!BS49+Migrants!BS259,0) -> 261117 | BT49: =ROUND(Survivors!BT49+Migrants!BT259,0) -> 262640 | BU49: =ROUND(Survivors!BU49+Migrants!BU259,0) -> 264274 | BV49: =ROUND(Survivors!BV49+Migrants!BV259,0) -> 265995 | BW49: =ROUND(Survivors!BW49+Migrants!BW259,0) -> 267790 | BX49: =ROUND(Survivors!BX49+Migrants!BX259,0) -> 269633 | BY49: =ROUND(Survivors!BY49+Migrants!BY259,0) -> 271486 | BZ49: =ROUND(Survivors!BZ49+Migrants!BZ259,0) -> 273328 | CA49: =ROUND(Survivors!CA49+Migrants!CA259,0) -> 275138 | CB49: =ROUND(Survivors!CB49+Migrants!CB259,0) -> 276891 | CC49: =ROUND(Survivors!CC49+Migrants!CC259,0) -> 278580 | CD49: =ROUND(Survivors!CD49+Migrants!CD259,0) -> 280186 | CE49: =ROUND(Survivors!CE49+Migrants!CE259,0) -> 281720 | CF49: =ROUND(Survivors!CF49+Migrants!CF259,0) -> 283179 | CG49: =ROUND(Survivors!CG49+Migrants!CG259,0) -> 284549 | CH49: =ROUND(Survivors!CH49+Migrants!CH259,0) -> 285836 | CI49: =ROUND(Survivors!CI49+Migrants!CI259,0) -> 287041 | CJ49: =ROUND(Survivors!CJ49+Migrants!CJ259,0) -> 288160 | CK49: =ROUND(Survivors!CK49+Migrants!CK259,0) -> 289189 | CL49: =ROUND(Survivors!CL49+Migrants!CL259,0) -> 290143 | CM49: =ROUND(Survivors!CM49+Migrants!CM259,0) -> 291030 | CN49: =ROUND(Survivors!CN49+Migrants!CN259,0) -> 291853
A50: 46 | B50: 148813 | C50: =ROUND(Survivors!C50+Migrants!C260,0) -> 150168 | D50: =ROUND(Survivors!D50+Migrants!D260,0) -> 154850 | E50: =ROUND(Survivors!E50+Migrants!E260,0) -> 161428 | F50: =ROUND(Survivors!F50+Migrants!F260,0) -> 164980 | G50: =ROUND(Survivors!G50+Migrants!G260,0) -> 174188 | H50: =ROUND(Survivors!H50+Migrants!H260,0) -> 172922 | I50: =ROUND(Survivors!I50+Migrants!I260,0) -> 167604 | J50: =ROUND(Survivors!J50+Migrants!J260,0) -> 165110 | K50: =ROUND(Survivors!K50+Migrants!K260,0) -> 163516 | L50: =ROUND(Survivors!L50+Migrants!L260,0) -> 162728 | M50: =ROUND(Survivors!M50+Migrants!M260,0) -> 164100 | N50: =ROUND(Survivors!N50+Migrants!N260,0) -> 166452 | O50: =ROUND(Survivors!O50+Migrants!O260,0) -> 171534 | P50: =ROUND(Survivors!P50+Migrants!P260,0) -> 176593 | Q50: =ROUND(Survivors!Q50+Migrants!Q260,0) -> 185134 | R50: =ROUND(Survivors!R50+Migrants!R260,0) -> 190500 | S50: =ROUND(Survivors!S50+Migrants!S260,0) -> 196940 | T50: =ROUND(Survivors!T50+Migrants!T260,0) -> 198101 | U50: =ROUND(Survivors!U50+Migrants!U260,0) -> 200837 | V50: =ROUND(Survivors!V50+Migrants!V260,0) -> 201686 | W50: =ROUND(Survivors!W50+Migrants!W260,0) -> 200985 | X50: =ROUND(Survivors!X50+Migrants!X260,0) -> 202055 | Y50: =ROUND(Survivors!Y50+Migrants!Y260,0) -> 204498 | Z50: =ROUND(Survivors!Z50+Migrants!Z260,0) -> 208188 | AA50: =ROUND(Survivors!AA50+Migrants!AA260,0) -> 205161 | AB50: =ROUND(Survivors!AB50+Migrants!AB260,0) -> 203434 | AC50: =ROUND(Survivors!AC50+Migrants!AC260,0) -> 204765 | AD50: =ROUND(Survivors!AD50+Migrants!AD260,0) -> 206100 | AE50: =ROUND(Survivors!AE50+Migrants!AE260,0) -> 208410 | AF50: =ROUND(Survivors!AF50+Migrants!AF260,0) -> 206524 | AG50: =ROUND(Survivors!AG50+Migrants!AG260,0) -> 206383 | AH50: =ROUND(Survivors!AH50+Migrants!AH260,0) -> 205695 | AI50: =ROUND(Survivors!AI50+Migrants!AI260,0) -> 206084 | AJ50: =ROUND(Survivors!AJ50+Migrants!AJ260,0) -> 206533 | AK50: =ROUND(Survivors!AK50+Migrants!AK260,0) -> 207645 | AL50: =ROUND(Survivors!AL50+Migrants!AL260,0) -> 206603 | AM50: =ROUND(Survivors!AM50+Migrants!AM260,0) -> 208272 | AN50: =ROUND(Survivors!AN50+Migrants!AN260,0) -> 211614 | AO50: =ROUND(Survivors!AO50+Migrants!AO260,0) -> 215549 | AP50: =ROUND(Survivors!AP50+Migrants!AP260,0) -> 221315 | AQ50: =ROUND(Survivors!AQ50+Migrants!AQ260,0) -> 223085 | AR50: =ROUND(Survivors!AR50+Migrants!AR260,0) -> 226404 | AS50: =ROUND(Survivors!AS50+Migrants!AS260,0) -> 228831 | AT50: =ROUND(Survivors!AT50+Migrants!AT260,0) -> 231702 | AU50: =ROUND(Survivors!AU50+Migrants!AU260,0) -> 230569 | AV50: =ROUND(Survivors!AV50+Migrants!AV260,0) -> 233403 | AW50: =ROUND(Survivors!AW50+Migrants!AW260,0) -> 235986 | AX50: =ROUND(Survivors!AX50+Migrants!AX260,0) -> 238289 | AY50: =ROUND(Survivors!AY50+Migrants!AY260,0) -> 240552 | AZ50: =ROUND(Survivors!AZ50+Migrants!AZ260,0) -> 242728 | BA50: =ROUND(Survivors!BA50+Migrants!BA260,0) -> 244771 | BB50: =ROUND(Survivors!BB50+Migrants!BB260,0) -> 246581 | BC50: =ROUND(Survivors!BC50+Migrants!BC260,0) -> 248142 | BD50: =ROUND(Survivors!BD50+Migrants!BD260,0) -> 249498 | BE50: =ROUND(Survivors!BE50+Migrants!BE260,0) -> 250653 | BF50: =ROUND(Survivors!BF50+Migrants!BF260,0) -> 251605 | BG50: =ROUND(Survivors!BG50+Migrants!BG260,0) -> 252377 | BH50: =ROUND(Survivors!BH50+Migrants!BH260,0) -> 253017 | BI50: =ROUND(Survivors!BI50+Migrants!BI260,0) -> 253557 | BJ50: =ROUND(Survivors!BJ50+Migrants!BJ260,0) -> 254019 | BK50: =ROUND(Survivors!BK50+Migrants!BK260,0) -> 254419 | BL50: =ROUND(Survivors!BL50+Migrants!BL260,0) -> 254831 | BM50: =ROUND(Survivors!BM50+Migrants!BM260,0) -> 255311 | BN50: =ROUND(Survivors!BN50+Migrants!BN260,0) -> 255839 | BO50: =ROUND(Survivors!BO50+Migrants!BO260,0) -> 256465 | BP50: =ROUND(Survivors!BP50+Migrants!BP260,0) -> 257215 | BQ50: =ROUND(Survivors!BQ50+Migrants!BQ260,0) -> 258108 | BR50: =ROUND(Survivors!BR50+Migrants!BR260,0) -> 259176 | BS50: =ROUND(Survivors!BS50+Migrants!BS260,0) -> 260395 | BT50: =ROUND(Survivors!BT50+Migrants!BT260,0) -> 261781 | BU50: =ROUND(Survivors!BU50+Migrants!BU260,0) -> 263304 | BV50: =ROUND(Survivors!BV50+Migrants!BV260,0) -> 264939 | BW50: =ROUND(Survivors!BW50+Migrants!BW260,0) -> 266660 | BX50: =ROUND(Survivors!BX50+Migrants!BX260,0) -> 268455 | BY50: =ROUND(Survivors!BY50+Migrants!BY260,0) -> 270298 | BZ50: =ROUND(Survivors!BZ50+Migrants!BZ260,0) -> 272152 | CA50: =ROUND(Survivors!CA50+Migrants!CA260,0) -> 273994 | CB50: =ROUND(Survivors!CB50+Migrants!CB260,0) -> 275804 | CC50: =ROUND(Survivors!CC50+Migrants!CC260,0) -> 277557 | CD50: =ROUND(Survivors!CD50+Migrants!CD260,0) -> 279246 | CE50: =ROUND(Survivors!CE50+Migrants!CE260,0) -> 280852 | CF50: =ROUND(Survivors!CF50+Migrants!CF260,0) -> 282386 | CG50: =ROUND(Survivors!CG50+Migrants!CG260,0) -> 283845 | CH50: =ROUND(Survivors!CH50+Migrants!CH260,0) -> 285215 | CI50: =ROUND(Survivors!CI50+Migrants!CI260,0) -> 286502 | CJ50: =ROUND(Survivors!CJ50+Migrants!CJ260,0) -> 287707 | CK50: =ROUND(Survivors!CK50+Migrants!CK260,0) -> 288827 | CL50: =ROUND(Survivors!CL50+Migrants!CL260,0) -> 289856 | CM50: =ROUND(Survivors!CM50+Migrants!CM260,0) -> 290810 | CN50: =ROUND(Survivors!CN50+Migrants!CN260,0) -> 291697
A51: 47 | B51: 150125 | C51: =ROUND(Survivors!C51+Migrants!C261,0) -> 149493 | D51: =ROUND(Survivors!D51+Migrants!D261,0) -> 150804 | E51: =ROUND(Survivors!E51+Migrants!E261,0) -> 155435 | F51: =ROUND(Survivors!F51+Migrants!F261,0) -> 161958 | G51: =ROUND(Survivors!G51+Migrants!G261,0) -> 165462 | H51: =ROUND(Survivors!H51+Migrants!H261,0) -> 174612 | I51: =ROUND(Survivors!I51+Migrants!I261,0) -> 173355 | J51: =ROUND(Survivors!J51+Migrants!J261,0) -> 168053 | K51: =ROUND(Survivors!K51+Migrants!K261,0) -> 165570 | L51: =ROUND(Survivors!L51+Migrants!L261,0) -> 163985 | M51: =ROUND(Survivors!M51+Migrants!M261,0) -> 163204 | N51: =ROUND(Survivors!N51+Migrants!N261,0) -> 164580 | O51: =ROUND(Survivors!O51+Migrants!O261,0) -> 166934 | P51: =ROUND(Survivors!P51+Migrants!P261,0) -> 172013 | Q51: =ROUND(Survivors!Q51+Migrants!Q261,0) -> 177070 | R51: =ROUND(Survivors!R51+Migrants!R261,0) -> 185603 | S51: =ROUND(Survivors!S51+Migrants!S261,0) -> 190967 | T51: =ROUND(Survivors!T51+Migrants!T261,0) -> 197403 | U51: =ROUND(Survivors!U51+Migrants!U261,0) -> 198568 | V51: =ROUND(Survivors!V51+Migrants!V261,0) -> 201307 | W51: =ROUND(Survivors!W51+Migrants!W261,0) -> 202160 | X51: =ROUND(Survivors!X51+Migrants!X261,0) -> 201466 | Y51: =ROUND(Survivors!Y51+Migrants!Y261,0) -> 202540 | Z51: =ROUND(Survivors!Z51+Migrants!Z261,0) -> 204986 | AA51: =ROUND(Survivors!AA51+Migrants!AA261,0) -> 208676 | AB51: =ROUND(Survivors!AB51+Migrants!AB261,0) -> 205659 | AC51: =ROUND(Survivors!AC51+Migrants!AC261,0) -> 203939 | AD51: =ROUND(Survivors!AD51+Migrants!AD261,0) -> 205274 | AE51: =ROUND(Survivors!AE51+Migrants!AE261,0) -> 206612 | AF51: =ROUND(Survivors!AF51+Migrants!AF261,0) -> 208925 | AG51: =ROUND(Survivors!AG51+Migrants!AG261,0) -> 207046 | AH51: =ROUND(Survivors!AH51+Migrants!AH261,0) -> 206910 | AI51: =ROUND(Survivors!AI51+Migrants!AI261,0) -> 206227 | AJ51: =ROUND(Survivors!AJ51+Migrants!AJ261,0) -> 206620 | AK51: =ROUND(Survivors!AK51+Migrants!AK261,0) -> 207073 | AL51: =ROUND(Survivors!AL51+Migrants!AL261,0) -> 208189 | AM51: =ROUND(Survivors!AM51+Migrants!AM261,0) -> 207152 | AN51: =ROUND(Survivors!AN51+Migrants!AN261,0) -> 208824 | AO51: =ROUND(Survivors!AO51+Migrants!AO261,0) -> 212167 | AP51: =ROUND(Survivors!AP51+Migrants!AP261,0) -> 216102 | AQ51: =ROUND(Survivors!AQ51+Migrants!AQ261,0) -> 221867 | AR51: =ROUND(Survivors!AR51+Migrants!AR261,0) -> 223638 | AS51: =ROUND(Survivors!AS51+Migrants!AS261,0) -> 226957 | AT51: =ROUND(Survivors!AT51+Migrants!AT261,0) -> 229385 | AU51: =ROUND(Survivors!AU51+Migrants!AU261,0) -> 232257 | AV51: =ROUND(Survivors!AV51+Migrants!AV261,0) -> 231128 | AW51: =ROUND(Survivors!AW51+Migrants!AW261,0) -> 233962 | AX51: =ROUND(Survivors!AX51+Migrants!AX261,0) -> 236546 | AY51: =ROUND(Survivors!AY51+Migrants!AY261,0) -> 238850 | AZ51: =ROUND(Survivors!AZ51+Migrants!AZ261,0) -> 241114 | BA51: =ROUND(Survivors!BA51+Migrants!BA261,0) -> 243291 | BB51: =ROUND(Survivors!BB51+Migrants!BB261,0) -> 245335 | BC51: =ROUND(Survivors!BC51+Migrants!BC261,0) -> 247146 | BD51: =ROUND(Survivors!BD51+Migrants!BD261,0) -> 248709 | BE51: =ROUND(Survivors!BE51+Migrants!BE261,0) -> 250066 | BF51: =ROUND(Survivors!BF51+Migrants!BF261,0) -> 251223 | BG51: =ROUND(Survivors!BG51+Migrants!BG261,0) -> 252177 | BH51: =ROUND(Survivors!BH51+Migrants!BH261,0) -> 252951 | BI51: =ROUND(Survivors!BI51+Migrants!BI261,0) -> 253593 | BJ51: =ROUND(Survivors!BJ51+Migrants!BJ261,0) -> 254135 | BK51: =ROUND(Survivors!BK51+Migrants!BK261,0) -> 254599 | BL51: =ROUND(Survivors!BL51+Migrants!BL261,0) -> 255001 | BM51: =ROUND(Survivors!BM51+Migrants!BM261,0) -> 255414 | BN51: =ROUND(Survivors!BN51+Migrants!BN261,0) -> 255896 | BO51: =ROUND(Survivors!BO51+Migrants!BO261,0) -> 256426 | BP51: =ROUND(Survivors!BP51+Migrants!BP261,0) -> 257053 | BQ51: =ROUND(Survivors!BQ51+Migrants!BQ261,0) -> 257805 | BR51: =ROUND(Survivors!BR51+Migrants!BR261,0) -> 258699 | BS51: =ROUND(Survivors!BS51+Migrants!BS261,0) -> 259768 | BT51: =ROUND(Survivors!BT51+Migrants!BT261,0) -> 260988 | BU51: =ROUND(Survivors!BU51+Migrants!BU261,0) -> 262374 | BV51: =ROUND(Survivors!BV51+Migrants!BV261,0) -> 263898 | BW51: =ROUND(Survivors!BW51+Migrants!BW261,0) -> 265533 | BX51: =ROUND(Survivors!BX51+Migrants!BX261,0) -> 267255 | BY51: =ROUND(Survivors!BY51+Migrants!BY261,0) -> 269050 | BZ51: =ROUND(Survivors!BZ51+Migrants!BZ261,0) -> 270893 | CA51: =ROUND(Survivors!CA51+Migrants!CA261,0) -> 272747 | CB51: =ROUND(Survivors!CB51+Migrants!CB261,0) -> 274589 | CC51: =ROUND(Survivors!CC51+Migrants!CC261,0) -> 276399 | CD51: =ROUND(Survivors!CD51+Migrants!CD261,0) -> 278152 | CE51: =ROUND(Survivors!CE51+Migrants!CE261,0) -> 279841 | CF51: =ROUND(Survivors!CF51+Migrants!CF261,0) -> 281447 | CG51: =ROUND(Survivors!CG51+Migrants!CG261,0) -> 282981 | CH51: =ROUND(Survivors!CH51+Migrants!CH261,0) -> 284440 | CI51: =ROUND(Survivors!CI51+Migrants!CI261,0) -> 285810 | CJ51: =ROUND(Survivors!CJ51+Migrants!CJ261,0) -> 287097 | CK51: =ROUND(Survivors!CK51+Migrants!CK261,0) -> 288302 | CL51: =ROUND(Survivors!CL51+Migrants!CL261,0) -> 289422 | CM51: =ROUND(Survivors!CM51+Migrants!CM261,0) -> 290452 | CN51: =ROUND(Survivors!CN51+Migrants!CN261,0) -> 291406
A52: 48 | B52: 154526 | C52: =ROUND(Survivors!C52+Migrants!C262,0) -> 150673 | D52: =ROUND(Survivors!D52+Migrants!D262,0) -> 150007 | E52: =ROUND(Survivors!E52+Migrants!E262,0) -> 151280 | F52: =ROUND(Survivors!F52+Migrants!F262,0) -> 155865 | G52: =ROUND(Survivors!G52+Migrants!G262,0) -> 162339 | H52: =ROUND(Survivors!H52+Migrants!H262,0) -> 165800 | I52: =ROUND(Survivors!I52+Migrants!I262,0) -> 174939 | J52: =ROUND(Survivors!J52+Migrants!J262,0) -> 173692 | K52: =ROUND(Survivors!K52+Migrants!K262,0) -> 168408 | L52: =ROUND(Survivors!L52+Migrants!L262,0) -> 165937 | M52: =ROUND(Survivors!M52+Migrants!M262,0) -> 164362 | N52: =ROUND(Survivors!N52+Migrants!N262,0) -> 163589 | O52: =ROUND(Survivors!O52+Migrants!O262,0) -> 164969 | P52: =ROUND(Survivors!P52+Migrants!P262,0) -> 167325 | Q52: =ROUND(Survivors!Q52+Migrants!Q262,0) -> 172402 | R52: =ROUND(Survivors!R52+Migrants!R262,0) -> 177457 | S52: =ROUND(Survivors!S52+Migrants!S262,0) -> 185982 | T52: =ROUND(Survivors!T52+Migrants!T262,0) -> 191344 | U52: =ROUND(Survivors!U52+Migrants!U262,0) -> 197777 | V52: =ROUND(Survivors!V52+Migrants!V262,0) -> 198947 | W52: =ROUND(Survivors!W52+Migrants!W262,0) -> 201688 | X52: =ROUND(Survivors!X52+Migrants!X262,0) -> 202547 | Y52: =ROUND(Survivors!Y52+Migrants!Y262,0) -> 201860 | Z52: =ROUND(Survivors!Z52+Migrants!Z262,0) -> 202939 | AA52: =ROUND(Survivors!AA52+Migrants!AA262,0) -> 205388 | AB52: =ROUND(Survivors!AB52+Migrants!AB262,0) -> 209079 | AC52: =ROUND(Survivors!AC52+Migrants!AC262,0) -> 206072 | AD52: =ROUND(Survivors!AD52+Migrants!AD262,0) -> 204360 | AE52: =ROUND(Survivors!AE52+Migrants!AE262,0) -> 205699 | AF52: =ROUND(Survivors!AF52+Migrants!AF262,0) -> 207041 | AG52: =ROUND(Survivors!AG52+Migrants!AG262,0) -> 209356 | AH52: =ROUND(Survivors!AH52+Migrants!AH262,0) -> 207485 | AI52: =ROUND(Survivors!AI52+Migrants!AI262,0) -> 207355 | AJ52: =ROUND(Survivors!AJ52+Migrants!AJ262,0) -> 206677 | AK52: =ROUND(Survivors!AK52+Migrants!AK262,0) -> 207075 | AL52: =ROUND(Survivors!AL52+Migrants!AL262,0) -> 207532 | AM52: =ROUND(Survivors!AM52+Migrants!AM262,0) -> 208652 | AN52: =ROUND(Survivors!AN52+Migrants!AN262,0) -> 207621 | AO52: =ROUND(Survivors!AO52+Migrants!AO262,0) -> 209296 | AP52: =ROUND(Survivors!AP52+Migrants!AP262,0) -> 212640 | AQ52: =ROUND(Survivors!AQ52+Migrants!AQ262,0) -> 216576 | AR52: =ROUND(Survivors!AR52+Migrants!AR262,0) -> 222339 | AS52: =ROUND(Survivors!AS52+Migrants!AS262,0) -> 224111 | AT52: =ROUND(Survivors!AT52+Migrants!AT262,0) -> 227430 | AU52: =ROUND(Survivors!AU52+Migrants!AU262,0) -> 229859 | AV52: =ROUND(Survivors!AV52+Migrants!AV262,0) -> 232731 | AW52: =ROUND(Survivors!AW52+Migrants!AW262,0) -> 231606 | AX52: =ROUND(Survivors!AX52+Migrants!AX262,0) -> 234441 | AY52: =ROUND(Survivors!AY52+Migrants!AY262,0) -> 237025 | AZ52: =ROUND(Survivors!AZ52+Migrants!AZ262,0) -> 239330 | BA52: =ROUND(Survivors!BA52+Migrants!BA262,0) -> 241595 | BB52: =ROUND(Survivors!BB52+Migrants!BB262,0) -> 243773 | BC52: =ROUND(Survivors!BC52+Migrants!BC262,0) -> 245819 | BD52: =ROUND(Survivors!BD52+Migrants!BD262,0) -> 247631 | BE52: =ROUND(Survivors!BE52+Migrants!BE262,0) -> 249195 | BF52: =ROUND(Survivors!BF52+Migrants!BF262,0) -> 250554 | BG52: =ROUND(Survivors!BG52+Migrants!BG262,0) -> 251713 | BH52: =ROUND(Survivors!BH52+Migrants!BH262,0) -> 252669 | BI52: =ROUND(Survivors!BI52+Migrants!BI262,0) -> 253444 | BJ52: =ROUND(Survivors!BJ52+Migrants!BJ262,0) -> 254088 | BK52: =ROUND(Survivors!BK52+Migrants!BK262,0) -> 254632 | BL52: =ROUND(Survivors!BL52+Migrants!BL262,0) -> 255098 | BM52: =ROUND(Survivors!BM52+Migrants!BM262,0) -> 255502 | BN52: =ROUND(Survivors!BN52+Migrants!BN262,0) -> 255917 | BO52: =ROUND(Survivors!BO52+Migrants!BO262,0) -> 256401 | BP52: =ROUND(Survivors!BP52+Migrants!BP262,0) -> 256932 | BQ52: =ROUND(Survivors!BQ52+Migrants!BQ262,0) -> 257561 | BR52: =ROUND(Survivors!BR52+Migrants!BR262,0) -> 258314 | BS52: =ROUND(Survivors!BS52+Migrants!BS262,0) -> 259209 | BT52: =ROUND(Survivors!BT52+Migrants!BT262,0) -> 260279 | BU52: =ROUND(Survivors!BU52+Migrants!BU262,0) -> 261500 | BV52: =ROUND(Survivors!BV52+Migrants!BV262,0) -> 262887 | BW52: =ROUND(Survivors!BW52+Migrants!BW262,0) -> 264411 | BX52: =ROUND(Survivors!BX52+Migrants!BX262,0) -> 266047 | BY52: =ROUND(Survivors!BY52+Migrants!BY262,0) -> 267769 | BZ52: =ROUND(Survivors!BZ52+Migrants!BZ262,0) -> 269564 | CA52: =ROUND(Survivors!CA52+Migrants!CA262,0) -> 271407 | CB52: =ROUND(Survivors!CB52+Migrants!CB262,0) -> 273261 | CC52: =ROUND(Survivors!CC52+Migrants!CC262,0) -> 275103 | CD52: =ROUND(Survivors!CD52+Migrants!CD262,0) -> 276913 | CE52: =ROUND(Survivors!CE52+Migrants!CE262,0) -> 278666 | CF52: =ROUND(Survivors!CF52+Migrants!CF262,0) -> 280355 | CG52: =ROUND(Survivors!CG52+Migrants!CG262,0) -> 281961 | CH52: =ROUND(Survivors!CH52+Migrants!CH262,0) -> 283495 | CI52: =ROUND(Survivors!CI52+Migrants!CI262,0) -> 284954 | CJ52: =ROUND(Survivors!CJ52+Migrants!CJ262,0) -> 286324 | CK52: =ROUND(Survivors!CK52+Migrants!CK262,0) -> 287611 | CL52: =ROUND(Survivors!CL52+Migrants!CL262,0) -> 288816 | CM52: =ROUND(Survivors!CM52+Migrants!CM262,0) -> 289936 | CN52: =ROUND(Survivors!CN52+Migrants!CN262,0) -> 290966
A53: 49 | B53: 155923 | C53: =ROUND(Survivors!C53+Migrants!C263,0) -> 154809 | D53: =ROUND(Survivors!D53+Migrants!D263,0) -> 150942 | E53: =ROUND(Survivors!E53+Migrants!E263,0) -> 150254 | F53: =ROUND(Survivors!F53+Migrants!F263,0) -> 151500 | G53: =ROUND(Survivors!G53+Migrants!G263,0) -> 156051 | H53: =ROUND(Survivors!H53+Migrants!H263,0) -> 162486 | I53: =ROUND(Survivors!I53+Migrants!I263,0) -> 165948 | J53: =ROUND(Survivors!J53+Migrants!J263,0) -> 175076 | K53: =ROUND(Survivors!K53+Migrants!K263,0) -> 173840 | L53: =ROUND(Survivors!L53+Migrants!L263,0) -> 168575 | M53: =ROUND(Survivors!M53+Migrants!M263,0) -> 166117 | N53: =ROUND(Survivors!N53+Migrants!N263,0) -> 164553 | O53: =ROUND(Survivors!O53+Migrants!O263,0) -> 163789 | P53: =ROUND(Survivors!P53+Migrants!P263,0) -> 165173 | Q53: =ROUND(Survivors!Q53+Migrants!Q263,0) -> 167532 | R53: =ROUND(Survivors!R53+Migrants!R263,0) -> 172607 | S53: =ROUND(Survivors!S53+Migrants!S263,0) -> 177660 | T53: =ROUND(Survivors!T53+Migrants!T263,0) -> 186178 | U53: =ROUND(Survivors!U53+Migrants!U263,0) -> 191538 | V53: =ROUND(Survivors!V53+Migrants!V263,0) -> 197968 | W53: =ROUND(Survivors!W53+Migrants!W263,0) -> 199144 | X53: =ROUND(Survivors!X53+Migrants!X263,0) -> 201888 | Y53: =ROUND(Survivors!Y53+Migrants!Y263,0) -> 202753 | Z53: =ROUND(Survivors!Z53+Migrants!Z263,0) -> 202074 | AA53: =ROUND(Survivors!AA53+Migrants!AA263,0) -> 203158 | AB53: =ROUND(Survivors!AB53+Migrants!AB263,0) -> 205610 | AC53: =ROUND(Survivors!AC53+Migrants!AC263,0) -> 209303 | AD53: =ROUND(Survivors!AD53+Migrants!AD263,0) -> 206306 | AE53: =ROUND(Survivors!AE53+Migrants!AE263,0) -> 204603 | AF53: =ROUND(Survivors!AF53+Migrants!AF263,0) -> 205947 | AG53: =ROUND(Survivors!AG53+Migrants!AG263,0) -> 207293 | AH53: =ROUND(Survivors!AH53+Migrants!AH263,0) -> 209611 | AI53: =ROUND(Survivors!AI53+Migrants!AI263,0) -> 207748 | AJ53: =ROUND(Survivors!AJ53+Migrants!AJ263,0) -> 207624 | AK53: =ROUND(Survivors!AK53+Migrants!AK263,0) -> 206952 | AL53: =ROUND(Survivors!AL53+Migrants!AL263,0) -> 207355 | AM53: =ROUND(Survivors!AM53+Migrants!AM263,0) -> 207817 | AN53: =ROUND(Survivors!AN53+Migrants!AN263,0) -> 208941 | AO53: =ROUND(Survivors!AO53+Migrants!AO263,0) -> 207916 | AP53: =ROUND(Survivors!AP53+Migrants!AP263,0) -> 209595 | AQ53: =ROUND(Survivors!AQ53+Migrants!AQ263,0) -> 212940 | AR53: =ROUND(Survivors!AR53+Migrants!AR263,0) -> 216875 | AS53: =ROUND(Survivors!AS53+Migrants!AS263,0) -> 222636 | AT53: =ROUND(Survivors!AT53+Migrants!AT263,0) -> 224409 | AU53: =ROUND(Survivors!AU53+Migrants!AU263,0) -> 227728 | AV53: =ROUND(Survivors!AV53+Migrants!AV263,0) -> 230158 | AW53: =ROUND(Survivors!AW53+Migrants!AW263,0) -> 233031 | AX53: =ROUND(Survivors!AX53+Migrants!AX263,0) -> 231910 | AY53: =ROUND(Survivors!AY53+Migrants!AY263,0) -> 234745 | AZ53: =ROUND(Survivors!AZ53+Migrants!AZ263,0) -> 237330 | BA53: =ROUND(Survivors!BA53+Migrants!BA263,0) -> 239636 | BB53: =ROUND(Survivors!BB53+Migrants!BB263,0) -> 241902 | BC53: =ROUND(Survivors!BC53+Migrants!BC263,0) -> 244081 | BD53: =ROUND(Survivors!BD53+Migrants!BD263,0) -> 246128 | BE53: =ROUND(Survivors!BE53+Migrants!BE263,0) -> 247941 | BF53: =ROUND(Survivors!BF53+Migrants!BF263,0) -> 249507 | BG53: =ROUND(Survivors!BG53+Migrants!BG263,0) -> 250867 | BH53: =ROUND(Survivors!BH53+Migrants!BH263,0) -> 252028 | BI53: =ROUND(Survivors!BI53+Migrants!BI263,0) -> 252986 | BJ53: =ROUND(Survivors!BJ53+Migrants!BJ263,0) -> 253763 | BK53: =ROUND(Survivors!BK53+Migrants!BK263,0) -> 254409 | BL53: =ROUND(Survivors!BL53+Migrants!BL263,0) -> 254955 | BM53: =ROUND(Survivors!BM53+Migrants!BM263,0) -> 255423 | BN53: =ROUND(Survivors!BN53+Migrants!BN263,0) -> 255829 | BO53: =ROUND(Survivors!BO53+Migrants!BO263,0) -> 256245 | BP53: =ROUND(Survivors!BP53+Migrants!BP263,0) -> 256731 | BQ53: =ROUND(Survivors!BQ53+Migrants!BQ263,0) -> 257264 | BR53: =ROUND(Survivors!BR53+Migrants!BR263,0) -> 257894 | BS53: =ROUND(Survivors!BS53+Migrants!BS263,0) -> 258648 | BT53: =ROUND(Survivors!BT53+Migrants!BT263,0) -> 259544 | BU53: =ROUND(Survivors!BU53+Migrants!BU263,0) -> 260615 | BV53: =ROUND(Survivors!BV53+Migrants!BV263,0) -> 261837 | BW53: =ROUND(Survivors!BW53+Migrants!BW263,0) -> 263225 | BX53: =ROUND(Survivors!BX53+Migrants!BX263,0) -> 264749 | BY53: =ROUND(Survivors!BY53+Migrants!BY263,0) -> 266386 | BZ53: =ROUND(Survivors!BZ53+Migrants!BZ263,0) -> 268108 | CA53: =ROUND(Survivors!CA53+Migrants!CA263,0) -> 269903 | CB53: =ROUND(Survivors!CB53+Migrants!CB263,0) -> 271746 | CC53: =ROUND(Survivors!CC53+Migrants!CC263,0) -> 273600 | CD53: =ROUND(Survivors!CD53+Migrants!CD263,0) -> 275442 | CE53: =ROUND(Survivors!CE53+Migrants!CE263,0) -> 277252 | CF53: =ROUND(Survivors!CF53+Migrants!CF263,0) -> 279005 | CG53: =ROUND(Survivors!CG53+Migrants!CG263,0) -> 280694 | CH53: =ROUND(Survivors!CH53+Migrants!CH263,0) -> 282300 | CI53: =ROUND(Survivors!CI53+Migrants!CI263,0) -> 283834 | CJ53: =ROUND(Survivors!CJ53+Migrants!CJ263,0) -> 285292 | CK53: =ROUND(Survivors!CK53+Migrants!CK263,0) -> 286662 | CL53: =ROUND(Survivors!CL53+Migrants!CL263,0) -> 287949 | CM53: =ROUND(Survivors!CM53+Migrants!CM263,0) -> 289154 | CN53: =ROUND(Survivors!CN53+Migrants!CN263,0) -> 290274
A54: 50 | B54: 156452 | C54: =ROUND(Survivors!C54+Migrants!C264,0) -> 156045 | D54: =ROUND(Survivors!D54+Migrants!D264,0) -> 154918 | E54: =ROUND(Survivors!E54+Migrants!E264,0) -> 151045 | F54: =ROUND(Survivors!F54+Migrants!F264,0) -> 150342 | G54: =ROUND(Survivors!G54+Migrants!G264,0) -> 151568 | H54: =ROUND(Survivors!H54+Migrants!H264,0) -> 156091 | I54: =ROUND(Survivors!I54+Migrants!I264,0) -> 162520 | J54: =ROUND(Survivors!J54+Migrants!J264,0) -> 165983 | K54: =ROUND(Survivors!K54+Migrants!K264,0) -> 175100 | L54: =ROUND(Survivors!L54+Migrants!L264,0) -> 173877 | M54: =ROUND(Survivors!M54+Migrants!M264,0) -> 168632 | N54: =ROUND(Survivors!N54+Migrants!N264,0) -> 166188 | O54: =ROUND(Survivors!O54+Migrants!O264,0) -> 164636 | P54: =ROUND(Survivors!P54+Migrants!P264,0) -> 163881 | Q54: =ROUND(Survivors!Q54+Migrants!Q264,0) -> 165271 | R54: =ROUND(Survivors!R54+Migrants!R264,0) -> 167633 | S54: =ROUND(Survivors!S54+Migrants!S264,0) -> 172706 | T54: =ROUND(Survivors!T54+Migrants!T264,0) -> 177758 | U54: =ROUND(Survivors!U54+Migrants!U264,0) -> 186269 | V54: =ROUND(Survivors!V54+Migrants!V264,0) -> 191628 | W54: =ROUND(Survivors!W54+Migrants!W264,0) -> 198055 | X54: =ROUND(Survivors!X54+Migrants!X264,0) -> 199237 | Y54: =ROUND(Survivors!Y54+Migrants!Y264,0) -> 201985 | Z54: =ROUND(Survivors!Z54+Migrants!Z264,0) -> 202856 | AA54: =ROUND(Survivors!AA54+Migrants!AA264,0) -> 202186 | AB54: =ROUND(Survivors!AB54+Migrants!AB264,0) -> 203276 | AC54: =ROUND(Survivors!AC54+Migrants!AC264,0) -> 205732 | AD54: =ROUND(Survivors!AD54+Migrants!AD264,0) -> 209427 | AE54: =ROUND(Survivors!AE54+Migrants!AE264,0) -> 206441 | AF54: =ROUND(Survivors!AF54+Migrants!AF264,0) -> 204747 | AG54: =ROUND(Survivors!AG54+Migrants!AG264,0) -> 206096 | AH54: =ROUND(Survivors!AH54+Migrants!AH264,0) -> 207447 | AI54: =ROUND(Survivors!AI54+Migrants!AI264,0) -> 209768 | AJ54: =ROUND(Survivors!AJ54+Migrants!AJ264,0) -> 207914 | AK54: =ROUND(Survivors!AK54+Migrants!AK264,0) -> 207796 | AL54: =ROUND(Survivors!AL54+Migrants!AL264,0) -> 207131 | AM54: =ROUND(Survivors!AM54+Migrants!AM264,0) -> 207539 | AN54: =ROUND(Survivors!AN54+Migrants!AN264,0) -> 208007 | AO54: =ROUND(Survivors!AO54+Migrants!AO264,0) -> 209135 | AP54: =ROUND(Survivors!AP54+Migrants!AP264,0) -> 208116 | AQ54: =ROUND(Survivors!AQ54+Migrants!AQ264,0) -> 209799 | AR54: =ROUND(Survivors!AR54+Migrants!AR264,0) -> 213144 | AS54: =ROUND(Survivors!AS54+Migrants!AS264,0) -> 217078 | AT54: =ROUND(Survivors!AT54+Migrants!AT264,0) -> 222837 | AU54: =ROUND(Survivors!AU54+Migrants!AU264,0) -> 224611 | AV54: =ROUND(Survivors!AV54+Migrants!AV264,0) -> 227930 | AW54: =ROUND(Survivors!AW54+Migrants!AW264,0) -> 230361 | AX54: =ROUND(Survivors!AX54+Migrants!AX264,0) -> 233234 | AY54: =ROUND(Survivors!AY54+Migrants!AY264,0) -> 232117 | AZ54: =ROUND(Survivors!AZ54+Migrants!AZ264,0) -> 234953 | BA54: =ROUND(Survivors!BA54+Migrants!BA264,0) -> 237539 | BB54: =ROUND(Survivors!BB54+Migrants!BB264,0) -> 239846 | BC54: =ROUND(Survivors!BC54+Migrants!BC264,0) -> 242113 | BD54: =ROUND(Survivors!BD54+Migrants!BD264,0) -> 244293 | BE54: =ROUND(Survivors!BE54+Migrants!BE264,0) -> 246341 | BF54: =ROUND(Survivors!BF54+Migrants!BF264,0) -> 248155 | BG54: =ROUND(Survivors!BG54+Migrants!BG264,0) -> 249722 | BH54: =ROUND(Survivors!BH54+Migrants!BH264,0) -> 251084 | BI54: =ROUND(Survivors!BI54+Migrants!BI264,0) -> 252247 | BJ54: =ROUND(Survivors!BJ54+Migrants!BJ264,0) -> 253206 | BK54: =ROUND(Survivors!BK54+Migrants!BK264,0) -> 253985 | BL54: =ROUND(Survivors!BL54+Migrants!BL264,0) -> 254633 | BM54: =ROUND(Survivors!BM54+Migrants!BM264,0) -> 255181 | BN54: =ROUND(Survivors!BN54+Migrants!BN264,0) -> 255651 | BO54: =ROUND(Survivors!BO54+Migrants!BO264,0) -> 256059 | BP54: =ROUND(Survivors!BP54+Migrants!BP264,0) -> 256477 | BQ54: =ROUND(Survivors!BQ54+Migrants!BQ264,0) -> 256964 | BR54: =ROUND(Survivors!BR54+Migrants!BR264,0) -> 257499 | BS54: =ROUND(Survivors!BS54+Migrants!BS264,0) -> 258130 | BT54: =ROUND(Survivors!BT54+Migrants!BT264,0) -> 258885 | BU54: =ROUND(Survivors!BU54+Migrants!BU264,0) -> 259783 | BV54: =ROUND(Survivors!BV54+Migrants!BV264,0) -> 260854 | BW54: =ROUND(Survivors!BW54+Migrants!BW264,0) -> 262077 | BX54: =ROUND(Survivors!BX54+Migrants!BX264,0) -> 263466 | BY54: =ROUND(Survivors!BY54+Migrants!BY264,0) -> 264990 | BZ54: =ROUND(Survivors!BZ54+Migrants!BZ264,0) -> 266627 | CA54: =ROUND(Survivors!CA54+Migrants!CA264,0) -> 268350 | CB54: =ROUND(Survivors!CB54+Migrants!CB264,0) -> 270145 | CC54: =ROUND(Survivors!CC54+Migrants!CC264,0) -> 271988 | CD54: =ROUND(Survivors!CD54+Migrants!CD264,0) -> 273842 | CE54: =ROUND(Survivors!CE54+Migrants!CE264,0) -> 275683 | CF54: =ROUND(Survivors!CF54+Migrants!CF264,0) -> 277493 | CG54: =ROUND(Survivors!CG54+Migrants!CG264,0) -> 279246 | CH54: =ROUND(Survivors!CH54+Migrants!CH264,0) -> 280935 | CI54: =ROUND(Survivors!CI54+Migrants!CI264,0) -> 282541 | CJ54: =ROUND(Survivors!CJ54+Migrants!CJ264,0) -> 284075 | CK54: =ROUND(Survivors!CK54+Migrants!CK264,0) -> 285533 | CL54: =ROUND(Survivors!CL54+Migrants!CL264,0) -> 286903 | CM54: =ROUND(Survivors!CM54+Migrants!CM264,0) -> 288190 | CN54: =ROUND(Survivors!CN54+Migrants!CN264,0) -> 289395
A55: 51 | B55: 155472 | C55: =ROUND(Survivors!C55+Migrants!C265,0) -> 156534 | D55: =ROUND(Survivors!D55+Migrants!D265,0) -> 156114 | E55: =ROUND(Survivors!E55+Migrants!E265,0) -> 154976 | F55: =ROUND(Survivors!F55+Migrants!F265,0) -> 151098 | G55: =ROUND(Survivors!G55+Migrants!G265,0) -> 150382 | H55: =ROUND(Survivors!H55+Migrants!H265,0) -> 151589 | I55: =ROUND(Survivors!I55+Migrants!I265,0) -> 156111 | J55: =ROUND(Survivors!J55+Migrants!J265,0) -> 162534 | K55: =ROUND(Survivors!K55+Migrants!K265,0) -> 165999 | L55: =ROUND(Survivors!L55+Migrants!L265,0) -> 175105 | M55: =ROUND(Survivors!M55+Migrants!M265,0) -> 173895 | N55: =ROUND(Survivors!N55+Migrants!N265,0) -> 168672 | O55: =ROUND(Survivors!O55+Migrants!O265,0) -> 166243 | P55: =ROUND(Survivors!P55+Migrants!P265,0) -> 164704 | Q55: =ROUND(Survivors!Q55+Migrants!Q265,0) -> 163959 | R55: =ROUND(Survivors!R55+Migrants!R265,0) -> 165355 | S55: =ROUND(Survivors!S55+Migrants!S265,0) -> 167721 | T55: =ROUND(Survivors!T55+Migrants!T265,0) -> 172793 | U55: =ROUND(Survivors!U55+Migrants!U265,0) -> 177844 | V55: =ROUND(Survivors!V55+Migrants!V265,0) -> 186348 | W55: =ROUND(Survivors!W55+Migrants!W265,0) -> 191706 | X55: =ROUND(Survivors!X55+Migrants!X265,0) -> 198131 | Y55: =ROUND(Survivors!Y55+Migrants!Y265,0) -> 199320 | Z55: =ROUND(Survivors!Z55+Migrants!Z265,0) -> 202072 | AA55: =ROUND(Survivors!AA55+Migrants!AA265,0) -> 202950 | AB55: =ROUND(Survivors!AB55+Migrants!AB265,0) -> 202289 | AC55: =ROUND(Survivors!AC55+Migrants!AC265,0) -> 203385 | AD55: =ROUND(Survivors!AD55+Migrants!AD265,0) -> 205846 | AE55: =ROUND(Survivors!AE55+Migrants!AE265,0) -> 209543 | AF55: =ROUND(Survivors!AF55+Migrants!AF265,0) -> 206569 | AG55: =ROUND(Survivors!AG55+Migrants!AG265,0) -> 204885 | AH55: =ROUND(Survivors!AH55+Migrants!AH265,0) -> 206239 | AI55: =ROUND(Survivors!AI55+Migrants!AI265,0) -> 207595 | AJ55: =ROUND(Survivors!AJ55+Migrants!AJ265,0) -> 209920 | AK55: =ROUND(Survivors!AK55+Migrants!AK265,0) -> 208075 | AL55: =ROUND(Survivors!AL55+Migrants!AL265,0) -> 207964 | AM55: =ROUND(Survivors!AM55+Migrants!AM265,0) -> 207306 | AN55: =ROUND(Survivors!AN55+Migrants!AN265,0) -> 207720 | AO55: =ROUND(Survivors!AO55+Migrants!AO265,0) -> 208193 | AP55: =ROUND(Survivors!AP55+Migrants!AP265,0) -> 209326 | AQ55: =ROUND(Survivors!AQ55+Migrants!AQ265,0) -> 208314 | AR55: =ROUND(Survivors!AR55+Migrants!AR265,0) -> 209998 | AS55: =ROUND(Survivors!AS55+Migrants!AS265,0) -> 213343 | AT55: =ROUND(Survivors!AT55+Migrants!AT265,0) -> 217276 | AU55: =ROUND(Survivors!AU55+Migrants!AU265,0) -> 223033 | AV55: =ROUND(Survivors!AV55+Migrants!AV265,0) -> 224808 | AW55: =ROUND(Survivors!AW55+Migrants!AW265,0) -> 228127 | AX55: =ROUND(Survivors!AX55+Migrants!AX265,0) -> 230559 | AY55: =ROUND(Survivors!AY55+Migrants!AY265,0) -> 233433 | AZ55: =ROUND(Survivors!AZ55+Migrants!AZ265,0) -> 232320 | BA55: =ROUND(Survivors!BA55+Migrants!BA265,0) -> 235156 | BB55: =ROUND(Survivors!BB55+Migrants!BB265,0) -> 237743 | BC55: =ROUND(Survivors!BC55+Migrants!BC265,0) -> 240051 | BD55: =ROUND(Survivors!BD55+Migrants!BD265,0) -> 242319 | BE55: =ROUND(Survivors!BE55+Migrants!BE265,0) -> 244500 | BF55: =ROUND(Survivors!BF55+Migrants!BF265,0) -> 246549 | BG55: =ROUND(Survivors!BG55+Migrants!BG265,0) -> 248364 | BH55: =ROUND(Survivors!BH55+Migrants!BH265,0) -> 249933 | BI55: =ROUND(Survivors!BI55+Migrants!BI265,0) -> 251296 | BJ55: =ROUND(Survivors!BJ55+Migrants!BJ265,0) -> 252461 | BK55: =ROUND(Survivors!BK55+Migrants!BK265,0) -> 253422 | BL55: =ROUND(Survivors!BL55+Migrants!BL265,0) -> 254203 | BM55: =ROUND(Survivors!BM55+Migrants!BM265,0) -> 254852 | BN55: =ROUND(Survivors!BN55+Migrants!BN265,0) -> 255402 | BO55: =ROUND(Survivors!BO55+Migrants!BO265,0) -> 255874 | BP55: =ROUND(Survivors!BP55+Migrants!BP265,0) -> 256284 | BQ55: =ROUND(Survivors!BQ55+Migrants!BQ265,0) -> 256704 | BR55: =ROUND(Survivors!BR55+Migrants!BR265,0) -> 257192 | BS55: =ROUND(Survivors!BS55+Migrants!BS265,0) -> 257729 | BT55: =ROUND(Survivors!BT55+Migrants!BT265,0) -> 258361 | BU55: =ROUND(Survivors!BU55+Migrants!BU265,0) -> 259117 | BV55: =ROUND(Survivors!BV55+Migrants!BV265,0) -> 260016 | BW55: =ROUND(Survivors!BW55+Migrants!BW265,0) -> 261088 | BX55: =ROUND(Survivors!BX55+Migrants!BX265,0) -> 262312 | BY55: =ROUND(Survivors!BY55+Migrants!BY265,0) -> 263701 | BZ55: =ROUND(Survivors!BZ55+Migrants!BZ265,0) -> 265226 | CA55: =ROUND(Survivors!CA55+Migrants!CA265,0) -> 266863 | CB55: =ROUND(Survivors!CB55+Migrants!CB265,0) -> 268586 | CC55: =ROUND(Survivors!CC55+Migrants!CC265,0) -> 270381 | CD55: =ROUND(Survivors!CD55+Migrants!CD265,0) -> 272224 | CE55: =ROUND(Survivors!CE55+Migrants!CE265,0) -> 274078 | CF55: =ROUND(Survivors!CF55+Migrants!CF265,0) -> 275919 | CG55: =ROUND(Survivors!CG55+Migrants!CG265,0) -> 277729 | CH55: =ROUND(Survivors!CH55+Migrants!CH265,0) -> 279481 | CI55: =ROUND(Survivors!CI55+Migrants!CI265,0) -> 281170 | CJ55: =ROUND(Survivors!CJ55+Migrants!CJ265,0) -> 282776 | CK55: =ROUND(Survivors!CK55+Migrants!CK265,0) -> 284310 | CL55: =ROUND(Survivors!CL55+Migrants!CL265,0) -> 285768 | CM55: =ROUND(Survivors!CM55+Migrants!CM265,0) -> 287138 | CN55: =ROUND(Survivors!CN55+Migrants!CN265,0) -> 288425
A56: 52 | B56: 150090 | C56: =ROUND(Survivors!C56+Migrants!C266,0) -> 155499 | D56: =ROUND(Survivors!D56+Migrants!D266,0) -> 156546 | E56: =ROUND(Survivors!E56+Migrants!E266,0) -> 156115 | F56: =ROUND(Survivors!F56+Migrants!F266,0) -> 154968 | G56: =ROUND(Survivors!G56+Migrants!G266,0) -> 151088 | H56: =ROUND(Survivors!H56+Migrants!H266,0) -> 150361 | I56: =ROUND(Survivors!I56+Migrants!I266,0) -> 151576 | J56: =ROUND(Survivors!J56+Migrants!J266,0) -> 156097 | K56: =ROUND(Survivors!K56+Migrants!K266,0) -> 162515 | L56: =ROUND(Survivors!L56+Migrants!L266,0) -> 165982 | M56: =ROUND(Survivors!M56+Migrants!M266,0) -> 175077 | N56: =ROUND(Survivors!N56+Migrants!N266,0) -> 173882 | O56: =ROUND(Survivors!O56+Migrants!O266,0) -> 168682 | P56: =ROUND(Survivors!P56+Migrants!P266,0) -> 166269 | Q56: =ROUND(Survivors!Q56+Migrants!Q266,0) -> 164743 | R56: =ROUND(Survivors!R56+Migrants!R266,0) -> 164010 | S56: =ROUND(Survivors!S56+Migrants!S266,0) -> 165412 | T56: =ROUND(Survivors!T56+Migrants!T266,0) -> 167783 | U56: =ROUND(Survivors!U56+Migrants!U266,0) -> 172854 | V56: =ROUND(Survivors!V56+Migrants!V266,0) -> 177904 | W56: =ROUND(Survivors!W56+Migrants!W266,0) -> 186402 | X56: =ROUND(Survivors!X56+Migrants!X266,0) -> 191759 | Y56: =ROUND(Survivors!Y56+Migrants!Y266,0) -> 198183 | Z56: =ROUND(Survivors!Z56+Migrants!Z266,0) -> 199379 | AA56: =ROUND(Survivors!AA56+Migrants!AA266,0) -> 202136 | AB56: =ROUND(Survivors!AB56+Migrants!AB266,0) -> 203021 | AC56: =ROUND(Survivors!AC56+Migrants!AC266,0) -> 202370 | AD56: =ROUND(Survivors!AD56+Migrants!AD266,0) -> 203473 | AE56: =ROUND(Survivors!AE56+Migrants!AE266,0) -> 205939 | AF56: =ROUND(Survivors!AF56+Migrants!AF266,0) -> 209639 | AG56: =ROUND(Survivors!AG56+Migrants!AG266,0) -> 206677 | AH56: =ROUND(Survivors!AH56+Migrants!AH266,0) -> 205003 | AI56: =ROUND(Survivors!AI56+Migrants!AI266,0) -> 206363 | AJ56: =ROUND(Survivors!AJ56+Migrants!AJ266,0) -> 207725 | AK56: =ROUND(Survivors!AK56+Migrants!AK266,0) -> 210054 | AL56: =ROUND(Survivors!AL56+Migrants!AL266,0) -> 208219 | AM56: =ROUND(Survivors!AM56+Migrants!AM266,0) -> 208115 | AN56: =ROUND(Survivors!AN56+Migrants!AN266,0) -> 207464 | AO56: =ROUND(Survivors!AO56+Migrants!AO266,0) -> 207884 | AP56: =ROUND(Survivors!AP56+Migrants!AP266,0) -> 208363 | AQ56: =ROUND(Survivors!AQ56+Migrants!AQ266,0) -> 209501 | AR56: =ROUND(Survivors!AR56+Migrants!AR266,0) -> 208494 | AS56: =ROUND(Survivors!AS56+Migrants!AS266,0) -> 210179 | AT56: =ROUND(Survivors!AT56+Migrants!AT266,0) -> 213524 | AU56: =ROUND(Survivors!AU56+Migrants!AU266,0) -> 217456 | AV56: =ROUND(Survivors!AV56+Migrants!AV266,0) -> 223211 | AW56: =ROUND(Survivors!AW56+Migrants!AW266,0) -> 224987 | AX56: =ROUND(Survivors!AX56+Migrants!AX266,0) -> 228306 | AY56: =ROUND(Survivors!AY56+Migrants!AY266,0) -> 230739 | AZ56: =ROUND(Survivors!AZ56+Migrants!AZ266,0) -> 233613 | BA56: =ROUND(Survivors!BA56+Migrants!BA266,0) -> 232505 | BB56: =ROUND(Survivors!BB56+Migrants!BB266,0) -> 235341 | BC56: =ROUND(Survivors!BC56+Migrants!BC266,0) -> 237929 | BD56: =ROUND(Survivors!BD56+Migrants!BD266,0) -> 240238 | BE56: =ROUND(Survivors!BE56+Migrants!BE266,0) -> 242507 | BF56: =ROUND(Survivors!BF56+Migrants!BF266,0) -> 244689 | BG56: =ROUND(Survivors!BG56+Migrants!BG266,0) -> 246739 | BH56: =ROUND(Survivors!BH56+Migrants!BH266,0) -> 248555 | BI56: =ROUND(Survivors!BI56+Migrants!BI266,0) -> 250125 | BJ56: =ROUND(Survivors!BJ56+Migrants!BJ266,0) -> 251490 | BK56: =ROUND(Survivors!BK56+Migrants!BK266,0) -> 252657 | BL56: =ROUND(Survivors!BL56+Migrants!BL266,0) -> 253619 | BM56: =ROUND(Survivors!BM56+Migrants!BM266,0) -> 254402 | BN56: =ROUND(Survivors!BN56+Migrants!BN266,0) -> 255053 | BO56: =ROUND(Survivors!BO56+Migrants!BO266,0) -> 255605 | BP56: =ROUND(Survivors!BP56+Migrants!BP266,0) -> 256079 | BQ56: =ROUND(Survivors!BQ56+Migrants!BQ266,0) -> 256491 | BR56: =ROUND(Survivors!BR56+Migrants!BR266,0) -> 256912 | BS56: =ROUND(Survivors!BS56+Migrants!BS266,0) -> 257402 | BT56: =ROUND(Survivors!BT56+Migrants!BT266,0) -> 257940 | BU56: =ROUND(Survivors!BU56+Migrants!BU266,0) -> 258574 | BV56: =ROUND(Survivors!BV56+Migrants!BV266,0) -> 259331 | BW56: =ROUND(Survivors!BW56+Migrants!BW266,0) -> 260231 | BX56: =ROUND(Survivors!BX56+Migrants!BX266,0) -> 261304 | BY56: =ROUND(Survivors!BY56+Migrants!BY266,0) -> 262528 | BZ56: =ROUND(Survivors!BZ56+Migrants!BZ266,0) -> 263918 | CA56: =ROUND(Survivors!CA56+Migrants!CA266,0) -> 265443 | CB56: =ROUND(Survivors!CB56+Migrants!CB266,0) -> 267080 | CC56: =ROUND(Survivors!CC56+Migrants!CC266,0) -> 268803 | CD56: =ROUND(Survivors!CD56+Migrants!CD266,0) -> 270598 | CE56: =ROUND(Survivors!CE56+Migrants!CE266,0) -> 272441 | CF56: =ROUND(Survivors!CF56+Migrants!CF266,0) -> 274295 | CG56: =ROUND(Survivors!CG56+Migrants!CG266,0) -> 276136 | CH56: =ROUND(Survivors!CH56+Migrants!CH266,0) -> 277946 | CI56: =ROUND(Survivors!CI56+Migrants!CI266,0) -> 279697 | CJ56: =ROUND(Survivors!CJ56+Migrants!CJ266,0) -> 281386 | CK56: =ROUND(Survivors!CK56+Migrants!CK266,0) -> 282992 | CL56: =ROUND(Survivors!CL56+Migrants!CL266,0) -> 284526 | CM56: =ROUND(Survivors!CM56+Migrants!CM266,0) -> 285984 | CN56: =ROUND(Survivors!CN56+Migrants!CN266,0) -> 287353
A57: 53 | B57: 148186 | C57: =ROUND(Survivors!C57+Migrants!C267,0) -> 150043 | D57: =ROUND(Survivors!D57+Migrants!D267,0) -> 155425 | E57: =ROUND(Survivors!E57+Migrants!E267,0) -> 156461 | F57: =ROUND(Survivors!F57+Migrants!F267,0) -> 156023 | G57: =ROUND(Survivors!G57+Migrants!G267,0) -> 154871 | H57: =ROUND(Survivors!H57+Migrants!H267,0) -> 150993 | I57: =ROUND(Survivors!I57+Migrants!I267,0) -> 150281 | J57: =ROUND(Survivors!J57+Migrants!J267,0) -> 151505 | K57: =ROUND(Survivors!K57+Migrants!K267,0) -> 156026 | L57: =ROUND(Survivors!L57+Migrants!L267,0) -> 162439 | M57: =ROUND(Survivors!M57+Migrants!M267,0) -> 165909 | N57: =ROUND(Survivors!N57+Migrants!N267,0) -> 174993 | O57: =ROUND(Survivors!O57+Migrants!O267,0) -> 173814 | P57: =ROUND(Survivors!P57+Migrants!P267,0) -> 168638 | Q57: =ROUND(Survivors!Q57+Migrants!Q267,0) -> 166242 | R57: =ROUND(Survivors!R57+Migrants!R267,0) -> 164731 | S57: =ROUND(Survivors!S57+Migrants!S267,0) -> 164010 | T57: =ROUND(Survivors!T57+Migrants!T267,0) -> 165419 | U57: =ROUND(Survivors!U57+Migrants!U267,0) -> 167795 | V57: =ROUND(Survivors!V57+Migrants!V267,0) -> 172866 | W57: =ROUND(Survivors!W57+Migrants!W267,0) -> 177915 | X57: =ROUND(Survivors!X57+Migrants!X267,0) -> 186407 | Y57: =ROUND(Survivors!Y57+Migrants!Y267,0) -> 191764 | Z57: =ROUND(Survivors!Z57+Migrants!Z267,0) -> 198187 | AA57: =ROUND(Survivors!AA57+Migrants!AA267,0) -> 199390 | AB57: =ROUND(Survivors!AB57+Migrants!AB267,0) -> 202153 | AC57: =ROUND(Survivors!AC57+Migrants!AC267,0) -> 203046 | AD57: =ROUND(Survivors!AD57+Migrants!AD267,0) -> 202405 | AE57: =ROUND(Survivors!AE57+Migrants!AE267,0) -> 203516 | AF57: =ROUND(Survivors!AF57+Migrants!AF267,0) -> 205987 | AG57: =ROUND(Survivors!AG57+Migrants!AG267,0) -> 209690 | AH57: =ROUND(Survivors!AH57+Migrants!AH267,0) -> 206741 | AI57: =ROUND(Survivors!AI57+Migrants!AI267,0) -> 205078 | AJ57: =ROUND(Survivors!AJ57+Migrants!AJ267,0) -> 206444 | AK57: =ROUND(Survivors!AK57+Migrants!AK267,0) -> 207812 | AL57: =ROUND(Survivors!AL57+Migrants!AL267,0) -> 210146 | AM57: =ROUND(Survivors!AM57+Migrants!AM267,0) -> 208321 | AN57: =ROUND(Survivors!AN57+Migrants!AN267,0) -> 208224 | AO57: =ROUND(Survivors!AO57+Migrants!AO267,0) -> 207581 | AP57: =ROUND(Survivors!AP57+Migrants!AP267,0) -> 208008 | AQ57: =ROUND(Survivors!AQ57+Migrants!AQ267,0) -> 208493 | AR57: =ROUND(Survivors!AR57+Migrants!AR267,0) -> 209633 | AS57: =ROUND(Survivors!AS57+Migrants!AS267,0) -> 208630 | AT57: =ROUND(Survivors!AT57+Migrants!AT267,0) -> 210317 | AU57: =ROUND(Survivors!AU57+Migrants!AU267,0) -> 213662 | AV57: =ROUND(Survivors!AV57+Migrants!AV267,0) -> 217593 | AW57: =ROUND(Survivors!AW57+Migrants!AW267,0) -> 223345 | AX57: =ROUND(Survivors!AX57+Migrants!AX267,0) -> 225123 | AY57: =ROUND(Survivors!AY57+Migrants!AY267,0) -> 228442 | AZ57: =ROUND(Survivors!AZ57+Migrants!AZ267,0) -> 230876 | BA57: =ROUND(Survivors!BA57+Migrants!BA267,0) -> 233750 | BB57: =ROUND(Survivors!BB57+Migrants!BB267,0) -> 232646 | BC57: =ROUND(Survivors!BC57+Migrants!BC267,0) -> 235483 | BD57: =ROUND(Survivors!BD57+Migrants!BD267,0) -> 238071 | BE57: =ROUND(Survivors!BE57+Migrants!BE267,0) -> 240381 | BF57: =ROUND(Survivors!BF57+Migrants!BF267,0) -> 242651 | BG57: =ROUND(Survivors!BG57+Migrants!BG267,0) -> 244834 | BH57: =ROUND(Survivors!BH57+Migrants!BH267,0) -> 246885 | BI57: =ROUND(Survivors!BI57+Migrants!BI267,0) -> 248703 | BJ57: =ROUND(Survivors!BJ57+Migrants!BJ267,0) -> 250274 | BK57: =ROUND(Survivors!BK57+Migrants!BK267,0) -> 251641 | BL57: =ROUND(Survivors!BL57+Migrants!BL267,0) -> 252809 | BM57: =ROUND(Survivors!BM57+Migrants!BM267,0) -> 253773 | BN57: =ROUND(Survivors!BN57+Migrants!BN267,0) -> 254558 | BO57: =ROUND(Survivors!BO57+Migrants!BO267,0) -> 255211 | BP57: =ROUND(Survivors!BP57+Migrants!BP267,0) -> 255764 | BQ57: =ROUND(Survivors!BQ57+Migrants!BQ267,0) -> 256240 | BR57: =ROUND(Survivors!BR57+Migrants!BR267,0) -> 256654 | BS57: =ROUND(Survivors!BS57+Migrants!BS267,0) -> 257077 | BT57: =ROUND(Survivors!BT57+Migrants!BT267,0) -> 257568 | BU57: =ROUND(Survivors!BU57+Migrants!BU267,0) -> 258108 | BV57: =ROUND(Survivors!BV57+Migrants!BV267,0) -> 258743 | BW57: =ROUND(Survivors!BW57+Migrants!BW267,0) -> 259501 | BX57: =ROUND(Survivors!BX57+Migrants!BX267,0) -> 260402 | BY57: =ROUND(Survivors!BY57+Migrants!BY267,0) -> 261476 | BZ57: =ROUND(Survivors!BZ57+Migrants!BZ267,0) -> 262700 | CA57: =ROUND(Survivors!CA57+Migrants!CA267,0) -> 264091 | CB57: =ROUND(Survivors!CB57+Migrants!CB267,0) -> 265616 | CC57: =ROUND(Survivors!CC57+Migrants!CC267,0) -> 267253 | CD57: =ROUND(Survivors!CD57+Migrants!CD267,0) -> 268976 | CE57: =ROUND(Survivors!CE57+Migrants!CE267,0) -> 270771 | CF57: =ROUND(Survivors!CF57+Migrants!CF267,0) -> 272614 | CG57: =ROUND(Survivors!CG57+Migrants!CG267,0) -> 274468 | CH57: =ROUND(Survivors!CH57+Migrants!CH267,0) -> 276308 | CI57: =ROUND(Survivors!CI57+Migrants!CI267,0) -> 278118 | CJ57: =ROUND(Survivors!CJ57+Migrants!CJ267,0) -> 279869 | CK57: =ROUND(Survivors!CK57+Migrants!CK267,0) -> 281558 | CL57: =ROUND(Survivors!CL57+Migrants!CL267,0) -> 283163 | CM57: =ROUND(Survivors!CM57+Migrants!CM267,0) -> 284697 | CN57: =ROUND(Survivors!CN57+Migrants!CN267,0) -> 286155
A58: 54 | B58: 144374 | C58: =ROUND(Survivors!C58+Migrants!C268,0) -> 148019 | D58: =ROUND(Survivors!D58+Migrants!D268,0) -> 149867 | E58: =ROUND(Survivors!E58+Migrants!E268,0) -> 155227 | F58: =ROUND(Survivors!F58+Migrants!F268,0) -> 156257 | G58: =ROUND(Survivors!G58+Migrants!G268,0) -> 155817 | H58: =ROUND(Survivors!H58+Migrants!H268,0) -> 154665 | I58: =ROUND(Survivors!I58+Migrants!I268,0) -> 150814 | J58: =ROUND(Survivors!J58+Migrants!J268,0) -> 150118 | K58: =ROUND(Survivors!K58+Migrants!K268,0) -> 151352 | L58: =ROUND(Survivors!L58+Migrants!L268,0) -> 155873 | M58: =ROUND(Survivors!M58+Migrants!M268,0) -> 162281 | N58: =ROUND(Survivors!N58+Migrants!N268,0) -> 165755 | O58: =ROUND(Survivors!O58+Migrants!O268,0) -> 174828 | P58: =ROUND(Survivors!P58+Migrants!P268,0) -> 173666 | Q58: =ROUND(Survivors!Q58+Migrants!Q268,0) -> 168515 | R58: =ROUND(Survivors!R58+Migrants!R268,0) -> 166137 | S58: =ROUND(Survivors!S58+Migrants!S268,0) -> 164642 | T58: =ROUND(Survivors!T58+Migrants!T268,0) -> 163934 | U58: =ROUND(Survivors!U58+Migrants!U268,0) -> 165350 | V58: =ROUND(Survivors!V58+Migrants!V268,0) -> 167732 | W58: =ROUND(Survivors!W58+Migrants!W268,0) -> 172803 | X58: =ROUND(Survivors!X58+Migrants!X268,0) -> 177852 | Y58: =ROUND(Survivors!Y58+Migrants!Y268,0) -> 186338 | Z58: =ROUND(Survivors!Z58+Migrants!Z268,0) -> 191695 | AA58: =ROUND(Survivors!AA58+Migrants!AA268,0) -> 198117 | AB58: =ROUND(Survivors!AB58+Migrants!AB268,0) -> 199329 | AC58: =ROUND(Survivors!AC58+Migrants!AC268,0) -> 202097 | AD58: =ROUND(Survivors!AD58+Migrants!AD268,0) -> 202999 | AE58: =ROUND(Survivors!AE58+Migrants!AE268,0) -> 202369 | AF58: =ROUND(Survivors!AF58+Migrants!AF268,0) -> 203488 | AG58: =ROUND(Survivors!AG58+Migrants!AG268,0) -> 205965 | AH58: =ROUND(Survivors!AH58+Migrants!AH268,0) -> 209671 | AI58: =ROUND(Survivors!AI58+Migrants!AI268,0) -> 206736 | AJ58: =ROUND(Survivors!AJ58+Migrants!AJ268,0) -> 205084 | AK58: =ROUND(Survivors!AK58+Migrants!AK268,0) -> 206457 | AL58: =ROUND(Survivors!AL58+Migrants!AL268,0) -> 207831 | AM58: =ROUND(Survivors!AM58+Migrants!AM268,0) -> 210170 | AN58: =ROUND(Survivors!AN58+Migrants!AN268,0) -> 208355 | AO58: =ROUND(Survivors!AO58+Migrants!AO268,0) -> 208266 | AP58: =ROUND(Survivors!AP58+Migrants!AP268,0) -> 207631 | AQ58: =ROUND(Survivors!AQ58+Migrants!AQ268,0) -> 208065 | AR58: =ROUND(Survivors!AR58+Migrants!AR268,0) -> 208553 | AS58: =ROUND(Survivors!AS58+Migrants!AS268,0) -> 209695 | AT58: =ROUND(Survivors!AT58+Migrants!AT268,0) -> 208697 | AU58: =ROUND(Survivors!AU58+Migrants!AU268,0) -> 210385 | AV58: =ROUND(Survivors!AV58+Migrants!AV268,0) -> 213730 | AW58: =ROUND(Survivors!AW58+Migrants!AW268,0) -> 217660 | AX58: =ROUND(Survivors!AX58+Migrants!AX268,0) -> 223410 | AY58: =ROUND(Survivors!AY58+Migrants!AY268,0) -> 225189 | AZ58: =ROUND(Survivors!AZ58+Migrants!AZ268,0) -> 228508 | BA58: =ROUND(Survivors!BA58+Migrants!BA268,0) -> 230943 | BB58: =ROUND(Survivors!BB58+Migrants!BB268,0) -> 233817 | BC58: =ROUND(Survivors!BC58+Migrants!BC268,0) -> 232718 | BD58: =ROUND(Survivors!BD58+Migrants!BD268,0) -> 235555 | BE58: =ROUND(Survivors!BE58+Migrants!BE268,0) -> 238144 | BF58: =ROUND(Survivors!BF58+Migrants!BF268,0) -> 240455 | BG58: =ROUND(Survivors!BG58+Migrants!BG268,0) -> 242726 | BH58: =ROUND(Survivors!BH58+Migrants!BH268,0) -> 244910 | BI58: =ROUND(Survivors!BI58+Migrants!BI268,0) -> 246962 | BJ58: =ROUND(Survivors!BJ58+Migrants!BJ268,0) -> 248781 | BK58: =ROUND(Survivors!BK58+Migrants!BK268,0) -> 250353 | BL58: =ROUND(Survivors!BL58+Migrants!BL268,0) -> 251722 | BM58: =ROUND(Survivors!BM58+Migrants!BM268,0) -> 252891 | BN58: =ROUND(Survivors!BN58+Migrants!BN268,0) -> 253857 | BO58: =ROUND(Survivors!BO58+Migrants!BO268,0) -> 254644 | BP58: =ROUND(Survivors!BP58+Migrants!BP268,0) -> 255299 | BQ58: =ROUND(Survivors!BQ58+Migrants!BQ268,0) -> 255854 | BR58: =ROUND(Survivors!BR58+Migrants!BR268,0) -> 256331 | BS58: =ROUND(Survivors!BS58+Migrants!BS268,0) -> 256747 | BT58: =ROUND(Survivors!BT58+Migrants!BT268,0) -> 257172 | BU58: =ROUND(Survivors!BU58+Migrants!BU268,0) -> 257664 | BV58: =ROUND(Survivors!BV58+Migrants!BV268,0) -> 258206 | BW58: =ROUND(Survivors!BW58+Migrants!BW268,0) -> 258842 | BX58: =ROUND(Survivors!BX58+Migrants!BX268,0) -> 259601 | BY58: =ROUND(Survivors!BY58+Migrants!BY268,0) -> 260503 | BZ58: =ROUND(Survivors!BZ58+Migrants!BZ268,0) -> 261578 | CA58: =ROUND(Survivors!CA58+Migrants!CA268,0) -> 262802 | CB58: =ROUND(Survivors!CB58+Migrants!CB268,0) -> 264194 | CC58: =ROUND(Survivors!CC58+Migrants!CC268,0) -> 265719 | CD58: =ROUND(Survivors!CD58+Migrants!CD268,0) -> 267356 | CE58: =ROUND(Survivors!CE58+Migrants!CE268,0) -> 269079 | CF58: =ROUND(Survivors!CF58+Migrants!CF268,0) -> 270874 | CG58: =ROUND(Survivors!CG58+Migrants!CG268,0) -> 272716 | CH58: =ROUND(Survivors!CH58+Migrants!CH268,0) -> 274570 | CI58: =ROUND(Survivors!CI58+Migrants!CI268,0) -> 276410 | CJ58: =ROUND(Survivors!CJ58+Migrants!CJ268,0) -> 278219 | CK58: =ROUND(Survivors!CK58+Migrants!CK268,0) -> 279970 | CL58: =ROUND(Survivors!CL58+Migrants!CL268,0) -> 281659 | CM58: =ROUND(Survivors!CM58+Migrants!CM268,0) -> 283264 | CN58: =ROUND(Survivors!CN58+Migrants!CN268,0) -> 284797
A59: 55 | B59: 141210 | C59: =ROUND(Survivors!C59+Migrants!C269,0) -> 144087 | D59: =ROUND(Survivors!D59+Migrants!D269,0) -> 147721 | E59: =ROUND(Survivors!E59+Migrants!E269,0) -> 149565 | F59: =ROUND(Survivors!F59+Migrants!F269,0) -> 154907 | G59: =ROUND(Survivors!G59+Migrants!G269,0) -> 155937 | H59: =ROUND(Survivors!H59+Migrants!H269,0) -> 155500 | I59: =ROUND(Survivors!I59+Migrants!I269,0) -> 154369 | J59: =ROUND(Survivors!J59+Migrants!J269,0) -> 150546 | K59: =ROUND(Survivors!K59+Migrants!K269,0) -> 149867 | L59: =ROUND(Survivors!L59+Migrants!L269,0) -> 151112 | M59: =ROUND(Survivors!M59+Migrants!M269,0) -> 155633 | N59: =ROUND(Survivors!N59+Migrants!N269,0) -> 162037 | O59: =ROUND(Survivors!O59+Migrants!O269,0) -> 165515 | P59: =ROUND(Survivors!P59+Migrants!P269,0) -> 174577 | Q59: =ROUND(Survivors!Q59+Migrants!Q269,0) -> 173433 | R59: =ROUND(Survivors!R59+Migrants!R269,0) -> 168309 | S59: =ROUND(Survivors!S59+Migrants!S269,0) -> 165950 | T59: =ROUND(Survivors!T59+Migrants!T269,0) -> 164471 | U59: =ROUND(Survivors!U59+Migrants!U269,0) -> 163777 | V59: =ROUND(Survivors!V59+Migrants!V269,0) -> 165201 | W59: =ROUND(Survivors!W59+Migrants!W269,0) -> 167589 | X59: =ROUND(Survivors!X59+Migrants!X269,0) -> 172660 | Y59: =ROUND(Survivors!Y59+Migrants!Y269,0) -> 177710 | Z59: =ROUND(Survivors!Z59+Migrants!Z269,0) -> 186190 | AA59: =ROUND(Survivors!AA59+Migrants!AA269,0) -> 191547 | AB59: =ROUND(Survivors!AB59+Migrants!AB269,0) -> 197968 | AC59: =ROUND(Survivors!AC59+Migrants!AC269,0) -> 199190 | AD59: =ROUND(Survivors!AD59+Migrants!AD269,0) -> 201964 | AE59: =ROUND(Survivors!AE59+Migrants!AE269,0) -> 202875 | AF59: =ROUND(Survivors!AF59+Migrants!AF269,0) -> 202257 | AG59: =ROUND(Survivors!AG59+Migrants!AG269,0) -> 203384 | AH59: =ROUND(Survivors!AH59+Migrants!AH269,0) -> 205867 | AI59: =ROUND(Survivors!AI59+Migrants!AI269,0) -> 209577 | AJ59: =ROUND(Survivors!AJ59+Migrants!AJ269,0) -> 206656 | AK59: =ROUND(Survivors!AK59+Migrants!AK269,0) -> 205016 | AL59: =ROUND(Survivors!AL59+Migrants!AL269,0) -> 206396 | AM59: =ROUND(Survivors!AM59+Migrants!AM269,0) -> 207777 | AN59: =ROUND(Survivors!AN59+Migrants!AN269,0) -> 210121 | AO59: =ROUND(Survivors!AO59+Migrants!AO269,0) -> 208317 | AP59: =ROUND(Survivors!AP59+Migrants!AP269,0) -> 208236 | AQ59: =ROUND(Survivors!AQ59+Migrants!AQ269,0) -> 207610 | AR59: =ROUND(Survivors!AR59+Migrants!AR269,0) -> 208047 | AS59: =ROUND(Survivors!AS59+Migrants!AS269,0) -> 208538 | AT59: =ROUND(Survivors!AT59+Migrants!AT269,0) -> 209682 | AU59: =ROUND(Survivors!AU59+Migrants!AU269,0) -> 208689 | AV59: =ROUND(Survivors!AV59+Migrants!AV269,0) -> 210378 | AW59: =ROUND(Survivors!AW59+Migrants!AW269,0) -> 213723 | AX59: =ROUND(Survivors!AX59+Migrants!AX269,0) -> 217652 | AY59: =ROUND(Survivors!AY59+Migrants!AY269,0) -> 223400 | AZ59: =ROUND(Survivors!AZ59+Migrants!AZ269,0) -> 225180 | BA59: =ROUND(Survivors!BA59+Migrants!BA269,0) -> 228499 | BB59: =ROUND(Survivors!BB59+Migrants!BB269,0) -> 230935 | BC59: =ROUND(Survivors!BC59+Migrants!BC269,0) -> 233809 | BD59: =ROUND(Survivors!BD59+Migrants!BD269,0) -> 232715 | BE59: =ROUND(Survivors!BE59+Migrants!BE269,0) -> 235552 | BF59: =ROUND(Survivors!BF59+Migrants!BF269,0) -> 238142 | BG59: =ROUND(Survivors!BG59+Migrants!BG269,0) -> 240454 | BH59: =ROUND(Survivors!BH59+Migrants!BH269,0) -> 242726 | BI59: =ROUND(Survivors!BI59+Migrants!BI269,0) -> 244911 | BJ59: =ROUND(Survivors!BJ59+Migrants!BJ269,0) -> 246964 | BK59: =ROUND(Survivors!BK59+Migrants!BK269,0) -> 248784 | BL59: =ROUND(Survivors!BL59+Migrants!BL269,0) -> 250357 | BM59: =ROUND(Survivors!BM59+Migrants!BM269,0) -> 251728 | BN59: =ROUND(Survivors!BN59+Migrants!BN269,0) -> 252898 | BO59: =ROUND(Survivors!BO59+Migrants!BO269,0) -> 253866 | BP59: =ROUND(Survivors!BP59+Migrants!BP269,0) -> 254655 | BQ59: =ROUND(Survivors!BQ59+Migrants!BQ269,0) -> 255312 | BR59: =ROUND(Survivors!BR59+Migrants!BR269,0) -> 255868 | BS59: =ROUND(Survivors!BS59+Migrants!BS269,0) -> 256347 | BT59: =ROUND(Survivors!BT59+Migrants!BT269,0) -> 256765 | BU59: =ROUND(Survivors!BU59+Migrants!BU269,0) -> 257192 | BV59: =ROUND(Survivors!BV59+Migrants!BV269,0) -> 257685 | BW59: =ROUND(Survivors!BW59+Migrants!BW269,0) -> 258229 | BX59: =ROUND(Survivors!BX59+Migrants!BX269,0) -> 258866 | BY59: =ROUND(Survivors!BY59+Migrants!BY269,0) -> 259626 | BZ59: =ROUND(Survivors!BZ59+Migrants!BZ269,0) -> 260529 | CA59: =ROUND(Survivors!CA59+Migrants!CA269,0) -> 261604 | CB59: =ROUND(Survivors!CB59+Migrants!CB269,0) -> 262829 | CC59: =ROUND(Survivors!CC59+Migrants!CC269,0) -> 264221 | CD59: =ROUND(Survivors!CD59+Migrants!CD269,0) -> 265746 | CE59: =ROUND(Survivors!CE59+Migrants!CE269,0) -> 267383 | CF59: =ROUND(Survivors!CF59+Migrants!CF269,0) -> 269106 | CG59: =ROUND(Survivors!CG59+Migrants!CG269,0) -> 270901 | CH59: =ROUND(Survivors!CH59+Migrants!CH269,0) -> 272743 | CI59: =ROUND(Survivors!CI59+Migrants!CI269,0) -> 274596 | CJ59: =ROUND(Survivors!CJ59+Migrants!CJ269,0) -> 276436 | CK59: =ROUND(Survivors!CK59+Migrants!CK269,0) -> 278245 | CL59: =ROUND(Survivors!CL59+Migrants!CL269,0) -> 279995 | CM59: =ROUND(Survivors!CM59+Migrants!CM269,0) -> 281684 | CN59: =ROUND(Survivors!CN59+Migrants!CN269,0) -> 283288
